Workbook

Sheet Assumptions
A1: Time Line
B2: Period Number | I2: 1 | J2: 2 | K2: 3 | L2: 4 | M2: 5 | N2: 6 | O2: 7 | P2: 8 | Q2: 9 | R2: 10 | S2: 11 | T2: 12 | U2: 13 | V2: 14 | W2: 15 | X2: 16 | Y2: 17 | Z2: 18 | AA2: 19 | AB2: 20 | AC2: 21 | AD2: 22 | AE2: 23 | AF2: 24 | AG2: 25 | AH2: 26 | AI2: 27 | AJ2: 28 | AK2: 29 | AL2: 30 | AM2: 31 | AN2: 32 | AO2: 33 | AP2: 34 | AQ2: 35 | AR2: 36 | AS2: 37 | AT2: 38 | AU2: 39 | AV2: 40 | AW2: 41 | AX2: 42 | AY2: 43 | AZ2: 44 | BA2: 45 | BB2: 46 | BC2: 47 | BD2: 48 | BE2: 49 | BF2: 50 | BG2: 51 | BH2: 52 | BI2: 53 | BJ2: 54 | BK2: 55 | BL2: 56 | BM2: 57 | BN2: 58 | BO2: 59 | BP2: 60 | BQ2: 61 | BR2: 62 | BS2: 63 | BT2: 64 | BU2: 65 | BV2: 66 | BW2: 67 | BX2: 68 | BY2: 69 | BZ2: 70 | CA2: 71 | CB2: 72 | CC2: 73 | CD2: 74 | CE2: 75 | CF2: 76 | CG2: 77 | CH2: 78 | CI2: 79 | CJ2: 80 | CK2: 81 | CL2: 82 | CM2: 83 | CN2: 84 | CO2: 85 | CP2: 86 | CQ2: 87 | CR2: 88 | CS2: 89 | CT2: 90 | CU2: 91 | CV2: 92 | CW2: 93 | CX2: 94 | CY2: 95 | CZ2: 96 | DA2: 97 | DB2: 98 | DC2: 99 | DD2: 100 | DE2: 101 | DF2: 102 | DG2: 103 | DH2: 104 | DI2: 105 | DJ2: 106 | DK2: 107 | DL2: 108 | DM2: 109 | DN2: 110 | DO2: 111 | DP2: 112 | DQ2: 113 | DR2: 114 | DS2: 115 | DT2: 116 | DU2: 117 | DV2: 118 | DW2: 119 | DX2: 120 | DY2: 121 | DZ2: 122 | EA2: 123 | EB2: 124 | EC2: 125 | ED2: 126 | EE2: 127 | EF2: 128 | EG2: 129 | EH2: 130 | EI2: 131 | EJ2: 132 | EK2: 133 | EL2: 134 | EM2: 135 | EN2: 136 | EO2: 137 | EP2: 138 | EQ2: 139 | ER2: 140 | ES2: 141 | ET2: 142 | EU2: 143 | EV2: 144 | EW2: 145 | EX2: 146 | EY2: 147 | EZ2: 148 | FA2: 149 | FB2: 150 | FC2: 151 | FD2: 152 | FE2: 153 | FF2: 154 | FG2: 155 | FH2: 156 | FI2: 157 | FJ2: 158 | FK2: 159 | FL2: 160 | FM2: 161 | FN2: 162 | FO2: 163 | FP2: 164 | FQ2: 165 | FR2: 166 | FS2: 167 | FT2: 168 | FU2: 169 | FV2: 170 | FW2: 171 | FX2: 172 | FY2: 173 | FZ2: 174 | GA2: 175 | GB2: 176 | GC2: 177 | GD2: 178 | GE2: 179 | GF2: 180 | GG2: 181 | GH2: 182 | GI2: 183 | GJ2: 184 | GK2: 185 | GL2: 186 | GM2: 187 | GN2: 188 | GO2: 189 | GP2: 190 | GQ2: 191 | GR2: 192 | GS2: 193 | GT2: 194 | GU2: 195 | GV2: 196 | GW2: 197 | GX2: 198 | GY2: 199 | GZ2: 200 | HA2: 201 | HB2: 202 | HC2: 203 | HD2: 204 | HE2: 205 | HF2: 206 | HG2: 207 | HH2: 208 | HI2: 209 | HJ2: 210 | HK2: 211 | HL2: 212 | HM2: 213 | HN2: 214 | HO2: 215 | HP2: 216 | HQ2: 217 | HR2: 218 | HS2: 219 | HT2: 220 | HU2: 221 | HV2: 222 | HW2: 223 | HX2: 224 | HY2: 225 | HZ2: 226 | IA2: 227 | IB2: 228 | IC2: 229 | ID2: 230 | IE2: 231 | IF2: 232 | IG2: 233 | IH2: 234 | II2: 235 | IJ2: 236 | IK2: 237 | IL2: 238 | IM2: 239 | IN2: 240 | IO2: 241 | IP2: 242 | IQ2: 243 | IR2: 244 | IS2: 245 | IT2: 246 | IU2: 247 | IV2: 248 | IW2: 249 | IX2: 250 | IY2: 251 | IZ2: 252 | JA2: 253 | JB2: 254 | JC2: 255 | JD2: 256 | JE2: 257 | JF2: 258 | JG2: 259 | JH2: 260 | JI2: 261 | JJ2: 262 | JK2: 263 | JL2: 264 | JM2: 265 | JN2: 266 | JO2: 267 | JP2: 268 | JQ2: 269 | JR2: 270 | JS2: 271 | JT2: 272 | JU2: 273 | JV2: 274 | JW2: 275 | JX2: 276 | JY2: 277 | JZ2: 278 | KA2: 279 | KB2: 280 | KC2: 281 | KD2: 282 | KE2: 283 | KF2: 284 | KG2: 285 | KH2: 286 | KI2: 287 | KJ2: 288 | KK2: 289 | KL2: 290 | KM2: 291 | KN2: 292 | KO2: 293 | KP2: 294 | KQ2: 295 | KR2: 296 | KS2: 297 | KT2: 298 | KU2: 299 | KV2: 300
B3: Construction Switch | G3: =F14 -> 30 | I3: =I2<=$G$3 -> TRUE | J3: =J2<=$G$3 -> TRUE | K3: TRUE | L3: TRUE | M3: TRUE | N3: TRUE | O3: TRUE | P3: TRUE | Q3: TRUE | R3: TRUE | S3: TRUE | T3: TRUE | U3: TRUE | V3: TRUE | W3: TRUE | X3: TRUE | Y3: TRUE | Z3: TRUE | AA3: TRUE | AB3: TRUE | AC3: TRUE | AD3: TRUE | AE3: TRUE | AF3: TRUE | AG3: TRUE | AH3: TRUE | AI3: TRUE | AJ3: TRUE | AK3: TRUE | AL3: TRUE | AM3: FALSE | AN3: FALSE | AO3: FALSE | AP3: FALSE | AQ3: FALSE | AR3: FALSE | AS3: FALSE | AT3: FALSE | AU3: FALSE | AV3: FALSE | AW3: FALSE | AX3: FALSE | AY3: FALSE | AZ3: FALSE | BA3: FALSE | BB3: FALSE | BC3: FALSE | BD3: FALSE | BE3: FALSE | BF3: FALSE | BG3: FALSE | BH3: FALSE | BI3: FALSE | BJ3: FALSE | BK3: FALSE | BL3: FALSE | BM3: FALSE | BN3: FALSE | BO3: FALSE | BP3: FALSE | BQ3: FALSE | BR3: FALSE | BS3: FALSE | BT3: FALSE | BU3: FALSE | BV3: =BV2<=$G$3 -> FALSE | BW3: FALSE | BX3: FALSE | BY3: FALSE | BZ3: FALSE | CA3: FALSE | CB3: FALSE | CC3: FALSE | CD3: FALSE | CE3: FALSE | CF3: FALSE | CG3: FALSE | CH3: FALSE | CI3: FALSE | CJ3: FALSE | CK3: FALSE | CL3: FALSE | CM3: FALSE | CN3: FALSE | CO3: FALSE | CP3: FALSE | CQ3: FALSE | CR3: FALSE | CS3: FALSE | CT3: FALSE | CU3: FALSE | CV3: FALSE | CW3: FALSE | CX3: FALSE | CY3: FALSE | CZ3: FALSE | DA3: FALSE | DB3: FALSE | DC3: FALSE | DD3: FALSE | DE3: FALSE | DF3: FALSE | DG3: FALSE | DH3: FALSE | DI3: FALSE | DJ3: FALSE | DK3: FALSE | DL3: FALSE | DM3: FALSE | DN3: FALSE | DO3: FALSE | DP3: FALSE | DQ3: FALSE | DR3: FALSE | DS3: FALSE | DT3: FALSE | DU3: FALSE | DV3: FALSE | DW3: FALSE | DX3: FALSE | DY3: FALSE | DZ3: FALSE | EA3: FALSE | EB3: FALSE | EC3: FALSE | ED3: FALSE | EE3: FALSE | EF3: FALSE | EG3: FALSE | EH3: =EH2<=$G$3 -> FALSE | EI3: FALSE | EJ3: FALSE | EK3: FALSE | EL3: FALSE | EM3: FALSE | EN3: FALSE | EO3: FALSE | EP3: FALSE | EQ3: FALSE | ER3: FALSE | ES3: FALSE | ET3: FALSE | EU3: FALSE | EV3: FALSE | EW3: FALSE | EX3: FALSE | EY3: FALSE | EZ3: FALSE | FA3: FALSE | FB3: FALSE | FC3: FALSE | FD3: FALSE | FE3: FALSE | FF3: FALSE | FG3: FALSE | FH3: FALSE | FI3: FALSE | FJ3: FALSE | FK3: FALSE | FL3: FALSE | FM3: FALSE | FN3: FALSE | FO3: FALSE | FP3: FALSE | FQ3: FALSE | FR3: FALSE | FS3: FALSE | FT3: FALSE | FU3: FALSE | FV3: FALSE | FW3: FALSE | FX3: FALSE | FY3: FALSE | FZ3: FALSE | GA3: FALSE | GB3: FALSE | GC3: FALSE | GD3: FALSE | GE3: FALSE | GF3: FALSE | GG3: FALSE | GH3: FALSE | GI3: FALSE | GJ3: FALSE | GK3: FALSE | GL3: FALSE | GM3: FALSE | GN3: FALSE | GO3: FALSE | GP3: FALSE | GQ3: FALSE | GR3: FALSE | GS3: FALSE | GT3: =GT2<=$G$3 -> FALSE | GU3: FALSE | GV3: FALSE | GW3: FALSE | GX3: FALSE | GY3: FALSE | GZ3: FALSE | HA3: FALSE | HB3: FALSE | HC3: FALSE | HD3: FALSE | HE3: FALSE | HF3: FALSE | HG3: FALSE | HH3: FALSE | HI3: FALSE | HJ3: FALSE | HK3: FALSE | HL3: FALSE | HM3: FALSE | HN3: FALSE | HO3: FALSE | HP3: FALSE | HQ3: FALSE | HR3: FALSE | HS3: FALSE | HT3: FALSE | HU3: FALSE | HV3: FALSE | HW3: FALSE | HX3: FALSE | HY3: FALSE | HZ3: FALSE | IA3: FALSE | IB3: FALSE | IC3: FALSE | ID3: FALSE | IE3: FALSE | IF3: FALSE | IG3: FALSE | IH3: FALSE | II3: FALSE | IJ3: FALSE | IK3: FALSE | IL3: FALSE | IM3: FALSE | IN3: FALSE | IO3: FALSE | IP3: FALSE | IQ3: FALSE | IR3: FALSE | IS3: FALSE | IT3: FALSE | IU3: FALSE | IV3: FALSE | IW3: FALSE | IX3: FALSE | IY3: FALSE | IZ3: FALSE | JA3: FALSE | JB3: FALSE | JC3: FALSE | JD3: FALSE | JE3: FALSE | JF3: =JF2<=$G$3 -> FALSE | JG3: FALSE | JH3: FALSE | JI3: FALSE | JJ3: FALSE | JK3: FALSE | JL3: FALSE | JM3: FALSE | JN3: FALSE | JO3: FALSE | JP3: FALSE | JQ3: FALSE | JR3: FALSE | JS3: FALSE | JT3: FALSE | JU3: FALSE | JV3: FALSE | JW3: FALSE | JX3: FALSE | JY3: FALSE | JZ3: FALSE | KA3: FALSE | KB3: FALSE | KC3: FALSE | KD3: FALSE | KE3: FALSE | KF3: FALSE | KG3: FALSE | KH3: FALSE | KI3: FALSE | KJ3: FALSE | KK3: FALSE | KL3: FALSE | KM3: FALSE | KN3: FALSE | KO3: FALSE | KP3: FALSE | KQ3: FALSE | KR3: FALSE | KS3: FALSE | KT3: FALSE | KU3: FALSE | KV3: FALSE
B4: Months in Period | F4: =F18 -> 1 | G4: =F19 -> 3 | I4: =IF(I3,$F$4,$G$4) -> 1 | J4: =IF(J3,$F$4,$G$4) -> 1 | K4: 1 | L4: 1 | M4: 1 | N4: 1 | O4: 1 | P4: 1 | Q4: 1 | R4: 1 | S4: 1 | T4: 1 | U4: 1 | V4: 1 | W4: 1 | X4: 1 | Y4: 1 | Z4: 1 | AA4: 1 | AB4: 1 | AC4: 1 | AD4: 1 | AE4: 1 | AF4: 1 | AG4: 1 | AH4: 1 | AI4: 1 | AJ4: 1 | AK4: 1 | AL4: 1 | AM4: 3 | AN4: 3 | AO4: 3 | AP4: 3 | AQ4: 3 | AR4: 3 | AS4: 3 | AT4: 3 | AU4: 3 | AV4: 3 | AW4: 3 | AX4: 3 | AY4: 3 | AZ4: 3 | BA4: 3 | BB4: 3 | BC4: 3 | BD4: 3 | BE4: 3 | BF4: 3 | BG4: 3 | BH4: 3 | BI4: 3 | BJ4: 3 | BK4: 3 | BL4: 3 | BM4: 3 | BN4: 3 | BO4: 3 | BP4: 3 | BQ4: 3 | BR4: 3 | BS4: 3 | BT4: 3 | BU4: 3 | BV4: =IF(BV3,$F$4,$G$4) -> 3 | BW4: 3 | BX4: 3 | BY4: 3 | BZ4: 3 | CA4: 3 | CB4: 3 | CC4: 3 | CD4: 3 | CE4: 3 | CF4: 3 | CG4: 3 | CH4: 3 | CI4: 3 | CJ4: 3 | CK4: 3 | CL4: 3 | CM4: 3 | CN4: 3 | CO4: 3 | CP4: 3 | CQ4: 3 | CR4: 3 | CS4: 3 | CT4: 3 | CU4: 3 | CV4: 3 | CW4: 3 | CX4: 3 | CY4: 3 | CZ4: 3 | DA4: 3 | DB4: 3 | DC4: 3 | DD4: 3 | DE4: 3 | DF4: 3 | DG4: 3 | DH4: 3 | DI4: 3 | DJ4: 3 | DK4: 3 | DL4: 3 | DM4: 3 | DN4: 3 | DO4: 3 | DP4: 3 | DQ4: 3 | DR4: 3 | DS4: 3 | DT4: 3 | DU4: 3 | DV4: 3 | DW4: 3 | DX4: 3 | DY4: 3 | DZ4: 3 | EA4: 3 | EB4: 3 | EC4: 3 | ED4: 3 | EE4: 3 | EF4: 3 | EG4: 3 | EH4: =IF(EH3,$F$4,$G$4) -> 3 | EI4: 3 | EJ4: 3 | EK4: 3 | EL4: 3 | EM4: 3 | EN4: 3 | EO4: 3 | EP4: 3 | EQ4: 3 | ER4: 3 | ES4: 3 | ET4: 3 | EU4: 3 | EV4: 3 | EW4: 3 | EX4: 3 | EY4: 3 | EZ4: 3 | FA4: 3 | FB4: 3 | FC4: 3 | FD4: 3 | FE4: 3 | FF4: 3 | FG4: 3 | FH4: 3 | FI4: 3 | FJ4: 3 | FK4: 3 | FL4: 3 | FM4: 3 | FN4: 3 | FO4: 3 | FP4: 3 | FQ4: 3 | FR4: 3 | FS4: 3 | FT4: 3 | FU4: 3 | FV4: 3 | FW4: 3 | FX4: 3 | FY4: 3 | FZ4: 3 | GA4: 3 | GB4: 3 | GC4: 3 | GD4: 3 | GE4: 3 | GF4: 3 | GG4: 3 | GH4: 3 | GI4: 3 | GJ4: 3 | GK4: 3 | GL4: 3 | GM4: 3 | GN4: 3 | GO4: 3 | GP4: 3 | GQ4: 3 | GR4: 3 | GS4: 3 | GT4: =IF(GT3,$F$4,$G$4) -> 3 | GU4: 3 | GV4: 3 | GW4: 3 | GX4: 3 | GY4: 3 | GZ4: 3 | HA4: 3 | HB4: 3 | HC4: 3 | HD4: 3 | HE4: 3 | HF4: 3 | HG4: 3 | HH4: 3 | HI4: 3 | HJ4: 3 | HK4: 3 | HL4: 3 | HM4: 3 | HN4: 3 | HO4: 3 | HP4: 3 | HQ4: 3 | HR4: 3 | HS4: 3 | HT4: 3 | HU4: 3 | HV4: 3 | HW4: 3 | HX4: 3 | HY4: 3 | HZ4: 3 | IA4: 3 | IB4: 3 | IC4: 3 | ID4: 3 | IE4: 3 | IF4: 3 | IG4: 3 | IH4: 3 | II4: 3 | IJ4: 3 | IK4: 3 | IL4: 3 | IM4: 3 | IN4: 3 | IO4: 3 | IP4: 3 | IQ4: 3 | IR4: 3 | IS4: 3 | IT4: 3 | IU4: 3 | IV4: 3 | IW4: 3 | IX4: 3 | IY4: 3 | IZ4: 3 | JA4: 3 | JB4: 3 | JC4: 3 | JD4: 3 | JE4: 3 | JF4: =IF(JF3,$F$4,$G$4) -> 3 | JG4: 3 | JH4: 3 | JI4: 3 | JJ4: 3 | JK4: 3 | JL4: 3 | JM4: 3 | JN4: 3 | JO4: 3 | JP4: 3 | JQ4: 3 | JR4: 3 | JS4: 3 | JT4: 3 | JU4: 3 | JV4: 3 | JW4: 3 | JX4: 3 | JY4: 3 | JZ4: 3 | KA4: 3 | KB4: 3 | KC4: 3 | KD4: 3 | KE4: 3 | KF4: 3 | KG4: 3 | KH4: 3 | KI4: 3 | KJ4: 3 | KK4: 3 | KL4: 3 | KM4: 3 | KN4: 3 | KO4: 3 | KP4: 3 | KQ4: 3 | KR4: 3 | KS4: 3 | KT4: 3 | KU4: 3 | KV4: 3
B5: Start of Period | I5: =G6+1 -> 2019-09-01 | J5: =I6+1 -> 2019-10-01 | K5: 2019-11-01 | L5: 2019-12-01 | M5: 2020-01-01 | N5: 2020-02-01 | O5: 2020-03-01 | P5: 2020-04-01 | Q5: 2020-05-01 | R5: 2020-06-01 | S5: 2020-07-01 | T5: 2020-08-01 | U5: 2020-09-01 | V5: 2020-10-01 | W5: 2020-11-01 | X5: 2020-12-01 | Y5: 2021-01-01 | Z5: 2021-02-01 | AA5: 2021-03-01 | AB5: 2021-04-01 | AC5: 2021-05-01 | AD5: 2021-06-01 | AE5: 2021-07-01 | AF5: 2021-08-01 | AG5: 2021-09-01 | AH5: 2021-10-01 | AI5: 2021-11-01 | AJ5: 2021-12-01 | AK5: 2022-01-01 | AL5: 2022-02-01 | AM5: 2022-03-01 | AN5: 2022-06-01 | AO5: 2022-09-01 | AP5: 2022-12-01 | AQ5: 2023-03-01 | AR5: 2023-06-01 | AS5: 2023-09-01 | AT5: 2023-12-01 | AU5: 2024-03-01 | AV5: 2024-06-01 | AW5: 2024-09-01 | AX5: 2024-12-01 | AY5: 2025-03-01 | AZ5: 2025-06-01 | BA5: 2025-09-01 | BB5: 2025-12-01 | BC5: 2026-03-01 | BD5: 2026-06-01 | BE5: 2026-09-01 | BF5: 2026-12-01 | BG5: 2027-03-01 | BH5: 2027-06-01 | BI5: 2027-09-01 | BJ5: 2027-12-01 | BK5: 2028-03-01 | BL5: 2028-06-01 | BM5: 2028-09-01 | BN5: 2028-12-01 | BO5: 2029-03-01 | BP5: 2029-06-01 | BQ5: 2029-09-01 | BR5: 2029-12-01 | BS5: 2030-03-01 | BT5: 2030-06-01 | BU5: 2030-09-01 | BV5: =BU6+1 -> 2030-12-01 | BW5: 2031-03-01 | BX5: 2031-06-01 | BY5: 2031-09-01 | BZ5: 2031-12-01 | CA5: 2032-03-01 | CB5: 2032-06-01 | CC5: 2032-09-01 | CD5: 2032-12-01 | CE5: 2033-03-01 | CF5: 2033-06-01 | CG5: 2033-09-01 | CH5: 2033-12-01 | CI5: 2034-03-01 | CJ5: 2034-06-01 | CK5: 2034-09-01 | CL5: 2034-12-01 | CM5: 2035-03-01 | CN5: 2035-06-01 | CO5: 2035-09-01 | CP5: 2035-12-01 | CQ5: 2036-03-01 | CR5: 2036-06-01 | CS5: 2036-09-01 | CT5: 2036-12-01 | CU5: 2037-03-01 | CV5: 2037-06-01 | CW5: 2037-09-01 | CX5: 2037-12-01 | CY5: 2038-03-01 | CZ5: 2038-06-01 | DA5: 2038-09-01 | DB5: 2038-12-01 | DC5: 2039-03-01 | DD5: 2039-06-01 | DE5: 2039-09-01 | DF5: 2039-12-01 | DG5: 2040-03-01 | DH5: 2040-06-01 | DI5: 2040-09-01 | DJ5: 2040-12-01 | DK5: 2041-03-01 | DL5: 2041-06-01 | DM5: 2041-09-01 | DN5: 2041-12-01 | DO5: 2042-03-01 | DP5: 2042-06-01 | DQ5: 2042-09-01 | DR5: 2042-12-01 | DS5: 2043-03-01 | DT5: 2043-06-01 | DU5: 2043-09-01 | DV5: 2043-12-01 | DW5: 2044-03-01 | DX5: 2044-06-01 | DY5: 2044-09-01 | DZ5: 2044-12-01 | EA5: 2045-03-01 | EB5: 2045-06-01 | EC5: 2045-09-01 | ED5: 2045-12-01 | EE5: 2046-03-01 | EF5: 2046-06-01 | EG5: 2046-09-01 | EH5: =EG6+1 -> 2046-12-01 | EI5: 2047-03-01 | EJ5: 2047-06-01 | EK5: 2047-09-01 | EL5: 2047-12-01 | EM5: 2048-03-01 | EN5: 2048-06-01 | EO5: 2048-09-01 | EP5: 2048-12-01 | EQ5: 2049-03-01 | ER5: 2049-06-01 | ES5: 2049-09-01 | ET5: 2049-12-01 | EU5: 2050-03-01 | EV5: 2050-06-01 | EW5: 2050-09-01 | EX5: 2050-12-01 | EY5: 2051-03-01 | EZ5: 2051-06-01 | FA5: 2051-09-01 | FB5: 2051-12-01 | FC5: 2052-03-01 | FD5: 2052-06-01 | FE5: 2052-09-01 | FF5: 2052-12-01 | FG5: 2053-03-01 | FH5: 2053-06-01 | FI5: 2053-09-01 | FJ5: 2053-12-01 | FK5: 2054-03-01 | FL5: 2054-06-01 | FM5: 2054-09-01 | FN5: 2054-12-01 | FO5: 2055-03-01 | FP5: 2055-06-01 | FQ5: 2055-09-01 | FR5: 2055-12-01 | FS5: 2056-03-01 | FT5: 2056-06-01 | FU5: 2056-09-01 | FV5: 2056-12-01 | FW5: 2057-03-01 | FX5: 2057-06-01 | FY5: 2057-09-01 | FZ5: 2057-12-01 | GA5: 2058-03-01 | GB5: 2058-06-01 | GC5: 2058-09-01 | GD5: 2058-12-01 | GE5: 2059-03-01 | GF5: 2059-06-01 | GG5: 2059-09-01 | GH5: 2059-12-01 | GI5: 2060-03-01 | GJ5: 2060-06-01 | GK5: 2060-09-01 | GL5: 2060-12-01 | GM5: 2061-03-01 | GN5: 2061-06-01 | GO5: 2061-09-01 | GP5: 2061-12-01 | GQ5: 2062-03-01 | GR5: 2062-06-01 | GS5: 2062-09-01 | GT5: =GS6+1 -> 2062-12-01 | GU5: 2063-03-01 | GV5: 2063-06-01 | GW5: 2063-09-01 | GX5: 2063-12-01 | GY5: 2064-03-01 | GZ5: 2064-06-01 | HA5: 2064-09-01 | HB5: 2064-12-01 | HC5: 2065-03-01 | HD5: 2065-06-01 | HE5: 2065-09-01 | HF5: 2065-12-01 | HG5: 2066-03-01 | HH5: 2066-06-01 | HI5: 2066-09-01 | HJ5: 2066-12-01 | HK5: 2067-03-01 | HL5: 2067-06-01 | HM5: 2067-09-01 | HN5: 2067-12-01 | HO5: 2068-03-01 | HP5: 2068-06-01 | HQ5: 2068-09-01 | HR5: 2068-12-01 | HS5: 2069-03-01 | HT5: 2069-06-01 | HU5: 2069-09-01 | HV5: 2069-12-01 | HW5: 2070-03-01 | HX5: 2070-06-01 | HY5: 2070-09-01 | HZ5: 2070-12-01 | IA5: 2071-03-01 | IB5: 2071-06-01 | IC5: 2071-09-01 | ID5: 2071-12-01 | IE5: 2072-03-01 | IF5: 2072-06-01 | IG5: 2072-09-01 | IH5: 2072-12-01 | II5: 2073-03-01 | IJ5: 2073-06-01 | IK5: 2073-09-01 | IL5: 2073-12-01 | IM5: 2074-03-01 | IN5: 2074-06-01 | IO5: 2074-09-01 | IP5: 2074-12-01 | IQ5: 2075-03-01 | IR5: 2075-06-01 | IS5: 2075-09-01 | IT5: 2075-12-01 | IU5: 2076-03-01 | IV5: 2076-06-01 | IW5: 2076-09-01 | IX5: 2076-12-01 | IY5: 2077-03-01 | IZ5: 2077-06-01 | JA5: 2077-09-01 | JB5: 2077-12-01 | JC5: 2078-03-01 | JD5: 2078-06-01 | JE5: 2078-09-01 | JF5: =JE6+1 -> 2078-12-01 | JG5: 2079-03-01 | JH5: 2079-06-01 | JI5: 2079-09-01 | JJ5: 2079-12-01 | JK5: 2080-03-01 | JL5: 2080-06-01 | JM5: 2080-09-01 | JN5: 2080-12-01 | JO5: 2081-03-01 | JP5: 2081-06-01 | JQ5: 2081-09-01 | JR5: 2081-12-01 | JS5: 2082-03-01 | JT5: 2082-06-01 | JU5: 2082-09-01 | JV5: 2082-12-01 | JW5: 2083-03-01 | JX5: 2083-06-01 | JY5: 2083-09-01 | JZ5: 2083-12-01 | KA5: 2084-03-01 | KB5: 2084-06-01 | KC5: 2084-09-01 | KD5: 2084-12-01 | KE5: 2085-03-01 | KF5: 2085-06-01 | KG5: 2085-09-01 | KH5: 2085-12-01 | KI5: 2086-03-01 | KJ5: 2086-06-01 | KK5: 2086-09-01 | KL5: 2086-12-01 | KM5: 2087-03-01 | KN5: 2087-06-01 | KO5: 2087-09-01 | KP5: 2087-12-01 | KQ5: 2088-03-01 | KR5: 2088-06-01 | KS5: 2088-09-01 | KT5: 2088-12-01 | KU5: 2089-03-01 | KV5: 2089-06-01
B6: End of Period | G6: =F13-1 -> 2019-08-31 | I6: =EDATE(I5,I4)-1 -> 2019-09-30 | J6: =EDATE(J5,J4)-1 -> 2019-10-31 | K6: 2019-11-30 | L6: 2019-12-31 | M6: 2020-01-31 | N6: 2020-02-29 | O6: 2020-03-31 | P6: 2020-04-30 | Q6: 2020-05-31 | R6: 2020-06-30 | S6: 2020-07-31 | T6: 2020-08-31 | U6: 2020-09-30 | V6: 2020-10-31 | W6: 2020-11-30 | X6: 2020-12-31 | Y6: 2021-01-31 | Z6: 2021-02-28 | AA6: 2021-03-31 | AB6: 2021-04-30 | AC6: 2021-05-31 | AD6: 2021-06-30 | AE6: 2021-07-31 | AF6: 2021-08-31 | AG6: 2021-09-30 | AH6: 2021-10-31 | AI6: 2021-11-30 | AJ6: 2021-12-31 | AK6: 2022-01-31 | AL6: 2022-02-28 | AM6: 2022-05-31 | AN6: 2022-08-31 | AO6: 2022-11-30 | AP6: 2023-02-28 | AQ6: 2023-05-31 | AR6: 2023-08-31 | AS6: 2023-11-30 | AT6: 2024-02-29 | AU6: 2024-05-31 | AV6: 2024-08-31 | AW6: 2024-11-30 | AX6: 2025-02-28 | AY6: 2025-05-31 | AZ6: 2025-08-31 | BA6: 2025-11-30 | BB6: 2026-02-28 | BC6: 2026-05-31 | BD6: 2026-08-31 | BE6: 2026-11-30 | BF6: 2027-02-28 | BG6: 2027-05-31 | BH6: 2027-08-31 | BI6: 2027-11-30 | BJ6: 2028-02-29 | BK6: 2028-05-31 | BL6: 2028-08-31 | BM6: 2028-11-30 | BN6: 2029-02-28 | BO6: 2029-05-31 | BP6: 2029-08-31 | BQ6: 2029-11-30 | BR6: 2030-02-28 | BS6: 2030-05-31 | BT6: 2030-08-31 | BU6: 2030-11-30 | BV6: =EDATE(BV5,BV4)-1 -> 2031-02-28 | BW6: 2031-05-31 | BX6: 2031-08-31 | BY6: 2031-11-30 | BZ6: 2032-02-29 | CA6: 2032-05-31 | CB6: 2032-08-31 | CC6: 2032-11-30 | CD6: 2033-02-28 | CE6: 2033-05-31 | CF6: 2033-08-31 | CG6: 2033-11-30 | CH6: 2034-02-28 | CI6: 2034-05-31 | CJ6: 2034-08-31 | CK6: 2034-11-30 | CL6: 2035-02-28 | CM6: 2035-05-31 | CN6: 2035-08-31 | CO6: 2035-11-30 | CP6: 2036-02-29 | CQ6: 2036-05-31 | CR6: 2036-08-31 | CS6: 2036-11-30 | CT6: 2037-02-28 | CU6: 2037-05-31 | CV6: 2037-08-31 | CW6: 2037-11-30 | CX6: 2038-02-28 | CY6: 2038-05-31 | CZ6: 2038-08-31 | DA6: 2038-11-30 | DB6: 2039-02-28 | DC6: 2039-05-31 | DD6: 2039-08-31 | DE6: 2039-11-30 | DF6: 2040-02-29 | DG6: 2040-05-31 | DH6: 2040-08-31 | DI6: 2040-11-30 | DJ6: 2041-02-28 | DK6: 2041-05-31 | DL6: 2041-08-31 | DM6: 2041-11-30 | DN6: 2042-02-28 | DO6: 2042-05-31 | DP6: 2042-08-31 | DQ6: 2042-11-30 | DR6: 2043-02-28 | DS6: 2043-05-31 | DT6: 2043-08-31 | DU6: 2043-11-30 | DV6: 2044-02-29 | DW6: 2044-05-31 | DX6: 2044-08-31 | DY6: 2044-11-30 | DZ6: 2045-02-28 | EA6: 2045-05-31 | EB6: 2045-08-31 | EC6: 2045-11-30 | ED6: 2046-02-28 | EE6: 2046-05-31 | EF6: 2046-08-31 | EG6: 2046-11-30 | EH6: =EDATE(EH5,EH4)-1 -> 2047-02-28 | EI6: 2047-05-31 | EJ6: 2047-08-31 | EK6: 2047-11-30 | EL6: 2048-02-29 | EM6: 2048-05-31 | EN6: 2048-08-31 | EO6: 2048-11-30 | EP6: 2049-02-28 | EQ6: 2049-05-31 | ER6: 2049-08-31 | ES6: 2049-11-30 | ET6: 2050-02-28 | EU6: 2050-05-31 | EV6: 2050-08-31 | EW6: 2050-11-30 | EX6: 2051-02-28 | EY6: 2051-05-31 | EZ6: 2051-08-31 | FA6: 2051-11-30 | FB6: 2052-02-29 | FC6: 2052-05-31 | FD6: 2052-08-31 | FE6: 2052-11-30 | FF6: 2053-02-28 | FG6: 2053-05-31 | FH6: 2053-08-31 | FI6: 2053-11-30 | FJ6: 2054-02-28 | FK6: 2054-05-31 | FL6: 2054-08-31 | FM6: 2054-11-30 | FN6: 2055-02-28 | FO6: 2055-05-31 | FP6: 2055-08-31 | FQ6: 2055-11-30 | FR6: 2056-02-29 | FS6: 2056-05-31 | FT6: 2056-08-31 | FU6: 2056-11-30 | FV6: 2057-02-28 | FW6: 2057-05-31 | FX6: 2057-08-31 | FY6: 2057-11-30 | FZ6: 2058-02-28 | GA6: 2058-05-31 | GB6: 2058-08-31 | GC6: 2058-11-30 | GD6: 2059-02-28 | GE6: 2059-05-31 | GF6: 2059-08-31 | GG6: 2059-11-30 | GH6: 2060-02-29 | GI6: 2060-05-31 | GJ6: 2060-08-31 | GK6: 2060-11-30 | GL6: 2061-02-28 | GM6: 2061-05-31 | GN6: 2061-08-31 | GO6: 2061-11-30 | GP6: 2062-02-28 | GQ6: 2062-05-31 | GR6: 2062-08-31 | GS6: 2062-11-30 | GT6: =EDATE(GT5,GT4)-1 -> 2063-02-28 | GU6: 2063-05-31 | GV6: 2063-08-31 | GW6: 2063-11-30 | GX6: 2064-02-29 | GY6: 2064-05-31 | GZ6: 2064-08-31 | HA6: 2064-11-30 | HB6: 2065-02-28 | HC6: 2065-05-31 | HD6: 2065-08-31 | HE6: 2065-11-30 | HF6: 2066-02-28 | HG6: 2066-05-31 | HH6: 2066-08-31 | HI6: 2066-11-30 | HJ6: 2067-02-28 | HK6: 2067-05-31 | HL6: 2067-08-31 | HM6: 2067-11-30 | HN6: 2068-02-29 | HO6: 2068-05-31 | HP6: 2068-08-31 | HQ6: 2068-11-30 | HR6: 2069-02-28 | HS6: 2069-05-31 | HT6: 2069-08-31 | HU6: 2069-11-30 | HV6: 2070-02-28 | HW6: 2070-05-31 | HX6: 2070-08-31 | HY6: 2070-11-30 | HZ6: 2071-02-28 | IA6: 2071-05-31 | IB6: 2071-08-31 | IC6: 2071-11-30 | ID6: 2072-02-29 | IE6: 2072-05-31 | IF6: 2072-08-31 | IG6: 2072-11-30 | IH6: 2073-02-28 | II6: 2073-05-31 | IJ6: 2073-08-31 | IK6: 2073-11-30 | IL6: 2074-02-28 | IM6: 2074-05-31 | IN6: 2074-08-31 | IO6: 2074-11-30 | IP6: 2075-02-28 | IQ6: 2075-05-31 | IR6: 2075-08-31 | IS6: 2075-11-30 | IT6: 2076-02-29 | IU6: 2076-05-31 | IV6: 2076-08-31 | IW6: 2076-11-30 | IX6: 2077-02-28 | IY6: 2077-05-31 | IZ6: 2077-08-31 | JA6: 2077-11-30 | JB6: 2078-02-28 | JC6: 2078-05-31 | JD6: 2078-08-31 | JE6: 2078-11-30 | JF6: =EDATE(JF5,JF4)-1 -> 2079-02-28 | JG6: 2079-05-31 | JH6: 2079-08-31 | JI6: 2079-11-30 | JJ6: 2080-02-29 | JK6: 2080-05-31 | JL6: 2080-08-31 | JM6: 2080-11-30 | JN6: 2081-02-28 | JO6: 2081-05-31 | JP6: 2081-08-31 | JQ6: 2081-11-30 | JR6: 2082-02-28 | JS6: 2082-05-31 | JT6: 2082-08-31 | JU6: 2082-11-30 | JV6: 2083-02-28 | JW6: 2083-05-31 | JX6: 2083-08-31 | JY6: 2083-11-30 | JZ6: 2084-02-29 | KA6: 2084-05-31 | KB6: 2084-08-31 | KC6: 2084-11-30 | KD6: 2085-02-28 | KE6: 2085-05-31 | KF6: 2085-08-31 | KG6: 2085-11-30 | KH6: 2086-02-28 | KI6: 2086-05-31 | KJ6: 2086-08-31 | KK6: 2086-11-30 | KL6: 2087-02-28 | KM6: 2087-05-31 | KN6: 2087-08-31 | KO6: 2087-11-30 | KP6: 2088-02-29 | KQ6: 2088-05-31 | KR6: 2088-08-31 | KS6: 2088-11-30 | KT6: 2089-02-28 | KU6: 2089-05-31 | KV6: 2089-08-31
B7: Operating Period | G7: =F15 -> 2022-03-01 | H7: =F17 -> 2052-03-01
A10: Dates
C11: Development Start | F11: 2018-01-01
C12: Development Period | E12: Months | F12: 20
C13: Financial Close | E13: Date | F13: =EDATE(F11,F12) -> 2019-09-01
C14: Construction | E14: Months | F14: 30
C15: Commercial Operation | E15: Date | F15: =EDATE(F13,F14) -> 2022-03-01
C16: Operation | E16: Years | F16: 30
C17: Decommissioning | E17: Date | F17: =EDATE(F15,F16*12) -> 2052-03-01
C18: Months Pre-COD | E18: Months | F18: 1
C19: Months Post-COD | E19: Months | F19: 3
A21: Capacity and Volumes
B22: Months after FC | I22: 10 | J22: 8 | K22: COD | L22: Decom
B23: Date | G23: =F11 -> 2018-01-01 | H23: =F13 -> 2019-09-01 | I23: =EDATE(H23,I22) -> 2020-07-01 | J23: =EDATE(I23,J22) -> 2021-03-01 | K23: =F15 -> 2022-03-01 | L23: =F17 -> 2052-03-01
B24: Capacity of Project | E24: Units/Day | G24: 0 | H24: 0 | I24: 100 | J24: 150 | K24: 1000 | L24: 0
L25: 2 | M25: 4 | N25: 6
B26: Date | G26: =G23 -> 2018-01-01 | H26: =H23 -> 2019-09-01 | I26: 2020-07-01 | J26: 2021-03-01 | K26: 2022-03-01 | L26: =EDATE(K26,L25*12) -> 2024-03-01 | M26: =EDATE(L26,M25*12) -> 2028-03-01 | N26: =EDATE(M26,N25*12) -> 2034-03-01 | O26: =L23 -> 2052-03-01
B27: Capacity Utilisation | E27: % | G27: 0 | H27: 0 | I27: 0.4 | J27: 0.6 | K27: 0.6 | L27: 0.64 | M27: 0.72 | N27: 0.8 | O27: 0.8
A29: Operating Contracts and Working Capital
B31: Capital Expenditures/Month | F31: Amount | G31: Months | H31: Start
C32: Development Cost | E32: € 000's | F32: 100 | G32: =F12 -> 20 | H32: =F11 -> 2018-01-01
C33: Development Fees | E33: € 000's | F33: 200 | G33: 1 | H33: =F13 -> 2019-09-01
C34: Capital Expenditures - EPC | E34: € 000's | F34: 1000 | G34: 20 | H34: =F13 -> 2019-09-01
C35: Capital Expenditures - Owner | E35: € 000's | F35: 50 | G35: =F14 -> 30 | H35: =F13 -> 2019-09-01
B37: PPA Contract
C38: Base Price | E38: €/Unit | F38: 10
C39: Month to Apply Inflation (After COD) | E39: Month | F39: =MONTH(F15) -> 3
G40: =YEAR(F11) -> 2018 | H40: =G40+1 -> 2019 | I40: =H40+1 -> 2020 | J40: 2021 | K40: 2022 | L40: 2023 | M40: 2024 | N40: 2025 | O40: 2026
C41: Inflation Rate | E41: % p.a. | G41: 0.015 | H41: 0.018 | I41: 0.02 | J41: 0.022 | K41: 0.025 | L41: 0.025 | M41: 0.025 | N41: 0.025 | O41: 0.025
B43: O&M Contract
C44: Base Variable O&M per Unit | E44: €/Unit | F44: 2
C45: Base Fixed O&M per Capacity-yr | E45: €/Cap-yr | F45: 15
C46: First Date of Inflation | E46: Date | F46: =F15 -> 2022-03-01
B48: Working Capital
C49: Days Receivables | E49: Days | F49: 28
C50: Days Payables | E50: Days | F50: 15
A52: Debt
B53: Debt Size
C54: Debt To Project Cost | F54: 0.8
B55: Debt Funding
C56: Equity First | F56: TRUE
C57: Pro Rata | F57: =NOT(F56) -> FALSE
C58: Pre-commercial CF as Income | F58: TRUE
C59: Capitalise Interest | F59: TRUE
B60: Debt Repayment
C61: Tenor | F61: 15
C62: End of Repayment | F62: =EDATE(F15,F61*12) -> 2037-03-01
C63: Sculpting | F63: TRUE
B64: Interest
C65: Credit Spread | F65: 0.015
C66: Interest Rate | F66: 0.02
B68: Depreciation
B70: Financial Statements
C71: Cash Flow vs Cash Waterfall

Sheet Timeline Exercise - No Titles
A1: Time Line | I1: Audit
A3: Dates
C4: Development Start | F4: 2018-01-01
C5: Development Period | E5: Months | F5: 20
C6: Financial Close | E6: Date
C7: Construction | E7: Months | F7: 30
C8: Commercial Operation | E8: Date
C9: Operation | E9: Years | F9: 30
C10: Decommissioning | E10: Date
C11: Months Pre-COD | E11: Months | F11: 1
C12: Months Post-COD | E12: Months | F12: 3
C13: Total Periods Pre-COD | E13: Periods
C15: Fiscal Year End Month | E15: Month

Sheet Timeline Exercise - With Titles
A1: Time Line
B2: Period Number
B3: Pre-COD Switch
B4: Months in Period
B5: Start of Period
B6: End of Period
B7: Operating Period
A10: Dates
C11: Development Start | F11: 2018-01-01
C12: Development Period | E12: Months | F12: 20
C13: Financial Close | E13: Date | F13: =EDATE(F11,F12) -> 2019-09-01
C14: Construction | E14: Months | F14: 30
C15: Commercial Operation | E15: Date | F15: =EDATE(F13,F14) -> 2022-03-01
C16: Operation | E16: Years | F16: 30
C17: Decommissioning | E17: Date | F17: =EDATE(F15,F16*12) -> 2052-03-01
C18: Months Pre-COD | E18: Months | F18: 1
C19: Months Post-COD | E19: Months | F19: 3
C21: COD Month | E21: Month | F21: =MONTH(F15) -> 3
C22: Fiscal Year End | E22: Month

Sheet Timeline Exercise - Complete
A1: Time Line
B2: Period Number | I2: 1 | J2: 2 | K2: 3 | L2: 4 | M2: 5 | N2: 6 | O2: 7 | P2: 8 | Q2: 9 | R2: 10 | S2: 11 | T2: 12 | U2: 13 | V2: 14 | W2: 15 | X2: 16 | Y2: 17 | Z2: 18 | AA2: 19 | AB2: 20 | AC2: 21 | AD2: 22 | AE2: 23 | AF2: 24 | AG2: 25 | AH2: 26 | AI2: 27 | AJ2: 28 | AK2: 29 | AL2: 30 | AM2: 31 | AN2: 32 | AO2: 33 | AP2: 34 | AQ2: 35 | AR2: 36 | AS2: 37 | AT2: 38 | AU2: 39 | AV2: 40 | AW2: 41 | AX2: 42 | AY2: 43 | AZ2: 44 | BA2: 45 | BB2: 46 | BC2: 47 | BD2: 48 | BE2: 49 | BF2: 50 | BG2: 51 | BH2: 52 | BI2: 53 | BJ2: 54 | BK2: 55 | BL2: 56 | BM2: 57 | BN2: 58 | BO2: 59 | BP2: 60 | BQ2: 61 | BR2: 62 | BS2: 63 | BT2: 64 | BU2: 65 | BV2: 66 | BW2: 67 | BX2: 68 | BY2: 69 | BZ2: 70 | CA2: 71 | CB2: 72 | CC2: 73 | CD2: 74 | CE2: 75 | CF2: 76 | CG2: 77 | CH2: 78 | CI2: 79 | CJ2: 80 | CK2: 81 | CL2: 82 | CM2: 83 | CN2: 84 | CO2: 85 | CP2: 86 | CQ2: 87 | CR2: 88 | CS2: 89 | CT2: 90 | CU2: 91 | CV2: 92 | CW2: 93 | CX2: 94 | CY2: 95 | CZ2: 96 | DA2: 97 | DB2: 98 | DC2: 99 | DD2: 100 | DE2: 101 | DF2: 102 | DG2: 103 | DH2: 104 | DI2: 105 | DJ2: 106 | DK2: 107 | DL2: 108 | DM2: 109 | DN2: 110 | DO2: 111 | DP2: 112 | DQ2: 113 | DR2: 114 | DS2: 115 | DT2: 116 | DU2: 117 | DV2: 118 | DW2: 119 | DX2: 120 | DY2: 121 | DZ2: 122 | EA2: 123 | EB2: 124 | EC2: 125 | ED2: 126 | EE2: 127 | EF2: 128 | EG2: 129 | EH2: 130 | EI2: 131 | EJ2: 132 | EK2: 133 | EL2: 134 | EM2: 135 | EN2: 136 | EO2: 137 | EP2: 138 | EQ2: 139 | ER2: 140 | ES2: 141 | ET2: 142 | EU2: 143 | EV2: 144 | EW2: 145 | EX2: 146 | EY2: 147 | EZ2: 148 | FA2: 149 | FB2: 150 | FC2: 151 | FD2: 152 | FE2: 153 | FF2: 154 | FG2: 155 | FH2: 156 | FI2: 157 | FJ2: 158 | FK2: 159 | FL2: 160 | FM2: 161 | FN2: 162 | FO2: 163 | FP2: 164 | FQ2: 165 | FR2: 166 | FS2: 167 | FT2: 168 | FU2: 169 | FV2: 170 | FW2: 171 | FX2: 172 | FY2: 173 | FZ2: 174 | GA2: 175 | GB2: 176 | GC2: 177 | GD2: 178 | GE2: 179 | GF2: 180 | GG2: 181 | GH2: 182 | GI2: 183 | GJ2: 184 | GK2: 185 | GL2: 186 | GM2: 187 | GN2: 188 | GO2: 189 | GP2: 190 | GQ2: 191 | GR2: 192 | GS2: 193 | GT2: 194 | GU2: 195 | GV2: 196 | GW2: 197 | GX2: 198 | GY2: 199 | GZ2: 200 | HA2: 201 | HB2: 202 | HC2: 203 | HD2: 204 | HE2: 205 | HF2: 206 | HG2: 207 | HH2: 208 | HI2: 209 | HJ2: 210 | HK2: 211 | HL2: 212 | HM2: 213 | HN2: 214 | HO2: 215 | HP2: 216 | HQ2: 217 | HR2: 218 | HS2: 219 | HT2: 220 | HU2: 221 | HV2: 222 | HW2: 223 | HX2: 224 | HY2: 225 | HZ2: 226 | IA2: 227 | IB2: 228 | IC2: 229 | ID2: 230 | IE2: 231 | IF2: 232 | IG2: 233 | IH2: 234 | II2: 235 | IJ2: 236 | IK2: 237 | IL2: 238 | IM2: 239 | IN2: 240 | IO2: 241 | IP2: 242 | IQ2: 243 | IR2: 244 | IS2: 245 | IT2: 246 | IU2: 247 | IV2: 248 | IW2: 249 | IX2: 250 | IY2: 251 | IZ2: 252 | JA2: 253 | JB2: 254 | JC2: 255 | JD2: 256 | JE2: 257 | JF2: 258 | JG2: 259 | JH2: 260 | JI2: 261 | JJ2: 262 | JK2: 263 | JL2: 264 | JM2: 265 | JN2: 266 | JO2: 267 | JP2: 268 | JQ2: 269 | JR2: 270 | JS2: 271 | JT2: 272 | JU2: 273 | JV2: 274 | JW2: 275 | JX2: 276 | JY2: 277 | JZ2: 278 | KA2: 279 | KB2: 280 | KC2: 281 | KD2: 282 | KE2: 283 | KF2: 284 | KG2: 285 | KH2: 286 | KI2: 287 | KJ2: 288 | KK2: 289 | KL2: 290 | KM2: 291 | KN2: 292 | KO2: 293 | KP2: 294 | KQ2: 295 | KR2: 296 | KS2: 297 | KT2: 298 | KU2: 299 | KV2: 300
B3: Pre-COD Switch | E3: Pre-cod | G3: =F15+F17 -> 30 | I3: =I2<=$G$3 -> TRUE | J3: =J2<=$G$3 -> TRUE | K3: TRUE | L3: TRUE | M3: TRUE | N3: TRUE | O3: TRUE | P3: TRUE | Q3: TRUE | R3: TRUE | S3: TRUE | T3: TRUE | U3: TRUE | V3: TRUE | W3: TRUE | X3: TRUE | Y3: TRUE | Z3: TRUE | AA3: TRUE | AB3: TRUE | AC3: TRUE | AD3: TRUE | AE3: TRUE | AF3: TRUE | AG3: TRUE | AH3: TRUE | AI3: TRUE | AJ3: TRUE | AK3: TRUE | AL3: TRUE | AM3: FALSE | AN3: FALSE | AO3: FALSE | AP3: FALSE | AQ3: FALSE | AR3: FALSE | AS3: FALSE | AT3: FALSE | AU3: FALSE | AV3: FALSE | AW3: FALSE | AX3: FALSE | AY3: FALSE | AZ3: FALSE | BA3: FALSE | BB3: FALSE | BC3: FALSE | BD3: FALSE | BE3: FALSE | BF3: FALSE | BG3: FALSE | BH3: FALSE | BI3: FALSE | BJ3: FALSE | BK3: FALSE | BL3: FALSE | BM3: FALSE | BN3: FALSE | BO3: FALSE | BP3: FALSE | BQ3: FALSE | BR3: FALSE | BS3: FALSE | BT3: FALSE | BU3: FALSE | BV3: =BV2<=$G$3 -> FALSE | BW3: FALSE | BX3: FALSE | BY3: FALSE | BZ3: FALSE | CA3: FALSE | CB3: FALSE | CC3: FALSE | CD3: FALSE | CE3: FALSE | CF3: FALSE | CG3: FALSE | CH3: FALSE | CI3: FALSE | CJ3: FALSE | CK3: FALSE | CL3: FALSE | CM3: FALSE | CN3: FALSE | CO3: FALSE | CP3: FALSE | CQ3: FALSE | CR3: FALSE | CS3: FALSE | CT3: FALSE | CU3: FALSE | CV3: FALSE | CW3: FALSE | CX3: FALSE | CY3: FALSE | CZ3: FALSE | DA3: FALSE | DB3: FALSE | DC3: FALSE | DD3: FALSE | DE3: FALSE | DF3: FALSE | DG3: FALSE | DH3: FALSE | DI3: FALSE | DJ3: FALSE | DK3: FALSE | DL3: FALSE | DM3: FALSE | DN3: FALSE | DO3: FALSE | DP3: FALSE | DQ3: FALSE | DR3: FALSE | DS3: FALSE | DT3: FALSE | DU3: FALSE | DV3: FALSE | DW3: FALSE | DX3: FALSE | DY3: FALSE | DZ3: FALSE | EA3: FALSE | EB3: FALSE | EC3: FALSE | ED3: FALSE | EE3: FALSE | EF3: FALSE | EG3: FALSE | EH3: =EH2<=$G$3 -> FALSE | EI3: FALSE | EJ3: FALSE | EK3: FALSE | EL3: FALSE | EM3: FALSE | EN3: FALSE | EO3: FALSE | EP3: FALSE | EQ3: FALSE | ER3: FALSE | ES3: FALSE | ET3: FALSE | EU3: FALSE | EV3: FALSE | EW3: FALSE | EX3: FALSE | EY3: FALSE | EZ3: FALSE | FA3: FALSE | FB3: FALSE | FC3: FALSE | FD3: FALSE | FE3: FALSE | FF3: FALSE | FG3: FALSE | FH3: FALSE | FI3: FALSE | FJ3: FALSE | FK3: FALSE | FL3: FALSE | FM3: FALSE | FN3: FALSE | FO3: FALSE | FP3: FALSE | FQ3: FALSE | FR3: FALSE | FS3: FALSE | FT3: FALSE | FU3: FALSE | FV3: FALSE | FW3: FALSE | FX3: FALSE | FY3: FALSE | FZ3: FALSE | GA3: FALSE | GB3: FALSE | GC3: FALSE | GD3: FALSE | GE3: FALSE | GF3: FALSE | GG3: FALSE | GH3: FALSE | GI3: FALSE | GJ3: FALSE | GK3: FALSE | GL3: FALSE | GM3: FALSE | GN3: FALSE | GO3: FALSE | GP3: FALSE | GQ3: FALSE | GR3: FALSE | GS3: FALSE | GT3: =GT2<=$G$3 -> FALSE | GU3: FALSE | GV3: FALSE | GW3: FALSE | GX3: FALSE | GY3: FALSE | GZ3: FALSE | HA3: FALSE | HB3: FALSE | HC3: FALSE | HD3: FALSE | HE3: FALSE | HF3: FALSE | HG3: FALSE | HH3: FALSE | HI3: FALSE | HJ3: FALSE | HK3: FALSE | HL3: FALSE | HM3: FALSE | HN3: FALSE | HO3: FALSE | HP3: FALSE | HQ3: FALSE | HR3: FALSE | HS3: FALSE | HT3: FALSE | HU3: FALSE | HV3: FALSE | HW3: FALSE | HX3: FALSE | HY3: FALSE | HZ3: FALSE | IA3: FALSE | IB3: FALSE | IC3: FALSE | ID3: FALSE | IE3: FALSE | IF3: FALSE | IG3: FALSE | IH3: FALSE | II3: FALSE | IJ3: FALSE | IK3: FALSE | IL3: FALSE | IM3: FALSE | IN3: FALSE | IO3: FALSE | IP3: FALSE | IQ3: FALSE | IR3: FALSE | IS3: FALSE | IT3: FALSE | IU3: FALSE | IV3: FALSE | IW3: FALSE | IX3: FALSE | IY3: FALSE | IZ3: FALSE | JA3: FALSE | JB3: FALSE | JC3: FALSE | JD3: FALSE | JE3: FALSE | JF3: =JF2<=$G$3 -> FALSE | JG3: FALSE | JH3: FALSE | JI3: FALSE | JJ3: FALSE | JK3: FALSE | JL3: FALSE | JM3: FALSE | JN3: FALSE | JO3: FALSE | JP3: FALSE | JQ3: FALSE | JR3: FALSE | JS3: FALSE | JT3: FALSE | JU3: FALSE | JV3: FALSE | JW3: FALSE | JX3: FALSE | JY3: FALSE | JZ3: FALSE | KA3: FALSE | KB3: FALSE | KC3: FALSE | KD3: FALSE | KE3: FALSE | KF3: FALSE | KG3: FALSE | KH3: FALSE | KI3: FALSE | KJ3: FALSE | KK3: FALSE | KL3: FALSE | KM3: FALSE | KN3: FALSE | KO3: FALSE | KP3: FALSE | KQ3: FALSE | KR3: FALSE | KS3: FALSE | KT3: FALSE | KU3: FALSE | KV3: FALSE
B4: Months in Period | E4: Pre post | F4: =F21 -> 1 | G4: =F22 -> 6 | I4: =IF(I3,$F$4,$G$4) -> 1 | J4: =IF(J3,$F$4,$G$4) -> 1 | K4: 1 | L4: 1 | M4: 1 | N4: 1 | O4: 1 | P4: 1 | Q4: 1 | R4: 1 | S4: 1 | T4: 1 | U4: 1 | V4: 1 | W4: 1 | X4: 1 | Y4: 1 | Z4: 1 | AA4: 1 | AB4: 1 | AC4: 1 | AD4: 1 | AE4: 1 | AF4: 1 | AG4: 1 | AH4: 1 | AI4: 1 | AJ4: 1 | AK4: 1 | AL4: 1 | AM4: 6 | AN4: 6 | AO4: 6 | AP4: 6 | AQ4: 6 | AR4: 6 | AS4: 6 | AT4: 6 | AU4: 6 | AV4: 6 | AW4: 6 | AX4: 6 | AY4: 6 | AZ4: 6 | BA4: 6 | BB4: 6 | BC4: 6 | BD4: 6 | BE4: 6 | BF4: 6 | BG4: 6 | BH4: 6 | BI4: 6 | BJ4: 6 | BK4: 6 | BL4: 6 | BM4: 6 | BN4: 6 | BO4: 6 | BP4: 6 | BQ4: 6 | BR4: 6 | BS4: 6 | BT4: 6 | BU4: 6 | BV4: =IF(BV3,$F$4,$G$4) -> 6 | BW4: 6 | BX4: 6 | BY4: 6 | BZ4: 6 | CA4: 6 | CB4: 6 | CC4: 6 | CD4: 6 | CE4: 6 | CF4: 6 | CG4: 6 | CH4: 6 | CI4: 6 | CJ4: 6 | CK4: 6 | CL4: 6 | CM4: 6 | CN4: 6 | CO4: 6 | CP4: 6 | CQ4: 6 | CR4: 6 | CS4: 6 | CT4: 6 | CU4: 6 | CV4: 6 | CW4: 6 | CX4: 6 | CY4: 6 | CZ4: 6 | DA4: 6 | DB4: 6 | DC4: 6 | DD4: 6 | DE4: 6 | DF4: 6 | DG4: 6 | DH4: 6 | DI4: 6 | DJ4: 6 | DK4: 6 | DL4: 6 | DM4: 6 | DN4: 6 | DO4: 6 | DP4: 6 | DQ4: 6 | DR4: 6 | DS4: 6 | DT4: 6 | DU4: 6 | DV4: 6 | DW4: 6 | DX4: 6 | DY4: 6 | DZ4: 6 | EA4: 6 | EB4: 6 | EC4: 6 | ED4: 6 | EE4: 6 | EF4: 6 | EG4: 6 | EH4: =IF(EH3,$F$4,$G$4) -> 6 | EI4: 6 | EJ4: 6 | EK4: 6 | EL4: 6 | EM4: 6 | EN4: 6 | EO4: 6 | EP4: 6 | EQ4: 6 | ER4: 6 | ES4: 6 | ET4: 6 | EU4: 6 | EV4: 6 | EW4: 6 | EX4: 6 | EY4: 6 | EZ4: 6 | FA4: 6 | FB4: 6 | FC4: 6 | FD4: 6 | FE4: 6 | FF4: 6 | FG4: 6 | FH4: 6 | FI4: 6 | FJ4: 6 | FK4: 6 | FL4: 6 | FM4: 6 | FN4: 6 | FO4: 6 | FP4: 6 | FQ4: 6 | FR4: 6 | FS4: 6 | FT4: 6 | FU4: 6 | FV4: 6 | FW4: 6 | FX4: 6 | FY4: 6 | FZ4: 6 | GA4: 6 | GB4: 6 | GC4: 6 | GD4: 6 | GE4: 6 | GF4: 6 | GG4: 6 | GH4: 6 | GI4: 6 | GJ4: 6 | GK4: 6 | GL4: 6 | GM4: 6 | GN4: 6 | GO4: 6 | GP4: 6 | GQ4: 6 | GR4: 6 | GS4: 6 | GT4: =IF(GT3,$F$4,$G$4) -> 6 | GU4: 6 | GV4: 6 | GW4: 6 | GX4: 6 | GY4: 6 | GZ4: 6 | HA4: 6 | HB4: 6 | HC4: 6 | HD4: 6 | HE4: 6 | HF4: 6 | HG4: 6 | HH4: 6 | HI4: 6 | HJ4: 6 | HK4: 6 | HL4: 6 | HM4: 6 | HN4: 6 | HO4: 6 | HP4: 6 | HQ4: 6 | HR4: 6 | HS4: 6 | HT4: 6 | HU4: 6 | HV4: 6 | HW4: 6 | HX4: 6 | HY4: 6 | HZ4: 6 | IA4: 6 | IB4: 6 | IC4: 6 | ID4: 6 | IE4: 6 | IF4: 6 | IG4: 6 | IH4: 6 | II4: 6 | IJ4: 6 | IK4: 6 | IL4: 6 | IM4: 6 | IN4: 6 | IO4: 6 | IP4: 6 | IQ4: 6 | IR4: 6 | IS4: 6 | IT4: 6 | IU4: 6 | IV4: 6 | IW4: 6 | IX4: 6 | IY4: 6 | IZ4: 6 | JA4: 6 | JB4: 6 | JC4: 6 | JD4: 6 | JE4: 6 | JF4: =IF(JF3,$F$4,$G$4) -> 6 | JG4: 6 | JH4: 6 | JI4: 6 | JJ4: 6 | JK4: 6 | JL4: 6 | JM4: 6 | JN4: 6 | JO4: 6 | JP4: 6 | JQ4: 6 | JR4: 6 | JS4: 6 | JT4: 6 | JU4: 6 | JV4: 6 | JW4: 6 | JX4: 6 | JY4: 6 | JZ4: 6 | KA4: 6 | KB4: 6 | KC4: 6 | KD4: 6 | KE4: 6 | KF4: 6 | KG4: 6 | KH4: 6 | KI4: 6 | KJ4: 6 | KK4: 6 | KL4: 6 | KM4: 6 | KN4: 6 | KO4: 6 | KP4: 6 | KQ4: 6 | KR4: 6 | KS4: 6 | KT4: 6 | KU4: 6 | KV4: 6
B5: Start of Period | I5: =H6+1 -> 2018-03-01 | J5: =I6+1 -> 2018-04-01 | K5: 2018-05-01 | L5: 2018-06-01 | M5: 2018-07-01 | N5: 2018-08-01 | O5: 2018-09-01 | P5: 2018-10-01 | Q5: 2018-11-01 | R5: 2018-12-01 | S5: 2019-01-01 | T5: 2019-02-01 | U5: 2019-03-01 | V5: 2019-04-01 | W5: 2019-05-01 | X5: 2019-06-01 | Y5: 2019-07-01 | Z5: 2019-08-01 | AA5: 2019-09-01 | AB5: 2019-10-01 | AC5: 2019-11-01 | AD5: 2019-12-01 | AE5: 2020-01-01 | AF5: 2020-02-01 | AG5: 2020-03-01 | AH5: 2020-04-01 | AI5: 2020-05-01 | AJ5: 2020-06-01 | AK5: 2020-07-01 | AL5: 2020-08-01 | AM5: 2020-09-01 | AN5: 2021-03-01 | AO5: 2021-09-01 | AP5: 2022-03-01 | AQ5: 2022-09-01 | AR5: 2023-03-01 | AS5: 2023-09-01 | AT5: 2024-03-01 | AU5: 2024-09-01 | AV5: 2025-03-01 | AW5: 2025-09-01 | AX5: 2026-03-01 | AY5: 2026-09-01 | AZ5: 2027-03-01 | BA5: 2027-09-01 | BB5: 2028-03-01 | BC5: 2028-09-01 | BD5: 2029-03-01 | BE5: 2029-09-01 | BF5: 2030-03-01 | BG5: 2030-09-01 | BH5: 2031-03-01 | BI5: 2031-09-01 | BJ5: 2032-03-01 | BK5: 2032-09-01 | BL5: 2033-03-01 | BM5: 2033-09-01 | BN5: 2034-03-01 | BO5: 2034-09-01 | BP5: 2035-03-01 | BQ5: 2035-09-01 | BR5: 2036-03-01 | BS5: 2036-09-01 | BT5: 2037-03-01 | BU5: 2037-09-01 | BV5: =BU6+1 -> 2038-03-01 | BW5: 2038-09-01 | BX5: 2039-03-01 | BY5: 2039-09-01 | BZ5: 2040-03-01 | CA5: 2040-09-01 | CB5: 2041-03-01 | CC5: 2041-09-01 | CD5: 2042-03-01 | CE5: 2042-09-01 | CF5: 2043-03-01 | CG5: 2043-09-01 | CH5: 2044-03-01 | CI5: 2044-09-01 | CJ5: 2045-03-01 | CK5: 2045-09-01 | CL5: 2046-03-01 | CM5: 2046-09-01 | CN5: 2047-03-01 | CO5: 2047-09-01 | CP5: 2048-03-01 | CQ5: 2048-09-01 | CR5: 2049-03-01 | CS5: 2049-09-01 | CT5: 2050-03-01 | CU5: 2050-09-01 | CV5: 2051-03-01 | CW5: 2051-09-01 | CX5: 2052-03-01 | CY5: 2052-09-01 | CZ5: 2053-03-01 | DA5: 2053-09-01 | DB5: 2054-03-01 | DC5: 2054-09-01 | DD5: 2055-03-01 | DE5: 2055-09-01 | DF5: 2056-03-01 | DG5: 2056-09-01 | DH5: 2057-03-01 | DI5: 2057-09-01 | DJ5: 2058-03-01 | DK5: 2058-09-01 | DL5: 2059-03-01 | DM5: 2059-09-01 | DN5: 2060-03-01 | DO5: 2060-09-01 | DP5: 2061-03-01 | DQ5: 2061-09-01 | DR5: 2062-03-01 | DS5: 2062-09-01 | DT5: 2063-03-01 | DU5: 2063-09-01 | DV5: 2064-03-01 | DW5: 2064-09-01 | DX5: 2065-03-01 | DY5: 2065-09-01 | DZ5: 2066-03-01 | EA5: 2066-09-01 | EB5: 2067-03-01 | EC5: 2067-09-01 | ED5: 2068-03-01 | EE5: 2068-09-01 | EF5: 2069-03-01 | EG5: 2069-09-01 | EH5: =EG6+1 -> 2070-03-01 | EI5: 2070-09-01 | EJ5: 2071-03-01 | EK5: 2071-09-01 | EL5: 2072-03-01 | EM5: 2072-09-01 | EN5: 2073-03-01 | EO5: 2073-09-01 | EP5: 2074-03-01 | EQ5: 2074-09-01 | ER5: 2075-03-01 | ES5: 2075-09-01 | ET5: 2076-03-01 | EU5: 2076-09-01 | EV5: 2077-03-01 | EW5: 2077-09-01 | EX5: 2078-03-01 | EY5: 2078-09-01 | EZ5: 2079-03-01 | FA5: 2079-09-01 | FB5: 2080-03-01 | FC5: 2080-09-01 | FD5: 2081-03-01 | FE5: 2081-09-01 | FF5: 2082-03-01 | FG5: 2082-09-01 | FH5: 2083-03-01 | FI5: 2083-09-01 | FJ5: 2084-03-01 | FK5: 2084-09-01 | FL5: 2085-03-01 | FM5: 2085-09-01 | FN5: 2086-03-01 | FO5: 2086-09-01 | FP5: 2087-03-01 | FQ5: 2087-09-01 | FR5: 2088-03-01 | FS5: 2088-09-01 | FT5: 2089-03-01 | FU5: 2089-09-01 | FV5: 2090-03-01 | FW5: 2090-09-01 | FX5: 2091-03-01 | FY5: 2091-09-01 | FZ5: 2092-03-01 | GA5: 2092-09-01 | GB5: 2093-03-01 | GC5: 2093-09-01 | GD5: 2094-03-01 | GE5: 2094-09-01 | GF5: 2095-03-01 | GG5: 2095-09-01 | GH5: 2096-03-01 | GI5: 2096-09-01 | GJ5: 2097-03-01 | GK5: 2097-09-01 | GL5: 2098-03-01 | GM5: 2098-09-01 | GN5: 2099-03-01 | GO5: 2099-09-01 | GP5: 2100-03-01 | GQ5: 2100-09-01 | GR5: 2101-03-01 | GS5: 2101-09-01 | GT5: =GS6+1 -> 2102-03-01 | GU5: 2102-09-01 | GV5: 2103-03-01 | GW5: 2103-09-01 | GX5: 2104-03-01 | GY5: 2104-09-01 | GZ5: 2105-03-01 | HA5: 2105-09-01 | HB5: 2106-03-01 | HC5: 2106-09-01 | HD5: 2107-03-01 | HE5: 2107-09-01 | HF5: 2108-03-01 | HG5: 2108-09-01 | HH5: 2109-03-01 | HI5: 2109-09-01 | HJ5: 2110-03-01 | HK5: 2110-09-01 | HL5: 2111-03-01 | HM5: 2111-09-01 | HN5: 2112-03-01 | HO5: 2112-09-01 | HP5: 2113-03-01 | HQ5: 2113-09-01 | HR5: 2114-03-01 | HS5: 2114-09-01 | HT5: 2115-03-01 | HU5: 2115-09-01 | HV5: 2116-03-01 | HW5: 2116-09-01 | HX5: 2117-03-01 | HY5: 2117-09-01 | HZ5: 2118-03-01 | IA5: 2118-09-01 | IB5: 2119-03-01 | IC5: 2119-09-01 | ID5: 2120-03-01 | IE5: 2120-09-01 | IF5: 2121-03-01 | IG5: 2121-09-01 | IH5: 2122-03-01 | II5: 2122-09-01 | IJ5: 2123-03-01 | IK5: 2123-09-01 | IL5: 2124-03-01 | IM5: 2124-09-01 | IN5: 2125-03-01 | IO5: 2125-09-01 | IP5: 2126-03-01 | IQ5: 2126-09-01 | IR5: 2127-03-01 | IS5: 2127-09-01 | IT5: 2128-03-01 | IU5: 2128-09-01 | IV5: 2129-03-01 | IW5: 2129-09-01 | IX5: 2130-03-01 | IY5: 2130-09-01 | IZ5: 2131-03-01 | JA5: 2131-09-01 | JB5: 2132-03-01 | JC5: 2132-09-01 | JD5: 2133-03-01 | JE5: 2133-09-01 | JF5: =JE6+1 -> 2134-03-01 | JG5: 2134-09-01 | JH5: 2135-03-01 | JI5: 2135-09-01 | JJ5: 2136-03-01 | JK5: 2136-09-01 | JL5: 2137-03-01 | JM5: 2137-09-01 | JN5: 2138-03-01 | JO5: 2138-09-01 | JP5: 2139-03-01 | JQ5: 2139-09-01 | JR5: 2140-03-01 | JS5: 2140-09-01 | JT5: 2141-03-01 | JU5: 2141-09-01 | JV5: 2142-03-01 | JW5: 2142-09-01 | JX5: 2143-03-01 | JY5: 2143-09-01 | JZ5: 2144-03-01 | KA5: 2144-09-01 | KB5: 2145-03-01 | KC5: 2145-09-01 | KD5: 2146-03-01 | KE5: 2146-09-01 | KF5: 2147-03-01 | KG5: 2147-09-01 | KH5: 2148-03-01 | KI5: 2148-09-01 | KJ5: 2149-03-01 | KK5: 2149-09-01 | KL5: 2150-03-01 | KM5: 2150-09-01 | KN5: 2151-03-01 | KO5: 2151-09-01 | KP5: 2152-03-01 | KQ5: 2152-09-01 | KR5: 2153-03-01 | KS5: 2153-09-01 | KT5: 2154-03-01 | KU5: 2154-09-01 | KV5: 2155-03-01
B6: End of Period | H6: =F14-1 -> 2018-02-28 | I6: =EDATE(I5,I4)-1 -> 2018-03-31 | J6: =EDATE(J5,J4)-1 -> 2018-04-30 | K6: 2018-05-31 | L6: 2018-06-30 | M6: 2018-07-31 | N6: 2018-08-31 | O6: 2018-09-30 | P6: 2018-10-31 | Q6: 2018-11-30 | R6: 2018-12-31 | S6: 2019-01-31 | T6: 2019-02-28 | U6: 2019-03-31 | V6: 2019-04-30 | W6: 2019-05-31 | X6: 2019-06-30 | Y6: 2019-07-31 | Z6: 2019-08-31 | AA6: 2019-09-30 | AB6: 2019-10-31 | AC6: 2019-11-30 | AD6: 2019-12-31 | AE6: 2020-01-31 | AF6: 2020-02-29 | AG6: 2020-03-31 | AH6: 2020-04-30 | AI6: 2020-05-31 | AJ6: 2020-06-30 | AK6: 2020-07-31 | AL6: 2020-08-31 | AM6: 2021-02-28 | AN6: 2021-08-31 | AO6: 2022-02-28 | AP6: 2022-08-31 | AQ6: 2023-02-28 | AR6: 2023-08-31 | AS6: 2024-02-29 | AT6: 2024-08-31 | AU6: 2025-02-28 | AV6: 2025-08-31 | AW6: 2026-02-28 | AX6: 2026-08-31 | AY6: 2027-02-28 | AZ6: 2027-08-31 | BA6: 2028-02-29 | BB6: 2028-08-31 | BC6: 2029-02-28 | BD6: 2029-08-31 | BE6: 2030-02-28 | BF6: 2030-08-31 | BG6: 2031-02-28 | BH6: 2031-08-31 | BI6: 2032-02-29 | BJ6: 2032-08-31 | BK6: 2033-02-28 | BL6: 2033-08-31 | BM6: 2034-02-28 | BN6: 2034-08-31 | BO6: 2035-02-28 | BP6: 2035-08-31 | BQ6: 2036-02-29 | BR6: 2036-08-31 | BS6: 2037-02-28 | BT6: 2037-08-31 | BU6: 2038-02-28 | BV6: =EDATE(BV5,BV4)-1 -> 2038-08-31 | BW6: 2039-02-28 | BX6: 2039-08-31 | BY6: 2040-02-29 | BZ6: 2040-08-31 | CA6: 2041-02-28 | CB6: 2041-08-31 | CC6: 2042-02-28 | CD6: 2042-08-31 | CE6: 2043-02-28 | CF6: 2043-08-31 | CG6: 2044-02-29 | CH6: 2044-08-31 | CI6: 2045-02-28 | CJ6: 2045-08-31 | CK6: 2046-02-28 | CL6: 2046-08-31 | CM6: 2047-02-28 | CN6: 2047-08-31 | CO6: 2048-02-29 | CP6: 2048-08-31 | CQ6: 2049-02-28 | CR6: 2049-08-31 | CS6: 2050-02-28 | CT6: 2050-08-31 | CU6: 2051-02-28 | CV6: 2051-08-31 | CW6: 2052-02-29 | CX6: 2052-08-31 | CY6: 2053-02-28 | CZ6: 2053-08-31 | DA6: 2054-02-28 | DB6: 2054-08-31 | DC6: 2055-02-28 | DD6: 2055-08-31 | DE6: 2056-02-29 | DF6: 2056-08-31 | DG6: 2057-02-28 | DH6: 2057-08-31 | DI6: 2058-02-28 | DJ6: 2058-08-31 | DK6: 2059-02-28 | DL6: 2059-08-31 | DM6: 2060-02-29 | DN6: 2060-08-31 | DO6: 2061-02-28 | DP6: 2061-08-31 | DQ6: 2062-02-28 | DR6: 2062-08-31 | DS6: 2063-02-28 | DT6: 2063-08-31 | DU6: 2064-02-29 | DV6: 2064-08-31 | DW6: 2065-02-28 | DX6: 2065-08-31 | DY6: 2066-02-28 | DZ6: 2066-08-31 | EA6: 2067-02-28 | EB6: 2067-08-31 | EC6: 2068-02-29 | ED6: 2068-08-31 | EE6: 2069-02-28 | EF6: 2069-08-31 | EG6: 2070-02-28 | EH6: =EDATE(EH5,EH4)-1 -> 2070-08-31 | EI6: 2071-02-28 | EJ6: 2071-08-31 | EK6: 2072-02-29 | EL6: 2072-08-31 | EM6: 2073-02-28 | EN6: 2073-08-31 | EO6: 2074-02-28 | EP6: 2074-08-31 | EQ6: 2075-02-28 | ER6: 2075-08-31 | ES6: 2076-02-29 | ET6: 2076-08-31 | EU6: 2077-02-28 | EV6: 2077-08-31 | EW6: 2078-02-28 | EX6: 2078-08-31 | EY6: 2079-02-28 | EZ6: 2079-08-31 | FA6: 2080-02-29 | FB6: 2080-08-31 | FC6: 2081-02-28 | FD6: 2081-08-31 | FE6: 2082-02-28 | FF6: 2082-08-31 | FG6: 2083-02-28 | FH6: 2083-08-31 | FI6: 2084-02-29 | FJ6: 2084-08-31 | FK6: 2085-02-28 | FL6: 2085-08-31 | FM6: 2086-02-28 | FN6: 2086-08-31 | FO6: 2087-02-28 | FP6: 2087-08-31 | FQ6: 2088-02-29 | FR6: 2088-08-31 | FS6: 2089-02-28 | FT6: 2089-08-31 | FU6: 2090-02-28 | FV6: 2090-08-31 | FW6: 2091-02-28 | FX6: 2091-08-31 | FY6: 2092-02-29 | FZ6: 2092-08-31 | GA6: 2093-02-28 | GB6: 2093-08-31 | GC6: 2094-02-28 | GD6: 2094-08-31 | GE6: 2095-02-28 | GF6: 2095-08-31 | GG6: 2096-02-29 | GH6: 2096-08-31 | GI6: 2097-02-28 | GJ6: 2097-08-31 | GK6: 2098-02-28 | GL6: 2098-08-31 | GM6: 2099-02-28 | GN6: 2099-08-31 | GO6: 2100-02-28 | GP6: 2100-08-31 | GQ6: 2101-02-28 | GR6: 2101-08-31 | GS6: 2102-02-28 | GT6: =EDATE(GT5,GT4)-1 -> 2102-08-31 | GU6: 2103-02-28 | GV6: 2103-08-31 | GW6: 2104-02-29 | GX6: 2104-08-31 | GY6: 2105-02-28 | GZ6: 2105-08-31 | HA6: 2106-02-28 | HB6: 2106-08-31 | HC6: 2107-02-28 | HD6: 2107-08-31 | HE6: 2108-02-29 | HF6: 2108-08-31 | HG6: 2109-02-28 | HH6: 2109-08-31 | HI6: 2110-02-28 | HJ6: 2110-08-31 | HK6: 2111-02-28 | HL6: 2111-08-31 | HM6: 2112-02-29 | HN6: 2112-08-31 | HO6: 2113-02-28 | HP6: 2113-08-31 | HQ6: 2114-02-28 | HR6: 2114-08-31 | HS6: 2115-02-28 | HT6: 2115-08-31 | HU6: 2116-02-29 | HV6: 2116-08-31 | HW6: 2117-02-28 | HX6: 2117-08-31 | HY6: 2118-02-28 | HZ6: 2118-08-31 | IA6: 2119-02-28 | IB6: 2119-08-31 | IC6: 2120-02-29 | ID6: 2120-08-31 | IE6: 2121-02-28 | IF6: 2121-08-31 | IG6: 2122-02-28 | IH6: 2122-08-31 | II6: 2123-02-28 | IJ6: 2123-08-31 | IK6: 2124-02-29 | IL6: 2124-08-31 | IM6: 2125-02-28 | IN6: 2125-08-31 | IO6: 2126-02-28 | IP6: 2126-08-31 | IQ6: 2127-02-28 | IR6: 2127-08-31 | IS6: 2128-02-29 | IT6: 2128-08-31 | IU6: 2129-02-28 | IV6: 2129-08-31 | IW6: 2130-02-28 | IX6: 2130-08-31 | IY6: 2131-02-28 | IZ6: 2131-08-31 | JA6: 2132-02-29 | JB6: 2132-08-31 | JC6: 2133-02-28 | JD6: 2133-08-31 | JE6: 2134-02-28 | JF6: =EDATE(JF5,JF4)-1 -> 2134-08-31 | JG6: 2135-02-28 | JH6: 2135-08-31 | JI6: 2136-02-29 | JJ6: 2136-08-31 | JK6: 2137-02-28 | JL6: 2137-08-31 | JM6: 2138-02-28 | JN6: 2138-08-31 | JO6: 2139-02-28 | JP6: 2139-08-31 | JQ6: 2140-02-29 | JR6: 2140-08-31 | JS6: 2141-02-28 | JT6: 2141-08-31 | JU6: 2142-02-28 | JV6: 2142-08-31 | JW6: 2143-02-28 | JX6: 2143-08-31 | JY6: 2144-02-29 | JZ6: 2144-08-31 | KA6: 2145-02-28 | KB6: 2145-08-31 | KC6: 2146-02-28 | KD6: 2146-08-31 | KE6: 2147-02-28 | KF6: 2147-08-31 | KG6: 2148-02-29 | KH6: 2148-08-31 | KI6: 2149-02-28 | KJ6: 2149-08-31 | KK6: 2150-02-28 | KL6: 2150-08-31 | KM6: 2151-02-28 | KN6: 2151-08-31 | KO6: 2152-02-29 | KP6: 2152-08-31 | KQ6: 2153-02-28 | KR6: 2153-08-31 | KS6: 2154-02-28 | KT6: 2154-08-31 | KU6: 2155-02-28 | KV6: 2155-08-31
B7: Operating Period | G7: =F18 -> 2020-09-01 | H7: =F20 -> 2050-09-01 | I7: =AND(I$5>=$G7,I$5<$H7) -> FALSE | J7: =AND(J$5>=$G7,J$5<$H7) -> FALSE | K7: FALSE | L7: FALSE | M7: FALSE | N7: FALSE | O7: FALSE | P7: FALSE | Q7: FALSE | R7: FALSE | S7: FALSE | T7: FALSE | U7: FALSE | V7: FALSE | W7: FALSE | X7: FALSE | Y7: FALSE | Z7: FALSE | AA7: FALSE | AB7: FALSE | AC7: FALSE | AD7: FALSE | AE7: FALSE | AF7: FALSE | AG7: FALSE | AH7: FALSE | AI7: FALSE | AJ7: FALSE | AK7: FALSE | AL7: FALSE | AM7: TRUE | AN7: TRUE | AO7: TRUE | AP7: TRUE | AQ7: TRUE | AR7: TRUE | AS7: TRUE | AT7: TRUE | AU7: TRUE | AV7: TRUE | AW7: TRUE | AX7: TRUE | AY7: TRUE | AZ7: TRUE | BA7: TRUE | BB7: TRUE | BC7: TRUE | BD7: TRUE | BE7: TRUE | BF7: TRUE | BG7: TRUE | BH7: TRUE | BI7: TRUE | BJ7: TRUE | BK7: TRUE | BL7: TRUE | BM7: TRUE | BN7: TRUE | BO7: TRUE | BP7: TRUE | BQ7: TRUE | BR7: TRUE | BS7: TRUE | BT7: TRUE | BU7: TRUE | BV7: =AND(BV$5>=$G7,BV$5<$H7) -> TRUE | BW7: TRUE | BX7: TRUE | BY7: TRUE | BZ7: TRUE | CA7: TRUE | CB7: TRUE | CC7: TRUE | CD7: TRUE | CE7: TRUE | CF7: TRUE | CG7: TRUE | CH7: TRUE | CI7: TRUE | CJ7: TRUE | CK7: TRUE | CL7: TRUE | CM7: TRUE | CN7: TRUE | CO7: TRUE | CP7: TRUE | CQ7: TRUE | CR7: TRUE | CS7: TRUE | CT7: TRUE | CU7: FALSE | CV7: FALSE | CW7: FALSE | CX7: FALSE | CY7: FALSE | CZ7: FALSE | DA7: FALSE | DB7: FALSE | DC7: FALSE | DD7: FALSE | DE7: FALSE | DF7: FALSE | DG7: FALSE | DH7: FALSE | DI7: FALSE | DJ7: FALSE | DK7: FALSE | DL7: FALSE | DM7: FALSE | DN7: FALSE | DO7: FALSE | DP7: FALSE | DQ7: FALSE | DR7: FALSE | DS7: FALSE | DT7: FALSE | DU7: FALSE | DV7: FALSE | DW7: FALSE | DX7: FALSE | DY7: FALSE | DZ7: FALSE | EA7: FALSE | EB7: FALSE | EC7: FALSE | ED7: FALSE | EE7: FALSE | EF7: FALSE | EG7: FALSE | EH7: =AND(EH$5>=$G7,EH$5<$H7) -> FALSE | EI7: FALSE | EJ7: FALSE | EK7: FALSE | EL7: FALSE | EM7: FALSE | EN7: FALSE | EO7: FALSE | EP7: FALSE | EQ7: FALSE | ER7: FALSE | ES7: FALSE | ET7: FALSE | EU7: FALSE | EV7: FALSE | EW7: FALSE | EX7: FALSE | EY7: FALSE | EZ7: FALSE | FA7: FALSE | FB7: FALSE | FC7: FALSE | FD7: FALSE | FE7: FALSE | FF7: FALSE | FG7: FALSE | FH7: FALSE | FI7: FALSE | FJ7: FALSE | FK7: FALSE | FL7: FALSE | FM7: FALSE | FN7: FALSE | FO7: FALSE | FP7: FALSE | FQ7: FALSE | FR7: FALSE | FS7: FALSE | FT7: FALSE | FU7: FALSE | FV7: FALSE | FW7: FALSE | FX7: FALSE | FY7: FALSE | FZ7: FALSE | GA7: FALSE | GB7: FALSE | GC7: FALSE | GD7: FALSE | GE7: FALSE | GF7: FALSE | GG7: FALSE | GH7: FALSE | GI7: FALSE | GJ7: FALSE | GK7: FALSE | GL7: FALSE | GM7: FALSE | GN7: FALSE | GO7: FALSE | GP7: FALSE | GQ7: FALSE | GR7: FALSE | GS7: FALSE | GT7: =AND(GT$5>=$G7,GT$5<$H7) -> FALSE | GU7: FALSE | GV7: FALSE | GW7: FALSE | GX7: FALSE | GY7: FALSE | GZ7: FALSE | HA7: FALSE | HB7: FALSE | HC7: FALSE | HD7: FALSE | HE7: FALSE | HF7: FALSE | HG7: FALSE | HH7: FALSE | HI7: FALSE | HJ7: FALSE | HK7: FALSE | HL7: FALSE | HM7: FALSE | HN7: FALSE | HO7: FALSE | HP7: FALSE | HQ7: FALSE | HR7: FALSE | HS7: FALSE | HT7: FALSE | HU7: FALSE | HV7: FALSE | HW7: FALSE | HX7: FALSE | HY7: FALSE | HZ7: FALSE | IA7: FALSE | IB7: FALSE | IC7: FALSE | ID7: FALSE | IE7: FALSE | IF7: FALSE | IG7: FALSE | IH7: FALSE | II7: FALSE | IJ7: FALSE | IK7: FALSE | IL7: FALSE | IM7: FALSE | IN7: FALSE | IO7: FALSE | IP7: FALSE | IQ7: FALSE | IR7: FALSE | IS7: FALSE | IT7: FALSE | IU7: FALSE | IV7: FALSE | IW7: FALSE | IX7: FALSE | IY7: FALSE | IZ7: FALSE | JA7: FALSE | JB7: FALSE | JC7: FALSE | JD7: FALSE | JE7: FALSE | JF7: =AND(JF$5>=$G7,JF$5<$H7) -> FALSE | JG7: FALSE | JH7: FALSE | JI7: FALSE | JJ7: FALSE | JK7: FALSE | JL7: FALSE | JM7: FALSE | JN7: FALSE | JO7: FALSE | JP7: FALSE | JQ7: FALSE | JR7: FALSE | JS7: FALSE | JT7: FALSE | JU7: FALSE | JV7: FALSE | JW7: FALSE | JX7: FALSE | JY7: FALSE | JZ7: FALSE | KA7: FALSE | KB7: FALSE | KC7: FALSE | KD7: FALSE | KE7: FALSE | KF7: FALSE | KG7: FALSE | KH7: FALSE | KI7: FALSE | KJ7: FALSE | KK7: FALSE | KL7: FALSE | KM7: FALSE | KN7: FALSE | KO7: FALSE | KP7: FALSE | KQ7: FALSE | KR7: FALSE | KS7: FALSE | KT7: FALSE | KU7: FALSE | KV7: FALSE
B8: Days in Period | I8: =I6-I5+1 -> 31 | J8: =J6-J5+1 -> 30 | K8: 31 | L8: 30 | M8: 31 | N8: 31 | O8: 30 | P8: 31 | Q8: 30 | R8: 31 | S8: 31 | T8: 28 | U8: 31 | V8: 30 | W8: 31 | X8: 30 | Y8: 31 | Z8: 31 | AA8: 30 | AB8: 31 | AC8: 30 | AD8: 31 | AE8: 31 | AF8: 29 | AG8: 31 | AH8: 30 | AI8: 31 | AJ8: 30 | AK8: 31 | AL8: 31 | AM8: 181 | AN8: 184 | AO8: 181 | AP8: 184 | AQ8: 181 | AR8: 184 | AS8: 182 | AT8: 184 | AU8: 181 | AV8: 184 | AW8: 181 | AX8: 184 | AY8: 181 | AZ8: 184 | BA8: 182 | BB8: 184 | BC8: 181 | BD8: 184 | BE8: 181 | BF8: 184 | BG8: 181 | BH8: 184 | BI8: 182 | BJ8: 184 | BK8: 181 | BL8: 184 | BM8: 181 | BN8: 184 | BO8: 181 | BP8: 184 | BQ8: 182 | BR8: 184 | BS8: 181 | BT8: 184 | BU8: 181 | BV8: =BV6-BV5+1 -> 184 | BW8: 181 | BX8: 184 | BY8: 182 | BZ8: 184 | CA8: 181 | CB8: 184 | CC8: 181 | CD8: 184 | CE8: 181 | CF8: 184 | CG8: 182 | CH8: 184 | CI8: 181 | CJ8: 184 | CK8: 181 | CL8: 184 | CM8: 181 | CN8: 184 | CO8: 182 | CP8: 184 | CQ8: 181 | CR8: 184 | CS8: 181 | CT8: 184 | CU8: 181 | CV8: 184 | CW8: 182 | CX8: 184 | CY8: 181 | CZ8: 184 | DA8: 181 | DB8: 184 | DC8: 181 | DD8: 184 | DE8: 182 | DF8: 184 | DG8: 181 | DH8: 184 | DI8: 181 | DJ8: 184 | DK8: 181 | DL8: 184 | DM8: 182 | DN8: 184 | DO8: 181 | DP8: 184 | DQ8: 181 | DR8: 184 | DS8: 181 | DT8: 184 | DU8: 182 | DV8: 184 | DW8: 181 | DX8: 184 | DY8: 181 | DZ8: 184 | EA8: 181 | EB8: 184 | EC8: 182 | ED8: 184 | EE8: 181 | EF8: 184 | EG8: 181 | EH8: =EH6-EH5+1 -> 184 | EI8: 181 | EJ8: 184 | EK8: 182 | EL8: 184 | EM8: 181 | EN8: 184 | EO8: 181 | EP8: 184 | EQ8: 181 | ER8: 184 | ES8: 182 | ET8: 184 | EU8: 181 | EV8: 184 | EW8: 181 | EX8: 184 | EY8: 181 | EZ8: 184 | FA8: 182 | FB8: 184 | FC8: 181 | FD8: 184 | FE8: 181 | FF8: 184 | FG8: 181 | FH8: 184 | FI8: 182 | FJ8: 184 | FK8: 181 | FL8: 184 | FM8: 181 | FN8: 184 | FO8: 181 | FP8: 184 | FQ8: 182 | FR8: 184 | FS8: 181 | FT8: 184 | FU8: 181 | FV8: 184 | FW8: 181 | FX8: 184 | FY8: 182 | FZ8: 184 | GA8: 181 | GB8: 184 | GC8: 181 | GD8: 184 | GE8: 181 | GF8: 184 | GG8: 182 | GH8: 184 | GI8: 181 | GJ8: 184 | GK8: 181 | GL8: 184 | GM8: 181 | GN8: 184 | GO8: 181 | GP8: 184 | GQ8: 181 | GR8: 184 | GS8: 181 | GT8: =GT6-GT5+1 -> 184 | GU8: 181 | GV8: 184 | GW8: 182 | GX8: 184 | GY8: 181 | GZ8: 184 | HA8: 181 | HB8: 184 | HC8: 181 | HD8: 184 | HE8: 182 | HF8: 184 | HG8: 181 | HH8: 184 | HI8: 181 | HJ8: 184 | HK8: 181 | HL8: 184 | HM8: 182 | HN8: 184 | HO8: 181 | HP8: 184 | HQ8: 181 | HR8: 184 | HS8: 181 | HT8: 184 | HU8: 182 | HV8: 184 | HW8: 181 | HX8: 184 | HY8: 181 | HZ8: 184 | IA8: 181 | IB8: 184 | IC8: 182 | ID8: 184 | IE8: 181 | IF8: 184 | IG8: 181 | IH8: 184 | II8: 181 | IJ8: 184 | IK8: 182 | IL8: 184 | IM8: 181 | IN8: 184 | IO8: 181 | IP8: 184 | IQ8: 181 | IR8: 184 | IS8: 182 | IT8: 184 | IU8: 181 | IV8: 184 | IW8: 181 | IX8: 184 | IY8: 181 | IZ8: 184 | JA8: 182 | JB8: 184 | JC8: 181 | JD8: 184 | JE8: 181 | JF8: =JF6-JF5+1 -> 184 | JG8: 181 | JH8: 184 | JI8: 182 | JJ8: 184 | JK8: 181 | JL8: 184 | JM8: 181 | JN8: 184 | JO8: 181 | JP8: 184 | JQ8: 182 | JR8: 184 | JS8: 181 | JT8: 184 | JU8: 181 | JV8: 184 | JW8: 181 | JX8: 184 | JY8: 182 | JZ8: 184 | KA8: 181 | KB8: 184 | KC8: 181 | KD8: 184 | KE8: 181 | KF8: 184 | KG8: 182 | KH8: 184 | KI8: 181 | KJ8: 184 | KK8: 181 | KL8: 184 | KM8: 181 | KN8: 184 | KO8: 182 | KP8: 184 | KQ8: 181 | KR8: 184 | KS8: 181 | KT8: 184 | KU8: 181 | KV8: 184
B9: Hours in Period | I9: =I8*24 -> 744 | J9: =J8*24 -> 720 | K9: 744 | L9: 720 | M9: 744 | N9: 744 | O9: 720 | P9: 744 | Q9: 720 | R9: 744 | S9: 744 | T9: 672 | U9: 744 | V9: 720 | W9: 744 | X9: 720 | Y9: 744 | Z9: 744 | AA9: 720 | AB9: 744 | AC9: 720 | AD9: 744 | AE9: 744 | AF9: 696 | AG9: 744 | AH9: 720 | AI9: 744 | AJ9: 720 | AK9: 744 | AL9: 744 | AM9: 4344 | AN9: 4416 | AO9: 4344 | AP9: 4416 | AQ9: 4344 | AR9: 4416 | AS9: 4368 | AT9: 4416 | AU9: 4344 | AV9: 4416 | AW9: 4344 | AX9: 4416 | AY9: 4344 | AZ9: 4416 | BA9: 4368 | BB9: 4416 | BC9: 4344 | BD9: 4416 | BE9: 4344 | BF9: 4416 | BG9: 4344 | BH9: 4416 | BI9: 4368 | BJ9: 4416 | BK9: 4344 | BL9: 4416 | BM9: 4344 | BN9: 4416 | BO9: 4344 | BP9: 4416 | BQ9: 4368 | BR9: 4416 | BS9: 4344 | BT9: 4416 | BU9: 4344 | BV9: =BV8*24 -> 4416 | BW9: 4344 | BX9: 4416 | BY9: 4368 | BZ9: 4416 | CA9: 4344 | CB9: 4416 | CC9: 4344 | CD9: 4416 | CE9: 4344 | CF9: 4416 | CG9: 4368 | CH9: 4416 | CI9: 4344 | CJ9: 4416 | CK9: 4344 | CL9: 4416 | CM9: 4344 | CN9: 4416 | CO9: 4368 | CP9: 4416 | CQ9: 4344 | CR9: 4416 | CS9: 4344 | CT9: 4416 | CU9: 4344 | CV9: 4416 | CW9: 4368 | CX9: 4416 | CY9: 4344 | CZ9: 4416 | DA9: 4344 | DB9: 4416 | DC9: 4344 | DD9: 4416 | DE9: 4368 | DF9: 4416 | DG9: 4344 | DH9: 4416 | DI9: 4344 | DJ9: 4416 | DK9: 4344 | DL9: 4416 | DM9: 4368 | DN9: 4416 | DO9: 4344 | DP9: 4416 | DQ9: 4344 | DR9: 4416 | DS9: 4344 | DT9: 4416 | DU9: 4368 | DV9: 4416 | DW9: 4344 | DX9: 4416 | DY9: 4344 | DZ9: 4416 | EA9: 4344 | EB9: 4416 | EC9: 4368 | ED9: 4416 | EE9: 4344 | EF9: 4416 | EG9: 4344 | EH9: =EH8*24 -> 4416 | EI9: 4344 | EJ9: 4416 | EK9: 4368 | EL9: 4416 | EM9: 4344 | EN9: 4416 | EO9: 4344 | EP9: 4416 | EQ9: 4344 | ER9: 4416 | ES9: 4368 | ET9: 4416 | EU9: 4344 | EV9: 4416 | EW9: 4344 | EX9: 4416 | EY9: 4344 | EZ9: 4416 | FA9: 4368 | FB9: 4416 | FC9: 4344 | FD9: 4416 | FE9: 4344 | FF9: 4416 | FG9: 4344 | FH9: 4416 | FI9: 4368 | FJ9: 4416 | FK9: 4344 | FL9: 4416 | FM9: 4344 | FN9: 4416 | FO9: 4344 | FP9: 4416 | FQ9: 4368 | FR9: 4416 | FS9: 4344 | FT9: 4416 | FU9: 4344 | FV9: 4416 | FW9: 4344 | FX9: 4416 | FY9: 4368 | FZ9: 4416 | GA9: 4344 | GB9: 4416 | GC9: 4344 | GD9: 4416 | GE9: 4344 | GF9: 4416 | GG9: 4368 | GH9: 4416 | GI9: 4344 | GJ9: 4416 | GK9: 4344 | GL9: 4416 | GM9: 4344 | GN9: 4416 | GO9: 4344 | GP9: 4416 | GQ9: 4344 | GR9: 4416 | GS9: 4344 | GT9: =GT8*24 -> 4416 | GU9: 4344 | GV9: 4416 | GW9: 4368 | GX9: 4416 | GY9: 4344 | GZ9: 4416 | HA9: 4344 | HB9: 4416 | HC9: 4344 | HD9: 4416 | HE9: 4368 | HF9: 4416 | HG9: 4344 | HH9: 4416 | HI9: 4344 | HJ9: 4416 | HK9: 4344 | HL9: 4416 | HM9: 4368 | HN9: 4416 | HO9: 4344 | HP9: 4416 | HQ9: 4344 | HR9: 4416 | HS9: 4344 | HT9: 4416 | HU9: 4368 | HV9: 4416 | HW9: 4344 | HX9: 4416 | HY9: 4344 | HZ9: 4416 | IA9: 4344 | IB9: 4416 | IC9: 4368 | ID9: 4416 | IE9: 4344 | IF9: 4416 | IG9: 4344 | IH9: 4416 | II9: 4344 | IJ9: 4416 | IK9: 4368 | IL9: 4416 | IM9: 4344 | IN9: 4416 | IO9: 4344 | IP9: 4416 | IQ9: 4344 | IR9: 4416 | IS9: 4368 | IT9: 4416 | IU9: 4344 | IV9: 4416 | IW9: 4344 | IX9: 4416 | IY9: 4344 | IZ9: 4416 | JA9: 4368 | JB9: 4416 | JC9: 4344 | JD9: 4416 | JE9: 4344 | JF9: =JF8*24 -> 4416 | JG9: 4344 | JH9: 4416 | JI9: 4368 | JJ9: 4416 | JK9: 4344 | JL9: 4416 | JM9: 4344 | JN9: 4416 | JO9: 4344 | JP9: 4416 | JQ9: 4368 | JR9: 4416 | JS9: 4344 | JT9: 4416 | JU9: 4344 | JV9: 4416 | JW9: 4344 | JX9: 4416 | JY9: 4368 | JZ9: 4416 | KA9: 4344 | KB9: 4416 | KC9: 4344 | KD9: 4416 | KE9: 4344 | KF9: 4416 | KG9: 4368 | KH9: 4416 | KI9: 4344 | KJ9: 4416 | KK9: 4344 | KL9: 4416 | KM9: 4344 | KN9: 4416 | KO9: 4368 | KP9: 4416 | KQ9: 4344 | KR9: 4416 | KS9: 4344 | KT9: 4416 | KU9: 4344 | KV9: 4416
B10: Fiscal Month Test on End of Period | F10: =F25 -> 8 | I10: =MONTH(H6)=$F$10 -> FALSE | J10: =MONTH(I6)=$F$10 -> FALSE | K10: FALSE | L10: FALSE | M10: FALSE | N10: FALSE | O10: TRUE | P10: FALSE | Q10: FALSE | R10: FALSE | S10: FALSE | T10: FALSE | U10: FALSE | V10: FALSE | W10: FALSE | X10: FALSE | Y10: FALSE | Z10: FALSE | AA10: TRUE | AB10: FALSE | AC10: FALSE | AD10: FALSE | AE10: FALSE | AF10: FALSE | AG10: FALSE | AH10: FALSE | AI10: FALSE | AJ10: FALSE | AK10: FALSE | AL10: FALSE | AM10: TRUE | AN10: FALSE | AO10: TRUE | AP10: FALSE | AQ10: TRUE | AR10: FALSE | AS10: TRUE | AT10: FALSE | AU10: TRUE | AV10: FALSE | AW10: TRUE | AX10: FALSE | AY10: TRUE | AZ10: FALSE | BA10: TRUE | BB10: FALSE | BC10: TRUE | BD10: FALSE | BE10: TRUE | BF10: FALSE | BG10: TRUE | BH10: FALSE | BI10: TRUE | BJ10: FALSE | BK10: TRUE | BL10: FALSE | BM10: TRUE | BN10: FALSE | BO10: TRUE | BP10: FALSE | BQ10: TRUE | BR10: FALSE | BS10: TRUE | BT10: FALSE | BU10: TRUE | BV10: =MONTH(BU6)=$F$10 -> FALSE | BW10: TRUE | BX10: FALSE | BY10: TRUE | BZ10: FALSE | CA10: TRUE | CB10: FALSE | CC10: TRUE | CD10: FALSE | CE10: TRUE | CF10: FALSE | CG10: TRUE | CH10: FALSE | CI10: TRUE | CJ10: FALSE | CK10: TRUE | CL10: FALSE | CM10: TRUE | CN10: FALSE | CO10: TRUE | CP10: FALSE | CQ10: TRUE | CR10: FALSE | CS10: TRUE | CT10: FALSE | CU10: TRUE | CV10: FALSE | CW10: TRUE | CX10: FALSE | CY10: TRUE | CZ10: FALSE | DA10: TRUE | DB10: FALSE | DC10: TRUE | DD10: FALSE | DE10: TRUE | DF10: FALSE | DG10: TRUE | DH10: FALSE | DI10: TRUE | DJ10: FALSE | DK10: TRUE | DL10: FALSE | DM10: TRUE | DN10: FALSE | DO10: TRUE | DP10: FALSE | DQ10: TRUE | DR10: FALSE | DS10: TRUE | DT10: FALSE | DU10: TRUE | DV10: FALSE | DW10: TRUE | DX10: FALSE | DY10: TRUE | DZ10: FALSE | EA10: TRUE | EB10: FALSE | EC10: TRUE | ED10: FALSE | EE10: TRUE | EF10: FALSE | EG10: TRUE | EH10: =MONTH(EG6)=$F$10 -> FALSE | EI10: TRUE | EJ10: FALSE | EK10: TRUE | EL10: FALSE | EM10: TRUE | EN10: FALSE | EO10: TRUE | EP10: FALSE | EQ10: TRUE | ER10: FALSE | ES10: TRUE | ET10: FALSE | EU10: TRUE | EV10: FALSE | EW10: TRUE | EX10: FALSE | EY10: TRUE | EZ10: FALSE | FA10: TRUE | FB10: FALSE | FC10: TRUE | FD10: FALSE | FE10: TRUE | FF10: FALSE | FG10: TRUE | FH10: FALSE | FI10: TRUE | FJ10: FALSE | FK10: TRUE | FL10: FALSE | FM10: TRUE | FN10: FALSE | FO10: TRUE | FP10: FALSE | FQ10: TRUE | FR10: FALSE | FS10: TRUE | FT10: FALSE | FU10: TRUE | FV10: FALSE | FW10: TRUE | FX10: FALSE | FY10: TRUE | FZ10: FALSE | GA10: TRUE | GB10: FALSE | GC10: TRUE | GD10: FALSE | GE10: TRUE | GF10: FALSE | GG10: TRUE | GH10: FALSE | GI10: TRUE | GJ10: FALSE | GK10: TRUE | GL10: FALSE | GM10: TRUE | GN10: FALSE | GO10: TRUE | GP10: FALSE | GQ10: TRUE | GR10: FALSE | GS10: TRUE | GT10: =MONTH(GS6)=$F$10 -> FALSE | GU10: TRUE | GV10: FALSE | GW10: TRUE | GX10: FALSE | GY10: TRUE | GZ10: FALSE | HA10: TRUE | HB10: FALSE | HC10: TRUE | HD10: FALSE | HE10: TRUE | HF10: FALSE | HG10: TRUE | HH10: FALSE | HI10: TRUE | HJ10: FALSE | HK10: TRUE | HL10: FALSE | HM10: TRUE | HN10: FALSE | HO10: TRUE | HP10: FALSE | HQ10: TRUE | HR10: FALSE | HS10: TRUE | HT10: FALSE | HU10: TRUE | HV10: FALSE | HW10: TRUE | HX10: FALSE | HY10: TRUE | HZ10: FALSE | IA10: TRUE | IB10: FALSE | IC10: TRUE | ID10: FALSE | IE10: TRUE | IF10: FALSE | IG10: TRUE | IH10: FALSE | II10: TRUE | IJ10: FALSE | IK10: TRUE | IL10: FALSE | IM10: TRUE | IN10: FALSE | IO10: TRUE | IP10: FALSE | IQ10: TRUE | IR10: FALSE | IS10: TRUE | IT10: FALSE | IU10: TRUE | IV10: FALSE | IW10: TRUE | IX10: FALSE | IY10: TRUE | IZ10: FALSE | JA10: TRUE | JB10: FALSE | JC10: TRUE | JD10: FALSE | JE10: TRUE | JF10: =MONTH(JE6)=$F$10 -> FALSE | JG10: TRUE | JH10: FALSE | JI10: TRUE | JJ10: FALSE | JK10: TRUE | JL10: FALSE | JM10: TRUE | JN10: FALSE | JO10: TRUE | JP10: FALSE | JQ10: TRUE | JR10: FALSE | JS10: TRUE | JT10: FALSE | JU10: TRUE | JV10: FALSE | JW10: TRUE | JX10: FALSE | JY10: TRUE | JZ10: FALSE | KA10: TRUE | KB10: FALSE | KC10: TRUE | KD10: FALSE | KE10: TRUE | KF10: FALSE | KG10: TRUE | KH10: FALSE | KI10: TRUE | KJ10: FALSE | KK10: TRUE | KL10: FALSE | KM10: TRUE | KN10: FALSE | KO10: TRUE | KP10: FALSE | KQ10: TRUE | KR10: FALSE | KS10: TRUE | KT10: FALSE | KU10: TRUE | KV10: FALSE
B11: Fiscal Year End | I11: =YEAR(I6) -> 2018 | J11: =I11+J10 -> 2018 | K11: =J11+K10 -> 2018 | L11: 2018 | M11: 2018 | N11: 2018 | O11: 2019 | P11: 2019 | Q11: 2019 | R11: 2019 | S11: 2019 | T11: 2019 | U11: 2019 | V11: 2019 | W11: 2019 | X11: 2019 | Y11: 2019 | Z11: 2019 | AA11: 2020 | AB11: 2020 | AC11: 2020 | AD11: 2020 | AE11: 2020 | AF11: 2020 | AG11: 2020 | AH11: 2020 | AI11: 2020 | AJ11: 2020 | AK11: 2020 | AL11: 2020 | AM11: 2021 | AN11: 2021 | AO11: 2022 | AP11: 2022 | AQ11: 2023 | AR11: 2023 | AS11: 2024 | AT11: 2024 | AU11: 2025 | AV11: 2025 | AW11: 2026 | AX11: 2026 | AY11: 2027 | AZ11: 2027 | BA11: 2028 | BB11: 2028 | BC11: 2029 | BD11: 2029 | BE11: 2030 | BF11: 2030 | BG11: 2031 | BH11: 2031 | BI11: 2032 | BJ11: 2032 | BK11: 2033 | BL11: 2033 | BM11: 2034 | BN11: 2034 | BO11: 2035 | BP11: 2035 | BQ11: 2036 | BR11: 2036 | BS11: 2037 | BT11: 2037 | BU11: 2038 | BV11: 2038 | BW11: =BV11+BW10 -> 2039 | BX11: 2039 | BY11: 2040 | BZ11: 2040 | CA11: 2041 | CB11: 2041 | CC11: 2042 | CD11: 2042 | CE11: 2043 | CF11: 2043 | CG11: 2044 | CH11: 2044 | CI11: 2045 | CJ11: 2045 | CK11: 2046 | CL11: 2046 | CM11: 2047 | CN11: 2047 | CO11: 2048 | CP11: 2048 | CQ11: 2049 | CR11: 2049 | CS11: 2050 | CT11: 2050 | CU11: 2051 | CV11: 2051 | CW11: 2052 | CX11: 2052 | CY11: 2053 | CZ11: 2053 | DA11: 2054 | DB11: 2054 | DC11: 2055 | DD11: 2055 | DE11: 2056 | DF11: 2056 | DG11: 2057 | DH11: 2057 | DI11: 2058 | DJ11: 2058 | DK11: 2059 | DL11: 2059 | DM11: 2060 | DN11: 2060 | DO11: 2061 | DP11: 2061 | DQ11: 2062 | DR11: 2062 | DS11: 2063 | DT11: 2063 | DU11: 2064 | DV11: 2064 | DW11: 2065 | DX11: 2065 | DY11: 2066 | DZ11: 2066 | EA11: 2067 | EB11: 2067 | EC11: 2068 | ED11: 2068 | EE11: 2069 | EF11: 2069 | EG11: 2070 | EH11: 2070 | EI11: =EH11+EI10 -> 2071 | EJ11: 2071 | EK11: 2072 | EL11: 2072 | EM11: 2073 | EN11: 2073 | EO11: 2074 | EP11: 2074 | EQ11: 2075 | ER11: 2075 | ES11: 2076 | ET11: 2076 | EU11: 2077 | EV11: 2077 | EW11: 2078 | EX11: 2078 | EY11: 2079 | EZ11: 2079 | FA11: 2080 | FB11: 2080 | FC11: 2081 | FD11: 2081 | FE11: 2082 | FF11: 2082 | FG11: 2083 | FH11: 2083 | FI11: 2084 | FJ11: 2084 | FK11: 2085 | FL11: 2085 | FM11: 2086 | FN11: 2086 | FO11: 2087 | FP11: 2087 | FQ11: 2088 | FR11: 2088 | FS11: 2089 | FT11: 2089 | FU11: 2090 | FV11: 2090 | FW11: 2091 | FX11: 2091 | FY11: 2092 | FZ11: 2092 | GA11: 2093 | GB11: 2093 | GC11: 2094 | GD11: 2094 | GE11: 2095 | GF11: 2095 | GG11: 2096 | GH11: 2096 | GI11: 2097 | GJ11: 2097 | GK11: 2098 | GL11: 2098 | GM11: 2099 | GN11: 2099 | GO11: 2100 | GP11: 2100 | GQ11: 2101 | GR11: 2101 | GS11: 2102 | GT11: 2102 | GU11: =GT11+GU10 -> 2103 | GV11: 2103 | GW11: 2104 | GX11: 2104 | GY11: 2105 | GZ11: 2105 | HA11: 2106 | HB11: 2106 | HC11: 2107 | HD11: 2107 | HE11: 2108 | HF11: 2108 | HG11: 2109 | HH11: 2109 | HI11: 2110 | HJ11: 2110 | HK11: 2111 | HL11: 2111 | HM11: 2112 | HN11: 2112 | HO11: 2113 | HP11: 2113 | HQ11: 2114 | HR11: 2114 | HS11: 2115 | HT11: 2115 | HU11: 2116 | HV11: 2116 | HW11: 2117 | HX11: 2117 | HY11: 2118 | HZ11: 2118 | IA11: 2119 | IB11: 2119 | IC11: 2120 | ID11: 2120 | IE11: 2121 | IF11: 2121 | IG11: 2122 | IH11: 2122 | II11: 2123 | IJ11: 2123 | IK11: 2124 | IL11: 2124 | IM11: 2125 | IN11: 2125 | IO11: 2126 | IP11: 2126 | IQ11: 2127 | IR11: 2127 | IS11: 2128 | IT11: 2128 | IU11: 2129 | IV11: 2129 | IW11: 2130 | IX11: 2130 | IY11: 2131 | IZ11: 2131 | JA11: 2132 | JB11: 2132 | JC11: 2133 | JD11: 2133 | JE11: 2134 | JF11: 2134 | JG11: =JF11+JG10 -> 2135 | JH11: 2135 | JI11: 2136 | JJ11: 2136 | JK11: 2137 | JL11: 2137 | JM11: 2138 | JN11: 2138 | JO11: 2139 | JP11: 2139 | JQ11: 2140 | JR11: 2140 | JS11: 2141 | JT11: 2141 | JU11: 2142 | JV11: 2142 | JW11: 2143 | JX11: 2143 | JY11: 2144 | JZ11: 2144 | KA11: 2145 | KB11: 2145 | KC11: 2146 | KD11: 2146 | KE11: 2147 | KF11: 2147 | KG11: 2148 | KH11: 2148 | KI11: 2149 | KJ11: 2149 | KK11: 2150 | KL11: 2150 | KM11: 2151 | KN11: 2151 | KO11: 2152 | KP11: 2152 | KQ11: 2153 | KR11: 2153 | KS11: 2154 | KT11: 2154 | KU11: 2155 | KV11: 2155
A13: Dates
C14: Development Start | F14: 2018-03-01
C15: Development Period | E15: Months | F15: 15
C16: Financial Close | E16: Date | F16: =EDATE(F14,F15) -> 2019-06-01
C17: Construction | E17: Months | F17: 15
C18: Commercial Operation | E18: Date | F18: =EDATE(F16,F17) -> 2020-09-01
C19: Operation | E19: Years | F19: 30
C20: Decommissioning | E20: Date | F20: =EDATE(F18,F19*12) -> 2050-09-01
C21: Months Pre-COD | E21: Months | F21: 1
C22: Months Post-COD | E22: Months | F22: 6
C24: Month of COD | E24: Month | F24: =MONTH(F18) -> 9
C25: Month End for Fiscal Year | E25: Month | F25: =MONTH(EDATE(F18,-1)) -> 8
A27: Capacity and Volumes
B28: Months after FC | I28: 10 | J28: 8 | K28: COD | L28: Decom
B29: Date | G29: =F14 -> 2018-03-01 | H29: =F16 -> 2019-06-01 | I29: =EDATE(H29,I28) -> 2020-04-01 | J29: =EDATE(I29,J28) -> 2020-12-01 | K29: =F18 -> 2020-09-01 | L29: =F20 -> 2050-09-01
B30: Capacity of Project | E30: Units/Day | G30: 0 | H30: 0 | I30: 100 | J30: 150 | K30: 1000 | L30: 0
L31: 2 | M31: 4 | N31: 6
B32: Date | G32: =G29 -> 2018-03-01 | H32: =H29 -> 2019-06-01 | I32: 2020-04-01 | J32: 2020-12-01 | K32: 2020-09-01 | L32: =EDATE(K32,L31*12) -> 2022-09-01 | M32: =EDATE(L32,M31*12) -> 2026-09-01 | N32: =EDATE(M32,N31*12) -> 2032-09-01 | O32: =L29 -> 2050-09-01
B33: Capacity Utilisation | E33: % | G33: 0 | H33: 0 | I33: 0.4 | J33: 0.6 | K33: 0.6 | L33: 0.64 | M33: 0.72 | N33: 0.8 | O33: 0.8
A35: Operating Contracts and Working Capital
B36: Cap Exp and Operation
C37: Capital Expenditures - EPC | E37: € 000's | F37: 1000
C38: Capital Expenditures - Owner | E38: € 000's | F38: 50
C39: Development Cost | E39: € 000's | F39: 100
C40: Development Fees | E40: € 000's | F40: 200
B42: PPA Contract
C43: Base Price | E43: €/Unit | F43: 10
C44: Month to Apply Inflation (After COD) | E44: Month | F44: =MONTH(F18) -> 9
G45: =YEAR(F14) -> 2018 | H45: =G45+1 -> 2019 | I45: =H45+1 -> 2020 | J45: 2021 | K45: 2022 | L45: 2023 | M45: 2024 | N45: 2025 | O45: 2026
C46: Inflation Rate | E46: % p.a. | G46: 0.015 | H46: 0.018 | I46: 0.02 | J46: 0.022 | K46: 0.025 | L46: 0.025 | M46: 0.025 | N46: 0.025 | O46: 0.025
B48: O&M Contract
C49: Base Variable O&M per Unit | E49: €/Unit | F49: 2
C50: Base Fixed O&M per Capacity-yr | E50: €/Cap-yr | F50: 15
C51: First Date of Inflation | E51: Date | F51: =F18 -> 2020-09-01
B53: Working Capital
C54: Days Receivables | E54: Days | F54: 28
C55: Days Payables | E55: Days | F55: 15
A57: Debt
B58: Debt Size
C59: Debt To Project Cost | F59: 0.8
B60: Debt Funding
C61: Equity First | F61: TRUE
C62: Pro Rata | F62: =NOT(F61) -> FALSE
C63: Pre-commercial CF as Income | F63: TRUE
C64: Capitalise Interest | F64: TRUE
B65: Debt Repayment
C66: Tenor | F66: 15
C67: End of Repayment | F67: =EDATE(F18,F66*12) -> 2035-09-01
C68: Sculpting | F68: TRUE
B69: Interest
C70: Credit Spread | F70: 0.015
C71: Interest Rate | F71: 0.02
B73: Depreciation
B75: Financial Statements
C76: Cash Flow vs Cash Waterfall

Sheet Annual Timing - Titles
A1: Timeline | F1: 1
B2: Year | F2: =YEAR('Timeline Exercise - No Titles'!F4) -> 2018
B4: Days
B5: Hours

Sheet Annual Timing Complete
A1: Timeline | F1: 1 | G1: 2 | H1: 3 | I1: 4 | J1: 5 | K1: 6 | L1: 7 | M1: 8 | N1: 9 | O1: 10 | P1: 11 | Q1: 12 | R1: 13 | S1: 14 | T1: 15 | U1: 16 | V1: 17 | W1: 18 | X1: 19 | Y1: 20 | Z1: 21 | AA1: 22 | AB1: 23 | AC1: 24 | AD1: 25 | AE1: 26 | AF1: 27 | AG1: 28 | AH1: 29 | AI1: 30 | AJ1: 31 | AK1: 32 | AL1: 33 | AM1: 34 | AN1: 35 | AO1: 36 | AP1: 37 | AQ1: 38 | AR1: 39 | AS1: 40
B2: Year | F2: =YEAR('Timeline Exercise - Complete'!I6) -> 2018 | G2: =F2+1 -> 2019 | H2: =G2+1 -> 2020 | I2: 2021 | J2: 2022 | K2: 2023 | L2: 2024 | M2: 2025 | N2: 2026 | O2: 2027 | P2: 2028 | Q2: 2029 | R2: 2030 | S2: 2031 | T2: 2032 | U2: 2033 | V2: 2034 | W2: 2035 | X2: 2036 | Y2: 2037 | Z2: 2038 | AA2: 2039 | AB2: 2040 | AC2: 2041 | AD2: 2042 | AE2: 2043 | AF2: 2044 | AG2: 2045 | AH2: 2046 | AI2: 2047 | AJ2: 2048 | AK2: 2049 | AL2: 2050 | AM2: 2051 | AN2: 2052 | AO2: 2053 | AP2: 2054 | AQ2: 2055 | AR2: 2056 | AS2: 2057
B4: Days | F4: =SUMIF('Timeline Exercise - Complete'!$11:$11,'Annual Timing Complete '!F$2,'Timeline Exercise - Complete'!8:8) -> 184 | G4: =SUMIF('Timeline Exercise - Complete'!$11:$11,'Annual Timing Complete '!G$2,'Timeline Exercise - Complete'!8:8) -> 365 | H4: =SUMIF('Timeline Exercise - Complete'!$11:$11,'Annual Timing Complete '!H$2,'Timeline Exercise - Complete'!8:8) -> 366 | I4: =SUMIF('Timeline Exercise - Complete'!$11:$11,'Annual Timing Complete '!I$2,'Timeline Exercise - Complete'!8:8) -> 365 | J4: =SUMIF('Timeline Exercise - Complete'!$11:$11,'Annual Timing Complete '!J$2,'Timeline Exercise - Complete'!8:8) -> 365 | K4: =SUMIF('Timeline Exercise - Complete'!$11:$11,'Annual Timing Complete '!K$2,'Timeline Exercise - Complete'!8:8) -> 365 | L4: =SUMIF('Timeline Exercise - Complete'!$11:$11,'Annual Timing Complete '!L$2,'Timeline Exercise - Complete'!8:8) -> 366 | M4: =SUMIF('Timeline Exercise - Complete'!$11:$11,'Annual Timing Complete '!M$2,'Timeline Exercise - Complete'!8:8) -> 365 | N4: =SUMIF('Timeline Exercise - Complete'!$11:$11,'Annual Timing Complete '!N$2,'Timeline Exercise - Complete'!8:8) -> 365 | O4: =SUMIF('Timeline Exercise - Complete'!$11:$11,'Annual Timing Complete '!O$2,'Timeline Exercise - Complete'!8:8) -> 365 | P4: =SUMIF('Timeline Exercise - Complete'!$11:$11,'Annual Timing Complete '!P$2,'Timeline Exercise - Complete'!8:8) -> 366 | Q4: =SUMIF('Timeline Exercise - Complete'!$11:$11,'Annual Timing Complete '!Q$2,'Timeline Exercise - Complete'!8:8) -> 365 | R4: =SUMIF('Timeline Exercise - Complete'!$11:$11,'Annual Timing Complete '!R$2,'Timeline Exercise - Complete'!8:8) -> 365 | S4: =SUMIF('Timeline Exercise - Complete'!$11:$11,'Annual Timing Complete '!S$2,'Timeline Exercise - Complete'!8:8) -> 365 | T4: =SUMIF('Timeline Exercise - Complete'!$11:$11,'Annual Timing Complete '!T$2,'Timeline Exercise - Complete'!8:8) -> 366 | U4: =SUMIF('Timeline Exercise - Complete'!$11:$11,'Annual Timing Complete '!U$2,'Timeline Exercise - Complete'!8:8) -> 365 | V4: =SUMIF('Timeline Exercise - Complete'!$11:$11,'Annual Timing Complete '!V$2,'Timeline Exercise - Complete'!8:8) -> 365 | W4: =SUMIF('Timeline Exercise - Complete'!$11:$11,'Annual Timing Complete '!W$2,'Timeline Exercise - Complete'!8:8) -> 365 | X4: =SUMIF('Timeline Exercise - Complete'!$11:$11,'Annual Timing Complete '!X$2,'Timeline Exercise - Complete'!8:8) -> 366 | Y4: =SUMIF('Timeline Exercise - Complete'!$11:$11,'Annual Timing Complete '!Y$2,'Timeline Exercise - Complete'!8:8) -> 365 | Z4: =SUMIF('Timeline Exercise - Complete'!$11:$11,'Annual Timing Complete '!Z$2,'Timeline Exercise - Complete'!8:8) -> 365 | AA4: =SUMIF('Timeline Exercise - Complete'!$11:$11,'Annual Timing Complete '!AA$2,'Timeline Exercise - Complete'!8:8) -> 365 | AB4: =SUMIF('Timeline Exercise - Complete'!$11:$11,'Annual Timing Complete '!AB$2,'Timeline Exercise - Complete'!8:8) -> 366 | AC4: =SUMIF('Timeline Exercise - Complete'!$11:$11,'Annual Timing Complete '!AC$2,'Timeline Exercise - Complete'!8:8) -> 365 | AD4: =SUMIF('Timeline Exercise - Complete'!$11:$11,'Annual Timing Complete '!AD$2,'Timeline Exercise - Complete'!8:8) -> 365 | AE4: =SUMIF('Timeline Exercise - Complete'!$11:$11,'Annual Timing Complete '!AE$2,'Timeline Exercise - Complete'!8:8) -> 365 | AF4: =SUMIF('Timeline Exercise - Complete'!$11:$11,'Annual Timing Complete '!AF$2,'Timeline Exercise - Complete'!8:8) -> 366 | AG4: =SUMIF('Timeline Exercise - Complete'!$11:$11,'Annual Timing Complete '!AG$2,'Timeline Exercise - Complete'!8:8) -> 365 | AH4: =SUMIF('Timeline Exercise - Complete'!$11:$11,'Annual Timing Complete '!AH$2,'Timeline Exercise - Complete'!8:8) -> 365 | AI4: =SUMIF('Timeline Exercise - Complete'!$11:$11,'Annual Timing Complete '!AI$2,'Timeline Exercise - Complete'!8:8) -> 365 | AJ4: =SUMIF('Timeline Exercise - Complete'!$11:$11,'Annual Timing Complete '!AJ$2,'Timeline Exercise - Complete'!8:8) -> 366 | AK4: =SUMIF('Timeline Exercise - Complete'!$11:$11,'Annual Timing Complete '!AK$2,'Timeline Exercise - Complete'!8:8) -> 365 | AL4: =SUMIF('Timeline Exercise - Complete'!$11:$11,'Annual Timing Complete '!AL$2,'Timeline Exercise - Complete'!8:8) -> 365 | AM4: =SUMIF('Timeline Exercise - Complete'!$11:$11,'Annual Timing Complete '!AM$2,'Timeline Exercise - Complete'!8:8) -> 365 | AN4: =SUMIF('Timeline Exercise - Complete'!$11:$11,'Annual Timing Complete '!AN$2,'Timeline Exercise - Complete'!8:8) -> 366 | AO4: =SUMIF('Timeline Exercise - Complete'!$11:$11,'Annual Timing Complete '!AO$2,'Timeline Exercise - Complete'!8:8) -> 365 | AP4: =SUMIF('Timeline Exercise - Complete'!$11:$11,'Annual Timing Complete '!AP$2,'Timeline Exercise - Complete'!8:8) -> 365 | AQ4: =SUMIF('Timeline Exercise - Complete'!$11:$11,'Annual Timing Complete '!AQ$2,'Timeline Exercise - Complete'!8:8) -> 365 | AR4: =SUMIF('Timeline Exercise - Complete'!$11:$11,'Annual Timing Complete '!AR$2,'Timeline Exercise - Complete'!8:8) -> 366 | AS4: =SUMIF('Timeline Exercise - Complete'!$11:$11,'Annual Timing Complete '!AS$2,'Timeline Exercise - Complete'!8:8) -> 365
B5: Hours | F5: =SUMIF('Timeline Exercise - Complete'!$11:$11,'Annual Timing Complete '!F$2,'Timeline Exercise - Complete'!9:9) -> 4416 | G5: =SUMIF('Timeline Exercise - Complete'!$11:$11,'Annual Timing Complete '!G$2,'Timeline Exercise - Complete'!9:9) -> 8760 | H5: =SUMIF('Timeline Exercise - Complete'!$11:$11,'Annual Timing Complete '!H$2,'Timeline Exercise - Complete'!9:9) -> 8784 | I5: =SUMIF('Timeline Exercise - Complete'!$11:$11,'Annual Timing Complete '!I$2,'Timeline Exercise - Complete'!9:9) -> 8760 | J5: =SUMIF('Timeline Exercise - Complete'!$11:$11,'Annual Timing Complete '!J$2,'Timeline Exercise - Complete'!9:9) -> 8760 | K5: =SUMIF('Timeline Exercise - Complete'!$11:$11,'Annual Timing Complete '!K$2,'Timeline Exercise - Complete'!9:9) -> 8760 | L5: =SUMIF('Timeline Exercise - Complete'!$11:$11,'Annual Timing Complete '!L$2,'Timeline Exercise - Complete'!9:9) -> 8784 | M5: =SUMIF('Timeline Exercise - Complete'!$11:$11,'Annual Timing Complete '!M$2,'Timeline Exercise - Complete'!9:9) -> 8760 | N5: =SUMIF('Timeline Exercise - Complete'!$11:$11,'Annual Timing Complete '!N$2,'Timeline Exercise - Complete'!9:9) -> 8760 | O5: =SUMIF('Timeline Exercise - Complete'!$11:$11,'Annual Timing Complete '!O$2,'Timeline Exercise - Complete'!9:9) -> 8760 | P5: =SUMIF('Timeline Exercise - Complete'!$11:$11,'Annual Timing Complete '!P$2,'Timeline Exercise - Complete'!9:9) -> 8784 | Q5: =SUMIF('Timeline Exercise - Complete'!$11:$11,'Annual Timing Complete '!Q$2,'Timeline Exercise - Complete'!9:9) -> 8760 | R5: =SUMIF('Timeline Exercise - Complete'!$11:$11,'Annual Timing Complete '!R$2,'Timeline Exercise - Complete'!9:9) -> 8760 | S5: =SUMIF('Timeline Exercise - Complete'!$11:$11,'Annual Timing Complete '!S$2,'Timeline Exercise - Complete'!9:9) -> 8760 | T5: =SUMIF('Timeline Exercise - Complete'!$11:$11,'Annual Timing Complete '!T$2,'Timeline Exercise - Complete'!9:9) -> 8784 | U5: =SUMIF('Timeline Exercise - Complete'!$11:$11,'Annual Timing Complete '!U$2,'Timeline Exercise - Complete'!9:9) -> 8760 | V5: =SUMIF('Timeline Exercise - Complete'!$11:$11,'Annual Timing Complete '!V$2,'Timeline Exercise - Complete'!9:9) -> 8760 | W5: =SUMIF('Timeline Exercise - Complete'!$11:$11,'Annual Timing Complete '!W$2,'Timeline Exercise - Complete'!9:9) -> 8760 | X5: =SUMIF('Timeline Exercise - Complete'!$11:$11,'Annual Timing Complete '!X$2,'Timeline Exercise - Complete'!9:9) -> 8784 | Y5: =SUMIF('Timeline Exercise - Complete'!$11:$11,'Annual Timing Complete '!Y$2,'Timeline Exercise - Complete'!9:9) -> 8760 | Z5: =SUMIF('Timeline Exercise - Complete'!$11:$11,'Annual Timing Complete '!Z$2,'Timeline Exercise - Complete'!9:9) -> 8760 | AA5: =SUMIF('Timeline Exercise - Complete'!$11:$11,'Annual Timing Complete '!AA$2,'Timeline Exercise - Complete'!9:9) -> 8760 | AB5: =SUMIF('Timeline Exercise - Complete'!$11:$11,'Annual Timing Complete '!AB$2,'Timeline Exercise - Complete'!9:9) -> 8784 | AC5: =SUMIF('Timeline Exercise - Complete'!$11:$11,'Annual Timing Complete '!AC$2,'Timeline Exercise - Complete'!9:9) -> 8760 | AD5: =SUMIF('Timeline Exercise - Complete'!$11:$11,'Annual Timing Complete '!AD$2,'Timeline Exercise - Complete'!9:9) -> 8760 | AE5: =SUMIF('Timeline Exercise - Complete'!$11:$11,'Annual Timing Complete '!AE$2,'Timeline Exercise - Complete'!9:9) -> 8760 | AF5: =SUMIF('Timeline Exercise - Complete'!$11:$11,'Annual Timing Complete '!AF$2,'Timeline Exercise - Complete'!9:9) -> 8784 | AG5: =SUMIF('Timeline Exercise - Complete'!$11:$11,'Annual Timing Complete '!AG$2,'Timeline Exercise - Complete'!9:9) -> 8760 | AH5: =SUMIF('Timeline Exercise - Complete'!$11:$11,'Annual Timing Complete '!AH$2,'Timeline Exercise - Complete'!9:9) -> 8760 | AI5: =SUMIF('Timeline Exercise - Complete'!$11:$11,'Annual Timing Complete '!AI$2,'Timeline Exercise - Complete'!9:9) -> 8760 | AJ5: =SUMIF('Timeline Exercise - Complete'!$11:$11,'Annual Timing Complete '!AJ$2,'Timeline Exercise - Complete'!9:9) -> 8784 | AK5: =SUMIF('Timeline Exercise - Complete'!$11:$11,'Annual Timing Complete '!AK$2,'Timeline Exercise - Complete'!9:9) -> 8760 | AL5: =SUMIF('Timeline Exercise - Complete'!$11:$11,'Annual Timing Complete '!AL$2,'Timeline Exercise - Complete'!9:9) -> 8760 | AM5: =SUMIF('Timeline Exercise - Complete'!$11:$11,'Annual Timing Complete '!AM$2,'Timeline Exercise - Complete'!9:9) -> 8760 | AN5: =SUMIF('Timeline Exercise - Complete'!$11:$11,'Annual Timing Complete '!AN$2,'Timeline Exercise - Complete'!9:9) -> 8784 | AO5: =SUMIF('Timeline Exercise - Complete'!$11:$11,'Annual Timing Complete '!AO$2,'Timeline Exercise - Complete'!9:9) -> 8760 | AP5: =SUMIF('Timeline Exercise - Complete'!$11:$11,'Annual Timing Complete '!AP$2,'Timeline Exercise - Complete'!9:9) -> 8760 | AQ5: =SUMIF('Timeline Exercise - Complete'!$11:$11,'Annual Timing Complete '!AQ$2,'Timeline Exercise - Complete'!9:9) -> 8760 | AR5: =SUMIF('Timeline Exercise - Complete'!$11:$11,'Annual Timing Complete '!AR$2,'Timeline Exercise - Complete'!9:9) -> 8784 | AS5: =SUMIF('Timeline Exercise - Complete'!$11:$11,'Annual Timing Complete '!AS$2,'Timeline Exercise - Complete'!9:9) -> 8760
B7: Pre-COD Hours | F7: =SUMIFS('Timeline Exercise - Complete'!9:9,'Timeline Exercise - Complete'!3:3,TRUE,'Timeline Exercise - Complete'!11:11,'Annual Timing Complete '!F2) -> 4416 | G7: =SUMIFS('Timeline Exercise - Complete'!9:9,'Timeline Exercise - Complete'!3:3,TRUE,'Timeline Exercise - Complete'!11:11,'Annual Timing Complete '!G2) -> 8760 | H7: =SUMIFS('Timeline Exercise - Complete'!9:9,'Timeline Exercise - Complete'!3:3,TRUE,'Timeline Exercise - Complete'!11:11,'Annual Timing Complete '!H2) -> 8784 | I7: =SUMIFS('Timeline Exercise - Complete'!9:9,'Timeline Exercise - Complete'!3:3,TRUE,'Timeline Exercise - Complete'!11:11,'Annual Timing Complete '!I2) -> 0 | J7: =SUMIFS('Timeline Exercise - Complete'!9:9,'Timeline Exercise - Complete'!3:3,TRUE,'Timeline Exercise - Complete'!11:11,'Annual Timing Complete '!J2) -> 0 | K7: =SUMIFS('Timeline Exercise - Complete'!9:9,'Timeline Exercise - Complete'!3:3,TRUE,'Timeline Exercise - Complete'!11:11,'Annual Timing Complete '!K2) -> 0 | L7: =SUMIFS('Timeline Exercise - Complete'!9:9,'Timeline Exercise - Complete'!3:3,TRUE,'Timeline Exercise - Complete'!11:11,'Annual Timing Complete '!L2) -> 0 | M7: =SUMIFS('Timeline Exercise - Complete'!9:9,'Timeline Exercise - Complete'!3:3,TRUE,'Timeline Exercise - Complete'!11:11,'Annual Timing Complete '!M2) -> 0 | N7: =SUMIFS('Timeline Exercise - Complete'!9:9,'Timeline Exercise - Complete'!3:3,TRUE,'Timeline Exercise - Complete'!11:11,'Annual Timing Complete '!N2) -> 0 | O7: =SUMIFS('Timeline Exercise - Complete'!9:9,'Timeline Exercise - Complete'!3:3,TRUE,'Timeline Exercise - Complete'!11:11,'Annual Timing Complete '!O2) -> 0 | P7: =SUMIFS('Timeline Exercise - Complete'!9:9,'Timeline Exercise - Complete'!3:3,TRUE,'Timeline Exercise - Complete'!11:11,'Annual Timing Complete '!P2) -> 0 | Q7: =SUMIFS('Timeline Exercise - Complete'!9:9,'Timeline Exercise - Complete'!3:3,TRUE,'Timeline Exercise - Complete'!11:11,'Annual Timing Complete '!Q2) -> 0 | R7: =SUMIFS('Timeline Exercise - Complete'!9:9,'Timeline Exercise - Complete'!3:3,TRUE,'Timeline Exercise - Complete'!11:11,'Annual Timing Complete '!R2) -> 0 | S7: =SUMIFS('Timeline Exercise - Complete'!9:9,'Timeline Exercise - Complete'!3:3,TRUE,'Timeline Exercise - Complete'!11:11,'Annual Timing Complete '!S2) -> 0 | T7: =SUMIFS('Timeline Exercise - Complete'!9:9,'Timeline Exercise - Complete'!3:3,TRUE,'Timeline Exercise - Complete'!11:11,'Annual Timing Complete '!T2) -> 0 | U7: =SUMIFS('Timeline Exercise - Complete'!9:9,'Timeline Exercise - Complete'!3:3,TRUE,'Timeline Exercise - Complete'!11:11,'Annual Timing Complete '!U2) -> 0 | V7: =SUMIFS('Timeline Exercise - Complete'!9:9,'Timeline Exercise - Complete'!3:3,TRUE,'Timeline Exercise - Complete'!11:11,'Annual Timing Complete '!V2) -> 0 | W7: =SUMIFS('Timeline Exercise - Complete'!9:9,'Timeline Exercise - Complete'!3:3,TRUE,'Timeline Exercise - Complete'!11:11,'Annual Timing Complete '!W2) -> 0 | X7: =SUMIFS('Timeline Exercise - Complete'!9:9,'Timeline Exercise - Complete'!3:3,TRUE,'Timeline Exercise - Complete'!11:11,'Annual Timing Complete '!X2) -> 0 | Y7: =SUMIFS('Timeline Exercise - Complete'!9:9,'Timeline Exercise - Complete'!3:3,TRUE,'Timeline Exercise - Complete'!11:11,'Annual Timing Complete '!Y2) -> 0 | Z7: =SUMIFS('Timeline Exercise - Complete'!9:9,'Timeline Exercise - Complete'!3:3,TRUE,'Timeline Exercise - Complete'!11:11,'Annual Timing Complete '!Z2) -> 0 | AA7: =SUMIFS('Timeline Exercise - Complete'!9:9,'Timeline Exercise - Complete'!3:3,TRUE,'Timeline Exercise - Complete'!11:11,'Annual Timing Complete '!AA2) -> 0 | AB7: =SUMIFS('Timeline Exercise - Complete'!9:9,'Timeline Exercise - Complete'!3:3,TRUE,'Timeline Exercise - Complete'!11:11,'Annual Timing Complete '!AB2) -> 0 | AC7: =SUMIFS('Timeline Exercise - Complete'!9:9,'Timeline Exercise - Complete'!3:3,TRUE,'Timeline Exercise - Complete'!11:11,'Annual Timing Complete '!AC2) -> 0 | AD7: =SUMIFS('Timeline Exercise - Complete'!9:9,'Timeline Exercise - Complete'!3:3,TRUE,'Timeline Exercise - Complete'!11:11,'Annual Timing Complete '!AD2) -> 0 | AE7: =SUMIFS('Timeline Exercise - Complete'!9:9,'Timeline Exercise - Complete'!3:3,TRUE,'Timeline Exercise - Complete'!11:11,'Annual Timing Complete '!AE2) -> 0 | AF7: =SUMIFS('Timeline Exercise - Complete'!9:9,'Timeline Exercise - Complete'!3:3,TRUE,'Timeline Exercise - Complete'!11:11,'Annual Timing Complete '!AF2) -> 0 | AG7: =SUMIFS('Timeline Exercise - Complete'!9:9,'Timeline Exercise - Complete'!3:3,TRUE,'Timeline Exercise - Complete'!11:11,'Annual Timing Complete '!AG2) -> 0 | AH7: =SUMIFS('Timeline Exercise - Complete'!9:9,'Timeline Exercise - Complete'!3:3,TRUE,'Timeline Exercise - Complete'!11:11,'Annual Timing Complete '!AH2) -> 0 | AI7: =SUMIFS('Timeline Exercise - Complete'!9:9,'Timeline Exercise - Complete'!3:3,TRUE,'Timeline Exercise - Complete'!11:11,'Annual Timing Complete '!AI2) -> 0 | AJ7: =SUMIFS('Timeline Exercise - Complete'!9:9,'Timeline Exercise - Complete'!3:3,TRUE,'Timeline Exercise - Complete'!11:11,'Annual Timing Complete '!AJ2) -> 0 | AK7: =SUMIFS('Timeline Exercise - Complete'!9:9,'Timeline Exercise - Complete'!3:3,TRUE,'Timeline Exercise - Complete'!11:11,'Annual Timing Complete '!AK2) -> 0 | AL7: =SUMIFS('Timeline Exercise - Complete'!9:9,'Timeline Exercise - Complete'!3:3,TRUE,'Timeline Exercise - Complete'!11:11,'Annual Timing Complete '!AL2) -> 0 | AM7: =SUMIFS('Timeline Exercise - Complete'!9:9,'Timeline Exercise - Complete'!3:3,TRUE,'Timeline Exercise - Complete'!11:11,'Annual Timing Complete '!AM2) -> 0 | AN7: =SUMIFS('Timeline Exercise - Complete'!9:9,'Timeline Exercise - Complete'!3:3,TRUE,'Timeline Exercise - Complete'!11:11,'Annual Timing Complete '!AN2) -> 0 | AO7: =SUMIFS('Timeline Exercise - Complete'!9:9,'Timeline Exercise - Complete'!3:3,TRUE,'Timeline Exercise - Complete'!11:11,'Annual Timing Complete '!AO2) -> 0 | AP7: =SUMIFS('Timeline Exercise - Complete'!9:9,'Timeline Exercise - Complete'!3:3,TRUE,'Timeline Exercise - Complete'!11:11,'Annual Timing Complete '!AP2) -> 0 | AQ7: =SUMIFS('Timeline Exercise - Complete'!9:9,'Timeline Exercise - Complete'!3:3,TRUE,'Timeline Exercise - Complete'!11:11,'Annual Timing Complete '!AQ2) -> 0 | AR7: =SUMIFS('Timeline Exercise - Complete'!9:9,'Timeline Exercise - Complete'!3:3,TRUE,'Timeline Exercise - Complete'!11:11,'Annual Timing Complete '!AR2) -> 0 | AS7: =SUMIFS('Timeline Exercise - Complete'!9:9,'Timeline Exercise - Complete'!3:3,TRUE,'Timeline Exercise - Complete'!11:11,'Annual Timing Complete '!AS2) -> 0

Sheet Physical - Titles
A1: Time Line
B2: Period Number | I2: 1 | J2: 2 | K2: 3 | L2: 4 | M2: 5 | N2: 6 | O2: 7 | P2: 8 | Q2: 9 | R2: 10 | S2: 11 | T2: 12 | U2: 13 | V2: 14 | W2: 15 | X2: 16 | Y2: 17 | Z2: 18 | AA2: 19 | AB2: 20 | AC2: 21 | AD2: 22 | AE2: 23 | AF2: 24 | AG2: 25 | AH2: 26 | AI2: 27 | AJ2: 28 | AK2: 29 | AL2: 30 | AM2: 31 | AN2: 32 | AO2: 33 | AP2: 34 | AQ2: 35 | AR2: 36 | AS2: 37 | AT2: 38 | AU2: 39 | AV2: 40 | AW2: 41 | AX2: 42 | AY2: 43 | AZ2: 44 | BA2: 45 | BB2: 46 | BC2: 47 | BD2: 48 | BE2: 49 | BF2: 50 | BG2: 51 | BH2: 52 | BI2: 53 | BJ2: 54 | BK2: 55 | BL2: 56 | BM2: 57 | BN2: 58 | BO2: 59 | BP2: 60 | BQ2: 61 | BR2: 62 | BS2: 63 | BT2: 64 | BU2: 65 | BV2: 66 | BW2: 67 | BX2: 68 | BY2: 69 | BZ2: 70 | CA2: 71 | CB2: 72 | CC2: 73 | CD2: 74 | CE2: 75 | CF2: 76 | CG2: 77 | CH2: 78 | CI2: 79 | CJ2: 80 | CK2: 81 | CL2: 82 | CM2: 83 | CN2: 84 | CO2: 85 | CP2: 86 | CQ2: 87 | CR2: 88 | CS2: 89 | CT2: 90 | CU2: 91 | CV2: 92 | CW2: 93 | CX2: 94 | CY2: 95 | CZ2: 96 | DA2: 97 | DB2: 98 | DC2: 99 | DD2: 100 | DE2: 101 | DF2: 102 | DG2: 103 | DH2: 104 | DI2: 105 | DJ2: 106 | DK2: 107 | DL2: 108 | DM2: 109 | DN2: 110 | DO2: 111 | DP2: 112 | DQ2: 113 | DR2: 114 | DS2: 115 | DT2: 116 | DU2: 117 | DV2: 118 | DW2: 119 | DX2: 120 | DY2: 121 | DZ2: 122 | EA2: 123 | EB2: 124 | EC2: 125 | ED2: 126 | EE2: 127 | EF2: 128 | EG2: 129 | EH2: 130 | EI2: 131 | EJ2: 132 | EK2: 133 | EL2: 134 | EM2: 135 | EN2: 136 | EO2: 137 | EP2: 138 | EQ2: 139 | ER2: 140 | ES2: 141 | ET2: 142 | EU2: 143 | EV2: 144 | EW2: 145 | EX2: 146 | EY2: 147 | EZ2: 148 | FA2: 149 | FB2: 150 | FC2: 151 | FD2: 152 | FE2: 153 | FF2: 154 | FG2: 155 | FH2: 156 | FI2: 157 | FJ2: 158 | FK2: 159 | FL2: 160 | FM2: 161 | FN2: 162 | FO2: 163 | FP2: 164 | FQ2: 165 | FR2: 166 | FS2: 167 | FT2: 168 | FU2: 169 | FV2: 170 | FW2: 171 | FX2: 172 | FY2: 173 | FZ2: 174 | GA2: 175 | GB2: 176 | GC2: 177 | GD2: 178 | GE2: 179 | GF2: 180 | GG2: 181 | GH2: 182 | GI2: 183 | GJ2: 184 | GK2: 185 | GL2: 186 | GM2: 187 | GN2: 188 | GO2: 189 | GP2: 190 | GQ2: 191 | GR2: 192 | GS2: 193 | GT2: 194 | GU2: 195 | GV2: 196 | GW2: 197 | GX2: 198 | GY2: 199 | GZ2: 200 | HA2: 201 | HB2: 202 | HC2: 203 | HD2: 204 | HE2: 205 | HF2: 206 | HG2: 207 | HH2: 208 | HI2: 209 | HJ2: 210 | HK2: 211 | HL2: 212 | HM2: 213 | HN2: 214 | HO2: 215 | HP2: 216 | HQ2: 217 | HR2: 218 | HS2: 219 | HT2: 220 | HU2: 221 | HV2: 222 | HW2: 223 | HX2: 224 | HY2: 225 | HZ2: 226 | IA2: 227 | IB2: 228 | IC2: 229 | ID2: 230 | IE2: 231 | IF2: 232 | IG2: 233 | IH2: 234 | II2: 235 | IJ2: 236 | IK2: 237 | IL2: 238 | IM2: 239 | IN2: 240 | IO2: 241 | IP2: 242 | IQ2: 243 | IR2: 244 | IS2: 245 | IT2: 246 | IU2: 247 | IV2: 248 | IW2: 249 | IX2: 250 | IY2: 251 | IZ2: 252 | JA2: 253 | JB2: 254 | JC2: 255 | JD2: 256 | JE2: 257 | JF2: 258 | JG2: 259 | JH2: 260 | JI2: 261 | JJ2: 262 | JK2: 263 | JL2: 264 | JM2: 265 | JN2: 266 | JO2: 267 | JP2: 268 | JQ2: 269 | JR2: 270 | JS2: 271 | JT2: 272 | JU2: 273 | JV2: 274 | JW2: 275 | JX2: 276 | JY2: 277 | JZ2: 278 | KA2: 279 | KB2: 280 | KC2: 281 | KD2: 282 | KE2: 283 | KF2: 284 | KG2: 285 | KH2: 286 | KI2: 287 | KJ2: 288 | KK2: 289 | KL2: 290 | KM2: 291 | KN2: 292 | KO2: 293 | KP2: 294 | KQ2: 295 | KR2: 296 | KS2: 297 | KT2: 298 | KU2: 299 | KV2: 300
B3: Pre-COD Switch | E3: Pre-cod | G3: =F10+F12 -> 50 | I3: =I2<=$G$3 -> TRUE | J3: =J2<=$G$3 -> TRUE | K3: TRUE | L3: TRUE | M3: TRUE | N3: TRUE | O3: TRUE | P3: TRUE | Q3: TRUE | R3: TRUE | S3: TRUE | T3: TRUE | U3: TRUE | V3: TRUE | W3: TRUE | X3: TRUE | Y3: TRUE | Z3: TRUE | AA3: TRUE | AB3: TRUE | AC3: TRUE | AD3: TRUE | AE3: TRUE | AF3: TRUE | AG3: TRUE | AH3: TRUE | AI3: TRUE | AJ3: TRUE | AK3: TRUE | AL3: TRUE | AM3: TRUE | AN3: TRUE | AO3: TRUE | AP3: TRUE | AQ3: TRUE | AR3: TRUE | AS3: TRUE | AT3: TRUE | AU3: TRUE | AV3: TRUE | AW3: TRUE | AX3: TRUE | AY3: TRUE | AZ3: TRUE | BA3: TRUE | BB3: TRUE | BC3: TRUE | BD3: TRUE | BE3: TRUE | BF3: TRUE | BG3: FALSE | BH3: FALSE | BI3: FALSE | BJ3: FALSE | BK3: FALSE | BL3: FALSE | BM3: FALSE | BN3: FALSE | BO3: FALSE | BP3: FALSE | BQ3: FALSE | BR3: FALSE | BS3: FALSE | BT3: FALSE | BU3: FALSE | BV3: =BV2<=$G$3 -> FALSE | BW3: FALSE | BX3: FALSE | BY3: FALSE | BZ3: FALSE | CA3: FALSE | CB3: FALSE | CC3: FALSE | CD3: FALSE | CE3: FALSE | CF3: FALSE | CG3: FALSE | CH3: FALSE | CI3: FALSE | CJ3: FALSE | CK3: FALSE | CL3: FALSE | CM3: FALSE | CN3: FALSE | CO3: FALSE | CP3: FALSE | CQ3: FALSE | CR3: FALSE | CS3: FALSE | CT3: FALSE | CU3: FALSE | CV3: FALSE | CW3: FALSE | CX3: FALSE | CY3: FALSE | CZ3: FALSE | DA3: FALSE | DB3: FALSE | DC3: FALSE | DD3: FALSE | DE3: FALSE | DF3: FALSE | DG3: FALSE | DH3: FALSE | DI3: FALSE | DJ3: FALSE | DK3: FALSE | DL3: FALSE | DM3: FALSE | DN3: FALSE | DO3: FALSE | DP3: FALSE | DQ3: FALSE | DR3: FALSE | DS3: FALSE | DT3: FALSE | DU3: FALSE | DV3: FALSE | DW3: FALSE | DX3: FALSE | DY3: FALSE | DZ3: FALSE | EA3: FALSE | EB3: FALSE | EC3: FALSE | ED3: FALSE | EE3: FALSE | EF3: FALSE | EG3: FALSE | EH3: =EH2<=$G$3 -> FALSE | EI3: FALSE | EJ3: FALSE | EK3: FALSE | EL3: FALSE | EM3: FALSE | EN3: FALSE | EO3: FALSE | EP3: FALSE | EQ3: FALSE | ER3: FALSE | ES3: FALSE | ET3: FALSE | EU3: FALSE | EV3: FALSE | EW3: FALSE | EX3: FALSE | EY3: FALSE | EZ3: FALSE | FA3: FALSE | FB3: FALSE | FC3: FALSE | FD3: FALSE | FE3: FALSE | FF3: FALSE | FG3: FALSE | FH3: FALSE | FI3: FALSE | FJ3: FALSE | FK3: FALSE | FL3: FALSE | FM3: FALSE | FN3: FALSE | FO3: FALSE | FP3: FALSE | FQ3: FALSE | FR3: FALSE | FS3: FALSE | FT3: FALSE | FU3: FALSE | FV3: FALSE | FW3: FALSE | FX3: FALSE | FY3: FALSE | FZ3: FALSE | GA3: FALSE | GB3: FALSE | GC3: FALSE | GD3: FALSE | GE3: FALSE | GF3: FALSE | GG3: FALSE | GH3: FALSE | GI3: FALSE | GJ3: FALSE | GK3: FALSE | GL3: FALSE | GM3: FALSE | GN3: FALSE | GO3: FALSE | GP3: FALSE | GQ3: FALSE | GR3: FALSE | GS3: FALSE | GT3: =GT2<=$G$3 -> FALSE | GU3: FALSE | GV3: FALSE | GW3: FALSE | GX3: FALSE | GY3: FALSE | GZ3: FALSE | HA3: FALSE | HB3: FALSE | HC3: FALSE | HD3: FALSE | HE3: FALSE | HF3: FALSE | HG3: FALSE | HH3: FALSE | HI3: FALSE | HJ3: FALSE | HK3: FALSE | HL3: FALSE | HM3: FALSE | HN3: FALSE | HO3: FALSE | HP3: FALSE | HQ3: FALSE | HR3: FALSE | HS3: FALSE | HT3: FALSE | HU3: FALSE | HV3: FALSE | HW3: FALSE | HX3: FALSE | HY3: FALSE | HZ3: FALSE | IA3: FALSE | IB3: FALSE | IC3: FALSE | ID3: FALSE | IE3: FALSE | IF3: FALSE | IG3: FALSE | IH3: FALSE | II3: FALSE | IJ3: FALSE | IK3: FALSE | IL3: FALSE | IM3: FALSE | IN3: FALSE | IO3: FALSE | IP3: FALSE | IQ3: FALSE | IR3: FALSE | IS3: FALSE | IT3: FALSE | IU3: FALSE | IV3: FALSE | IW3: FALSE | IX3: FALSE | IY3: FALSE | IZ3: FALSE | JA3: FALSE | JB3: FALSE | JC3: FALSE | JD3: FALSE | JE3: FALSE | JF3: =JF2<=$G$3 -> FALSE | JG3: FALSE | JH3: FALSE | JI3: FALSE | JJ3: FALSE | JK3: FALSE | JL3: FALSE | JM3: FALSE | JN3: FALSE | JO3: FALSE | JP3: FALSE | JQ3: FALSE | JR3: FALSE | JS3: FALSE | JT3: FALSE | JU3: FALSE | JV3: FALSE | JW3: FALSE | JX3: FALSE | JY3: FALSE | JZ3: FALSE | KA3: FALSE | KB3: FALSE | KC3: FALSE | KD3: FALSE | KE3: FALSE | KF3: FALSE | KG3: FALSE | KH3: FALSE | KI3: FALSE | KJ3: FALSE | KK3: FALSE | KL3: FALSE | KM3: FALSE | KN3: FALSE | KO3: FALSE | KP3: FALSE | KQ3: FALSE | KR3: FALSE | KS3: FALSE | KT3: FALSE | KU3: FALSE | KV3: FALSE
B4: Months in Period | E4: Pre post | F4: =F16 -> 1 | G4: =F17 -> 3 | I4: =IF(I3,$F$4,$G$4) -> 1 | J4: =IF(J3,$F$4,$G$4) -> 1 | K4: 1 | L4: 1 | M4: 1 | N4: 1 | O4: 1 | P4: 1 | Q4: 1 | R4: 1 | S4: 1 | T4: 1 | U4: 1 | V4: 1 | W4: 1 | X4: 1 | Y4: 1 | Z4: 1 | AA4: 1 | AB4: 1 | AC4: 1 | AD4: 1 | AE4: 1 | AF4: 1 | AG4: 1 | AH4: 1 | AI4: 1 | AJ4: 1 | AK4: 1 | AL4: 1 | AM4: 1 | AN4: 1 | AO4: 1 | AP4: 1 | AQ4: 1 | AR4: 1 | AS4: 1 | AT4: 1 | AU4: 1 | AV4: 1 | AW4: 1 | AX4: 1 | AY4: 1 | AZ4: 1 | BA4: 1 | BB4: 1 | BC4: 1 | BD4: 1 | BE4: 1 | BF4: 1 | BG4: 3 | BH4: 3 | BI4: 3 | BJ4: 3 | BK4: 3 | BL4: 3 | BM4: 3 | BN4: 3 | BO4: 3 | BP4: 3 | BQ4: 3 | BR4: 3 | BS4: 3 | BT4: 3 | BU4: 3 | BV4: =IF(BV3,$F$4,$G$4) -> 3 | BW4: 3 | BX4: 3 | BY4: 3 | BZ4: 3 | CA4: 3 | CB4: 3 | CC4: 3 | CD4: 3 | CE4: 3 | CF4: 3 | CG4: 3 | CH4: 3 | CI4: 3 | CJ4: 3 | CK4: 3 | CL4: 3 | CM4: 3 | CN4: 3 | CO4: 3 | CP4: 3 | CQ4: 3 | CR4: 3 | CS4: 3 | CT4: 3 | CU4: 3 | CV4: 3 | CW4: 3 | CX4: 3 | CY4: 3 | CZ4: 3 | DA4: 3 | DB4: 3 | DC4: 3 | DD4: 3 | DE4: 3 | DF4: 3 | DG4: 3 | DH4: 3 | DI4: 3 | DJ4: 3 | DK4: 3 | DL4: 3 | DM4: 3 | DN4: 3 | DO4: 3 | DP4: 3 | DQ4: 3 | DR4: 3 | DS4: 3 | DT4: 3 | DU4: 3 | DV4: 3 | DW4: 3 | DX4: 3 | DY4: 3 | DZ4: 3 | EA4: 3 | EB4: 3 | EC4: 3 | ED4: 3 | EE4: 3 | EF4: 3 | EG4: 3 | EH4: =IF(EH3,$F$4,$G$4) -> 3 | EI4: 3 | EJ4: 3 | EK4: 3 | EL4: 3 | EM4: 3 | EN4: 3 | EO4: 3 | EP4: 3 | EQ4: 3 | ER4: 3 | ES4: 3 | ET4: 3 | EU4: 3 | EV4: 3 | EW4: 3 | EX4: 3 | EY4: 3 | EZ4: 3 | FA4: 3 | FB4: 3 | FC4: 3 | FD4: 3 | FE4: 3 | FF4: 3 | FG4: 3 | FH4: 3 | FI4: 3 | FJ4: 3 | FK4: 3 | FL4: 3 | FM4: 3 | FN4: 3 | FO4: 3 | FP4: 3 | FQ4: 3 | FR4: 3 | FS4: 3 | FT4: 3 | FU4: 3 | FV4: 3 | FW4: 3 | FX4: 3 | FY4: 3 | FZ4: 3 | GA4: 3 | GB4: 3 | GC4: 3 | GD4: 3 | GE4: 3 | GF4: 3 | GG4: 3 | GH4: 3 | GI4: 3 | GJ4: 3 | GK4: 3 | GL4: 3 | GM4: 3 | GN4: 3 | GO4: 3 | GP4: 3 | GQ4: 3 | GR4: 3 | GS4: 3 | GT4: =IF(GT3,$F$4,$G$4) -> 3 | GU4: 3 | GV4: 3 | GW4: 3 | GX4: 3 | GY4: 3 | GZ4: 3 | HA4: 3 | HB4: 3 | HC4: 3 | HD4: 3 | HE4: 3 | HF4: 3 | HG4: 3 | HH4: 3 | HI4: 3 | HJ4: 3 | HK4: 3 | HL4: 3 | HM4: 3 | HN4: 3 | HO4: 3 | HP4: 3 | HQ4: 3 | HR4: 3 | HS4: 3 | HT4: 3 | HU4: 3 | HV4: 3 | HW4: 3 | HX4: 3 | HY4: 3 | HZ4: 3 | IA4: 3 | IB4: 3 | IC4: 3 | ID4: 3 | IE4: 3 | IF4: 3 | IG4: 3 | IH4: 3 | II4: 3 | IJ4: 3 | IK4: 3 | IL4: 3 | IM4: 3 | IN4: 3 | IO4: 3 | IP4: 3 | IQ4: 3 | IR4: 3 | IS4: 3 | IT4: 3 | IU4: 3 | IV4: 3 | IW4: 3 | IX4: 3 | IY4: 3 | IZ4: 3 | JA4: 3 | JB4: 3 | JC4: 3 | JD4: 3 | JE4: 3 | JF4: =IF(JF3,$F$4,$G$4) -> 3 | JG4: 3 | JH4: 3 | JI4: 3 | JJ4: 3 | JK4: 3 | JL4: 3 | JM4: 3 | JN4: 3 | JO4: 3 | JP4: 3 | JQ4: 3 | JR4: 3 | JS4: 3 | JT4: 3 | JU4: 3 | JV4: 3 | JW4: 3 | JX4: 3 | JY4: 3 | JZ4: 3 | KA4: 3 | KB4: 3 | KC4: 3 | KD4: 3 | KE4: 3 | KF4: 3 | KG4: 3 | KH4: 3 | KI4: 3 | KJ4: 3 | KK4: 3 | KL4: 3 | KM4: 3 | KN4: 3 | KO4: 3 | KP4: 3 | KQ4: 3 | KR4: 3 | KS4: 3 | KT4: 3 | KU4: 3 | KV4: 3
B5: Start of Period | I5: =H6+1 -> 2018-01-01 | J5: =I6+1 -> 2018-02-01 | K5: 2018-03-01 | L5: 2018-04-01 | M5: 2018-05-01 | N5: 2018-06-01 | O5: 2018-07-01 | P5: 2018-08-01 | Q5: 2018-09-01 | R5: 2018-10-01 | S5: 2018-11-01 | T5: 2018-12-01 | U5: 2019-01-01 | V5: 2019-02-01 | W5: 2019-03-01 | X5: 2019-04-01 | Y5: 2019-05-01 | Z5: 2019-06-01 | AA5: 2019-07-01 | AB5: 2019-08-01 | AC5: 2019-09-01 | AD5: 2019-10-01 | AE5: 2019-11-01 | AF5: 2019-12-01 | AG5: 2020-01-01 | AH5: 2020-02-01 | AI5: 2020-03-01 | AJ5: 2020-04-01 | AK5: 2020-05-01 | AL5: 2020-06-01 | AM5: 2020-07-01 | AN5: 2020-08-01 | AO5: 2020-09-01 | AP5: 2020-10-01 | AQ5: 2020-11-01 | AR5: 2020-12-01 | AS5: 2021-01-01 | AT5: 2021-02-01 | AU5: 2021-03-01 | AV5: 2021-04-01 | AW5: 2021-05-01 | AX5: 2021-06-01 | AY5: 2021-07-01 | AZ5: 2021-08-01 | BA5: 2021-09-01 | BB5: 2021-10-01 | BC5: 2021-11-01 | BD5: 2021-12-01 | BE5: 2022-01-01 | BF5: 2022-02-01 | BG5: 2022-03-01 | BH5: 2022-06-01 | BI5: 2022-09-01 | BJ5: 2022-12-01 | BK5: 2023-03-01 | BL5: 2023-06-01 | BM5: 2023-09-01 | BN5: 2023-12-01 | BO5: 2024-03-01 | BP5: 2024-06-01 | BQ5: 2024-09-01 | BR5: 2024-12-01 | BS5: 2025-03-01 | BT5: 2025-06-01 | BU5: 2025-09-01 | BV5: =BU6+1 -> 2025-12-01 | BW5: 2026-03-01 | BX5: 2026-06-01 | BY5: 2026-09-01 | BZ5: 2026-12-01 | CA5: 2027-03-01 | CB5: 2027-06-01 | CC5: 2027-09-01 | CD5: 2027-12-01 | CE5: 2028-03-01 | CF5: 2028-06-01 | CG5: 2028-09-01 | CH5: 2028-12-01 | CI5: 2029-03-01 | CJ5: 2029-06-01 | CK5: 2029-09-01 | CL5: 2029-12-01 | CM5: 2030-03-01 | CN5: 2030-06-01 | CO5: 2030-09-01 | CP5: 2030-12-01 | CQ5: 2031-03-01 | CR5: 2031-06-01 | CS5: 2031-09-01 | CT5: 2031-12-01 | CU5: 2032-03-01 | CV5: 2032-06-01 | CW5: 2032-09-01 | CX5: 2032-12-01 | CY5: 2033-03-01 | CZ5: 2033-06-01 | DA5: 2033-09-01 | DB5: 2033-12-01 | DC5: 2034-03-01 | DD5: 2034-06-01 | DE5: 2034-09-01 | DF5: 2034-12-01 | DG5: 2035-03-01 | DH5: 2035-06-01 | DI5: 2035-09-01 | DJ5: 2035-12-01 | DK5: 2036-03-01 | DL5: 2036-06-01 | DM5: 2036-09-01 | DN5: 2036-12-01 | DO5: 2037-03-01 | DP5: 2037-06-01 | DQ5: 2037-09-01 | DR5: 2037-12-01 | DS5: 2038-03-01 | DT5: 2038-06-01 | DU5: 2038-09-01 | DV5: 2038-12-01 | DW5: 2039-03-01 | DX5: 2039-06-01 | DY5: 2039-09-01 | DZ5: 2039-12-01 | EA5: 2040-03-01 | EB5: 2040-06-01 | EC5: 2040-09-01 | ED5: 2040-12-01 | EE5: 2041-03-01 | EF5: 2041-06-01 | EG5: 2041-09-01 | EH5: =EG6+1 -> 2041-12-01 | EI5: 2042-03-01 | EJ5: 2042-06-01 | EK5: 2042-09-01 | EL5: 2042-12-01 | EM5: 2043-03-01 | EN5: 2043-06-01 | EO5: 2043-09-01 | EP5: 2043-12-01 | EQ5: 2044-03-01 | ER5: 2044-06-01 | ES5: 2044-09-01 | ET5: 2044-12-01 | EU5: 2045-03-01 | EV5: 2045-06-01 | EW5: 2045-09-01 | EX5: 2045-12-01 | EY5: 2046-03-01 | EZ5: 2046-06-01 | FA5: 2046-09-01 | FB5: 2046-12-01 | FC5: 2047-03-01 | FD5: 2047-06-01 | FE5: 2047-09-01 | FF5: 2047-12-01 | FG5: 2048-03-01 | FH5: 2048-06-01 | FI5: 2048-09-01 | FJ5: 2048-12-01 | FK5: 2049-03-01 | FL5: 2049-06-01 | FM5: 2049-09-01 | FN5: 2049-12-01 | FO5: 2050-03-01 | FP5: 2050-06-01 | FQ5: 2050-09-01 | FR5: 2050-12-01 | FS5: 2051-03-01 | FT5: 2051-06-01 | FU5: 2051-09-01 | FV5: 2051-12-01 | FW5: 2052-03-01 | FX5: 2052-06-01 | FY5: 2052-09-01 | FZ5: 2052-12-01 | GA5: 2053-03-01 | GB5: 2053-06-01 | GC5: 2053-09-01 | GD5: 2053-12-01 | GE5: 2054-03-01 | GF5: 2054-06-01 | GG5: 2054-09-01 | GH5: 2054-12-01 | GI5: 2055-03-01 | GJ5: 2055-06-01 | GK5: 2055-09-01 | GL5: 2055-12-01 | GM5: 2056-03-01 | GN5: 2056-06-01 | GO5: 2056-09-01 | GP5: 2056-12-01 | GQ5: 2057-03-01 | GR5: 2057-06-01 | GS5: 2057-09-01 | GT5: =GS6+1 -> 2057-12-01 | GU5: 2058-03-01 | GV5: 2058-06-01 | GW5: 2058-09-01 | GX5: 2058-12-01 | GY5: 2059-03-01 | GZ5: 2059-06-01 | HA5: 2059-09-01 | HB5: 2059-12-01 | HC5: 2060-03-01 | HD5: 2060-06-01 | HE5: 2060-09-01 | HF5: 2060-12-01 | HG5: 2061-03-01 | HH5: 2061-06-01 | HI5: 2061-09-01 | HJ5: 2061-12-01 | HK5: 2062-03-01 | HL5: 2062-06-01 | HM5: 2062-09-01 | HN5: 2062-12-01 | HO5: 2063-03-01 | HP5: 2063-06-01 | HQ5: 2063-09-01 | HR5: 2063-12-01 | HS5: 2064-03-01 | HT5: 2064-06-01 | HU5: 2064-09-01 | HV5: 2064-12-01 | HW5: 2065-03-01 | HX5: 2065-06-01 | HY5: 2065-09-01 | HZ5: 2065-12-01 | IA5: 2066-03-01 | IB5: 2066-06-01 | IC5: 2066-09-01 | ID5: 2066-12-01 | IE5: 2067-03-01 | IF5: 2067-06-01 | IG5: 2067-09-01 | IH5: 2067-12-01 | II5: 2068-03-01 | IJ5: 2068-06-01 | IK5: 2068-09-01 | IL5: 2068-12-01 | IM5: 2069-03-01 | IN5: 2069-06-01 | IO5: 2069-09-01 | IP5: 2069-12-01 | IQ5: 2070-03-01 | IR5: 2070-06-01 | IS5: 2070-09-01 | IT5: 2070-12-01 | IU5: 2071-03-01 | IV5: 2071-06-01 | IW5: 2071-09-01 | IX5: 2071-12-01 | IY5: 2072-03-01 | IZ5: 2072-06-01 | JA5: 2072-09-01 | JB5: 2072-12-01 | JC5: 2073-03-01 | JD5: 2073-06-01 | JE5: 2073-09-01 | JF5: =JE6+1 -> 2073-12-01 | JG5: 2074-03-01 | JH5: 2074-06-01 | JI5: 2074-09-01 | JJ5: 2074-12-01 | JK5: 2075-03-01 | JL5: 2075-06-01 | JM5: 2075-09-01 | JN5: 2075-12-01 | JO5: 2076-03-01 | JP5: 2076-06-01 | JQ5: 2076-09-01 | JR5: 2076-12-01 | JS5: 2077-03-01 | JT5: 2077-06-01 | JU5: 2077-09-01 | JV5: 2077-12-01 | JW5: 2078-03-01 | JX5: 2078-06-01 | JY5: 2078-09-01 | JZ5: 2078-12-01 | KA5: 2079-03-01 | KB5: 2079-06-01 | KC5: 2079-09-01 | KD5: 2079-12-01 | KE5: 2080-03-01 | KF5: 2080-06-01 | KG5: 2080-09-01 | KH5: 2080-12-01 | KI5: 2081-03-01 | KJ5: 2081-06-01 | KK5: 2081-09-01 | KL5: 2081-12-01 | KM5: 2082-03-01 | KN5: 2082-06-01 | KO5: 2082-09-01 | KP5: 2082-12-01 | KQ5: 2083-03-01 | KR5: 2083-06-01 | KS5: 2083-09-01 | KT5: 2083-12-01 | KU5: 2084-03-01 | KV5: 2084-06-01
B6: End of Period | H6: =F9-1 -> 2017-12-31 | I6: =EDATE(I5,I4)-1 -> 2018-01-31 | J6: =EDATE(J5,J4)-1 -> 2018-02-28 | K6: 2018-03-31 | L6: 2018-04-30 | M6: 2018-05-31 | N6: 2018-06-30 | O6: 2018-07-31 | P6: 2018-08-31 | Q6: 2018-09-30 | R6: 2018-10-31 | S6: 2018-11-30 | T6: 2018-12-31 | U6: 2019-01-31 | V6: 2019-02-28 | W6: 2019-03-31 | X6: 2019-04-30 | Y6: 2019-05-31 | Z6: 2019-06-30 | AA6: 2019-07-31 | AB6: 2019-08-31 | AC6: 2019-09-30 | AD6: 2019-10-31 | AE6: 2019-11-30 | AF6: 2019-12-31 | AG6: 2020-01-31 | AH6: 2020-02-29 | AI6: 2020-03-31 | AJ6: 2020-04-30 | AK6: 2020-05-31 | AL6: 2020-06-30 | AM6: 2020-07-31 | AN6: 2020-08-31 | AO6: 2020-09-30 | AP6: 2020-10-31 | AQ6: 2020-11-30 | AR6: 2020-12-31 | AS6: 2021-01-31 | AT6: 2021-02-28 | AU6: 2021-03-31 | AV6: 2021-04-30 | AW6: 2021-05-31 | AX6: 2021-06-30 | AY6: 2021-07-31 | AZ6: 2021-08-31 | BA6: 2021-09-30 | BB6: 2021-10-31 | BC6: 2021-11-30 | BD6: 2021-12-31 | BE6: 2022-01-31 | BF6: 2022-02-28 | BG6: 2022-05-31 | BH6: 2022-08-31 | BI6: 2022-11-30 | BJ6: 2023-02-28 | BK6: 2023-05-31 | BL6: 2023-08-31 | BM6: 2023-11-30 | BN6: 2024-02-29 | BO6: 2024-05-31 | BP6: 2024-08-31 | BQ6: 2024-11-30 | BR6: 2025-02-28 | BS6: 2025-05-31 | BT6: 2025-08-31 | BU6: 2025-11-30 | BV6: =EDATE(BV5,BV4)-1 -> 2026-02-28 | BW6: 2026-05-31 | BX6: 2026-08-31 | BY6: 2026-11-30 | BZ6: 2027-02-28 | CA6: 2027-05-31 | CB6: 2027-08-31 | CC6: 2027-11-30 | CD6: 2028-02-29 | CE6: 2028-05-31 | CF6: 2028-08-31 | CG6: 2028-11-30 | CH6: 2029-02-28 | CI6: 2029-05-31 | CJ6: 2029-08-31 | CK6: 2029-11-30 | CL6: 2030-02-28 | CM6: 2030-05-31 | CN6: 2030-08-31 | CO6: 2030-11-30 | CP6: 2031-02-28 | CQ6: 2031-05-31 | CR6: 2031-08-31 | CS6: 2031-11-30 | CT6: 2032-02-29 | CU6: 2032-05-31 | CV6: 2032-08-31 | CW6: 2032-11-30 | CX6: 2033-02-28 | CY6: 2033-05-31 | CZ6: 2033-08-31 | DA6: 2033-11-30 | DB6: 2034-02-28 | DC6: 2034-05-31 | DD6: 2034-08-31 | DE6: 2034-11-30 | DF6: 2035-02-28 | DG6: 2035-05-31 | DH6: 2035-08-31 | DI6: 2035-11-30 | DJ6: 2036-02-29 | DK6: 2036-05-31 | DL6: 2036-08-31 | DM6: 2036-11-30 | DN6: 2037-02-28 | DO6: 2037-05-31 | DP6: 2037-08-31 | DQ6: 2037-11-30 | DR6: 2038-02-28 | DS6: 2038-05-31 | DT6: 2038-08-31 | DU6: 2038-11-30 | DV6: 2039-02-28 | DW6: 2039-05-31 | DX6: 2039-08-31 | DY6: 2039-11-30 | DZ6: 2040-02-29 | EA6: 2040-05-31 | EB6: 2040-08-31 | EC6: 2040-11-30 | ED6: 2041-02-28 | EE6: 2041-05-31 | EF6: 2041-08-31 | EG6: 2041-11-30 | EH6: =EDATE(EH5,EH4)-1 -> 2042-02-28 | EI6: 2042-05-31 | EJ6: 2042-08-31 | EK6: 2042-11-30 | EL6: 2043-02-28 | EM6: 2043-05-31 | EN6: 2043-08-31 | EO6: 2043-11-30 | EP6: 2044-02-29 | EQ6: 2044-05-31 | ER6: 2044-08-31 | ES6: 2044-11-30 | ET6: 2045-02-28 | EU6: 2045-05-31 | EV6: 2045-08-31 | EW6: 2045-11-30 | EX6: 2046-02-28 | EY6: 2046-05-31 | EZ6: 2046-08-31 | FA6: 2046-11-30 | FB6: 2047-02-28 | FC6: 2047-05-31 | FD6: 2047-08-31 | FE6: 2047-11-30 | FF6: 2048-02-29 | FG6: 2048-05-31 | FH6: 2048-08-31 | FI6: 2048-11-30 | FJ6: 2049-02-28 | FK6: 2049-05-31 | FL6: 2049-08-31 | FM6: 2049-11-30 | FN6: 2050-02-28 | FO6: 2050-05-31 | FP6: 2050-08-31 | FQ6: 2050-11-30 | FR6: 2051-02-28 | FS6: 2051-05-31 | FT6: 2051-08-31 | FU6: 2051-11-30 | FV6: 2052-02-29 | FW6: 2052-05-31 | FX6: 2052-08-31 | FY6: 2052-11-30 | FZ6: 2053-02-28 | GA6: 2053-05-31 | GB6: 2053-08-31 | GC6: 2053-11-30 | GD6: 2054-02-28 | GE6: 2054-05-31 | GF6: 2054-08-31 | GG6: 2054-11-30 | GH6: 2055-02-28 | GI6: 2055-05-31 | GJ6: 2055-08-31 | GK6: 2055-11-30 | GL6: 2056-02-29 | GM6: 2056-05-31 | GN6: 2056-08-31 | GO6: 2056-11-30 | GP6: 2057-02-28 | GQ6: 2057-05-31 | GR6: 2057-08-31 | GS6: 2057-11-30 | GT6: =EDATE(GT5,GT4)-1 -> 2058-02-28 | GU6: 2058-05-31 | GV6: 2058-08-31 | GW6: 2058-11-30 | GX6: 2059-02-28 | GY6: 2059-05-31 | GZ6: 2059-08-31 | HA6: 2059-11-30 | HB6: 2060-02-29 | HC6: 2060-05-31 | HD6: 2060-08-31 | HE6: 2060-11-30 | HF6: 2061-02-28 | HG6: 2061-05-31 | HH6: 2061-08-31 | HI6: 2061-11-30 | HJ6: 2062-02-28 | HK6: 2062-05-31 | HL6: 2062-08-31 | HM6: 2062-11-30 | HN6: 2063-02-28 | HO6: 2063-05-31 | HP6: 2063-08-31 | HQ6: 2063-11-30 | HR6: 2064-02-29 | HS6: 2064-05-31 | HT6: 2064-08-31 | HU6: 2064-11-30 | HV6: 2065-02-28 | HW6: 2065-05-31 | HX6: 2065-08-31 | HY6: 2065-11-30 | HZ6: 2066-02-28 | IA6: 2066-05-31 | IB6: 2066-08-31 | IC6: 2066-11-30 | ID6: 2067-02-28 | IE6: 2067-05-31 | IF6: 2067-08-31 | IG6: 2067-11-30 | IH6: 2068-02-29 | II6: 2068-05-31 | IJ6: 2068-08-31 | IK6: 2068-11-30 | IL6: 2069-02-28 | IM6: 2069-05-31 | IN6: 2069-08-31 | IO6: 2069-11-30 | IP6: 2070-02-28 | IQ6: 2070-05-31 | IR6: 2070-08-31 | IS6: 2070-11-30 | IT6: 2071-02-28 | IU6: 2071-05-31 | IV6: 2071-08-31 | IW6: 2071-11-30 | IX6: 2072-02-29 | IY6: 2072-05-31 | IZ6: 2072-08-31 | JA6: 2072-11-30 | JB6: 2073-02-28 | JC6: 2073-05-31 | JD6: 2073-08-31 | JE6: 2073-11-30 | JF6: =EDATE(JF5,JF4)-1 -> 2074-02-28 | JG6: 2074-05-31 | JH6: 2074-08-31 | JI6: 2074-11-30 | JJ6: 2075-02-28 | JK6: 2075-05-31 | JL6: 2075-08-31 | JM6: 2075-11-30 | JN6: 2076-02-29 | JO6: 2076-05-31 | JP6: 2076-08-31 | JQ6: 2076-11-30 | JR6: 2077-02-28 | JS6: 2077-05-31 | JT6: 2077-08-31 | JU6: 2077-11-30 | JV6: 2078-02-28 | JW6: 2078-05-31 | JX6: 2078-08-31 | JY6: 2078-11-30 | JZ6: 2079-02-28 | KA6: 2079-05-31 | KB6: 2079-08-31 | KC6: 2079-11-30 | KD6: 2080-02-29 | KE6: 2080-05-31 | KF6: 2080-08-31 | KG6: 2080-11-30 | KH6: 2081-02-28 | KI6: 2081-05-31 | KJ6: 2081-08-31 | KK6: 2081-11-30 | KL6: 2082-02-28 | KM6: 2082-05-31 | KN6: 2082-08-31 | KO6: 2082-11-30 | KP6: 2083-02-28 | KQ6: 2083-05-31 | KR6: 2083-08-31 | KS6: 2083-11-30 | KT6: 2084-02-29 | KU6: 2084-05-31 | KV6: 2084-08-31
B7: Operating Period | G7: =F13 -> 2022-03-01 | H7: =F15 -> 2052-03-01 | I7: =AND(I$5>=$G7,I$5<$H7) -> FALSE | J7: =AND(J$5>=$G7,J$5<$H7) -> FALSE | K7: FALSE | L7: FALSE | M7: FALSE | N7: FALSE | O7: FALSE | P7: FALSE | Q7: FALSE | R7: FALSE | S7: FALSE | T7: FALSE | U7: FALSE | V7: FALSE | W7: FALSE | X7: FALSE | Y7: FALSE | Z7: FALSE | AA7: FALSE | AB7: FALSE | AC7: FALSE | AD7: FALSE | AE7: FALSE | AF7: FALSE | AG7: FALSE | AH7: FALSE | AI7: FALSE | AJ7: FALSE | AK7: FALSE | AL7: FALSE | AM7: FALSE | AN7: FALSE | AO7: FALSE | AP7: FALSE | AQ7: FALSE | AR7: FALSE | AS7: FALSE | AT7: FALSE | AU7: FALSE | AV7: FALSE | AW7: FALSE | AX7: FALSE | AY7: FALSE | AZ7: FALSE | BA7: FALSE | BB7: FALSE | BC7: FALSE | BD7: FALSE | BE7: FALSE | BF7: FALSE | BG7: TRUE | BH7: TRUE | BI7: TRUE | BJ7: TRUE | BK7: TRUE | BL7: TRUE | BM7: TRUE | BN7: TRUE | BO7: TRUE | BP7: TRUE | BQ7: TRUE | BR7: TRUE | BS7: TRUE | BT7: TRUE | BU7: TRUE | BV7: =AND(BV$5>=$G7,BV$5<$H7) -> TRUE | BW7: TRUE | BX7: TRUE | BY7: TRUE | BZ7: TRUE | CA7: TRUE | CB7: TRUE | CC7: TRUE | CD7: TRUE | CE7: TRUE | CF7: TRUE | CG7: TRUE | CH7: TRUE | CI7: TRUE | CJ7: TRUE | CK7: TRUE | CL7: TRUE | CM7: TRUE | CN7: TRUE | CO7: TRUE | CP7: TRUE | CQ7: TRUE | CR7: TRUE | CS7: TRUE | CT7: TRUE | CU7: TRUE | CV7: TRUE | CW7: TRUE | CX7: TRUE | CY7: TRUE | CZ7: TRUE | DA7: TRUE | DB7: TRUE | DC7: TRUE | DD7: TRUE | DE7: TRUE | DF7: TRUE | DG7: TRUE | DH7: TRUE | DI7: TRUE | DJ7: TRUE | DK7: TRUE | DL7: TRUE | DM7: TRUE | DN7: TRUE | DO7: TRUE | DP7: TRUE | DQ7: TRUE | DR7: TRUE | DS7: TRUE | DT7: TRUE | DU7: TRUE | DV7: TRUE | DW7: TRUE | DX7: TRUE | DY7: TRUE | DZ7: TRUE | EA7: TRUE | EB7: TRUE | EC7: TRUE | ED7: TRUE | EE7: TRUE | EF7: TRUE | EG7: TRUE | EH7: =AND(EH$5>=$G7,EH$5<$H7) -> TRUE | EI7: TRUE | EJ7: TRUE | EK7: TRUE | EL7: TRUE | EM7: TRUE | EN7: TRUE | EO7: TRUE | EP7: TRUE | EQ7: TRUE | ER7: TRUE | ES7: TRUE | ET7: TRUE | EU7: TRUE | EV7: TRUE | EW7: TRUE | EX7: TRUE | EY7: TRUE | EZ7: TRUE | FA7: TRUE | FB7: TRUE | FC7: TRUE | FD7: TRUE | FE7: TRUE | FF7: TRUE | FG7: TRUE | FH7: TRUE | FI7: TRUE | FJ7: TRUE | FK7: TRUE | FL7: TRUE | FM7: TRUE | FN7: TRUE | FO7: TRUE | FP7: TRUE | FQ7: TRUE | FR7: TRUE | FS7: TRUE | FT7: TRUE | FU7: TRUE | FV7: TRUE | FW7: FALSE | FX7: FALSE | FY7: FALSE | FZ7: FALSE | GA7: FALSE | GB7: FALSE | GC7: FALSE | GD7: FALSE | GE7: FALSE | GF7: FALSE | GG7: FALSE | GH7: FALSE | GI7: FALSE | GJ7: FALSE | GK7: FALSE | GL7: FALSE | GM7: FALSE | GN7: FALSE | GO7: FALSE | GP7: FALSE | GQ7: FALSE | GR7: FALSE | GS7: FALSE | GT7: =AND(GT$5>=$G7,GT$5<$H7) -> FALSE | GU7: FALSE | GV7: FALSE | GW7: FALSE | GX7: FALSE | GY7: FALSE | GZ7: FALSE | HA7: FALSE | HB7: FALSE | HC7: FALSE | HD7: FALSE | HE7: FALSE | HF7: FALSE | HG7: FALSE | HH7: FALSE | HI7: FALSE | HJ7: FALSE | HK7: FALSE | HL7: FALSE | HM7: FALSE | HN7: FALSE | HO7: FALSE | HP7: FALSE | HQ7: FALSE | HR7: FALSE | HS7: FALSE | HT7: FALSE | HU7: FALSE | HV7: FALSE | HW7: FALSE | HX7: FALSE | HY7: FALSE | HZ7: FALSE | IA7: FALSE | IB7: FALSE | IC7: FALSE | ID7: FALSE | IE7: FALSE | IF7: FALSE | IG7: FALSE | IH7: FALSE | II7: FALSE | IJ7: FALSE | IK7: FALSE | IL7: FALSE | IM7: FALSE | IN7: FALSE | IO7: FALSE | IP7: FALSE | IQ7: FALSE | IR7: FALSE | IS7: FALSE | IT7: FALSE | IU7: FALSE | IV7: FALSE | IW7: FALSE | IX7: FALSE | IY7: FALSE | IZ7: FALSE | JA7: FALSE | JB7: FALSE | JC7: FALSE | JD7: FALSE | JE7: FALSE | JF7: =AND(JF$5>=$G7,JF$5<$H7) -> FALSE | JG7: FALSE | JH7: FALSE | JI7: FALSE | JJ7: FALSE | JK7: FALSE | JL7: FALSE | JM7: FALSE | JN7: FALSE | JO7: FALSE | JP7: FALSE | JQ7: FALSE | JR7: FALSE | JS7: FALSE | JT7: FALSE | JU7: FALSE | JV7: FALSE | JW7: FALSE | JX7: FALSE | JY7: FALSE | JZ7: FALSE | KA7: FALSE | KB7: FALSE | KC7: FALSE | KD7: FALSE | KE7: FALSE | KF7: FALSE | KG7: FALSE | KH7: FALSE | KI7: FALSE | KJ7: FALSE | KK7: FALSE | KL7: FALSE | KM7: FALSE | KN7: FALSE | KO7: FALSE | KP7: FALSE | KQ7: FALSE | KR7: FALSE | KS7: FALSE | KT7: FALSE | KU7: FALSE | KV7: FALSE
A8: Dates
C9: Development Start | F9: 2018-01-01
C10: Development Period | E10: Months | F10: 20
C11: Financial Close | E11: Date | F11: =EDATE(F9,F10) -> 2019-09-01
C12: Construction | E12: Months | F12: 30
C13: Commercial Operation | E13: Date | F13: =EDATE(F11,F12) -> 2022-03-01
C14: Operation | E14: Years | F14: 30
C15: Decommissioning | E15: Date | F15: =EDATE(F13,F14*12) -> 2052-03-01
C16: Months Pre-COD | E16: Months | F16: 1
C17: Months Post-COD | E17: Months | F17: 3
A19: Capacity and Volumes
B20: Months after FC | H20: FC | I20: 10 | J20: 8 | K20: COD | L20: Decom
B21: Date | G21: =F9 -> 2018-01-01 | H21: =F11 -> 2019-09-01 | I21: =EDATE(H21,I20) -> 2020-07-01 | J21: =EDATE(I21,J20) -> 2021-03-01 | K21: =F13 -> 2022-03-01 | L21: =F15 -> 2052-03-01
B22: Capacity of Project | E22: Units/Day | G22: 0 | H22: 0 | I22: 100 | J22: 150 | K22: 1000 | L22: 0
L24: 2 | M24: 4 | N24: 6
B25: Date | G25: =G21 -> 2018-01-01 | H25: =H21 -> 2019-09-01 | I25: 2020-07-01 | J25: 2021-03-01 | K25: 2022-03-01 | L25: =EDATE(K25,L24*12) -> 2024-03-01 | M25: =EDATE(L25,M24*12) -> 2028-03-01 | N25: =EDATE(M25,N24*12) -> 2034-03-01 | O25: =L21 -> 2052-03-01
B26: Capacity Utilisation | E26: % | G26: 0 | H26: 0 | I26: 0.4 | J26: 0.6 | K26: 0.6 | L26: 0.64 | M26: 0.72 | N26: 0.8 | O26: 0.8
A28: Operations Analysis
B29: Capapcity and Volumes
C30: Capacity | E30: Units/Day
C31: Days in Period | E31: Days
C32: Total Capacity | E32: Units
C34: Capacity Utilisation | E34: %
C35: Total Volumes | E35: Units

Sheet Physical - No Titles
A1: Time Line
B2: Period Number | I2: 1 | J2: 2 | K2: 3 | L2: 4 | M2: 5 | N2: 6 | O2: 7 | P2: 8 | Q2: 9 | R2: 10 | S2: 11 | T2: 12 | U2: 13 | V2: 14 | W2: 15 | X2: 16 | Y2: 17 | Z2: 18 | AA2: 19 | AB2: 20 | AC2: 21 | AD2: 22 | AE2: 23 | AF2: 24 | AG2: 25 | AH2: 26 | AI2: 27 | AJ2: 28 | AK2: 29 | AL2: 30 | AM2: 31 | AN2: 32 | AO2: 33 | AP2: 34 | AQ2: 35 | AR2: 36 | AS2: 37 | AT2: 38 | AU2: 39 | AV2: 40 | AW2: 41 | AX2: 42 | AY2: 43 | AZ2: 44 | BA2: 45 | BB2: 46 | BC2: 47 | BD2: 48 | BE2: 49 | BF2: 50 | BG2: 51 | BH2: 52 | BI2: 53 | BJ2: 54 | BK2: 55 | BL2: 56 | BM2: 57 | BN2: 58 | BO2: 59 | BP2: 60 | BQ2: 61 | BR2: 62 | BS2: 63 | BT2: 64 | BU2: 65 | BV2: 66 | BW2: 67 | BX2: 68 | BY2: 69 | BZ2: 70 | CA2: 71 | CB2: 72 | CC2: 73 | CD2: 74 | CE2: 75 | CF2: 76 | CG2: 77 | CH2: 78 | CI2: 79 | CJ2: 80 | CK2: 81 | CL2: 82 | CM2: 83 | CN2: 84 | CO2: 85 | CP2: 86 | CQ2: 87 | CR2: 88 | CS2: 89 | CT2: 90 | CU2: 91 | CV2: 92 | CW2: 93 | CX2: 94 | CY2: 95 | CZ2: 96 | DA2: 97 | DB2: 98 | DC2: 99 | DD2: 100 | DE2: 101 | DF2: 102 | DG2: 103 | DH2: 104 | DI2: 105 | DJ2: 106 | DK2: 107 | DL2: 108 | DM2: 109 | DN2: 110 | DO2: 111 | DP2: 112 | DQ2: 113 | DR2: 114 | DS2: 115 | DT2: 116 | DU2: 117 | DV2: 118 | DW2: 119 | DX2: 120 | DY2: 121 | DZ2: 122 | EA2: 123 | EB2: 124 | EC2: 125 | ED2: 126 | EE2: 127 | EF2: 128 | EG2: 129 | EH2: 130 | EI2: 131 | EJ2: 132 | EK2: 133 | EL2: 134 | EM2: 135 | EN2: 136 | EO2: 137 | EP2: 138 | EQ2: 139 | ER2: 140 | ES2: 141 | ET2: 142 | EU2: 143 | EV2: 144 | EW2: 145 | EX2: 146 | EY2: 147 | EZ2: 148 | FA2: 149 | FB2: 150 | FC2: 151 | FD2: 152 | FE2: 153 | FF2: 154 | FG2: 155 | FH2: 156 | FI2: 157 | FJ2: 158 | FK2: 159 | FL2: 160 | FM2: 161 | FN2: 162 | FO2: 163 | FP2: 164 | FQ2: 165 | FR2: 166 | FS2: 167 | FT2: 168 | FU2: 169 | FV2: 170 | FW2: 171 | FX2: 172 | FY2: 173 | FZ2: 174 | GA2: 175 | GB2: 176 | GC2: 177 | GD2: 178 | GE2: 179 | GF2: 180 | GG2: 181 | GH2: 182 | GI2: 183 | GJ2: 184 | GK2: 185 | GL2: 186 | GM2: 187 | GN2: 188 | GO2: 189 | GP2: 190 | GQ2: 191 | GR2: 192 | GS2: 193 | GT2: 194 | GU2: 195 | GV2: 196 | GW2: 197 | GX2: 198 | GY2: 199 | GZ2: 200 | HA2: 201 | HB2: 202 | HC2: 203 | HD2: 204 | HE2: 205 | HF2: 206 | HG2: 207 | HH2: 208 | HI2: 209 | HJ2: 210 | HK2: 211 | HL2: 212 | HM2: 213 | HN2: 214 | HO2: 215 | HP2: 216 | HQ2: 217 | HR2: 218 | HS2: 219 | HT2: 220 | HU2: 221 | HV2: 222 | HW2: 223 | HX2: 224 | HY2: 225 | HZ2: 226 | IA2: 227 | IB2: 228 | IC2: 229 | ID2: 230 | IE2: 231 | IF2: 232 | IG2: 233 | IH2: 234 | II2: 235 | IJ2: 236 | IK2: 237 | IL2: 238 | IM2: 239 | IN2: 240 | IO2: 241 | IP2: 242 | IQ2: 243 | IR2: 244 | IS2: 245 | IT2: 246 | IU2: 247 | IV2: 248 | IW2: 249 | IX2: 250 | IY2: 251 | IZ2: 252 | JA2: 253 | JB2: 254 | JC2: 255 | JD2: 256 | JE2: 257 | JF2: 258 | JG2: 259 | JH2: 260 | JI2: 261 | JJ2: 262 | JK2: 263 | JL2: 264 | JM2: 265 | JN2: 266 | JO2: 267 | JP2: 268 | JQ2: 269 | JR2: 270 | JS2: 271 | JT2: 272 | JU2: 273 | JV2: 274 | JW2: 275 | JX2: 276 | JY2: 277 | JZ2: 278 | KA2: 279 | KB2: 280 | KC2: 281 | KD2: 282 | KE2: 283 | KF2: 284 | KG2: 285 | KH2: 286 | KI2: 287 | KJ2: 288 | KK2: 289 | KL2: 290 | KM2: 291 | KN2: 292 | KO2: 293 | KP2: 294 | KQ2: 295 | KR2: 296 | KS2: 297 | KT2: 298 | KU2: 299 | KV2: 300
B3: Pre-COD Switch | E3: Pre-cod | G3: =F10+F12 -> 50 | I3: =I2<=$G$3 -> TRUE | J3: =J2<=$G$3 -> TRUE | K3: TRUE | L3: TRUE | M3: TRUE | N3: TRUE | O3: TRUE | P3: TRUE | Q3: TRUE | R3: TRUE | S3: TRUE | T3: TRUE | U3: TRUE | V3: TRUE | W3: TRUE | X3: TRUE | Y3: TRUE | Z3: TRUE | AA3: TRUE | AB3: TRUE | AC3: TRUE | AD3: TRUE | AE3: TRUE | AF3: TRUE | AG3: TRUE | AH3: TRUE | AI3: TRUE | AJ3: TRUE | AK3: TRUE | AL3: TRUE | AM3: TRUE | AN3: TRUE | AO3: TRUE | AP3: TRUE | AQ3: TRUE | AR3: TRUE | AS3: TRUE | AT3: TRUE | AU3: TRUE | AV3: TRUE | AW3: TRUE | AX3: TRUE | AY3: TRUE | AZ3: TRUE | BA3: TRUE | BB3: TRUE | BC3: TRUE | BD3: TRUE | BE3: TRUE | BF3: TRUE | BG3: FALSE | BH3: FALSE | BI3: FALSE | BJ3: FALSE | BK3: FALSE | BL3: FALSE | BM3: FALSE | BN3: FALSE | BO3: FALSE | BP3: FALSE | BQ3: FALSE | BR3: FALSE | BS3: FALSE | BT3: FALSE | BU3: FALSE | BV3: =BV2<=$G$3 -> FALSE | BW3: FALSE | BX3: FALSE | BY3: FALSE | BZ3: FALSE | CA3: FALSE | CB3: FALSE | CC3: FALSE | CD3: FALSE | CE3: FALSE | CF3: FALSE | CG3: FALSE | CH3: FALSE | CI3: FALSE | CJ3: FALSE | CK3: FALSE | CL3: FALSE | CM3: FALSE | CN3: FALSE | CO3: FALSE | CP3: FALSE | CQ3: FALSE | CR3: FALSE | CS3: FALSE | CT3: FALSE | CU3: FALSE | CV3: FALSE | CW3: FALSE | CX3: FALSE | CY3: FALSE | CZ3: FALSE | DA3: FALSE | DB3: FALSE | DC3: FALSE | DD3: FALSE | DE3: FALSE | DF3: FALSE | DG3: FALSE | DH3: FALSE | DI3: FALSE | DJ3: FALSE | DK3: FALSE | DL3: FALSE | DM3: FALSE | DN3: FALSE | DO3: FALSE | DP3: FALSE | DQ3: FALSE | DR3: FALSE | DS3: FALSE | DT3: FALSE | DU3: FALSE | DV3: FALSE | DW3: FALSE | DX3: FALSE | DY3: FALSE | DZ3: FALSE | EA3: FALSE | EB3: FALSE | EC3: FALSE | ED3: FALSE | EE3: FALSE | EF3: FALSE | EG3: FALSE | EH3: =EH2<=$G$3 -> FALSE | EI3: FALSE | EJ3: FALSE | EK3: FALSE | EL3: FALSE | EM3: FALSE | EN3: FALSE | EO3: FALSE | EP3: FALSE | EQ3: FALSE | ER3: FALSE | ES3: FALSE | ET3: FALSE | EU3: FALSE | EV3: FALSE | EW3: FALSE | EX3: FALSE | EY3: FALSE | EZ3: FALSE | FA3: FALSE | FB3: FALSE | FC3: FALSE | FD3: FALSE | FE3: FALSE | FF3: FALSE | FG3: FALSE | FH3: FALSE | FI3: FALSE | FJ3: FALSE | FK3: FALSE | FL3: FALSE | FM3: FALSE | FN3: FALSE | FO3: FALSE | FP3: FALSE | FQ3: FALSE | FR3: FALSE | FS3: FALSE | FT3: FALSE | FU3: FALSE | FV3: FALSE | FW3: FALSE | FX3: FALSE | FY3: FALSE | FZ3: FALSE | GA3: FALSE | GB3: FALSE | GC3: FALSE | GD3: FALSE | GE3: FALSE | GF3: FALSE | GG3: FALSE | GH3: FALSE | GI3: FALSE | GJ3: FALSE | GK3: FALSE | GL3: FALSE | GM3: FALSE | GN3: FALSE | GO3: FALSE | GP3: FALSE | GQ3: FALSE | GR3: FALSE | GS3: FALSE | GT3: =GT2<=$G$3 -> FALSE | GU3: FALSE | GV3: FALSE | GW3: FALSE | GX3: FALSE | GY3: FALSE | GZ3: FALSE | HA3: FALSE | HB3: FALSE | HC3: FALSE | HD3: FALSE | HE3: FALSE | HF3: FALSE | HG3: FALSE | HH3: FALSE | HI3: FALSE | HJ3: FALSE | HK3: FALSE | HL3: FALSE | HM3: FALSE | HN3: FALSE | HO3: FALSE | HP3: FALSE | HQ3: FALSE | HR3: FALSE | HS3: FALSE | HT3: FALSE | HU3: FALSE | HV3: FALSE | HW3: FALSE | HX3: FALSE | HY3: FALSE | HZ3: FALSE | IA3: FALSE | IB3: FALSE | IC3: FALSE | ID3: FALSE | IE3: FALSE | IF3: FALSE | IG3: FALSE | IH3: FALSE | II3: FALSE | IJ3: FALSE | IK3: FALSE | IL3: FALSE | IM3: FALSE | IN3: FALSE | IO3: FALSE | IP3: FALSE | IQ3: FALSE | IR3: FALSE | IS3: FALSE | IT3: FALSE | IU3: FALSE | IV3: FALSE | IW3: FALSE | IX3: FALSE | IY3: FALSE | IZ3: FALSE | JA3: FALSE | JB3: FALSE | JC3: FALSE | JD3: FALSE | JE3: FALSE | JF3: =JF2<=$G$3 -> FALSE | JG3: FALSE | JH3: FALSE | JI3: FALSE | JJ3: FALSE | JK3: FALSE | JL3: FALSE | JM3: FALSE | JN3: FALSE | JO3: FALSE | JP3: FALSE | JQ3: FALSE | JR3: FALSE | JS3: FALSE | JT3: FALSE | JU3: FALSE | JV3: FALSE | JW3: FALSE | JX3: FALSE | JY3: FALSE | JZ3: FALSE | KA3: FALSE | KB3: FALSE | KC3: FALSE | KD3: FALSE | KE3: FALSE | KF3: FALSE | KG3: FALSE | KH3: FALSE | KI3: FALSE | KJ3: FALSE | KK3: FALSE | KL3: FALSE | KM3: FALSE | KN3: FALSE | KO3: FALSE | KP3: FALSE | KQ3: FALSE | KR3: FALSE | KS3: FALSE | KT3: FALSE | KU3: FALSE | KV3: FALSE
B4: Months in Period | E4: Pre post | F4: =F16 -> 1 | G4: =F17 -> 3 | I4: =IF(I3,$F$4,$G$4) -> 1 | J4: =IF(J3,$F$4,$G$4) -> 1 | K4: 1 | L4: 1 | M4: 1 | N4: 1 | O4: 1 | P4: 1 | Q4: 1 | R4: 1 | S4: 1 | T4: 1 | U4: 1 | V4: 1 | W4: 1 | X4: 1 | Y4: 1 | Z4: 1 | AA4: 1 | AB4: 1 | AC4: 1 | AD4: 1 | AE4: 1 | AF4: 1 | AG4: 1 | AH4: 1 | AI4: 1 | AJ4: 1 | AK4: 1 | AL4: 1 | AM4: 1 | AN4: 1 | AO4: 1 | AP4: 1 | AQ4: 1 | AR4: 1 | AS4: 1 | AT4: 1 | AU4: 1 | AV4: 1 | AW4: 1 | AX4: 1 | AY4: 1 | AZ4: 1 | BA4: 1 | BB4: 1 | BC4: 1 | BD4: 1 | BE4: 1 | BF4: 1 | BG4: 3 | BH4: 3 | BI4: 3 | BJ4: 3 | BK4: 3 | BL4: 3 | BM4: 3 | BN4: 3 | BO4: 3 | BP4: 3 | BQ4: 3 | BR4: 3 | BS4: 3 | BT4: 3 | BU4: 3 | BV4: =IF(BV3,$F$4,$G$4) -> 3 | BW4: 3 | BX4: 3 | BY4: 3 | BZ4: 3 | CA4: 3 | CB4: 3 | CC4: 3 | CD4: 3 | CE4: 3 | CF4: 3 | CG4: 3 | CH4: 3 | CI4: 3 | CJ4: 3 | CK4: 3 | CL4: 3 | CM4: 3 | CN4: 3 | CO4: 3 | CP4: 3 | CQ4: 3 | CR4: 3 | CS4: 3 | CT4: 3 | CU4: 3 | CV4: 3 | CW4: 3 | CX4: 3 | CY4: 3 | CZ4: 3 | DA4: 3 | DB4: 3 | DC4: 3 | DD4: 3 | DE4: 3 | DF4: 3 | DG4: 3 | DH4: 3 | DI4: 3 | DJ4: 3 | DK4: 3 | DL4: 3 | DM4: 3 | DN4: 3 | DO4: 3 | DP4: 3 | DQ4: 3 | DR4: 3 | DS4: 3 | DT4: 3 | DU4: 3 | DV4: 3 | DW4: 3 | DX4: 3 | DY4: 3 | DZ4: 3 | EA4: 3 | EB4: 3 | EC4: 3 | ED4: 3 | EE4: 3 | EF4: 3 | EG4: 3 | EH4: =IF(EH3,$F$4,$G$4) -> 3 | EI4: 3 | EJ4: 3 | EK4: 3 | EL4: 3 | EM4: 3 | EN4: 3 | EO4: 3 | EP4: 3 | EQ4: 3 | ER4: 3 | ES4: 3 | ET4: 3 | EU4: 3 | EV4: 3 | EW4: 3 | EX4: 3 | EY4: 3 | EZ4: 3 | FA4: 3 | FB4: 3 | FC4: 3 | FD4: 3 | FE4: 3 | FF4: 3 | FG4: 3 | FH4: 3 | FI4: 3 | FJ4: 3 | FK4: 3 | FL4: 3 | FM4: 3 | FN4: 3 | FO4: 3 | FP4: 3 | FQ4: 3 | FR4: 3 | FS4: 3 | FT4: 3 | FU4: 3 | FV4: 3 | FW4: 3 | FX4: 3 | FY4: 3 | FZ4: 3 | GA4: 3 | GB4: 3 | GC4: 3 | GD4: 3 | GE4: 3 | GF4: 3 | GG4: 3 | GH4: 3 | GI4: 3 | GJ4: 3 | GK4: 3 | GL4: 3 | GM4: 3 | GN4: 3 | GO4: 3 | GP4: 3 | GQ4: 3 | GR4: 3 | GS4: 3 | GT4: =IF(GT3,$F$4,$G$4) -> 3 | GU4: 3 | GV4: 3 | GW4: 3 | GX4: 3 | GY4: 3 | GZ4: 3 | HA4: 3 | HB4: 3 | HC4: 3 | HD4: 3 | HE4: 3 | HF4: 3 | HG4: 3 | HH4: 3 | HI4: 3 | HJ4: 3 | HK4: 3 | HL4: 3 | HM4: 3 | HN4: 3 | HO4: 3 | HP4: 3 | HQ4: 3 | HR4: 3 | HS4: 3 | HT4: 3 | HU4: 3 | HV4: 3 | HW4: 3 | HX4: 3 | HY4: 3 | HZ4: 3 | IA4: 3 | IB4: 3 | IC4: 3 | ID4: 3 | IE4: 3 | IF4: 3 | IG4: 3 | IH4: 3 | II4: 3 | IJ4: 3 | IK4: 3 | IL4: 3 | IM4: 3 | IN4: 3 | IO4: 3 | IP4: 3 | IQ4: 3 | IR4: 3 | IS4: 3 | IT4: 3 | IU4: 3 | IV4: 3 | IW4: 3 | IX4: 3 | IY4: 3 | IZ4: 3 | JA4: 3 | JB4: 3 | JC4: 3 | JD4: 3 | JE4: 3 | JF4: =IF(JF3,$F$4,$G$4) -> 3 | JG4: 3 | JH4: 3 | JI4: 3 | JJ4: 3 | JK4: 3 | JL4: 3 | JM4: 3 | JN4: 3 | JO4: 3 | JP4: 3 | JQ4: 3 | JR4: 3 | JS4: 3 | JT4: 3 | JU4: 3 | JV4: 3 | JW4: 3 | JX4: 3 | JY4: 3 | JZ4: 3 | KA4: 3 | KB4: 3 | KC4: 3 | KD4: 3 | KE4: 3 | KF4: 3 | KG4: 3 | KH4: 3 | KI4: 3 | KJ4: 3 | KK4: 3 | KL4: 3 | KM4: 3 | KN4: 3 | KO4: 3 | KP4: 3 | KQ4: 3 | KR4: 3 | KS4: 3 | KT4: 3 | KU4: 3 | KV4: 3
B5: Start of Period | I5: =H6+1 -> 2018-01-01 | J5: =I6+1 -> 2018-02-01 | K5: 2018-03-01 | L5: 2018-04-01 | M5: 2018-05-01 | N5: 2018-06-01 | O5: 2018-07-01 | P5: 2018-08-01 | Q5: 2018-09-01 | R5: 2018-10-01 | S5: 2018-11-01 | T5: 2018-12-01 | U5: 2019-01-01 | V5: 2019-02-01 | W5: 2019-03-01 | X5: 2019-04-01 | Y5: 2019-05-01 | Z5: 2019-06-01 | AA5: 2019-07-01 | AB5: 2019-08-01 | AC5: 2019-09-01 | AD5: 2019-10-01 | AE5: 2019-11-01 | AF5: 2019-12-01 | AG5: 2020-01-01 | AH5: 2020-02-01 | AI5: 2020-03-01 | AJ5: 2020-04-01 | AK5: 2020-05-01 | AL5: 2020-06-01 | AM5: 2020-07-01 | AN5: 2020-08-01 | AO5: 2020-09-01 | AP5: 2020-10-01 | AQ5: 2020-11-01 | AR5: 2020-12-01 | AS5: 2021-01-01 | AT5: 2021-02-01 | AU5: 2021-03-01 | AV5: 2021-04-01 | AW5: 2021-05-01 | AX5: 2021-06-01 | AY5: 2021-07-01 | AZ5: 2021-08-01 | BA5: 2021-09-01 | BB5: 2021-10-01 | BC5: 2021-11-01 | BD5: 2021-12-01 | BE5: 2022-01-01 | BF5: 2022-02-01 | BG5: 2022-03-01 | BH5: 2022-06-01 | BI5: 2022-09-01 | BJ5: 2022-12-01 | BK5: 2023-03-01 | BL5: 2023-06-01 | BM5: 2023-09-01 | BN5: 2023-12-01 | BO5: 2024-03-01 | BP5: 2024-06-01 | BQ5: 2024-09-01 | BR5: 2024-12-01 | BS5: 2025-03-01 | BT5: 2025-06-01 | BU5: 2025-09-01 | BV5: =BU6+1 -> 2025-12-01 | BW5: 2026-03-01 | BX5: 2026-06-01 | BY5: 2026-09-01 | BZ5: 2026-12-01 | CA5: 2027-03-01 | CB5: 2027-06-01 | CC5: 2027-09-01 | CD5: 2027-12-01 | CE5: 2028-03-01 | CF5: 2028-06-01 | CG5: 2028-09-01 | CH5: 2028-12-01 | CI5: 2029-03-01 | CJ5: 2029-06-01 | CK5: 2029-09-01 | CL5: 2029-12-01 | CM5: 2030-03-01 | CN5: 2030-06-01 | CO5: 2030-09-01 | CP5: 2030-12-01 | CQ5: 2031-03-01 | CR5: 2031-06-01 | CS5: 2031-09-01 | CT5: 2031-12-01 | CU5: 2032-03-01 | CV5: 2032-06-01 | CW5: 2032-09-01 | CX5: 2032-12-01 | CY5: 2033-03-01 | CZ5: 2033-06-01 | DA5: 2033-09-01 | DB5: 2033-12-01 | DC5: 2034-03-01 | DD5: 2034-06-01 | DE5: 2034-09-01 | DF5: 2034-12-01 | DG5: 2035-03-01 | DH5: 2035-06-01 | DI5: 2035-09-01 | DJ5: 2035-12-01 | DK5: 2036-03-01 | DL5: 2036-06-01 | DM5: 2036-09-01 | DN5: 2036-12-01 | DO5: 2037-03-01 | DP5: 2037-06-01 | DQ5: 2037-09-01 | DR5: 2037-12-01 | DS5: 2038-03-01 | DT5: 2038-06-01 | DU5: 2038-09-01 | DV5: 2038-12-01 | DW5: 2039-03-01 | DX5: 2039-06-01 | DY5: 2039-09-01 | DZ5: 2039-12-01 | EA5: 2040-03-01 | EB5: 2040-06-01 | EC5: 2040-09-01 | ED5: 2040-12-01 | EE5: 2041-03-01 | EF5: 2041-06-01 | EG5: 2041-09-01 | EH5: =EG6+1 -> 2041-12-01 | EI5: 2042-03-01 | EJ5: 2042-06-01 | EK5: 2042-09-01 | EL5: 2042-12-01 | EM5: 2043-03-01 | EN5: 2043-06-01 | EO5: 2043-09-01 | EP5: 2043-12-01 | EQ5: 2044-03-01 | ER5: 2044-06-01 | ES5: 2044-09-01 | ET5: 2044-12-01 | EU5: 2045-03-01 | EV5: 2045-06-01 | EW5: 2045-09-01 | EX5: 2045-12-01 | EY5: 2046-03-01 | EZ5: 2046-06-01 | FA5: 2046-09-01 | FB5: 2046-12-01 | FC5: 2047-03-01 | FD5: 2047-06-01 | FE5: 2047-09-01 | FF5: 2047-12-01 | FG5: 2048-03-01 | FH5: 2048-06-01 | FI5: 2048-09-01 | FJ5: 2048-12-01 | FK5: 2049-03-01 | FL5: 2049-06-01 | FM5: 2049-09-01 | FN5: 2049-12-01 | FO5: 2050-03-01 | FP5: 2050-06-01 | FQ5: 2050-09-01 | FR5: 2050-12-01 | FS5: 2051-03-01 | FT5: 2051-06-01 | FU5: 2051-09-01 | FV5: 2051-12-01 | FW5: 2052-03-01 | FX5: 2052-06-01 | FY5: 2052-09-01 | FZ5: 2052-12-01 | GA5: 2053-03-01 | GB5: 2053-06-01 | GC5: 2053-09-01 | GD5: 2053-12-01 | GE5: 2054-03-01 | GF5: 2054-06-01 | GG5: 2054-09-01 | GH5: 2054-12-01 | GI5: 2055-03-01 | GJ5: 2055-06-01 | GK5: 2055-09-01 | GL5: 2055-12-01 | GM5: 2056-03-01 | GN5: 2056-06-01 | GO5: 2056-09-01 | GP5: 2056-12-01 | GQ5: 2057-03-01 | GR5: 2057-06-01 | GS5: 2057-09-01 | GT5: =GS6+1 -> 2057-12-01 | GU5: 2058-03-01 | GV5: 2058-06-01 | GW5: 2058-09-01 | GX5: 2058-12-01 | GY5: 2059-03-01 | GZ5: 2059-06-01 | HA5: 2059-09-01 | HB5: 2059-12-01 | HC5: 2060-03-01 | HD5: 2060-06-01 | HE5: 2060-09-01 | HF5: 2060-12-01 | HG5: 2061-03-01 | HH5: 2061-06-01 | HI5: 2061-09-01 | HJ5: 2061-12-01 | HK5: 2062-03-01 | HL5: 2062-06-01 | HM5: 2062-09-01 | HN5: 2062-12-01 | HO5: 2063-03-01 | HP5: 2063-06-01 | HQ5: 2063-09-01 | HR5: 2063-12-01 | HS5: 2064-03-01 | HT5: 2064-06-01 | HU5: 2064-09-01 | HV5: 2064-12-01 | HW5: 2065-03-01 | HX5: 2065-06-01 | HY5: 2065-09-01 | HZ5: 2065-12-01 | IA5: 2066-03-01 | IB5: 2066-06-01 | IC5: 2066-09-01 | ID5: 2066-12-01 | IE5: 2067-03-01 | IF5: 2067-06-01 | IG5: 2067-09-01 | IH5: 2067-12-01 | II5: 2068-03-01 | IJ5: 2068-06-01 | IK5: 2068-09-01 | IL5: 2068-12-01 | IM5: 2069-03-01 | IN5: 2069-06-01 | IO5: 2069-09-01 | IP5: 2069-12-01 | IQ5: 2070-03-01 | IR5: 2070-06-01 | IS5: 2070-09-01 | IT5: 2070-12-01 | IU5: 2071-03-01 | IV5: 2071-06-01 | IW5: 2071-09-01 | IX5: 2071-12-01 | IY5: 2072-03-01 | IZ5: 2072-06-01 | JA5: 2072-09-01 | JB5: 2072-12-01 | JC5: 2073-03-01 | JD5: 2073-06-01 | JE5: 2073-09-01 | JF5: =JE6+1 -> 2073-12-01 | JG5: 2074-03-01 | JH5: 2074-06-01 | JI5: 2074-09-01 | JJ5: 2074-12-01 | JK5: 2075-03-01 | JL5: 2075-06-01 | JM5: 2075-09-01 | JN5: 2075-12-01 | JO5: 2076-03-01 | JP5: 2076-06-01 | JQ5: 2076-09-01 | JR5: 2076-12-01 | JS5: 2077-03-01 | JT5: 2077-06-01 | JU5: 2077-09-01 | JV5: 2077-12-01 | JW5: 2078-03-01 | JX5: 2078-06-01 | JY5: 2078-09-01 | JZ5: 2078-12-01 | KA5: 2079-03-01 | KB5: 2079-06-01 | KC5: 2079-09-01 | KD5: 2079-12-01 | KE5: 2080-03-01 | KF5: 2080-06-01 | KG5: 2080-09-01 | KH5: 2080-12-01 | KI5: 2081-03-01 | KJ5: 2081-06-01 | KK5: 2081-09-01 | KL5: 2081-12-01 | KM5: 2082-03-01 | KN5: 2082-06-01 | KO5: 2082-09-01 | KP5: 2082-12-01 | KQ5: 2083-03-01 | KR5: 2083-06-01 | KS5: 2083-09-01 | KT5: 2083-12-01 | KU5: 2084-03-01 | KV5: 2084-06-01
B6: End of Period | H6: =F9-1 -> 2017-12-31 | I6: =EDATE(I5,I4)-1 -> 2018-01-31 | J6: =EDATE(J5,J4)-1 -> 2018-02-28 | K6: 2018-03-31 | L6: 2018-04-30 | M6: 2018-05-31 | N6: 2018-06-30 | O6: 2018-07-31 | P6: 2018-08-31 | Q6: 2018-09-30 | R6: 2018-10-31 | S6: 2018-11-30 | T6: 2018-12-31 | U6: 2019-01-31 | V6: 2019-02-28 | W6: 2019-03-31 | X6: 2019-04-30 | Y6: 2019-05-31 | Z6: 2019-06-30 | AA6: 2019-07-31 | AB6: 2019-08-31 | AC6: 2019-09-30 | AD6: 2019-10-31 | AE6: 2019-11-30 | AF6: 2019-12-31 | AG6: 2020-01-31 | AH6: 2020-02-29 | AI6: 2020-03-31 | AJ6: 2020-04-30 | AK6: 2020-05-31 | AL6: 2020-06-30 | AM6: 2020-07-31 | AN6: 2020-08-31 | AO6: 2020-09-30 | AP6: 2020-10-31 | AQ6: 2020-11-30 | AR6: 2020-12-31 | AS6: 2021-01-31 | AT6: 2021-02-28 | AU6: 2021-03-31 | AV6: 2021-04-30 | AW6: 2021-05-31 | AX6: 2021-06-30 | AY6: 2021-07-31 | AZ6: 2021-08-31 | BA6: 2021-09-30 | BB6: 2021-10-31 | BC6: 2021-11-30 | BD6: 2021-12-31 | BE6: 2022-01-31 | BF6: 2022-02-28 | BG6: 2022-05-31 | BH6: 2022-08-31 | BI6: 2022-11-30 | BJ6: 2023-02-28 | BK6: 2023-05-31 | BL6: 2023-08-31 | BM6: 2023-11-30 | BN6: 2024-02-29 | BO6: 2024-05-31 | BP6: 2024-08-31 | BQ6: 2024-11-30 | BR6: 2025-02-28 | BS6: 2025-05-31 | BT6: 2025-08-31 | BU6: 2025-11-30 | BV6: =EDATE(BV5,BV4)-1 -> 2026-02-28 | BW6: 2026-05-31 | BX6: 2026-08-31 | BY6: 2026-11-30 | BZ6: 2027-02-28 | CA6: 2027-05-31 | CB6: 2027-08-31 | CC6: 2027-11-30 | CD6: 2028-02-29 | CE6: 2028-05-31 | CF6: 2028-08-31 | CG6: 2028-11-30 | CH6: 2029-02-28 | CI6: 2029-05-31 | CJ6: 2029-08-31 | CK6: 2029-11-30 | CL6: 2030-02-28 | CM6: 2030-05-31 | CN6: 2030-08-31 | CO6: 2030-11-30 | CP6: 2031-02-28 | CQ6: 2031-05-31 | CR6: 2031-08-31 | CS6: 2031-11-30 | CT6: 2032-02-29 | CU6: 2032-05-31 | CV6: 2032-08-31 | CW6: 2032-11-30 | CX6: 2033-02-28 | CY6: 2033-05-31 | CZ6: 2033-08-31 | DA6: 2033-11-30 | DB6: 2034-02-28 | DC6: 2034-05-31 | DD6: 2034-08-31 | DE6: 2034-11-30 | DF6: 2035-02-28 | DG6: 2035-05-31 | DH6: 2035-08-31 | DI6: 2035-11-30 | DJ6: 2036-02-29 | DK6: 2036-05-31 | DL6: 2036-08-31 | DM6: 2036-11-30 | DN6: 2037-02-28 | DO6: 2037-05-31 | DP6: 2037-08-31 | DQ6: 2037-11-30 | DR6: 2038-02-28 | DS6: 2038-05-31 | DT6: 2038-08-31 | DU6: 2038-11-30 | DV6: 2039-02-28 | DW6: 2039-05-31 | DX6: 2039-08-31 | DY6: 2039-11-30 | DZ6: 2040-02-29 | EA6: 2040-05-31 | EB6: 2040-08-31 | EC6: 2040-11-30 | ED6: 2041-02-28 | EE6: 2041-05-31 | EF6: 2041-08-31 | EG6: 2041-11-30 | EH6: =EDATE(EH5,EH4)-1 -> 2042-02-28 | EI6: 2042-05-31 | EJ6: 2042-08-31 | EK6: 2042-11-30 | EL6: 2043-02-28 | EM6: 2043-05-31 | EN6: 2043-08-31 | EO6: 2043-11-30 | EP6: 2044-02-29 | EQ6: 2044-05-31 | ER6: 2044-08-31 | ES6: 2044-11-30 | ET6: 2045-02-28 | EU6: 2045-05-31 | EV6: 2045-08-31 | EW6: 2045-11-30 | EX6: 2046-02-28 | EY6: 2046-05-31 | EZ6: 2046-08-31 | FA6: 2046-11-30 | FB6: 2047-02-28 | FC6: 2047-05-31 | FD6: 2047-08-31 | FE6: 2047-11-30 | FF6: 2048-02-29 | FG6: 2048-05-31 | FH6: 2048-08-31 | FI6: 2048-11-30 | FJ6: 2049-02-28 | FK6: 2049-05-31 | FL6: 2049-08-31 | FM6: 2049-11-30 | FN6: 2050-02-28 | FO6: 2050-05-31 | FP6: 2050-08-31 | FQ6: 2050-11-30 | FR6: 2051-02-28 | FS6: 2051-05-31 | FT6: 2051-08-31 | FU6: 2051-11-30 | FV6: 2052-02-29 | FW6: 2052-05-31 | FX6: 2052-08-31 | FY6: 2052-11-30 | FZ6: 2053-02-28 | GA6: 2053-05-31 | GB6: 2053-08-31 | GC6: 2053-11-30 | GD6: 2054-02-28 | GE6: 2054-05-31 | GF6: 2054-08-31 | GG6: 2054-11-30 | GH6: 2055-02-28 | GI6: 2055-05-31 | GJ6: 2055-08-31 | GK6: 2055-11-30 | GL6: 2056-02-29 | GM6: 2056-05-31 | GN6: 2056-08-31 | GO6: 2056-11-30 | GP6: 2057-02-28 | GQ6: 2057-05-31 | GR6: 2057-08-31 | GS6: 2057-11-30 | GT6: =EDATE(GT5,GT4)-1 -> 2058-02-28 | GU6: 2058-05-31 | GV6: 2058-08-31 | GW6: 2058-11-30 | GX6: 2059-02-28 | GY6: 2059-05-31 | GZ6: 2059-08-31 | HA6: 2059-11-30 | HB6: 2060-02-29 | HC6: 2060-05-31 | HD6: 2060-08-31 | HE6: 2060-11-30 | HF6: 2061-02-28 | HG6: 2061-05-31 | HH6: 2061-08-31 | HI6: 2061-11-30 | HJ6: 2062-02-28 | HK6: 2062-05-31 | HL6: 2062-08-31 | HM6: 2062-11-30 | HN6: 2063-02-28 | HO6: 2063-05-31 | HP6: 2063-08-31 | HQ6: 2063-11-30 | HR6: 2064-02-29 | HS6: 2064-05-31 | HT6: 2064-08-31 | HU6: 2064-11-30 | HV6: 2065-02-28 | HW6: 2065-05-31 | HX6: 2065-08-31 | HY6: 2065-11-30 | HZ6: 2066-02-28 | IA6: 2066-05-31 | IB6: 2066-08-31 | IC6: 2066-11-30 | ID6: 2067-02-28 | IE6: 2067-05-31 | IF6: 2067-08-31 | IG6: 2067-11-30 | IH6: 2068-02-29 | II6: 2068-05-31 | IJ6: 2068-08-31 | IK6: 2068-11-30 | IL6: 2069-02-28 | IM6: 2069-05-31 | IN6: 2069-08-31 | IO6: 2069-11-30 | IP6: 2070-02-28 | IQ6: 2070-05-31 | IR6: 2070-08-31 | IS6: 2070-11-30 | IT6: 2071-02-28 | IU6: 2071-05-31 | IV6: 2071-08-31 | IW6: 2071-11-30 | IX6: 2072-02-29 | IY6: 2072-05-31 | IZ6: 2072-08-31 | JA6: 2072-11-30 | JB6: 2073-02-28 | JC6: 2073-05-31 | JD6: 2073-08-31 | JE6: 2073-11-30 | JF6: =EDATE(JF5,JF4)-1 -> 2074-02-28 | JG6: 2074-05-31 | JH6: 2074-08-31 | JI6: 2074-11-30 | JJ6: 2075-02-28 | JK6: 2075-05-31 | JL6: 2075-08-31 | JM6: 2075-11-30 | JN6: 2076-02-29 | JO6: 2076-05-31 | JP6: 2076-08-31 | JQ6: 2076-11-30 | JR6: 2077-02-28 | JS6: 2077-05-31 | JT6: 2077-08-31 | JU6: 2077-11-30 | JV6: 2078-02-28 | JW6: 2078-05-31 | JX6: 2078-08-31 | JY6: 2078-11-30 | JZ6: 2079-02-28 | KA6: 2079-05-31 | KB6: 2079-08-31 | KC6: 2079-11-30 | KD6: 2080-02-29 | KE6: 2080-05-31 | KF6: 2080-08-31 | KG6: 2080-11-30 | KH6: 2081-02-28 | KI6: 2081-05-31 | KJ6: 2081-08-31 | KK6: 2081-11-30 | KL6: 2082-02-28 | KM6: 2082-05-31 | KN6: 2082-08-31 | KO6: 2082-11-30 | KP6: 2083-02-28 | KQ6: 2083-05-31 | KR6: 2083-08-31 | KS6: 2083-11-30 | KT6: 2084-02-29 | KU6: 2084-05-31 | KV6: 2084-08-31
B7: Operating Period | G7: =F13 -> 2022-03-01 | H7: =F15 -> 2052-03-01 | I7: =AND(I$5>=$G7,I$5<$H7) -> FALSE | J7: =AND(J$5>=$G7,J$5<$H7) -> FALSE | K7: FALSE | L7: FALSE | M7: FALSE | N7: FALSE | O7: FALSE | P7: FALSE | Q7: FALSE | R7: FALSE | S7: FALSE | T7: FALSE | U7: FALSE | V7: FALSE | W7: FALSE | X7: FALSE | Y7: FALSE | Z7: FALSE | AA7: FALSE | AB7: FALSE | AC7: FALSE | AD7: FALSE | AE7: FALSE | AF7: FALSE | AG7: FALSE | AH7: FALSE | AI7: FALSE | AJ7: FALSE | AK7: FALSE | AL7: FALSE | AM7: FALSE | AN7: FALSE | AO7: FALSE | AP7: FALSE | AQ7: FALSE | AR7: FALSE | AS7: FALSE | AT7: FALSE | AU7: FALSE | AV7: FALSE | AW7: FALSE | AX7: FALSE | AY7: FALSE | AZ7: FALSE | BA7: FALSE | BB7: FALSE | BC7: FALSE | BD7: FALSE | BE7: FALSE | BF7: FALSE | BG7: TRUE | BH7: TRUE | BI7: TRUE | BJ7: TRUE | BK7: TRUE | BL7: TRUE | BM7: TRUE | BN7: TRUE | BO7: TRUE | BP7: TRUE | BQ7: TRUE | BR7: TRUE | BS7: TRUE | BT7: TRUE | BU7: TRUE | BV7: =AND(BV$5>=$G7,BV$5<$H7) -> TRUE | BW7: TRUE | BX7: TRUE | BY7: TRUE | BZ7: TRUE | CA7: TRUE | CB7: TRUE | CC7: TRUE | CD7: TRUE | CE7: TRUE | CF7: TRUE | CG7: TRUE | CH7: TRUE | CI7: TRUE | CJ7: TRUE | CK7: TRUE | CL7: TRUE | CM7: TRUE | CN7: TRUE | CO7: TRUE | CP7: TRUE | CQ7: TRUE | CR7: TRUE | CS7: TRUE | CT7: TRUE | CU7: TRUE | CV7: TRUE | CW7: TRUE | CX7: TRUE | CY7: TRUE | CZ7: TRUE | DA7: TRUE | DB7: TRUE | DC7: TRUE | DD7: TRUE | DE7: TRUE | DF7: TRUE | DG7: TRUE | DH7: TRUE | DI7: TRUE | DJ7: TRUE | DK7: TRUE | DL7: TRUE | DM7: TRUE | DN7: TRUE | DO7: TRUE | DP7: TRUE | DQ7: TRUE | DR7: TRUE | DS7: TRUE | DT7: TRUE | DU7: TRUE | DV7: TRUE | DW7: TRUE | DX7: TRUE | DY7: TRUE | DZ7: TRUE | EA7: TRUE | EB7: TRUE | EC7: TRUE | ED7: TRUE | EE7: TRUE | EF7: TRUE | EG7: TRUE | EH7: =AND(EH$5>=$G7,EH$5<$H7) -> TRUE | EI7: TRUE | EJ7: TRUE | EK7: TRUE | EL7: TRUE | EM7: TRUE | EN7: TRUE | EO7: TRUE | EP7: TRUE | EQ7: TRUE | ER7: TRUE | ES7: TRUE | ET7: TRUE | EU7: TRUE | EV7: TRUE | EW7: TRUE | EX7: TRUE | EY7: TRUE | EZ7: TRUE | FA7: TRUE | FB7: TRUE | FC7: TRUE | FD7: TRUE | FE7: TRUE | FF7: TRUE | FG7: TRUE | FH7: TRUE | FI7: TRUE | FJ7: TRUE | FK7: TRUE | FL7: TRUE | FM7: TRUE | FN7: TRUE | FO7: TRUE | FP7: TRUE | FQ7: TRUE | FR7: TRUE | FS7: TRUE | FT7: TRUE | FU7: TRUE | FV7: TRUE | FW7: FALSE | FX7: FALSE | FY7: FALSE | FZ7: FALSE | GA7: FALSE | GB7: FALSE | GC7: FALSE | GD7: FALSE | GE7: FALSE | GF7: FALSE | GG7: FALSE | GH7: FALSE | GI7: FALSE | GJ7: FALSE | GK7: FALSE | GL7: FALSE | GM7: FALSE | GN7: FALSE | GO7: FALSE | GP7: FALSE | GQ7: FALSE | GR7: FALSE | GS7: FALSE | GT7: =AND(GT$5>=$G7,GT$5<$H7) -> FALSE | GU7: FALSE | GV7: FALSE | GW7: FALSE | GX7: FALSE | GY7: FALSE | GZ7: FALSE | HA7: FALSE | HB7: FALSE | HC7: FALSE | HD7: FALSE | HE7: FALSE | HF7: FALSE | HG7: FALSE | HH7: FALSE | HI7: FALSE | HJ7: FALSE | HK7: FALSE | HL7: FALSE | HM7: FALSE | HN7: FALSE | HO7: FALSE | HP7: FALSE | HQ7: FALSE | HR7: FALSE | HS7: FALSE | HT7: FALSE | HU7: FALSE | HV7: FALSE | HW7: FALSE | HX7: FALSE | HY7: FALSE | HZ7: FALSE | IA7: FALSE | IB7: FALSE | IC7: FALSE | ID7: FALSE | IE7: FALSE | IF7: FALSE | IG7: FALSE | IH7: FALSE | II7: FALSE | IJ7: FALSE | IK7: FALSE | IL7: FALSE | IM7: FALSE | IN7: FALSE | IO7: FALSE | IP7: FALSE | IQ7: FALSE | IR7: FALSE | IS7: FALSE | IT7: FALSE | IU7: FALSE | IV7: FALSE | IW7: FALSE | IX7: FALSE | IY7: FALSE | IZ7: FALSE | JA7: FALSE | JB7: FALSE | JC7: FALSE | JD7: FALSE | JE7: FALSE | JF7: =AND(JF$5>=$G7,JF$5<$H7) -> FALSE | JG7: FALSE | JH7: FALSE | JI7: FALSE | JJ7: FALSE | JK7: FALSE | JL7: FALSE | JM7: FALSE | JN7: FALSE | JO7: FALSE | JP7: FALSE | JQ7: FALSE | JR7: FALSE | JS7: FALSE | JT7: FALSE | JU7: FALSE | JV7: FALSE | JW7: FALSE | JX7: FALSE | JY7: FALSE | JZ7: FALSE | KA7: FALSE | KB7: FALSE | KC7: FALSE | KD7: FALSE | KE7: FALSE | KF7: FALSE | KG7: FALSE | KH7: FALSE | KI7: FALSE | KJ7: FALSE | KK7: FALSE | KL7: FALSE | KM7: FALSE | KN7: FALSE | KO7: FALSE | KP7: FALSE | KQ7: FALSE | KR7: FALSE | KS7: FALSE | KT7: FALSE | KU7: FALSE | KV7: FALSE
A8: Dates
C9: Development Start | F9: 2018-01-01
C10: Development Period | E10: Months | F10: 20
C11: Financial Close | E11: Date | F11: =EDATE(F9,F10) -> 2019-09-01
C12: Construction | E12: Months | F12: 30
C13: Commercial Operation | E13: Date | F13: =EDATE(F11,F12) -> 2022-03-01
C14: Operation | E14: Years | F14: 30
C15: Decommissioning | E15: Date | F15: =EDATE(F13,F14*12) -> 2052-03-01
C16: Months Pre-COD | E16: Months | F16: 1
C17: Months Post-COD | E17: Months | F17: 3
A19: Capacity and Volumes
B20: Months after FC | I20: 10 | J20: 8 | K20: COD | L20: Decom
B21: Date | G21: =F9 -> 2018-01-01 | H21: =F11 -> 2019-09-01 | I21: =EDATE(H21,I20) -> 2020-07-01 | J21: =EDATE(I21,J20) -> 2021-03-01 | K21: =F13 -> 2022-03-01 | L21: =F15 -> 2052-03-01
B22: Capacity of Project | E22: Units/Day | G22: 0 | H22: 0 | I22: 100 | J22: 150 | K22: 1000 | L22: 0
L24: 2 | M24: 4 | N24: 6
B25: Date | G25: =G21 -> 2018-01-01 | H25: =H21 -> 2019-09-01 | I25: 2020-07-01 | J25: 2021-03-01 | K25: 2022-03-01 | L25: =EDATE(K25,L24*12) -> 2024-03-01 | M25: =EDATE(L25,M24*12) -> 2028-03-01 | N25: =EDATE(M25,N24*12) -> 2034-03-01 | O25: =L21 -> 2052-03-01
B26: Capacity Utilisation | E26: % | G26: 0 | H26: 0 | I26: 0.4 | J26: 0.6 | K26: 0.6 | L26: 0.64 | M26: 0.72 | N26: 0.8 | O26: 0.8

Sheet Physical - Complete
A1: Time Line
B2: Period Number | I2: 1 | J2: 2 | K2: 3 | L2: 4 | M2: 5 | N2: 6 | O2: 7 | P2: 8 | Q2: 9 | R2: 10 | S2: 11 | T2: 12 | U2: 13 | V2: 14 | W2: 15 | X2: 16 | Y2: 17 | Z2: 18 | AA2: 19 | AB2: 20 | AC2: 21 | AD2: 22 | AE2: 23 | AF2: 24 | AG2: 25 | AH2: 26 | AI2: 27 | AJ2: 28 | AK2: 29 | AL2: 30 | AM2: 31 | AN2: 32 | AO2: 33 | AP2: 34 | AQ2: 35 | AR2: 36 | AS2: 37 | AT2: 38 | AU2: 39 | AV2: 40 | AW2: 41 | AX2: 42 | AY2: 43 | AZ2: 44 | BA2: 45 | BB2: 46 | BC2: 47 | BD2: 48 | BE2: 49 | BF2: 50 | BG2: 51 | BH2: 52 | BI2: 53 | BJ2: 54 | BK2: 55 | BL2: 56 | BM2: 57 | BN2: 58 | BO2: 59 | BP2: 60 | BQ2: 61 | BR2: 62 | BS2: 63 | BT2: 64 | BU2: 65 | BV2: 66 | BW2: 67 | BX2: 68 | BY2: 69 | BZ2: 70 | CA2: 71 | CB2: 72 | CC2: 73 | CD2: 74 | CE2: 75 | CF2: 76 | CG2: 77 | CH2: 78 | CI2: 79 | CJ2: 80 | CK2: 81 | CL2: 82 | CM2: 83 | CN2: 84 | CO2: 85 | CP2: 86 | CQ2: 87 | CR2: 88 | CS2: 89 | CT2: 90 | CU2: 91 | CV2: 92 | CW2: 93 | CX2: 94 | CY2: 95 | CZ2: 96 | DA2: 97 | DB2: 98 | DC2: 99 | DD2: 100 | DE2: 101 | DF2: 102 | DG2: 103 | DH2: 104 | DI2: 105 | DJ2: 106 | DK2: 107 | DL2: 108 | DM2: 109 | DN2: 110 | DO2: 111 | DP2: 112 | DQ2: 113 | DR2: 114 | DS2: 115 | DT2: 116 | DU2: 117 | DV2: 118 | DW2: 119 | DX2: 120 | DY2: 121 | DZ2: 122 | EA2: 123 | EB2: 124 | EC2: 125 | ED2: 126 | EE2: 127 | EF2: 128 | EG2: 129 | EH2: 130 | EI2: 131 | EJ2: 132 | EK2: 133 | EL2: 134 | EM2: 135 | EN2: 136 | EO2: 137 | EP2: 138 | EQ2: 139 | ER2: 140 | ES2: 141 | ET2: 142 | EU2: 143 | EV2: 144 | EW2: 145 | EX2: 146 | EY2: 147 | EZ2: 148 | FA2: 149 | FB2: 150 | FC2: 151 | FD2: 152 | FE2: 153 | FF2: 154 | FG2: 155 | FH2: 156 | FI2: 157 | FJ2: 158 | FK2: 159 | FL2: 160 | FM2: 161 | FN2: 162 | FO2: 163 | FP2: 164 | FQ2: 165 | FR2: 166 | FS2: 167 | FT2: 168 | FU2: 169 | FV2: 170 | FW2: 171 | FX2: 172 | FY2: 173 | FZ2: 174 | GA2: 175 | GB2: 176 | GC2: 177 | GD2: 178 | GE2: 179 | GF2: 180 | GG2: 181 | GH2: 182 | GI2: 183 | GJ2: 184 | GK2: 185 | GL2: 186 | GM2: 187 | GN2: 188 | GO2: 189 | GP2: 190 | GQ2: 191 | GR2: 192 | GS2: 193 | GT2: 194 | GU2: 195 | GV2: 196 | GW2: 197 | GX2: 198 | GY2: 199 | GZ2: 200 | HA2: 201 | HB2: 202 | HC2: 203 | HD2: 204 | HE2: 205 | HF2: 206 | HG2: 207 | HH2: 208 | HI2: 209 | HJ2: 210 | HK2: 211 | HL2: 212 | HM2: 213 | HN2: 214 | HO2: 215 | HP2: 216 | HQ2: 217 | HR2: 218 | HS2: 219 | HT2: 220 | HU2: 221 | HV2: 222 | HW2: 223 | HX2: 224 | HY2: 225 | HZ2: 226 | IA2: 227 | IB2: 228 | IC2: 229 | ID2: 230 | IE2: 231 | IF2: 232 | IG2: 233 | IH2: 234 | II2: 235 | IJ2: 236 | IK2: 237 | IL2: 238 | IM2: 239 | IN2: 240 | IO2: 241 | IP2: 242 | IQ2: 243 | IR2: 244 | IS2: 245 | IT2: 246 | IU2: 247 | IV2: 248 | IW2: 249 | IX2: 250 | IY2: 251 | IZ2: 252 | JA2: 253 | JB2: 254 | JC2: 255 | JD2: 256 | JE2: 257 | JF2: 258 | JG2: 259 | JH2: 260 | JI2: 261 | JJ2: 262 | JK2: 263 | JL2: 264 | JM2: 265 | JN2: 266 | JO2: 267 | JP2: 268 | JQ2: 269 | JR2: 270 | JS2: 271 | JT2: 272 | JU2: 273 | JV2: 274 | JW2: 275 | JX2: 276 | JY2: 277 | JZ2: 278 | KA2: 279 | KB2: 280 | KC2: 281 | KD2: 282 | KE2: 283 | KF2: 284 | KG2: 285 | KH2: 286 | KI2: 287 | KJ2: 288 | KK2: 289 | KL2: 290 | KM2: 291 | KN2: 292 | KO2: 293 | KP2: 294 | KQ2: 295 | KR2: 296 | KS2: 297 | KT2: 298 | KU2: 299 | KV2: 300
B3: Pre-COD Switch | E3: Pre-cod | G3: =F10+F12 -> 50 | I3: =I2<=$G$3 -> TRUE | J3: =J2<=$G$3 -> TRUE | K3: TRUE | L3: TRUE | M3: TRUE | N3: TRUE | O3: TRUE | P3: TRUE | Q3: TRUE | R3: TRUE | S3: TRUE | T3: TRUE | U3: TRUE | V3: TRUE | W3: TRUE | X3: TRUE | Y3: TRUE | Z3: TRUE | AA3: TRUE | AB3: TRUE | AC3: TRUE | AD3: TRUE | AE3: TRUE | AF3: TRUE | AG3: TRUE | AH3: TRUE | AI3: TRUE | AJ3: TRUE | AK3: TRUE | AL3: TRUE | AM3: TRUE | AN3: TRUE | AO3: TRUE | AP3: TRUE | AQ3: TRUE | AR3: TRUE | AS3: TRUE | AT3: TRUE | AU3: TRUE | AV3: TRUE | AW3: TRUE | AX3: TRUE | AY3: TRUE | AZ3: TRUE | BA3: TRUE | BB3: TRUE | BC3: TRUE | BD3: TRUE | BE3: TRUE | BF3: TRUE | BG3: FALSE | BH3: FALSE | BI3: FALSE | BJ3: FALSE | BK3: FALSE | BL3: FALSE | BM3: FALSE | BN3: FALSE | BO3: FALSE | BP3: FALSE | BQ3: FALSE | BR3: FALSE | BS3: FALSE | BT3: FALSE | BU3: FALSE | BV3: =BV2<=$G$3 -> FALSE | BW3: FALSE | BX3: FALSE | BY3: FALSE | BZ3: FALSE | CA3: FALSE | CB3: FALSE | CC3: FALSE | CD3: FALSE | CE3: FALSE | CF3: FALSE | CG3: FALSE | CH3: FALSE | CI3: FALSE | CJ3: FALSE | CK3: FALSE | CL3: FALSE | CM3: FALSE | CN3: FALSE | CO3: FALSE | CP3: FALSE | CQ3: FALSE | CR3: FALSE | CS3: FALSE | CT3: FALSE | CU3: FALSE | CV3: FALSE | CW3: FALSE | CX3: FALSE | CY3: FALSE | CZ3: FALSE | DA3: FALSE | DB3: FALSE | DC3: FALSE | DD3: FALSE | DE3: FALSE | DF3: FALSE | DG3: FALSE | DH3: FALSE | DI3: FALSE | DJ3: FALSE | DK3: FALSE | DL3: FALSE | DM3: FALSE | DN3: FALSE | DO3: FALSE | DP3: FALSE | DQ3: FALSE | DR3: FALSE | DS3: FALSE | DT3: FALSE | DU3: FALSE | DV3: FALSE | DW3: FALSE | DX3: FALSE | DY3: FALSE | DZ3: FALSE | EA3: FALSE | EB3: FALSE | EC3: FALSE | ED3: FALSE | EE3: FALSE | EF3: FALSE | EG3: FALSE | EH3: =EH2<=$G$3 -> FALSE | EI3: FALSE | EJ3: FALSE | EK3: FALSE | EL3: FALSE | EM3: FALSE | EN3: FALSE | EO3: FALSE | EP3: FALSE | EQ3: FALSE | ER3: FALSE | ES3: FALSE | ET3: FALSE | EU3: FALSE | EV3: FALSE | EW3: FALSE | EX3: FALSE | EY3: FALSE | EZ3: FALSE | FA3: FALSE | FB3: FALSE | FC3: FALSE | FD3: FALSE | FE3: FALSE | FF3: FALSE | FG3: FALSE | FH3: FALSE | FI3: FALSE | FJ3: FALSE | FK3: FALSE | FL3: FALSE | FM3: FALSE | FN3: FALSE | FO3: FALSE | FP3: FALSE | FQ3: FALSE | FR3: FALSE | FS3: FALSE | FT3: FALSE | FU3: FALSE | FV3: FALSE | FW3: FALSE | FX3: FALSE | FY3: FALSE | FZ3: FALSE | GA3: FALSE | GB3: FALSE | GC3: FALSE | GD3: FALSE | GE3: FALSE | GF3: FALSE | GG3: FALSE | GH3: FALSE | GI3: FALSE | GJ3: FALSE | GK3: FALSE | GL3: FALSE | GM3: FALSE | GN3: FALSE | GO3: FALSE | GP3: FALSE | GQ3: FALSE | GR3: FALSE | GS3: FALSE | GT3: =GT2<=$G$3 -> FALSE | GU3: FALSE | GV3: FALSE | GW3: FALSE | GX3: FALSE | GY3: FALSE | GZ3: FALSE | HA3: FALSE | HB3: FALSE | HC3: FALSE | HD3: FALSE | HE3: FALSE | HF3: FALSE | HG3: FALSE | HH3: FALSE | HI3: FALSE | HJ3: FALSE | HK3: FALSE | HL3: FALSE | HM3: FALSE | HN3: FALSE | HO3: FALSE | HP3: FALSE | HQ3: FALSE | HR3: FALSE | HS3: FALSE | HT3: FALSE | HU3: FALSE | HV3: FALSE | HW3: FALSE | HX3: FALSE | HY3: FALSE | HZ3: FALSE | IA3: FALSE | IB3: FALSE | IC3: FALSE | ID3: FALSE | IE3: FALSE | IF3: FALSE | IG3: FALSE | IH3: FALSE | II3: FALSE | IJ3: FALSE | IK3: FALSE | IL3: FALSE | IM3: FALSE | IN3: FALSE | IO3: FALSE | IP3: FALSE | IQ3: FALSE | IR3: FALSE | IS3: FALSE | IT3: FALSE | IU3: FALSE | IV3: FALSE | IW3: FALSE | IX3: FALSE | IY3: FALSE | IZ3: FALSE | JA3: FALSE | JB3: FALSE | JC3: FALSE | JD3: FALSE | JE3: FALSE | JF3: =JF2<=$G$3 -> FALSE | JG3: FALSE | JH3: FALSE | JI3: FALSE | JJ3: FALSE | JK3: FALSE | JL3: FALSE | JM3: FALSE | JN3: FALSE | JO3: FALSE | JP3: FALSE | JQ3: FALSE | JR3: FALSE | JS3: FALSE | JT3: FALSE | JU3: FALSE | JV3: FALSE | JW3: FALSE | JX3: FALSE | JY3: FALSE | JZ3: FALSE | KA3: FALSE | KB3: FALSE | KC3: FALSE | KD3: FALSE | KE3: FALSE | KF3: FALSE | KG3: FALSE | KH3: FALSE | KI3: FALSE | KJ3: FALSE | KK3: FALSE | KL3: FALSE | KM3: FALSE | KN3: FALSE | KO3: FALSE | KP3: FALSE | KQ3: FALSE | KR3: FALSE | KS3: FALSE | KT3: FALSE | KU3: FALSE | KV3: FALSE
B4: Months in Period | E4: Pre post | F4: =F16 -> 1 | G4: =F17 -> 3 | I4: =IF(I3,$F$4,$G$4) -> 1 | J4: =IF(J3,$F$4,$G$4) -> 1 | K4: 1 | L4: 1 | M4: 1 | N4: 1 | O4: 1 | P4: 1 | Q4: 1 | R4: 1 | S4: 1 | T4: 1 | U4: 1 | V4: 1 | W4: 1 | X4: 1 | Y4: 1 | Z4: 1 | AA4: 1 | AB4: 1 | AC4: 1 | AD4: 1 | AE4: 1 | AF4: 1 | AG4: 1 | AH4: 1 | AI4: 1 | AJ4: 1 | AK4: 1 | AL4: 1 | AM4: 1 | AN4: 1 | AO4: 1 | AP4: 1 | AQ4: 1 | AR4: 1 | AS4: 1 | AT4: 1 | AU4: 1 | AV4: 1 | AW4: 1 | AX4: 1 | AY4: 1 | AZ4: 1 | BA4: 1 | BB4: 1 | BC4: 1 | BD4: 1 | BE4: 1 | BF4: 1 | BG4: 3 | BH4: 3 | BI4: 3 | BJ4: 3 | BK4: 3 | BL4: 3 | BM4: 3 | BN4: 3 | BO4: 3 | BP4: 3 | BQ4: 3 | BR4: 3 | BS4: 3 | BT4: 3 | BU4: 3 | BV4: =IF(BV3,$F$4,$G$4) -> 3 | BW4: 3 | BX4: 3 | BY4: 3 | BZ4: 3 | CA4: 3 | CB4: 3 | CC4: 3 | CD4: 3 | CE4: 3 | CF4: 3 | CG4: 3 | CH4: 3 | CI4: 3 | CJ4: 3 | CK4: 3 | CL4: 3 | CM4: 3 | CN4: 3 | CO4: 3 | CP4: 3 | CQ4: 3 | CR4: 3 | CS4: 3 | CT4: 3 | CU4: 3 | CV4: 3 | CW4: 3 | CX4: 3 | CY4: 3 | CZ4: 3 | DA4: 3 | DB4: 3 | DC4: 3 | DD4: 3 | DE4: 3 | DF4: 3 | DG4: 3 | DH4: 3 | DI4: 3 | DJ4: 3 | DK4: 3 | DL4: 3 | DM4: 3 | DN4: 3 | DO4: 3 | DP4: 3 | DQ4: 3 | DR4: 3 | DS4: 3 | DT4: 3 | DU4: 3 | DV4: 3 | DW4: 3 | DX4: 3 | DY4: 3 | DZ4: 3 | EA4: 3 | EB4: 3 | EC4: 3 | ED4: 3 | EE4: 3 | EF4: 3 | EG4: 3 | EH4: =IF(EH3,$F$4,$G$4) -> 3 | EI4: 3 | EJ4: 3 | EK4: 3 | EL4: 3 | EM4: 3 | EN4: 3 | EO4: 3 | EP4: 3 | EQ4: 3 | ER4: 3 | ES4: 3 | ET4: 3 | EU4: 3 | EV4: 3 | EW4: 3 | EX4: 3 | EY4: 3 | EZ4: 3 | FA4: 3 | FB4: 3 | FC4: 3 | FD4: 3 | FE4: 3 | FF4: 3 | FG4: 3 | FH4: 3 | FI4: 3 | FJ4: 3 | FK4: 3 | FL4: 3 | FM4: 3 | FN4: 3 | FO4: 3 | FP4: 3 | FQ4: 3 | FR4: 3 | FS4: 3 | FT4: 3 | FU4: 3 | FV4: 3 | FW4: 3 | FX4: 3 | FY4: 3 | FZ4: 3 | GA4: 3 | GB4: 3 | GC4: 3 | GD4: 3 | GE4: 3 | GF4: 3 | GG4: 3 | GH4: 3 | GI4: 3 | GJ4: 3 | GK4: 3 | GL4: 3 | GM4: 3 | GN4: 3 | GO4: 3 | GP4: 3 | GQ4: 3 | GR4: 3 | GS4: 3 | GT4: =IF(GT3,$F$4,$G$4) -> 3 | GU4: 3 | GV4: 3 | GW4: 3 | GX4: 3 | GY4: 3 | GZ4: 3 | HA4: 3 | HB4: 3 | HC4: 3 | HD4: 3 | HE4: 3 | HF4: 3 | HG4: 3 | HH4: 3 | HI4: 3 | HJ4: 3 | HK4: 3 | HL4: 3 | HM4: 3 | HN4: 3 | HO4: 3 | HP4: 3 | HQ4: 3 | HR4: 3 | HS4: 3 | HT4: 3 | HU4: 3 | HV4: 3 | HW4: 3 | HX4: 3 | HY4: 3 | HZ4: 3 | IA4: 3 | IB4: 3 | IC4: 3 | ID4: 3 | IE4: 3 | IF4: 3 | IG4: 3 | IH4: 3 | II4: 3 | IJ4: 3 | IK4: 3 | IL4: 3 | IM4: 3 | IN4: 3 | IO4: 3 | IP4: 3 | IQ4: 3 | IR4: 3 | IS4: 3 | IT4: 3 | IU4: 3 | IV4: 3 | IW4: 3 | IX4: 3 | IY4: 3 | IZ4: 3 | JA4: 3 | JB4: 3 | JC4: 3 | JD4: 3 | JE4: 3 | JF4: =IF(JF3,$F$4,$G$4) -> 3 | JG4: 3 | JH4: 3 | JI4: 3 | JJ4: 3 | JK4: 3 | JL4: 3 | JM4: 3 | JN4: 3 | JO4: 3 | JP4: 3 | JQ4: 3 | JR4: 3 | JS4: 3 | JT4: 3 | JU4: 3 | JV4: 3 | JW4: 3 | JX4: 3 | JY4: 3 | JZ4: 3 | KA4: 3 | KB4: 3 | KC4: 3 | KD4: 3 | KE4: 3 | KF4: 3 | KG4: 3 | KH4: 3 | KI4: 3 | KJ4: 3 | KK4: 3 | KL4: 3 | KM4: 3 | KN4: 3 | KO4: 3 | KP4: 3 | KQ4: 3 | KR4: 3 | KS4: 3 | KT4: 3 | KU4: 3 | KV4: 3
B5: Start of Period | I5: =H6+1 -> 2018-01-01 | J5: =I6+1 -> 2018-02-01 | K5: 2018-03-01 | L5: 2018-04-01 | M5: 2018-05-01 | N5: 2018-06-01 | O5: 2018-07-01 | P5: 2018-08-01 | Q5: 2018-09-01 | R5: 2018-10-01 | S5: 2018-11-01 | T5: 2018-12-01 | U5: 2019-01-01 | V5: 2019-02-01 | W5: 2019-03-01 | X5: 2019-04-01 | Y5: 2019-05-01 | Z5: 2019-06-01 | AA5: 2019-07-01 | AB5: 2019-08-01 | AC5: 2019-09-01 | AD5: 2019-10-01 | AE5: 2019-11-01 | AF5: 2019-12-01 | AG5: 2020-01-01 | AH5: 2020-02-01 | AI5: 2020-03-01 | AJ5: 2020-04-01 | AK5: 2020-05-01 | AL5: 2020-06-01 | AM5: 2020-07-01 | AN5: 2020-08-01 | AO5: 2020-09-01 | AP5: 2020-10-01 | AQ5: 2020-11-01 | AR5: 2020-12-01 | AS5: 2021-01-01 | AT5: 2021-02-01 | AU5: 2021-03-01 | AV5: 2021-04-01 | AW5: 2021-05-01 | AX5: 2021-06-01 | AY5: 2021-07-01 | AZ5: 2021-08-01 | BA5: 2021-09-01 | BB5: 2021-10-01 | BC5: 2021-11-01 | BD5: 2021-12-01 | BE5: 2022-01-01 | BF5: 2022-02-01 | BG5: 2022-03-01 | BH5: 2022-06-01 | BI5: 2022-09-01 | BJ5: 2022-12-01 | BK5: 2023-03-01 | BL5: 2023-06-01 | BM5: 2023-09-01 | BN5: 2023-12-01 | BO5: 2024-03-01 | BP5: 2024-06-01 | BQ5: 2024-09-01 | BR5: 2024-12-01 | BS5: 2025-03-01 | BT5: 2025-06-01 | BU5: 2025-09-01 | BV5: =BU6+1 -> 2025-12-01 | BW5: 2026-03-01 | BX5: 2026-06-01 | BY5: 2026-09-01 | BZ5: 2026-12-01 | CA5: 2027-03-01 | CB5: 2027-06-01 | CC5: 2027-09-01 | CD5: 2027-12-01 | CE5: 2028-03-01 | CF5: 2028-06-01 | CG5: 2028-09-01 | CH5: 2028-12-01 | CI5: 2029-03-01 | CJ5: 2029-06-01 | CK5: 2029-09-01 | CL5: 2029-12-01 | CM5: 2030-03-01 | CN5: 2030-06-01 | CO5: 2030-09-01 | CP5: 2030-12-01 | CQ5: 2031-03-01 | CR5: 2031-06-01 | CS5: 2031-09-01 | CT5: 2031-12-01 | CU5: 2032-03-01 | CV5: 2032-06-01 | CW5: 2032-09-01 | CX5: 2032-12-01 | CY5: 2033-03-01 | CZ5: 2033-06-01 | DA5: 2033-09-01 | DB5: 2033-12-01 | DC5: 2034-03-01 | DD5: 2034-06-01 | DE5: 2034-09-01 | DF5: 2034-12-01 | DG5: 2035-03-01 | DH5: 2035-06-01 | DI5: 2035-09-01 | DJ5: 2035-12-01 | DK5: 2036-03-01 | DL5: 2036-06-01 | DM5: 2036-09-01 | DN5: 2036-12-01 | DO5: 2037-03-01 | DP5: 2037-06-01 | DQ5: 2037-09-01 | DR5: 2037-12-01 | DS5: 2038-03-01 | DT5: 2038-06-01 | DU5: 2038-09-01 | DV5: 2038-12-01 | DW5: 2039-03-01 | DX5: 2039-06-01 | DY5: 2039-09-01 | DZ5: 2039-12-01 | EA5: 2040-03-01 | EB5: 2040-06-01 | EC5: 2040-09-01 | ED5: 2040-12-01 | EE5: 2041-03-01 | EF5: 2041-06-01 | EG5: 2041-09-01 | EH5: =EG6+1 -> 2041-12-01 | EI5: 2042-03-01 | EJ5: 2042-06-01 | EK5: 2042-09-01 | EL5: 2042-12-01 | EM5: 2043-03-01 | EN5: 2043-06-01 | EO5: 2043-09-01 | EP5: 2043-12-01 | EQ5: 2044-03-01 | ER5: 2044-06-01 | ES5: 2044-09-01 | ET5: 2044-12-01 | EU5: 2045-03-01 | EV5: 2045-06-01 | EW5: 2045-09-01 | EX5: 2045-12-01 | EY5: 2046-03-01 | EZ5: 2046-06-01 | FA5: 2046-09-01 | FB5: 2046-12-01 | FC5: 2047-03-01 | FD5: 2047-06-01 | FE5: 2047-09-01 | FF5: 2047-12-01 | FG5: 2048-03-01 | FH5: 2048-06-01 | FI5: 2048-09-01 | FJ5: 2048-12-01 | FK5: 2049-03-01 | FL5: 2049-06-01 | FM5: 2049-09-01 | FN5: 2049-12-01 | FO5: 2050-03-01 | FP5: 2050-06-01 | FQ5: 2050-09-01 | FR5: 2050-12-01 | FS5: 2051-03-01 | FT5: 2051-06-01 | FU5: 2051-09-01 | FV5: 2051-12-01 | FW5: 2052-03-01 | FX5: 2052-06-01 | FY5: 2052-09-01 | FZ5: 2052-12-01 | GA5: 2053-03-01 | GB5: 2053-06-01 | GC5: 2053-09-01 | GD5: 2053-12-01 | GE5: 2054-03-01 | GF5: 2054-06-01 | GG5: 2054-09-01 | GH5: 2054-12-01 | GI5: 2055-03-01 | GJ5: 2055-06-01 | GK5: 2055-09-01 | GL5: 2055-12-01 | GM5: 2056-03-01 | GN5: 2056-06-01 | GO5: 2056-09-01 | GP5: 2056-12-01 | GQ5: 2057-03-01 | GR5: 2057-06-01 | GS5: 2057-09-01 | GT5: =GS6+1 -> 2057-12-01 | GU5: 2058-03-01 | GV5: 2058-06-01 | GW5: 2058-09-01 | GX5: 2058-12-01 | GY5: 2059-03-01 | GZ5: 2059-06-01 | HA5: 2059-09-01 | HB5: 2059-12-01 | HC5: 2060-03-01 | HD5: 2060-06-01 | HE5: 2060-09-01 | HF5: 2060-12-01 | HG5: 2061-03-01 | HH5: 2061-06-01 | HI5: 2061-09-01 | HJ5: 2061-12-01 | HK5: 2062-03-01 | HL5: 2062-06-01 | HM5: 2062-09-01 | HN5: 2062-12-01 | HO5: 2063-03-01 | HP5: 2063-06-01 | HQ5: 2063-09-01 | HR5: 2063-12-01 | HS5: 2064-03-01 | HT5: 2064-06-01 | HU5: 2064-09-01 | HV5: 2064-12-01 | HW5: 2065-03-01 | HX5: 2065-06-01 | HY5: 2065-09-01 | HZ5: 2065-12-01 | IA5: 2066-03-01 | IB5: 2066-06-01 | IC5: 2066-09-01 | ID5: 2066-12-01 | IE5: 2067-03-01 | IF5: 2067-06-01 | IG5: 2067-09-01 | IH5: 2067-12-01 | II5: 2068-03-01 | IJ5: 2068-06-01 | IK5: 2068-09-01 | IL5: 2068-12-01 | IM5: 2069-03-01 | IN5: 2069-06-01 | IO5: 2069-09-01 | IP5: 2069-12-01 | IQ5: 2070-03-01 | IR5: 2070-06-01 | IS5: 2070-09-01 | IT5: 2070-12-01 | IU5: 2071-03-01 | IV5: 2071-06-01 | IW5: 2071-09-01 | IX5: 2071-12-01 | IY5: 2072-03-01 | IZ5: 2072-06-01 | JA5: 2072-09-01 | JB5: 2072-12-01 | JC5: 2073-03-01 | JD5: 2073-06-01 | JE5: 2073-09-01 | JF5: =JE6+1 -> 2073-12-01 | JG5: 2074-03-01 | JH5: 2074-06-01 | JI5: 2074-09-01 | JJ5: 2074-12-01 | JK5: 2075-03-01 | JL5: 2075-06-01 | JM5: 2075-09-01 | JN5: 2075-12-01 | JO5: 2076-03-01 | JP5: 2076-06-01 | JQ5: 2076-09-01 | JR5: 2076-12-01 | JS5: 2077-03-01 | JT5: 2077-06-01 | JU5: 2077-09-01 | JV5: 2077-12-01 | JW5: 2078-03-01 | JX5: 2078-06-01 | JY5: 2078-09-01 | JZ5: 2078-12-01 | KA5: 2079-03-01 | KB5: 2079-06-01 | KC5: 2079-09-01 | KD5: 2079-12-01 | KE5: 2080-03-01 | KF5: 2080-06-01 | KG5: 2080-09-01 | KH5: 2080-12-01 | KI5: 2081-03-01 | KJ5: 2081-06-01 | KK5: 2081-09-01 | KL5: 2081-12-01 | KM5: 2082-03-01 | KN5: 2082-06-01 | KO5: 2082-09-01 | KP5: 2082-12-01 | KQ5: 2083-03-01 | KR5: 2083-06-01 | KS5: 2083-09-01 | KT5: 2083-12-01 | KU5: 2084-03-01 | KV5: 2084-06-01
B6: End of Period | H6: =F9-1 -> 2017-12-31 | I6: =EDATE(I5,I4)-1 -> 2018-01-31 | J6: =EDATE(J5,J4)-1 -> 2018-02-28 | K6: 2018-03-31 | L6: 2018-04-30 | M6: 2018-05-31 | N6: 2018-06-30 | O6: 2018-07-31 | P6: 2018-08-31 | Q6: 2018-09-30 | R6: 2018-10-31 | S6: 2018-11-30 | T6: 2018-12-31 | U6: 2019-01-31 | V6: 2019-02-28 | W6: 2019-03-31 | X6: 2019-04-30 | Y6: 2019-05-31 | Z6: 2019-06-30 | AA6: 2019-07-31 | AB6: 2019-08-31 | AC6: 2019-09-30 | AD6: 2019-10-31 | AE6: 2019-11-30 | AF6: 2019-12-31 | AG6: 2020-01-31 | AH6: 2020-02-29 | AI6: 2020-03-31 | AJ6: 2020-04-30 | AK6: 2020-05-31 | AL6: 2020-06-30 | AM6: 2020-07-31 | AN6: 2020-08-31 | AO6: 2020-09-30 | AP6: 2020-10-31 | AQ6: 2020-11-30 | AR6: 2020-12-31 | AS6: 2021-01-31 | AT6: 2021-02-28 | AU6: 2021-03-31 | AV6: 2021-04-30 | AW6: 2021-05-31 | AX6: 2021-06-30 | AY6: 2021-07-31 | AZ6: 2021-08-31 | BA6: 2021-09-30 | BB6: 2021-10-31 | BC6: 2021-11-30 | BD6: 2021-12-31 | BE6: 2022-01-31 | BF6: 2022-02-28 | BG6: 2022-05-31 | BH6: 2022-08-31 | BI6: 2022-11-30 | BJ6: 2023-02-28 | BK6: 2023-05-31 | BL6: 2023-08-31 | BM6: 2023-11-30 | BN6: 2024-02-29 | BO6: 2024-05-31 | BP6: 2024-08-31 | BQ6: 2024-11-30 | BR6: 2025-02-28 | BS6: 2025-05-31 | BT6: 2025-08-31 | BU6: 2025-11-30 | BV6: =EDATE(BV5,BV4)-1 -> 2026-02-28 | BW6: 2026-05-31 | BX6: 2026-08-31 | BY6: 2026-11-30 | BZ6: 2027-02-28 | CA6: 2027-05-31 | CB6: 2027-08-31 | CC6: 2027-11-30 | CD6: 2028-02-29 | CE6: 2028-05-31 | CF6: 2028-08-31 | CG6: 2028-11-30 | CH6: 2029-02-28 | CI6: 2029-05-31 | CJ6: 2029-08-31 | CK6: 2029-11-30 | CL6: 2030-02-28 | CM6: 2030-05-31 | CN6: 2030-08-31 | CO6: 2030-11-30 | CP6: 2031-02-28 | CQ6: 2031-05-31 | CR6: 2031-08-31 | CS6: 2031-11-30 | CT6: 2032-02-29 | CU6: 2032-05-31 | CV6: 2032-08-31 | CW6: 2032-11-30 | CX6: 2033-02-28 | CY6: 2033-05-31 | CZ6: 2033-08-31 | DA6: 2033-11-30 | DB6: 2034-02-28 | DC6: 2034-05-31 | DD6: 2034-08-31 | DE6: 2034-11-30 | DF6: 2035-02-28 | DG6: 2035-05-31 | DH6: 2035-08-31 | DI6: 2035-11-30 | DJ6: 2036-02-29 | DK6: 2036-05-31 | DL6: 2036-08-31 | DM6: 2036-11-30 | DN6: 2037-02-28 | DO6: 2037-05-31 | DP6: 2037-08-31 | DQ6: 2037-11-30 | DR6: 2038-02-28 | DS6: 2038-05-31 | DT6: 2038-08-31 | DU6: 2038-11-30 | DV6: 2039-02-28 | DW6: 2039-05-31 | DX6: 2039-08-31 | DY6: 2039-11-30 | DZ6: 2040-02-29 | EA6: 2040-05-31 | EB6: 2040-08-31 | EC6: 2040-11-30 | ED6: 2041-02-28 | EE6: 2041-05-31 | EF6: 2041-08-31 | EG6: 2041-11-30 | EH6: =EDATE(EH5,EH4)-1 -> 2042-02-28 | EI6: 2042-05-31 | EJ6: 2042-08-31 | EK6: 2042-11-30 | EL6: 2043-02-28 | EM6: 2043-05-31 | EN6: 2043-08-31 | EO6: 2043-11-30 | EP6: 2044-02-29 | EQ6: 2044-05-31 | ER6: 2044-08-31 | ES6: 2044-11-30 | ET6: 2045-02-28 | EU6: 2045-05-31 | EV6: 2045-08-31 | EW6: 2045-11-30 | EX6: 2046-02-28 | EY6: 2046-05-31 | EZ6: 2046-08-31 | FA6: 2046-11-30 | FB6: 2047-02-28 | FC6: 2047-05-31 | FD6: 2047-08-31 | FE6: 2047-11-30 | FF6: 2048-02-29 | FG6: 2048-05-31 | FH6: 2048-08-31 | FI6: 2048-11-30 | FJ6: 2049-02-28 | FK6: 2049-05-31 | FL6: 2049-08-31 | FM6: 2049-11-30 | FN6: 2050-02-28 | FO6: 2050-05-31 | FP6: 2050-08-31 | FQ6: 2050-11-30 | FR6: 2051-02-28 | FS6: 2051-05-31 | FT6: 2051-08-31 | FU6: 2051-11-30 | FV6: 2052-02-29 | FW6: 2052-05-31 | FX6: 2052-08-31 | FY6: 2052-11-30 | FZ6: 2053-02-28 | GA6: 2053-05-31 | GB6: 2053-08-31 | GC6: 2053-11-30 | GD6: 2054-02-28 | GE6: 2054-05-31 | GF6: 2054-08-31 | GG6: 2054-11-30 | GH6: 2055-02-28 | GI6: 2055-05-31 | GJ6: 2055-08-31 | GK6: 2055-11-30 | GL6: 2056-02-29 | GM6: 2056-05-31 | GN6: 2056-08-31 | GO6: 2056-11-30 | GP6: 2057-02-28 | GQ6: 2057-05-31 | GR6: 2057-08-31 | GS6: 2057-11-30 | GT6: =EDATE(GT5,GT4)-1 -> 2058-02-28 | GU6: 2058-05-31 | GV6: 2058-08-31 | GW6: 2058-11-30 | GX6: 2059-02-28 | GY6: 2059-05-31 | GZ6: 2059-08-31 | HA6: 2059-11-30 | HB6: 2060-02-29 | HC6: 2060-05-31 | HD6: 2060-08-31 | HE6: 2060-11-30 | HF6: 2061-02-28 | HG6: 2061-05-31 | HH6: 2061-08-31 | HI6: 2061-11-30 | HJ6: 2062-02-28 | HK6: 2062-05-31 | HL6: 2062-08-31 | HM6: 2062-11-30 | HN6: 2063-02-28 | HO6: 2063-05-31 | HP6: 2063-08-31 | HQ6: 2063-11-30 | HR6: 2064-02-29 | HS6: 2064-05-31 | HT6: 2064-08-31 | HU6: 2064-11-30 | HV6: 2065-02-28 | HW6: 2065-05-31 | HX6: 2065-08-31 | HY6: 2065-11-30 | HZ6: 2066-02-28 | IA6: 2066-05-31 | IB6: 2066-08-31 | IC6: 2066-11-30 | ID6: 2067-02-28 | IE6: 2067-05-31 | IF6: 2067-08-31 | IG6: 2067-11-30 | IH6: 2068-02-29 | II6: 2068-05-31 | IJ6: 2068-08-31 | IK6: 2068-11-30 | IL6: 2069-02-28 | IM6: 2069-05-31 | IN6: 2069-08-31 | IO6: 2069-11-30 | IP6: 2070-02-28 | IQ6: 2070-05-31 | IR6: 2070-08-31 | IS6: 2070-11-30 | IT6: 2071-02-28 | IU6: 2071-05-31 | IV6: 2071-08-31 | IW6: 2071-11-30 | IX6: 2072-02-29 | IY6: 2072-05-31 | IZ6: 2072-08-31 | JA6: 2072-11-30 | JB6: 2073-02-28 | JC6: 2073-05-31 | JD6: 2073-08-31 | JE6: 2073-11-30 | JF6: =EDATE(JF5,JF4)-1 -> 2074-02-28 | JG6: 2074-05-31 | JH6: 2074-08-31 | JI6: 2074-11-30 | JJ6: 2075-02-28 | JK6: 2075-05-31 | JL6: 2075-08-31 | JM6: 2075-11-30 | JN6: 2076-02-29 | JO6: 2076-05-31 | JP6: 2076-08-31 | JQ6: 2076-11-30 | JR6: 2077-02-28 | JS6: 2077-05-31 | JT6: 2077-08-31 | JU6: 2077-11-30 | JV6: 2078-02-28 | JW6: 2078-05-31 | JX6: 2078-08-31 | JY6: 2078-11-30 | JZ6: 2079-02-28 | KA6: 2079-05-31 | KB6: 2079-08-31 | KC6: 2079-11-30 | KD6: 2080-02-29 | KE6: 2080-05-31 | KF6: 2080-08-31 | KG6: 2080-11-30 | KH6: 2081-02-28 | KI6: 2081-05-31 | KJ6: 2081-08-31 | KK6: 2081-11-30 | KL6: 2082-02-28 | KM6: 2082-05-31 | KN6: 2082-08-31 | KO6: 2082-11-30 | KP6: 2083-02-28 | KQ6: 2083-05-31 | KR6: 2083-08-31 | KS6: 2083-11-30 | KT6: 2084-02-29 | KU6: 2084-05-31 | KV6: 2084-08-31
B7: Operating Period | G7: =F13 -> 2022-03-01 | H7: =F15 -> 2052-03-01 | I7: =AND(I$5>=$G7,I$5<$H7) -> FALSE | J7: =AND(J$5>=$G7,J$5<$H7) -> FALSE | K7: FALSE | L7: FALSE | M7: FALSE | N7: FALSE | O7: FALSE | P7: FALSE | Q7: FALSE | R7: FALSE | S7: FALSE | T7: FALSE | U7: FALSE | V7: FALSE | W7: FALSE | X7: FALSE | Y7: FALSE | Z7: FALSE | AA7: FALSE | AB7: FALSE | AC7: FALSE | AD7: FALSE | AE7: FALSE | AF7: FALSE | AG7: FALSE | AH7: FALSE | AI7: FALSE | AJ7: FALSE | AK7: FALSE | AL7: FALSE | AM7: FALSE | AN7: FALSE | AO7: FALSE | AP7: FALSE | AQ7: FALSE | AR7: FALSE | AS7: FALSE | AT7: FALSE | AU7: FALSE | AV7: FALSE | AW7: FALSE | AX7: FALSE | AY7: FALSE | AZ7: FALSE | BA7: FALSE | BB7: FALSE | BC7: FALSE | BD7: FALSE | BE7: FALSE | BF7: FALSE | BG7: TRUE | BH7: TRUE | BI7: TRUE | BJ7: TRUE | BK7: TRUE | BL7: TRUE | BM7: TRUE | BN7: TRUE | BO7: TRUE | BP7: TRUE | BQ7: TRUE | BR7: TRUE | BS7: TRUE | BT7: TRUE | BU7: TRUE | BV7: =AND(BV$5>=$G7,BV$5<$H7) -> TRUE | BW7: TRUE | BX7: TRUE | BY7: TRUE | BZ7: TRUE | CA7: TRUE | CB7: TRUE | CC7: TRUE | CD7: TRUE | CE7: TRUE | CF7: TRUE | CG7: TRUE | CH7: TRUE | CI7: TRUE | CJ7: TRUE | CK7: TRUE | CL7: TRUE | CM7: TRUE | CN7: TRUE | CO7: TRUE | CP7: TRUE | CQ7: TRUE | CR7: TRUE | CS7: TRUE | CT7: TRUE | CU7: TRUE | CV7: TRUE | CW7: TRUE | CX7: TRUE | CY7: TRUE | CZ7: TRUE | DA7: TRUE | DB7: TRUE | DC7: TRUE | DD7: TRUE | DE7: TRUE | DF7: TRUE | DG7: TRUE | DH7: TRUE | DI7: TRUE | DJ7: TRUE | DK7: TRUE | DL7: TRUE | DM7: TRUE | DN7: TRUE | DO7: TRUE | DP7: TRUE | DQ7: TRUE | DR7: TRUE | DS7: TRUE | DT7: TRUE | DU7: TRUE | DV7: TRUE | DW7: TRUE | DX7: TRUE | DY7: TRUE | DZ7: TRUE | EA7: TRUE | EB7: TRUE | EC7: TRUE | ED7: TRUE | EE7: TRUE | EF7: TRUE | EG7: TRUE | EH7: =AND(EH$5>=$G7,EH$5<$H7) -> TRUE | EI7: TRUE | EJ7: TRUE | EK7: TRUE | EL7: TRUE | EM7: TRUE | EN7: TRUE | EO7: TRUE | EP7: TRUE | EQ7: TRUE | ER7: TRUE | ES7: TRUE | ET7: TRUE | EU7: TRUE | EV7: TRUE | EW7: TRUE | EX7: TRUE | EY7: TRUE | EZ7: TRUE | FA7: TRUE | FB7: TRUE | FC7: TRUE | FD7: TRUE | FE7: TRUE | FF7: TRUE | FG7: TRUE | FH7: TRUE | FI7: TRUE | FJ7: TRUE | FK7: TRUE | FL7: TRUE | FM7: TRUE | FN7: TRUE | FO7: TRUE | FP7: TRUE | FQ7: TRUE | FR7: TRUE | FS7: TRUE | FT7: TRUE | FU7: TRUE | FV7: TRUE | FW7: FALSE | FX7: FALSE | FY7: FALSE | FZ7: FALSE | GA7: FALSE | GB7: FALSE | GC7: FALSE | GD7: FALSE | GE7: FALSE | GF7: FALSE | GG7: FALSE | GH7: FALSE | GI7: FALSE | GJ7: FALSE | GK7: FALSE | GL7: FALSE | GM7: FALSE | GN7: FALSE | GO7: FALSE | GP7: FALSE | GQ7: FALSE | GR7: FALSE | GS7: FALSE | GT7: =AND(GT$5>=$G7,GT$5<$H7) -> FALSE | GU7: FALSE | GV7: FALSE | GW7: FALSE | GX7: FALSE | GY7: FALSE | GZ7: FALSE | HA7: FALSE | HB7: FALSE | HC7: FALSE | HD7: FALSE | HE7: FALSE | HF7: FALSE | HG7: FALSE | HH7: FALSE | HI7: FALSE | HJ7: FALSE | HK7: FALSE | HL7: FALSE | HM7: FALSE | HN7: FALSE | HO7: FALSE | HP7: FALSE | HQ7: FALSE | HR7: FALSE | HS7: FALSE | HT7: FALSE | HU7: FALSE | HV7: FALSE | HW7: FALSE | HX7: FALSE | HY7: FALSE | HZ7: FALSE | IA7: FALSE | IB7: FALSE | IC7: FALSE | ID7: FALSE | IE7: FALSE | IF7: FALSE | IG7: FALSE | IH7: FALSE | II7: FALSE | IJ7: FALSE | IK7: FALSE | IL7: FALSE | IM7: FALSE | IN7: FALSE | IO7: FALSE | IP7: FALSE | IQ7: FALSE | IR7: FALSE | IS7: FALSE | IT7: FALSE | IU7: FALSE | IV7: FALSE | IW7: FALSE | IX7: FALSE | IY7: FALSE | IZ7: FALSE | JA7: FALSE | JB7: FALSE | JC7: FALSE | JD7: FALSE | JE7: FALSE | JF7: =AND(JF$5>=$G7,JF$5<$H7) -> FALSE | JG7: FALSE | JH7: FALSE | JI7: FALSE | JJ7: FALSE | JK7: FALSE | JL7: FALSE | JM7: FALSE | JN7: FALSE | JO7: FALSE | JP7: FALSE | JQ7: FALSE | JR7: FALSE | JS7: FALSE | JT7: FALSE | JU7: FALSE | JV7: FALSE | JW7: FALSE | JX7: FALSE | JY7: FALSE | JZ7: FALSE | KA7: FALSE | KB7: FALSE | KC7: FALSE | KD7: FALSE | KE7: FALSE | KF7: FALSE | KG7: FALSE | KH7: FALSE | KI7: FALSE | KJ7: FALSE | KK7: FALSE | KL7: FALSE | KM7: FALSE | KN7: FALSE | KO7: FALSE | KP7: FALSE | KQ7: FALSE | KR7: FALSE | KS7: FALSE | KT7: FALSE | KU7: FALSE | KV7: FALSE
A8: Dates
C9: Development Start | F9: 2018-01-01
C10: Development Period | E10: Months | F10: 20
C11: Financial Close | E11: Date | F11: =EDATE(F9,F10) -> 2019-09-01
C12: Construction | E12: Months | F12: 30
C13: Commercial Operation | E13: Date | F13: =EDATE(F11,F12) -> 2022-03-01
C14: Operation | E14: Years | F14: 30
C15: Decommissioning | E15: Date | F15: =EDATE(F13,F14*12) -> 2052-03-01
C16: Months Pre-COD | E16: Months | F16: 1
C17: Months Post-COD | E17: Months | F17: 3
A19: Capacity and Volumes
B20: Months after FC | G20: Start | H20: FC | I20: 10 | J20: 8 | K20: COD | L20: Decom
B21: Date | G21: =F9 -> 2018-01-01 | H21: =F11 -> 2019-09-01 | I21: =EDATE(H21,I20) -> 2020-07-01 | J21: =EDATE(I21,J20) -> 2021-03-01 | K21: =F13 -> 2022-03-01 | L21: =F15 -> 2052-03-01
B22: Capacity of Project | E22: Units/Day | G22: 0 | H22: 0 | I22: 100 | J22: 150 | K22: 1000 | L22: 0
G24: Start | H24: FC | K24: COD | L24: 2 | M24: 4 | N24: 6 | O24: Decom
B25: Date | G25: =G21 -> 2018-01-01 | H25: =H21 -> 2019-09-01 | I25: 2020-07-01 | J25: 2021-03-01 | K25: 2022-03-01 | L25: =EDATE(K25,L24*12) -> 2024-03-01 | M25: =EDATE(L25,M24*12) -> 2028-03-01 | N25: =EDATE(M25,N24*12) -> 2034-03-01 | O25: =L21 -> 2052-03-01
B26: Capacity Utilisation | E26: % | G26: 0 | H26: 0 | I26: 0.4 | J26: 0.6 | K26: 0.6 | L26: 0.64 | M26: 0.72 | N26: 0.8 | O26: 0.8
B28: Capacity Utilisasation Method | E28: Code | F28: 2 | G28: =CHOOSE(F28,"Step","Interpolate growth","Interpolate Linear") -> Interpolate growth
A31: Operations - in Core Model
B32: Capacity
C33: Pre-Operation Capacity | E33: LOOKUP | I33: =LOOKUP(I5,21:21,22:22)*I3 -> 0 | J33: =LOOKUP(J5,21:21,22:22)*J3 -> 0 | K33: 0 | L33: 0 | M33: 0 | N33: 0 | O33: 0 | P33: 0 | Q33: 0 | R33: 0 | S33: 0 | T33: 0 | U33: 0 | V33: 0 | W33: 0 | X33: 0 | Y33: 0 | Z33: 0 | AA33: 0 | AB33: 0 | AC33: 0 | AD33: 0 | AE33: 0 | AF33: 0 | AG33: 0 | AH33: 0 | AI33: 0 | AJ33: 0 | AK33: 0 | AL33: 0 | AM33: 100 | AN33: 100 | AO33: 100 | AP33: 100 | AQ33: 100 | AR33: 100 | AS33: 100 | AT33: 100 | AU33: 150 | AV33: 150 | AW33: 150 | AX33: 150 | AY33: 150 | AZ33: 150 | BA33: 150 | BB33: 150 | BC33: 150 | BD33: 150 | BE33: 150 | BF33: 150 | BG33: 0 | BH33: 0 | BI33: 0 | BJ33: 0 | BK33: 0 | BL33: 0 | BM33: 0 | BN33: 0 | BO33: 0 | BP33: 0 | BQ33: 0 | BR33: 0 | BS33: 0 | BT33: 0 | BU33: 0 | BV33: =LOOKUP(BV5,21:21,22:22)*BV3 -> 0 | BW33: 0 | BX33: 0 | BY33: 0 | BZ33: 0 | CA33: 0 | CB33: 0 | CC33: 0 | CD33: 0 | CE33: 0 | CF33: 0 | CG33: 0 | CH33: 0 | CI33: 0 | CJ33: 0 | CK33: 0 | CL33: 0 | CM33: 0 | CN33: 0 | CO33: 0 | CP33: 0 | CQ33: 0 | CR33: 0 | CS33: 0 | CT33: 0 | CU33: 0 | CV33: 0 | CW33: 0 | CX33: 0 | CY33: 0 | CZ33: 0 | DA33: 0 | DB33: 0 | DC33: 0 | DD33: 0 | DE33: 0 | DF33: 0 | DG33: 0 | DH33: 0 | DI33: 0 | DJ33: 0 | DK33: 0 | DL33: 0 | DM33: 0 | DN33: 0 | DO33: 0 | DP33: 0 | DQ33: 0 | DR33: 0 | DS33: 0 | DT33: 0 | DU33: 0 | DV33: 0 | DW33: 0 | DX33: 0 | DY33: 0 | DZ33: 0 | EA33: 0 | EB33: 0 | EC33: 0 | ED33: 0 | EE33: 0 | EF33: 0 | EG33: 0 | EH33: =LOOKUP(EH5,21:21,22:22)*EH3 -> 0 | EI33: 0 | EJ33: 0 | EK33: 0 | EL33: 0 | EM33: 0 | EN33: 0 | EO33: 0 | EP33: 0 | EQ33: 0 | ER33: 0 | ES33: 0 | ET33: 0 | EU33: 0 | EV33: 0 | EW33: 0 | EX33: 0 | EY33: 0 | EZ33: 0 | FA33: 0 | FB33: 0 | FC33: 0 | FD33: 0 | FE33: 0 | FF33: 0 | FG33: 0 | FH33: 0 | FI33: 0 | FJ33: 0 | FK33: 0 | FL33: 0 | FM33: 0 | FN33: 0 | FO33: 0 | FP33: 0 | FQ33: 0 | FR33: 0 | FS33: 0 | FT33: 0 | FU33: 0 | FV33: 0 | FW33: 0 | FX33: 0 | FY33: 0 | FZ33: 0 | GA33: 0 | GB33: 0 | GC33: 0 | GD33: 0 | GE33: 0 | GF33: 0 | GG33: 0 | GH33: 0 | GI33: 0 | GJ33: 0 | GK33: 0 | GL33: 0 | GM33: 0 | GN33: 0 | GO33: 0 | GP33: 0 | GQ33: 0 | GR33: 0 | GS33: 0 | GT33: =LOOKUP(GT5,21:21,22:22)*GT3 -> 0 | GU33: 0 | GV33: 0 | GW33: 0 | GX33: 0 | GY33: 0 | GZ33: 0 | HA33: 0 | HB33: 0 | HC33: 0 | HD33: 0 | HE33: 0 | HF33: 0 | HG33: 0 | HH33: 0 | HI33: 0 | HJ33: 0 | HK33: 0 | HL33: 0 | HM33: 0 | HN33: 0 | HO33: 0 | HP33: 0 | HQ33: 0 | HR33: 0 | HS33: 0 | HT33: 0 | HU33: 0 | HV33: 0 | HW33: 0 | HX33: 0 | HY33: 0 | HZ33: 0 | IA33: 0 | IB33: 0 | IC33: 0 | ID33: 0 | IE33: 0 | IF33: 0 | IG33: 0 | IH33: 0 | II33: 0 | IJ33: 0 | IK33: 0 | IL33: 0 | IM33: 0 | IN33: 0 | IO33: 0 | IP33: 0 | IQ33: 0 | IR33: 0 | IS33: 0 | IT33: 0 | IU33: 0 | IV33: 0 | IW33: 0 | IX33: 0 | IY33: 0 | IZ33: 0 | JA33: 0 | JB33: 0 | JC33: 0 | JD33: 0 | JE33: 0 | JF33: =LOOKUP(JF5,21:21,22:22)*JF3 -> 0 | JG33: 0 | JH33: 0 | JI33: 0 | JJ33: 0 | JK33: 0 | JL33: 0 | JM33: 0 | JN33: 0 | JO33: 0 | JP33: 0 | JQ33: 0 | JR33: 0 | JS33: 0 | JT33: 0 | JU33: 0 | JV33: 0 | JW33: 0 | JX33: 0 | JY33: 0 | JZ33: 0 | KA33: 0 | KB33: 0 | KC33: 0 | KD33: 0 | KE33: 0 | KF33: 0 | KG33: 0 | KH33: 0 | KI33: 0 | KJ33: 0 | KK33: 0 | KL33: 0 | KM33: 0 | KN33: 0 | KO33: 0 | KP33: 0 | KQ33: 0 | KR33: 0 | KS33: 0 | KT33: 0 | KU33: 0 | KV33: 0
C34: Post Operatio Capacity | E34: LOOKUP | I34: =LOOKUP(I5,21:21,22:22)*I7 -> 0 | J34: =LOOKUP(J5,21:21,22:22)*J7 -> 0 | K34: 0 | L34: 0 | M34: 0 | N34: 0 | O34: 0 | P34: 0 | Q34: 0 | R34: 0 | S34: 0 | T34: 0 | U34: 0 | V34: 0 | W34: 0 | X34: 0 | Y34: 0 | Z34: 0 | AA34: 0 | AB34: 0 | AC34: 0 | AD34: 0 | AE34: 0 | AF34: 0 | AG34: 0 | AH34: 0 | AI34: 0 | AJ34: 0 | AK34: 0 | AL34: 0 | AM34: 0 | AN34: 0 | AO34: 0 | AP34: 0 | AQ34: 0 | AR34: 0 | AS34: 0 | AT34: 0 | AU34: 0 | AV34: 0 | AW34: 0 | AX34: 0 | AY34: 0 | AZ34: 0 | BA34: 0 | BB34: 0 | BC34: 0 | BD34: 0 | BE34: 0 | BF34: 0 | BG34: 1000 | BH34: 1000 | BI34: 1000 | BJ34: 1000 | BK34: 1000 | BL34: 1000 | BM34: 1000 | BN34: 1000 | BO34: 1000 | BP34: 1000 | BQ34: 1000 | BR34: 1000 | BS34: 1000 | BT34: 1000 | BU34: 1000 | BV34: =LOOKUP(BV5,21:21,22:22)*BV7 -> 1000 | BW34: 1000 | BX34: 1000 | BY34: 1000 | BZ34: 1000 | CA34: 1000 | CB34: 1000 | CC34: 1000 | CD34: 1000 | CE34: 1000 | CF34: 1000 | CG34: 1000 | CH34: 1000 | CI34: 1000 | CJ34: 1000 | CK34: 1000 | CL34: 1000 | CM34: 1000 | CN34: 1000 | CO34: 1000 | CP34: 1000 | CQ34: 1000 | CR34: 1000 | CS34: 1000 | CT34: 1000 | CU34: 1000 | CV34: 1000 | CW34: 1000 | CX34: 1000 | CY34: 1000 | CZ34: 1000 | DA34: 1000 | DB34: 1000 | DC34: 1000 | DD34: 1000 | DE34: 1000 | DF34: 1000 | DG34: 1000 | DH34: 1000 | DI34: 1000 | DJ34: 1000 | DK34: 1000 | DL34: 1000 | DM34: 1000 | DN34: 1000 | DO34: 1000 | DP34: 1000 | DQ34: 1000 | DR34: 1000 | DS34: 1000 | DT34: 1000 | DU34: 1000 | DV34: 1000 | DW34: 1000 | DX34: 1000 | DY34: 1000 | DZ34: 1000 | EA34: 1000 | EB34: 1000 | EC34: 1000 | ED34: 1000 | EE34: 1000 | EF34: 1000 | EG34: 1000 | EH34: =LOOKUP(EH5,21:21,22:22)*EH7 -> 1000 | EI34: 1000 | EJ34: 1000 | EK34: 1000 | EL34: 1000 | EM34: 1000 | EN34: 1000 | EO34: 1000 | EP34: 1000 | EQ34: 1000 | ER34: 1000 | ES34: 1000 | ET34: 1000 | EU34: 1000 | EV34: 1000 | EW34: 1000 | EX34: 1000 | EY34: 1000 | EZ34: 1000 | FA34: 1000 | FB34: 1000 | FC34: 1000 | FD34: 1000 | FE34: 1000 | FF34: 1000 | FG34: 1000 | FH34: 1000 | FI34: 1000 | FJ34: 1000 | FK34: 1000 | FL34: 1000 | FM34: 1000 | FN34: 1000 | FO34: 1000 | FP34: 1000 | FQ34: 1000 | FR34: 1000 | FS34: 1000 | FT34: 1000 | FU34: 1000 | FV34: 1000 | FW34: 0 | FX34: 0 | FY34: 0 | FZ34: 0 | GA34: 0 | GB34: 0 | GC34: 0 | GD34: 0 | GE34: 0 | GF34: 0 | GG34: 0 | GH34: 0 | GI34: 0 | GJ34: 0 | GK34: 0 | GL34: 0 | GM34: 0 | GN34: 0 | GO34: 0 | GP34: 0 | GQ34: 0 | GR34: 0 | GS34: 0 | GT34: =LOOKUP(GT5,21:21,22:22)*GT7 -> 0 | GU34: 0 | GV34: 0 | GW34: 0 | GX34: 0 | GY34: 0 | GZ34: 0 | HA34: 0 | HB34: 0 | HC34: 0 | HD34: 0 | HE34: 0 | HF34: 0 | HG34: 0 | HH34: 0 | HI34: 0 | HJ34: 0 | HK34: 0 | HL34: 0 | HM34: 0 | HN34: 0 | HO34: 0 | HP34: 0 | HQ34: 0 | HR34: 0 | HS34: 0 | HT34: 0 | HU34: 0 | HV34: 0 | HW34: 0 | HX34: 0 | HY34: 0 | HZ34: 0 | IA34: 0 | IB34: 0 | IC34: 0 | ID34: 0 | IE34: 0 | IF34: 0 | IG34: 0 | IH34: 0 | II34: 0 | IJ34: 0 | IK34: 0 | IL34: 0 | IM34: 0 | IN34: 0 | IO34: 0 | IP34: 0 | IQ34: 0 | IR34: 0 | IS34: 0 | IT34: 0 | IU34: 0 | IV34: 0 | IW34: 0 | IX34: 0 | IY34: 0 | IZ34: 0 | JA34: 0 | JB34: 0 | JC34: 0 | JD34: 0 | JE34: 0 | JF34: =LOOKUP(JF5,21:21,22:22)*JF7 -> 0 | JG34: 0 | JH34: 0 | JI34: 0 | JJ34: 0 | JK34: 0 | JL34: 0 | JM34: 0 | JN34: 0 | JO34: 0 | JP34: 0 | JQ34: 0 | JR34: 0 | JS34: 0 | JT34: 0 | JU34: 0 | JV34: 0 | JW34: 0 | JX34: 0 | JY34: 0 | JZ34: 0 | KA34: 0 | KB34: 0 | KC34: 0 | KD34: 0 | KE34: 0 | KF34: 0 | KG34: 0 | KH34: 0 | KI34: 0 | KJ34: 0 | KK34: 0 | KL34: 0 | KM34: 0 | KN34: 0 | KO34: 0 | KP34: 0 | KQ34: 0 | KR34: 0 | KS34: 0 | KT34: 0 | KU34: 0 | KV34: 0
D35: Total Capacity | I35: =SUM(I33:I34) -> 0 | J35: 0 | K35: 0 | L35: 0 | M35: 0 | N35: 0 | O35: 0 | P35: 0 | Q35: 0 | R35: 0 | S35: 0 | T35: 0 | U35: 0 | V35: 0 | W35: 0 | X35: 0 | Y35: 0 | Z35: 0 | AA35: 0 | AB35: 0 | AC35: 0 | AD35: 0 | AE35: 0 | AF35: 0 | AG35: 0 | AH35: 0 | AI35: 0 | AJ35: 0 | AK35: 0 | AL35: 0 | AM35: 100 | AN35: 100 | AO35: 100 | AP35: 100 | AQ35: 100 | AR35: 100 | AS35: 100 | AT35: 100 | AU35: 150 | AV35: 150 | AW35: 150 | AX35: 150 | AY35: 150 | AZ35: 150 | BA35: 150 | BB35: 150 | BC35: 150 | BD35: 150 | BE35: 150 | BF35: 150 | BG35: 1000 | BH35: 1000 | BI35: 1000 | BJ35: 1000 | BK35: 1000 | BL35: 1000 | BM35: 1000 | BN35: 1000 | BO35: 1000 | BP35: 1000 | BQ35: 1000 | BR35: 1000 | BS35: 1000 | BT35: 1000 | BU35: =SUM(BU33:BU34) -> 1000 | BV35: 1000 | BW35: 1000 | BX35: 1000 | BY35: 1000 | BZ35: 1000 | CA35: 1000 | CB35: 1000 | CC35: 1000 | CD35: 1000 | CE35: 1000 | CF35: 1000 | CG35: 1000 | CH35: 1000 | CI35: 1000 | CJ35: 1000 | CK35: 1000 | CL35: 1000 | CM35: 1000 | CN35: 1000 | CO35: 1000 | CP35: 1000 | CQ35: 1000 | CR35: 1000 | CS35: 1000 | CT35: 1000 | CU35: 1000 | CV35: 1000 | CW35: 1000 | CX35: 1000 | CY35: 1000 | CZ35: 1000 | DA35: 1000 | DB35: 1000 | DC35: 1000 | DD35: 1000 | DE35: 1000 | DF35: 1000 | DG35: 1000 | DH35: 1000 | DI35: 1000 | DJ35: 1000 | DK35: 1000 | DL35: 1000 | DM35: 1000 | DN35: 1000 | DO35: 1000 | DP35: 1000 | DQ35: 1000 | DR35: 1000 | DS35: 1000 | DT35: 1000 | DU35: 1000 | DV35: 1000 | DW35: 1000 | DX35: 1000 | DY35: 1000 | DZ35: 1000 | EA35: 1000 | EB35: 1000 | EC35: 1000 | ED35: 1000 | EE35: 1000 | EF35: 1000 | EG35: =SUM(EG33:EG34) -> 1000 | EH35: 1000 | EI35: 1000 | EJ35: 1000 | EK35: 1000 | EL35: 1000 | EM35: 1000 | EN35: 1000 | EO35: 1000 | EP35: 1000 | EQ35: 1000 | ER35: 1000 | ES35: 1000 | ET35: 1000 | EU35: 1000 | EV35: 1000 | EW35: 1000 | EX35: 1000 | EY35: 1000 | EZ35: 1000 | FA35: 1000 | FB35: 1000 | FC35: 1000 | FD35: 1000 | FE35: 1000 | FF35: 1000 | FG35: 1000 | FH35: 1000 | FI35: 1000 | FJ35: 1000 | FK35: 1000 | FL35: 1000 | FM35: 1000 | FN35: 1000 | FO35: 1000 | FP35: 1000 | FQ35: 1000 | FR35: 1000 | FS35: 1000 | FT35: 1000 | FU35: 1000 | FV35: 1000 | FW35: 0 | FX35: 0 | FY35: 0 | FZ35: 0 | GA35: 0 | GB35: 0 | GC35: 0 | GD35: 0 | GE35: 0 | GF35: 0 | GG35: 0 | GH35: 0 | GI35: 0 | GJ35: 0 | GK35: 0 | GL35: 0 | GM35: 0 | GN35: 0 | GO35: 0 | GP35: 0 | GQ35: 0 | GR35: 0 | GS35: =SUM(GS33:GS34) -> 0 | GT35: 0 | GU35: 0 | GV35: 0 | GW35: 0 | GX35: 0 | GY35: 0 | GZ35: 0 | HA35: 0 | HB35: 0 | HC35: 0 | HD35: 0 | HE35: 0 | HF35: 0 | HG35: 0 | HH35: 0 | HI35: 0 | HJ35: 0 | HK35: 0 | HL35: 0 | HM35: 0 | HN35: 0 | HO35: 0 | HP35: 0 | HQ35: 0 | HR35: 0 | HS35: 0 | HT35: 0 | HU35: 0 | HV35: 0 | HW35: 0 | HX35: 0 | HY35: 0 | HZ35: 0 | IA35: 0 | IB35: 0 | IC35: 0 | ID35: 0 | IE35: 0 | IF35: 0 | IG35: 0 | IH35: 0 | II35: 0 | IJ35: 0 | IK35: 0 | IL35: 0 | IM35: 0 | IN35: 0 | IO35: 0 | IP35: 0 | IQ35: 0 | IR35: 0 | IS35: 0 | IT35: 0 | IU35: 0 | IV35: 0 | IW35: 0 | IX35: 0 | IY35: 0 | IZ35: 0 | JA35: 0 | JB35: 0 | JC35: 0 | JD35: 0 | JE35: =SUM(JE33:JE34) -> 0 | JF35: 0 | JG35: 0 | JH35: 0 | JI35: 0 | JJ35: 0 | JK35: 0 | JL35: 0 | JM35: 0 | JN35: 0 | JO35: 0 | JP35: 0 | JQ35: 0 | JR35: 0 | JS35: 0 | JT35: 0 | JU35: 0 | JV35: 0 | JW35: 0 | JX35: 0 | JY35: 0 | JZ35: 0 | KA35: 0 | KB35: 0 | KC35: 0 | KD35: 0 | KE35: 0 | KF35: 0 | KG35: 0 | KH35: 0 | KI35: 0 | KJ35: 0 | KK35: 0 | KL35: 0 | KM35: 0 | KN35: 0 | KO35: 0 | KP35: 0 | KQ35: 0 | KR35: 0 | KS35: 0 | KT35: 0 | KU35: 0 | KV35: 0
B37: Capacity Factory
C38: Step Changes in Capacity | E38: % | F38: 1 | I38: =LOOKUP(I5,25:25,26:26) -> 0 | J38: =LOOKUP(J5,25:25,26:26) -> 0 | K38: 0 | L38: 0 | M38: 0 | N38: 0 | O38: 0 | P38: 0 | Q38: 0 | R38: 0 | S38: 0 | T38: 0 | U38: 0 | V38: 0 | W38: 0 | X38: 0 | Y38: 0 | Z38: 0 | AA38: 0 | AB38: 0 | AC38: 0 | AD38: 0 | AE38: 0 | AF38: 0 | AG38: 0 | AH38: 0 | AI38: 0 | AJ38: 0 | AK38: 0 | AL38: 0 | AM38: 0.4 | AN38: 0.4 | AO38: 0.4 | AP38: 0.4 | AQ38: 0.4 | AR38: 0.4 | AS38: 0.4 | AT38: 0.4 | AU38: 0.6 | AV38: 0.6 | AW38: 0.6 | AX38: 0.6 | AY38: 0.6 | AZ38: 0.6 | BA38: 0.6 | BB38: 0.6 | BC38: 0.6 | BD38: 0.6 | BE38: 0.6 | BF38: 0.6 | BG38: 0.6 | BH38: 0.6 | BI38: 0.6 | BJ38: 0.6 | BK38: 0.6 | BL38: 0.6 | BM38: 0.6 | BN38: 0.6 | BO38: 0.64 | BP38: 0.64 | BQ38: 0.64 | BR38: 0.64 | BS38: 0.64 | BT38: 0.64 | BU38: 0.64 | BV38: =LOOKUP(BV5,25:25,26:26) -> 0.64 | BW38: 0.64 | BX38: 0.64 | BY38: 0.64 | BZ38: 0.64 | CA38: 0.64 | CB38: 0.64 | CC38: 0.64 | CD38: 0.64 | CE38: 0.72 | CF38: 0.72 | CG38: 0.72 | CH38: 0.72 | CI38: 0.72 | CJ38: 0.72 | CK38: 0.72 | CL38: 0.72 | CM38: 0.72 | CN38: 0.72 | CO38: 0.72 | CP38: 0.72 | CQ38: 0.72 | CR38: 0.72 | CS38: 0.72 | CT38: 0.72 | CU38: 0.72 | CV38: 0.72 | CW38: 0.72 | CX38: 0.72 | CY38: 0.72 | CZ38: 0.72 | DA38: 0.72 | DB38: 0.72 | DC38: 0.8 | DD38: 0.8 | DE38: 0.8 | DF38: 0.8 | DG38: 0.8 | DH38: 0.8 | DI38: 0.8 | DJ38: 0.8 | DK38: 0.8 | DL38: 0.8 | DM38: 0.8 | DN38: 0.8 | DO38: 0.8 | DP38: 0.8 | DQ38: 0.8 | DR38: 0.8 | DS38: 0.8 | DT38: 0.8 | DU38: 0.8 | DV38: 0.8 | DW38: 0.8 | DX38: 0.8 | DY38: 0.8 | DZ38: 0.8 | EA38: 0.8 | EB38: 0.8 | EC38: 0.8 | ED38: 0.8 | EE38: 0.8 | EF38: 0.8 | EG38: 0.8 | EH38: =LOOKUP(EH5,25:25,26:26) -> 0.8 | EI38: 0.8 | EJ38: 0.8 | EK38: 0.8 | EL38: 0.8 | EM38: 0.8 | EN38: 0.8 | EO38: 0.8 | EP38: 0.8 | EQ38: 0.8 | ER38: 0.8 | ES38: 0.8 | ET38: 0.8 | EU38: 0.8 | EV38: 0.8 | EW38: 0.8 | EX38: 0.8 | EY38: 0.8 | EZ38: 0.8 | FA38: 0.8 | FB38: 0.8 | FC38: 0.8 | FD38: 0.8 | FE38: 0.8 | FF38: 0.8 | FG38: 0.8 | FH38: 0.8 | FI38: 0.8 | FJ38: 0.8 | FK38: 0.8 | FL38: 0.8 | FM38: 0.8 | FN38: 0.8 | FO38: 0.8 | FP38: 0.8 | FQ38: 0.8 | FR38: 0.8 | FS38: 0.8 | FT38: 0.8 | FU38: 0.8 | FV38: 0.8 | FW38: 0.8 | FX38: 0.8 | FY38: 0.8 | FZ38: 0.8 | GA38: 0.8 | GB38: 0.8 | GC38: 0.8 | GD38: 0.8 | GE38: 0.8 | GF38: 0.8 | GG38: 0.8 | GH38: 0.8 | GI38: 0.8 | GJ38: 0.8 | GK38: 0.8 | GL38: 0.8 | GM38: 0.8 | GN38: 0.8 | GO38: 0.8 | GP38: 0.8 | GQ38: 0.8 | GR38: 0.8 | GS38: 0.8 | GT38: =LOOKUP(GT5,25:25,26:26) -> 0.8 | GU38: 0.8 | GV38: 0.8 | GW38: 0.8 | GX38: 0.8 | GY38: 0.8 | GZ38: 0.8 | HA38: 0.8 | HB38: 0.8 | HC38: 0.8 | HD38: 0.8 | HE38: 0.8 | HF38: 0.8 | HG38: 0.8 | HH38: 0.8 | HI38: 0.8 | HJ38: 0.8 | HK38: 0.8 | HL38: 0.8 | HM38: 0.8 | HN38: 0.8 | HO38: 0.8 | HP38: 0.8 | HQ38: 0.8 | HR38: 0.8 | HS38: 0.8 | HT38: 0.8 | HU38: 0.8 | HV38: 0.8 | HW38: 0.8 | HX38: 0.8 | HY38: 0.8 | HZ38: 0.8 | IA38: 0.8 | IB38: 0.8 | IC38: 0.8 | ID38: 0.8 | IE38: 0.8 | IF38: 0.8 | IG38: 0.8 | IH38: 0.8 | II38: 0.8 | IJ38: 0.8 | IK38: 0.8 | IL38: 0.8 | IM38: 0.8 | IN38: 0.8 | IO38: 0.8 | IP38: 0.8 | IQ38: 0.8 | IR38: 0.8 | IS38: 0.8 | IT38: 0.8 | IU38: 0.8 | IV38: 0.8 | IW38: 0.8 | IX38: 0.8 | IY38: 0.8 | IZ38: 0.8 | JA38: 0.8 | JB38: 0.8 | JC38: 0.8 | JD38: 0.8 | JE38: 0.8 | JF38: =LOOKUP(JF5,25:25,26:26) -> 0.8 | JG38: 0.8 | JH38: 0.8 | JI38: 0.8 | JJ38: 0.8 | JK38: 0.8 | JL38: 0.8 | JM38: 0.8 | JN38: 0.8 | JO38: 0.8 | JP38: 0.8 | JQ38: 0.8 | JR38: 0.8 | JS38: 0.8 | JT38: 0.8 | JU38: 0.8 | JV38: 0.8 | JW38: 0.8 | JX38: 0.8 | JY38: 0.8 | JZ38: 0.8 | KA38: 0.8 | KB38: 0.8 | KC38: 0.8 | KD38: 0.8 | KE38: 0.8 | KF38: 0.8 | KG38: 0.8 | KH38: 0.8 | KI38: 0.8 | KJ38: 0.8 | KK38: 0.8 | KL38: 0.8 | KM38: 0.8 | KN38: 0.8 | KO38: 0.8 | KP38: 0.8 | KQ38: 0.8 | KR38: 0.8 | KS38: 0.8 | KT38: 0.8 | KU38: 0.8 | KV38: 0.8
C39: Interpolation with Compound Growth | E39: % | F39: 2 | I39: =interpolate_look_up(I5,25:25,26:26,TRUE) -> 0 | J39: =interpolate_look_up(J5,25:25,26:26,TRUE) -> 0 | K39: 0 | L39: 0 | M39: 0 | N39: 0 | O39: 0 | P39: 0 | Q39: 0 | R39: 0 | S39: 0 | T39: 0 | U39: 0 | V39: 0 | W39: 0 | X39: 0 | Y39: 0 | Z39: 0 | AA39: 0 | AB39: 0 | AC39: 0 | AD39: 0 | AE39: 0 | AF39: 0 | AG39: 0 | AH39: 0 | AI39: 0 | AJ39: 0 | AK39: 0 | AL39: 0 | AM39: 0.4 | AN39: 0.4212348634 | AO39: 0.4435970255 | AP39: 0.4663675097 | AQ39: 0.4911256357 | AR39: 0.516335833 | AS39: 0.5437466353 | AT39: 0.5726125992 | AU39: 0.6 | AV39: 0.6 | AW39: 0.6 | AX39: 0.6 | AY39: 0.6 | AZ39: 0.6 | BA39: 0.6 | BB39: 0.6 | BC39: 0.6 | BD39: 0.6 | BE39: 0.6 | BF39: 0.6 | BG39: 0.6 | BH39: 0.6048933433 | BI39: 0.6098265945 | BJ39: 0.6147458022 | BK39: 0.619649981 | BL39: 0.6247035811 | BM39: 0.6297983962 | BN39: 0.6348787077 | BO39: 0.64 | BP39: 0.6447644402 | BQ39: 0.6495643489 | BR39: 0.6543472359 | BS39: 0.6591122018 | BT39: 0.6640189216 | BU39: 0.6689621691 | BV39: =interpolate_look_up(BV5,25:25,26:26,TRUE) -> 0.6738878866 | BW39: 0.6787951478 | BX39: 0.683848396 | BY39: 0.6889392628 | BZ39: 0.6940120761 | CA39: 0.699065882 | CB39: 0.7042700344 | CC39: 0.7095129288 | CD39: 0.7147372306 | CE39: 0.72 | CF39: 0.7231923968 | CG39: 0.7263989483 | CH39: 0.7295846323 | CI39: 0.7327490501 | CJ39: 0.7359979748 | CK39: 0.7392613047 | CL39: 0.7425033976 | CM39: 0.7457238479 | CN39: 0.7490303013 | CO39: 0.7523514151 | CP39: 0.7556509158 | CQ39: 0.7589283906 | CR39: 0.7622933914 | CS39: 0.7656733122 | CT39: 0.7690312372 | CU39: 0.7724038887 | CV39: 0.7758286382 | CW39: 0.7792685728 | CX39: 0.7826861209 | CY39: 0.7860808552 | CZ39: 0.7895662469 | DA39: 0.7930670924 | DB39: 0.7965451551 | DC39: 0.8 | DD39: 0.8 | DE39: 0.8 | DF39: 0.8 | DG39: 0.8 | DH39: 0.8 | DI39: 0.8 | DJ39: 0.8 | DK39: 0.8 | DL39: 0.8 | DM39: 0.8 | DN39: 0.8 | DO39: 0.8 | DP39: 0.8 | DQ39: 0.8 | DR39: 0.8 | DS39: 0.8 | DT39: 0.8 | DU39: 0.8 | DV39: 0.8 | DW39: 0.8 | DX39: 0.8 | DY39: 0.8 | DZ39: 0.8 | EA39: 0.8 | EB39: 0.8 | EC39: 0.8 | ED39: 0.8 | EE39: 0.8 | EF39: 0.8 | EG39: 0.8 | EH39: =interpolate_look_up(EH5,25:25,26:26,TRUE) -> 0.8 | EI39: 0.8 | EJ39: 0.8 | EK39: 0.8 | EL39: 0.8 | EM39: 0.8 | EN39: 0.8 | EO39: 0.8 | EP39: 0.8 | EQ39: 0.8 | ER39: 0.8 | ES39: 0.8 | ET39: 0.8 | EU39: 0.8 | EV39: 0.8 | EW39: 0.8 | EX39: 0.8 | EY39: 0.8 | EZ39: 0.8 | FA39: 0.8 | FB39: 0.8 | FC39: 0.8 | FD39: 0.8 | FE39: 0.8 | FF39: 0.8 | FG39: 0.8 | FH39: 0.8 | FI39: 0.8 | FJ39: 0.8 | FK39: 0.8 | FL39: 0.8 | FM39: 0.8 | FN39: 0.8 | FO39: 0.8 | FP39: 0.8 | FQ39: 0.8 | FR39: 0.8 | FS39: 0.8 | FT39: 0.8 | FU39: 0.8 | FV39: 0.8 | FW39: 0.8 | FX39: 0.8 | FY39: 0.8 | FZ39: 0.8 | GA39: 0.8 | GB39: 0.8 | GC39: 0.8 | GD39: 0.8 | GE39: 0.8 | GF39: 0.8 | GG39: 0.8 | GH39: 0.8 | GI39: 0.8 | GJ39: 0.8 | GK39: 0.8 | GL39: 0.8 | GM39: 0.8 | GN39: 0.8 | GO39: 0.8 | GP39: 0.8 | GQ39: 0.8 | GR39: 0.8 | GS39: 0.8 | GT39: =interpolate_look_up(GT5,25:25,26:26,TRUE) -> 0.8 | GU39: 0.8 | GV39: 0.8 | GW39: 0.8 | GX39: 0.8 | GY39: 0.8 | GZ39: 0.8 | HA39: 0.8 | HB39: 0.8 | HC39: 0.8 | HD39: 0.8 | HE39: 0.8 | HF39: 0.8 | HG39: 0.8 | HH39: 0.8 | HI39: 0.8 | HJ39: 0.8 | HK39: 0.8 | HL39: 0.8 | HM39: 0.8 | HN39: 0.8 | HO39: 0.8 | HP39: 0.8 | HQ39: 0.8 | HR39: 0.8 | HS39: 0.8 | HT39: 0.8 | HU39: 0.8 | HV39: 0.8 | HW39: 0.8 | HX39: 0.8 | HY39: 0.8 | HZ39: 0.8 | IA39: 0.8 | IB39: 0.8 | IC39: 0.8 | ID39: 0.8 | IE39: 0.8 | IF39: 0.8 | IG39: 0.8 | IH39: 0.8 | II39: 0.8 | IJ39: 0.8 | IK39: 0.8 | IL39: 0.8 | IM39: 0.8 | IN39: 0.8 | IO39: 0.8 | IP39: 0.8 | IQ39: 0.8 | IR39: 0.8 | IS39: 0.8 | IT39: 0.8 | IU39: 0.8 | IV39: 0.8 | IW39: 0.8 | IX39: 0.8 | IY39: 0.8 | IZ39: 0.8 | JA39: 0.8 | JB39: 0.8 | JC39: 0.8 | JD39: 0.8 | JE39: 0.8 | JF39: =interpolate_look_up(JF5,25:25,26:26,TRUE) -> 0.8 | JG39: 0.8 | JH39: 0.8 | JI39: 0.8 | JJ39: 0.8 | JK39: 0.8 | JL39: 0.8 | JM39: 0.8 | JN39: 0.8 | JO39: 0.8 | JP39: 0.8 | JQ39: 0.8 | JR39: 0.8 | JS39: 0.8 | JT39: 0.8 | JU39: 0.8 | JV39: 0.8 | JW39: 0.8 | JX39: 0.8 | JY39: 0.8 | JZ39: 0.8 | KA39: 0.8 | KB39: 0.8 | KC39: 0.8 | KD39: 0.8 | KE39: 0.8 | KF39: 0.8 | KG39: 0.8 | KH39: 0.8 | KI39: 0.8 | KJ39: 0.8 | KK39: 0.8 | KL39: 0.8 | KM39: 0.8 | KN39: 0.8 | KO39: 0.8 | KP39: 0.8 | KQ39: 0.8 | KR39: 0.8 | KS39: 0.8 | KT39: 0.8 | KU39: 0.8 | KV39: 0.8
C40: Linear Interpolation | E40: % | F40: 3 | I40: =interpolate_look_up_linear(I5,25:25,26:26) -> 0 | J40: =interpolate_look_up_linear(J5,25:25,26:26) -> 0 | K40: 0 | L40: 0 | M40: 0 | N40: 0 | O40: 0 | P40: 0 | Q40: 0 | R40: 0 | S40: 0 | T40: 0 | U40: 0 | V40: 0 | W40: 0 | X40: 0 | Y40: 0 | Z40: 0 | AA40: 0 | AB40: 0 | AC40: 0 | AD40: 0.03947368421 | AE40: 0.08026315789 | AF40: 0.1197368421 | AG40: 0.1605263158 | AH40: 0.2013157895 | AI40: 0.2394736842 | AJ40: 0.2802631579 | AK40: 0.3197368421 | AL40: 0.3605263158 | AM40: 0.4 | AN40: 0.4255144033 | AO40: 0.4510288066 | AP40: 0.4757201646 | AQ40: 0.5012345679 | AR40: 0.5259259259 | AS40: 0.5514403292 | AT40: 0.5769547325 | AU40: 0.6 | AV40: 0.6 | AW40: 0.6 | AX40: 0.6 | AY40: 0.6 | AZ40: 0.6 | BA40: 0.6 | BB40: 0.6 | BC40: 0.6 | BD40: 0.6 | BE40: 0.6 | BF40: 0.6 | BG40: 0.6 | BH40: 0.6050341997 | BI40: 0.6100683995 | BJ40: 0.6150478796 | BK40: 0.6199726402 | BL40: 0.6250068399 | BM40: 0.6300410397 | BN40: 0.6350205198 | BO40: 0.64 | BP40: 0.6450376454 | BQ40: 0.6500752909 | BR40: 0.6550581793 | BS40: 0.6599863107 | BT40: 0.6650239562 | BU40: 0.6700616016 | BV40: =interpolate_look_up_linear(BV5,25:25,26:26) -> 0.6750444901 | BW40: 0.6799726215 | BX40: 0.6850102669 | BY40: 0.6900479124 | BZ40: 0.6950308008 | CA40: 0.6999589322 | CB40: 0.7049965777 | CC40: 0.7100342231 | CD40: 0.7150171116 | CE40: 0.72 | CF40: 0.7233591967 | CG40: 0.7267183934 | CH40: 0.7300410771 | CI40: 0.7333272478 | CJ40: 0.7366864445 | CK40: 0.7400456413 | CL40: 0.743368325 | CM40: 0.7466544957 | CN40: 0.7500136924 | CO40: 0.7533728891 | CP40: 0.7566955728 | CQ40: 0.7599817435 | CR40: 0.7633409402 | CS40: 0.7667001369 | CT40: 0.7700228206 | CU40: 0.7733455043 | CV40: 0.776704701 | CW40: 0.7800638978 | CX40: 0.7833865815 | CY40: 0.7866727522 | CZ40: 0.7900319489 | DA40: 0.7933911456 | DB40: 0.7967138293 | DC40: 0.8 | DD40: 0.8 | DE40: 0.8 | DF40: 0.8 | DG40: 0.8 | DH40: 0.8 | DI40: 0.8 | DJ40: 0.8 | DK40: 0.8 | DL40: 0.8 | DM40: 0.8 | DN40: 0.8 | DO40: 0.8 | DP40: 0.8 | DQ40: 0.8 | DR40: 0.8 | DS40: 0.8 | DT40: 0.8 | DU40: 0.8 | DV40: 0.8 | DW40: 0.8 | DX40: 0.8 | DY40: 0.8 | DZ40: 0.8 | EA40: 0.8 | EB40: 0.8 | EC40: 0.8 | ED40: 0.8 | EE40: 0.8 | EF40: 0.8 | EG40: 0.8 | EH40: =interpolate_look_up_linear(EH5,25:25,26:26) -> 0.8 | EI40: 0.8 | EJ40: 0.8 | EK40: 0.8 | EL40: 0.8 | EM40: 0.8 | EN40: 0.8 | EO40: 0.8 | EP40: 0.8 | EQ40: 0.8 | ER40: 0.8 | ES40: 0.8 | ET40: 0.8 | EU40: 0.8 | EV40: 0.8 | EW40: 0.8 | EX40: 0.8 | EY40: 0.8 | EZ40: 0.8 | FA40: 0.8 | FB40: 0.8 | FC40: 0.8 | FD40: 0.8 | FE40: 0.8 | FF40: 0.8 | FG40: 0.8 | FH40: 0.8 | FI40: 0.8 | FJ40: 0.8 | FK40: 0.8 | FL40: 0.8 | FM40: 0.8 | FN40: 0.8 | FO40: 0.8 | FP40: 0.8 | FQ40: 0.8 | FR40: 0.8 | FS40: 0.8 | FT40: 0.8 | FU40: 0.8 | FV40: 0.8 | FW40: 0.8 | FX40: 0.8 | FY40: 0.8 | FZ40: 0.8 | GA40: 0.8 | GB40: 0.8 | GC40: 0.8 | GD40: 0.8 | GE40: 0.8 | GF40: 0.8 | GG40: 0.8 | GH40: 0.8 | GI40: 0.8 | GJ40: 0.8 | GK40: 0.8 | GL40: 0.8 | GM40: 0.8 | GN40: 0.8 | GO40: 0.8 | GP40: 0.8 | GQ40: 0.8 | GR40: 0.8 | GS40: 0.8 | GT40: =interpolate_look_up_linear(GT5,25:25,26:26) -> 0.8 | GU40: 0.8 | GV40: 0.8 | GW40: 0.8 | GX40: 0.8 | GY40: 0.8 | GZ40: 0.8 | HA40: 0.8 | HB40: 0.8 | HC40: 0.8 | HD40: 0.8 | HE40: 0.8 | HF40: 0.8 | HG40: 0.8 | HH40: 0.8 | HI40: 0.8 | HJ40: 0.8 | HK40: 0.8 | HL40: 0.8 | HM40: 0.8 | HN40: 0.8 | HO40: 0.8 | HP40: 0.8 | HQ40: 0.8 | HR40: 0.8 | HS40: 0.8 | HT40: 0.8 | HU40: 0.8 | HV40: 0.8 | HW40: 0.8 | HX40: 0.8 | HY40: 0.8 | HZ40: 0.8 | IA40: 0.8 | IB40: 0.8 | IC40: 0.8 | ID40: 0.8 | IE40: 0.8 | IF40: 0.8 | IG40: 0.8 | IH40: 0.8 | II40: 0.8 | IJ40: 0.8 | IK40: 0.8 | IL40: 0.8 | IM40: 0.8 | IN40: 0.8 | IO40: 0.8 | IP40: 0.8 | IQ40: 0.8 | IR40: 0.8 | IS40: 0.8 | IT40: 0.8 | IU40: 0.8 | IV40: 0.8 | IW40: 0.8 | IX40: 0.8 | IY40: 0.8 | IZ40: 0.8 | JA40: 0.8 | JB40: 0.8 | JC40: 0.8 | JD40: 0.8 | JE40: 0.8 | JF40: =interpolate_look_up_linear(JF5,25:25,26:26) -> 0.8 | JG40: 0.8 | JH40: 0.8 | JI40: 0.8 | JJ40: 0.8 | JK40: 0.8 | JL40: 0.8 | JM40: 0.8 | JN40: 0.8 | JO40: 0.8 | JP40: 0.8 | JQ40: 0.8 | JR40: 0.8 | JS40: 0.8 | JT40: 0.8 | JU40: 0.8 | JV40: 0.8 | JW40: 0.8 | JX40: 0.8 | JY40: 0.8 | JZ40: 0.8 | KA40: 0.8 | KB40: 0.8 | KC40: 0.8 | KD40: 0.8 | KE40: 0.8 | KF40: 0.8 | KG40: 0.8 | KH40: 0.8 | KI40: 0.8 | KJ40: 0.8 | KK40: 0.8 | KL40: 0.8 | KM40: 0.8 | KN40: 0.8 | KO40: 0.8 | KP40: 0.8 | KQ40: 0.8 | KR40: 0.8 | KS40: 0.8 | KT40: 0.8 | KU40: 0.8 | KV40: 0.8
C42: Final Capacity Factor | E42: % | F42: =LOOKUP(F28,F38:F40) -> 2 | G42: =G28 -> Interpolate growth | I42: =INDEX(I38:I40,$F$42) -> 0 | J42: =INDEX(J38:J40,$F$42) -> 0 | K42: 0 | L42: 0 | M42: 0 | N42: 0 | O42: 0 | P42: 0 | Q42: 0 | R42: 0 | S42: 0 | T42: 0 | U42: 0 | V42: 0 | W42: 0 | X42: 0 | Y42: 0 | Z42: 0 | AA42: 0 | AB42: 0 | AC42: 0 | AD42: 0 | AE42: 0 | AF42: 0 | AG42: 0 | AH42: 0 | AI42: 0 | AJ42: 0 | AK42: 0 | AL42: 0 | AM42: 0.4 | AN42: 0.4212348634 | AO42: 0.4435970255 | AP42: 0.4663675097 | AQ42: 0.4911256357 | AR42: 0.516335833 | AS42: 0.5437466353 | AT42: 0.5726125992 | AU42: 0.6 | AV42: 0.6 | AW42: 0.6 | AX42: 0.6 | AY42: 0.6 | AZ42: 0.6 | BA42: 0.6 | BB42: 0.6 | BC42: 0.6 | BD42: 0.6 | BE42: 0.6 | BF42: 0.6 | BG42: 0.6 | BH42: 0.6048933433 | BI42: 0.6098265945 | BJ42: 0.6147458022 | BK42: 0.619649981 | BL42: 0.6247035811 | BM42: 0.6297983962 | BN42: 0.6348787077 | BO42: 0.64 | BP42: 0.6447644402 | BQ42: 0.6495643489 | BR42: 0.6543472359 | BS42: 0.6591122018 | BT42: 0.6640189216 | BU42: 0.6689621691 | BV42: =INDEX(BV38:BV40,$F$42) -> 0.6738878866 | BW42: 0.6787951478 | BX42: 0.683848396 | BY42: 0.6889392628 | BZ42: 0.6940120761 | CA42: 0.699065882 | CB42: 0.7042700344 | CC42: 0.7095129288 | CD42: 0.7147372306 | CE42: 0.72 | CF42: 0.7231923968 | CG42: 0.7263989483 | CH42: 0.7295846323 | CI42: 0.7327490501 | CJ42: 0.7359979748 | CK42: 0.7392613047 | CL42: 0.7425033976 | CM42: 0.7457238479 | CN42: 0.7490303013 | CO42: 0.7523514151 | CP42: 0.7556509158 | CQ42: 0.7589283906 | CR42: 0.7622933914 | CS42: 0.7656733122 | CT42: 0.7690312372 | CU42: 0.7724038887 | CV42: 0.7758286382 | CW42: 0.7792685728 | CX42: 0.7826861209 | CY42: 0.7860808552 | CZ42: 0.7895662469 | DA42: 0.7930670924 | DB42: 0.7965451551 | DC42: 0.8 | DD42: 0.8 | DE42: 0.8 | DF42: 0.8 | DG42: 0.8 | DH42: 0.8 | DI42: 0.8 | DJ42: 0.8 | DK42: 0.8 | DL42: 0.8 | DM42: 0.8 | DN42: 0.8 | DO42: 0.8 | DP42: 0.8 | DQ42: 0.8 | DR42: 0.8 | DS42: 0.8 | DT42: 0.8 | DU42: 0.8 | DV42: 0.8 | DW42: 0.8 | DX42: 0.8 | DY42: 0.8 | DZ42: 0.8 | EA42: 0.8 | EB42: 0.8 | EC42: 0.8 | ED42: 0.8 | EE42: 0.8 | EF42: 0.8 | EG42: 0.8 | EH42: =INDEX(EH38:EH40,$F$42) -> 0.8 | EI42: 0.8 | EJ42: 0.8 | EK42: 0.8 | EL42: 0.8 | EM42: 0.8 | EN42: 0.8 | EO42: 0.8 | EP42: 0.8 | EQ42: 0.8 | ER42: 0.8 | ES42: 0.8 | ET42: 0.8 | EU42: 0.8 | EV42: 0.8 | EW42: 0.8 | EX42: 0.8 | EY42: 0.8 | EZ42: 0.8 | FA42: 0.8 | FB42: 0.8 | FC42: 0.8 | FD42: 0.8 | FE42: 0.8 | FF42: 0.8 | FG42: 0.8 | FH42: 0.8 | FI42: 0.8 | FJ42: 0.8 | FK42: 0.8 | FL42: 0.8 | FM42: 0.8 | FN42: 0.8 | FO42: 0.8 | FP42: 0.8 | FQ42: 0.8 | FR42: 0.8 | FS42: 0.8 | FT42: 0.8 | FU42: 0.8 | FV42: 0.8 | FW42: 0.8 | FX42: 0.8 | FY42: 0.8 | FZ42: 0.8 | GA42: 0.8 | GB42: 0.8 | GC42: 0.8 | GD42: 0.8 | GE42: 0.8 | GF42: 0.8 | GG42: 0.8 | GH42: 0.8 | GI42: 0.8 | GJ42: 0.8 | GK42: 0.8 | GL42: 0.8 | GM42: 0.8 | GN42: 0.8 | GO42: 0.8 | GP42: 0.8 | GQ42: 0.8 | GR42: 0.8 | GS42: 0.8 | GT42: =INDEX(GT38:GT40,$F$42) -> 0.8 | GU42: 0.8 | GV42: 0.8 | GW42: 0.8 | GX42: 0.8 | GY42: 0.8 | GZ42: 0.8 | HA42: 0.8 | HB42: 0.8 | HC42: 0.8 | HD42: 0.8 | HE42: 0.8 | HF42: 0.8 | HG42: 0.8 | HH42: 0.8 | HI42: 0.8 | HJ42: 0.8 | HK42: 0.8 | HL42: 0.8 | HM42: 0.8 | HN42: 0.8 | HO42: 0.8 | HP42: 0.8 | HQ42: 0.8 | HR42: 0.8 | HS42: 0.8 | HT42: 0.8 | HU42: 0.8 | HV42: 0.8 | HW42: 0.8 | HX42: 0.8 | HY42: 0.8 | HZ42: 0.8 | IA42: 0.8 | IB42: 0.8 | IC42: 0.8 | ID42: 0.8 | IE42: 0.8 | IF42: 0.8 | IG42: 0.8 | IH42: 0.8 | II42: 0.8 | IJ42: 0.8 | IK42: 0.8 | IL42: 0.8 | IM42: 0.8 | IN42: 0.8 | IO42: 0.8 | IP42: 0.8 | IQ42: 0.8 | IR42: 0.8 | IS42: 0.8 | IT42: 0.8 | IU42: 0.8 | IV42: 0.8 | IW42: 0.8 | IX42: 0.8 | IY42: 0.8 | IZ42: 0.8 | JA42: 0.8 | JB42: 0.8 | JC42: 0.8 | JD42: 0.8 | JE42: 0.8 | JF42: =INDEX(JF38:JF40,$F$42) -> 0.8 | JG42: 0.8 | JH42: 0.8 | JI42: 0.8 | JJ42: 0.8 | JK42: 0.8 | JL42: 0.8 | JM42: 0.8 | JN42: 0.8 | JO42: 0.8 | JP42: 0.8 | JQ42: 0.8 | JR42: 0.8 | JS42: 0.8 | JT42: 0.8 | JU42: 0.8 | JV42: 0.8 | JW42: 0.8 | JX42: 0.8 | JY42: 0.8 | JZ42: 0.8 | KA42: 0.8 | KB42: 0.8 | KC42: 0.8 | KD42: 0.8 | KE42: 0.8 | KF42: 0.8 | KG42: 0.8 | KH42: 0.8 | KI42: 0.8 | KJ42: 0.8 | KK42: 0.8 | KL42: 0.8 | KM42: 0.8 | KN42: 0.8 | KO42: 0.8 | KP42: 0.8 | KQ42: 0.8 | KR42: 0.8 | KS42: 0.8 | KT42: 0.8 | KU42: 0.8 | KV42: 0.8
C44: Days | E44: Days | I44: =(I6-I5+1) -> 31 | J44: =(J6-J5+1) -> 28 | K44: 31 | L44: 30 | M44: 31 | N44: 30 | O44: 31 | P44: 31 | Q44: 30 | R44: 31 | S44: 30 | T44: 31 | U44: 31 | V44: 28 | W44: 31 | X44: 30 | Y44: 31 | Z44: 30 | AA44: 31 | AB44: 31 | AC44: 30 | AD44: 31 | AE44: 30 | AF44: 31 | AG44: 31 | AH44: 29 | AI44: 31 | AJ44: 30 | AK44: 31 | AL44: 30 | AM44: 31 | AN44: 31 | AO44: 30 | AP44: 31 | AQ44: 30 | AR44: 31 | AS44: 31 | AT44: 28 | AU44: 31 | AV44: 30 | AW44: 31 | AX44: 30 | AY44: 31 | AZ44: 31 | BA44: 30 | BB44: 31 | BC44: 30 | BD44: 31 | BE44: 31 | BF44: 28 | BG44: 92 | BH44: 92 | BI44: 91 | BJ44: 90 | BK44: 92 | BL44: 92 | BM44: 91 | BN44: 91 | BO44: 92 | BP44: 92 | BQ44: 91 | BR44: 90 | BS44: 92 | BT44: 92 | BU44: 91 | BV44: =(BV6-BV5+1) -> 90 | BW44: 92 | BX44: 92 | BY44: 91 | BZ44: 90 | CA44: 92 | CB44: 92 | CC44: 91 | CD44: 91 | CE44: 92 | CF44: 92 | CG44: 91 | CH44: 90 | CI44: 92 | CJ44: 92 | CK44: 91 | CL44: 90 | CM44: 92 | CN44: 92 | CO44: 91 | CP44: 90 | CQ44: 92 | CR44: 92 | CS44: 91 | CT44: 91 | CU44: 92 | CV44: 92 | CW44: 91 | CX44: 90 | CY44: 92 | CZ44: 92 | DA44: 91 | DB44: 90 | DC44: 92 | DD44: 92 | DE44: 91 | DF44: 90 | DG44: 92 | DH44: 92 | DI44: 91 | DJ44: 91 | DK44: 92 | DL44: 92 | DM44: 91 | DN44: 90 | DO44: 92 | DP44: 92 | DQ44: 91 | DR44: 90 | DS44: 92 | DT44: 92 | DU44: 91 | DV44: 90 | DW44: 92 | DX44: 92 | DY44: 91 | DZ44: 91 | EA44: 92 | EB44: 92 | EC44: 91 | ED44: 90 | EE44: 92 | EF44: 92 | EG44: 91 | EH44: =(EH6-EH5+1) -> 90 | EI44: 92 | EJ44: 92 | EK44: 91 | EL44: 90 | EM44: 92 | EN44: 92 | EO44: 91 | EP44: 91 | EQ44: 92 | ER44: 92 | ES44: 91 | ET44: 90 | EU44: 92 | EV44: 92 | EW44: 91 | EX44: 90 | EY44: 92 | EZ44: 92 | FA44: 91 | FB44: 90 | FC44: 92 | FD44: 92 | FE44: 91 | FF44: 91 | FG44: 92 | FH44: 92 | FI44: 91 | FJ44: 90 | FK44: 92 | FL44: 92 | FM44: 91 | FN44: 90 | FO44: 92 | FP44: 92 | FQ44: 91 | FR44: 90 | FS44: 92 | FT44: 92 | FU44: 91 | FV44: 91 | FW44: 92 | FX44: 92 | FY44: 91 | FZ44: 90 | GA44: 92 | GB44: 92 | GC44: 91 | GD44: 90 | GE44: 92 | GF44: 92 | GG44: 91 | GH44: 90 | GI44: 92 | GJ44: 92 | GK44: 91 | GL44: 91 | GM44: 92 | GN44: 92 | GO44: 91 | GP44: 90 | GQ44: 92 | GR44: 92 | GS44: 91 | GT44: =(GT6-GT5+1) -> 90 | GU44: 92 | GV44: 92 | GW44: 91 | GX44: 90 | GY44: 92 | GZ44: 92 | HA44: 91 | HB44: 91 | HC44: 92 | HD44: 92 | HE44: 91 | HF44: 90 | HG44: 92 | HH44: 92 | HI44: 91 | HJ44: 90 | HK44: 92 | HL44: 92 | HM44: 91 | HN44: 90 | HO44: 92 | HP44: 92 | HQ44: 91 | HR44: 91 | HS44: 92 | HT44: 92 | HU44: 91 | HV44: 90 | HW44: 92 | HX44: 92 | HY44: 91 | HZ44: 90 | IA44: 92 | IB44: 92 | IC44: 91 | ID44: 90 | IE44: 92 | IF44: 92 | IG44: 91 | IH44: 91 | II44: 92 | IJ44: 92 | IK44: 91 | IL44: 90 | IM44: 92 | IN44: 92 | IO44: 91 | IP44: 90 | IQ44: 92 | IR44: 92 | IS44: 91 | IT44: 90 | IU44: 92 | IV44: 92 | IW44: 91 | IX44: 91 | IY44: 92 | IZ44: 92 | JA44: 91 | JB44: 90 | JC44: 92 | JD44: 92 | JE44: 91 | JF44: =(JF6-JF5+1) -> 90 | JG44: 92 | JH44: 92 | JI44: 91 | JJ44: 90 | JK44: 92 | JL44: 92 | JM44: 91 | JN44: 91 | JO44: 92 | JP44: 92 | JQ44: 91 | JR44: 90 | JS44: 92 | JT44: 92 | JU44: 91 | JV44: 90 | JW44: 92 | JX44: 92 | JY44: 91 | JZ44: 90 | KA44: 92 | KB44: 92 | KC44: 91 | KD44: 91 | KE44: 92 | KF44: 92 | KG44: 91 | KH44: 90 | KI44: 92 | KJ44: 92 | KK44: 91 | KL44: 90 | KM44: 92 | KN44: 92 | KO44: 91 | KP44: 90 | KQ44: 92 | KR44: 92 | KS44: 91 | KT44: 91 | KU44: 92 | KV44: 92
C45: Volumes Prodcued | E45: Units | I45: =I42*I44*I35 -> 0 | J45: =J42*J44*J35 -> 0 | K45: 0 | L45: 0 | M45: 0 | N45: 0 | O45: 0 | P45: 0 | Q45: 0 | R45: 0 | S45: 0 | T45: 0 | U45: 0 | V45: 0 | W45: 0 | X45: 0 | Y45: 0 | Z45: 0 | AA45: 0 | AB45: 0 | AC45: 0 | AD45: 0 | AE45: 0 | AF45: 0 | AG45: 0 | AH45: 0 | AI45: 0 | AJ45: 0 | AK45: 0 | AL45: 0 | AM45: 1240 | AN45: 1305.828077 | AO45: 1330.791076 | AP45: 1445.73928 | AQ45: 1473.376907 | AR45: 1600.641082 | AS45: 1685.614569 | AT45: 1603.315278 | AU45: 2790 | AV45: 2700 | AW45: 2790 | AX45: 2700 | AY45: 2790 | AZ45: 2790 | BA45: 2700 | BB45: 2790 | BC45: 2700 | BD45: 2790 | BE45: 2790 | BF45: 2520 | BG45: 55200 | BH45: 55650.18758 | BI45: 55494.2201 | BJ45: 55327.1222 | BK45: 57007.79825 | BL45: 57472.72946 | BM45: 57311.65405 | BN45: 57773.9624 | BO45: 58880 | BP45: 59318.32849 | BQ45: 59110.35575 | BR45: 58891.25123 | BS45: 60638.32257 | BT45: 61089.74078 | BU45: 60875.55739 | BV45: =BV42*BV44*BV35 -> 60649.90979 | BW45: 62449.1536 | BX45: 62914.05243 | BY45: 62693.47292 | BZ45: 62461.08685 | CA45: 64314.06114 | CB45: 64792.84316 | CC45: 64565.67652 | CD45: 65041.08798 | CE45: 66240 | CF45: 66533.7005 | CG45: 66102.3043 | CH45: 65662.6169 | CI45: 67412.91261 | CJ45: 67711.81368 | CK45: 67272.77873 | CL45: 66825.30579 | CM45: 68606.59401 | CN45: 68910.78772 | CO45: 68463.97877 | CP45: 68008.58242 | CQ45: 69821.41193 | CR45: 70130.99201 | CS45: 69676.27141 | CT45: 69981.84258 | CU45: 71061.15776 | CV45: 71376.23472 | CW45: 70913.44012 | CX45: 70441.75089 | CY45: 72319.43868 | CZ45: 72640.09471 | DA45: 72169.10541 | DB45: 71689.06396 | DC45: 73600 | DD45: 73600 | DE45: 72800 | DF45: 72000 | DG45: 73600 | DH45: 73600 | DI45: 72800 | DJ45: 72800 | DK45: 73600 | DL45: 73600 | DM45: 72800 | DN45: 72000 | DO45: 73600 | DP45: 73600 | DQ45: 72800 | DR45: 72000 | DS45: 73600 | DT45: 73600 | DU45: 72800 | DV45: 72000 | DW45: 73600 | DX45: 73600 | DY45: 72800 | DZ45: 72800 | EA45: 73600 | EB45: 73600 | EC45: 72800 | ED45: 72000 | EE45: 73600 | EF45: 73600 | EG45: 72800 | EH45: =EH42*EH44*EH35 -> 72000 | EI45: 73600 | EJ45: 73600 | EK45: 72800 | EL45: 72000 | EM45: 73600 | EN45: 73600 | EO45: 72800 | EP45: 72800 | EQ45: 73600 | ER45: 73600 | ES45: 72800 | ET45: 72000 | EU45: 73600 | EV45: 73600 | EW45: 72800 | EX45: 72000 | EY45: 73600 | EZ45: 73600 | FA45: 72800 | FB45: 72000 | FC45: 73600 | FD45: 73600 | FE45: 72800 | FF45: 72800 | FG45: 73600 | FH45: 73600 | FI45: 72800 | FJ45: 72000 | FK45: 73600 | FL45: 73600 | FM45: 72800 | FN45: 72000 | FO45: 73600 | FP45: 73600 | FQ45: 72800 | FR45: 72000 | FS45: 73600 | FT45: 73600 | FU45: 72800 | FV45: 72800 | FW45: 0 | FX45: 0 | FY45: 0 | FZ45: 0 | GA45: 0 | GB45: 0 | GC45: 0 | GD45: 0 | GE45: 0 | GF45: 0 | GG45: 0 | GH45: 0 | GI45: 0 | GJ45: 0 | GK45: 0 | GL45: 0 | GM45: 0 | GN45: 0 | GO45: 0 | GP45: 0 | GQ45: 0 | GR45: 0 | GS45: 0 | GT45: =GT42*GT44*GT35 -> 0 | GU45: 0 | GV45: 0 | GW45: 0 | GX45: 0 | GY45: 0 | GZ45: 0 | HA45: 0 | HB45: 0 | HC45: 0 | HD45: 0 | HE45: 0 | HF45: 0 | HG45: 0 | HH45: 0 | HI45: 0 | HJ45: 0 | HK45: 0 | HL45: 0 | HM45: 0 | HN45: 0 | HO45: 0 | HP45: 0 | HQ45: 0 | HR45: 0 | HS45: 0 | HT45: 0 | HU45: 0 | HV45: 0 | HW45: 0 | HX45: 0 | HY45: 0 | HZ45: 0 | IA45: 0 | IB45: 0 | IC45: 0 | ID45: 0 | IE45: 0 | IF45: 0 | IG45: 0 | IH45: 0 | II45: 0 | IJ45: 0 | IK45: 0 | IL45: 0 | IM45: 0 | IN45: 0 | IO45: 0 | IP45: 0 | IQ45: 0 | IR45: 0 | IS45: 0 | IT45: 0 | IU45: 0 | IV45: 0 | IW45: 0 | IX45: 0 | IY45: 0 | IZ45: 0 | JA45: 0 | JB45: 0 | JC45: 0 | JD45: 0 | JE45: 0 | JF45: =JF42*JF44*JF35 -> 0 | JG45: 0 | JH45: 0 | JI45: 0 | JJ45: 0 | JK45: 0 | JL45: 0 | JM45: 0 | JN45: 0 | JO45: 0 | JP45: 0 | JQ45: 0 | JR45: 0 | JS45: 0 | JT45: 0 | JU45: 0 | JV45: 0 | JW45: 0 | JX45: 0 | JY45: 0 | JZ45: 0 | KA45: 0 | KB45: 0 | KC45: 0 | KD45: 0 | KE45: 0 | KF45: 0 | KG45: 0 | KH45: 0 | KI45: 0 | KJ45: 0 | KK45: 0 | KL45: 0 | KM45: 0 | KN45: 0 | KO45: 0 | KP45: 0 | KQ45: 0 | KR45: 0 | KS45: 0 | KT45: 0 | KU45: 0 | KV45: 0

Sheet Free Cash - No Titles
A1: Time Line
B2: Period Number | I2: 1 | J2: 2 | K2: 3 | L2: 4 | M2: 5 | N2: 6 | O2: 7 | P2: 8 | Q2: 9 | R2: 10 | S2: 11 | T2: 12 | U2: 13 | V2: 14 | W2: 15 | X2: 16 | Y2: 17 | Z2: 18 | AA2: 19 | AB2: 20 | AC2: 21 | AD2: 22 | AE2: 23 | AF2: 24 | AG2: 25 | AH2: 26 | AI2: 27 | AJ2: 28 | AK2: 29 | AL2: 30 | AM2: 31 | AN2: 32 | AO2: 33 | AP2: 34 | AQ2: 35 | AR2: 36 | AS2: 37 | AT2: 38 | AU2: 39 | AV2: 40 | AW2: 41 | AX2: 42 | AY2: 43 | AZ2: 44 | BA2: 45 | BB2: 46 | BC2: 47 | BD2: 48 | BE2: 49 | BF2: 50 | BG2: 51 | BH2: 52 | BI2: 53 | BJ2: 54 | BK2: 55 | BL2: 56 | BM2: 57 | BN2: 58 | BO2: 59 | BP2: 60 | BQ2: 61 | BR2: 62 | BS2: 63 | BT2: 64 | BU2: 65 | BV2: 66 | BW2: 67 | BX2: 68 | BY2: 69 | BZ2: 70 | CA2: 71 | CB2: 72 | CC2: 73 | CD2: 74 | CE2: 75 | CF2: 76 | CG2: 77 | CH2: 78 | CI2: 79 | CJ2: 80 | CK2: 81 | CL2: 82 | CM2: 83 | CN2: 84 | CO2: 85 | CP2: 86 | CQ2: 87 | CR2: 88 | CS2: 89 | CT2: 90 | CU2: 91 | CV2: 92 | CW2: 93 | CX2: 94 | CY2: 95 | CZ2: 96 | DA2: 97 | DB2: 98 | DC2: 99 | DD2: 100 | DE2: 101 | DF2: 102 | DG2: 103 | DH2: 104 | DI2: 105 | DJ2: 106 | DK2: 107 | DL2: 108 | DM2: 109 | DN2: 110 | DO2: 111 | DP2: 112 | DQ2: 113 | DR2: 114 | DS2: 115 | DT2: 116 | DU2: 117 | DV2: 118 | DW2: 119 | DX2: 120 | DY2: 121 | DZ2: 122 | EA2: 123 | EB2: 124 | EC2: 125 | ED2: 126 | EE2: 127 | EF2: 128 | EG2: 129 | EH2: 130 | EI2: 131 | EJ2: 132 | EK2: 133 | EL2: 134 | EM2: 135 | EN2: 136 | EO2: 137 | EP2: 138 | EQ2: 139 | ER2: 140 | ES2: 141 | ET2: 142 | EU2: 143 | EV2: 144 | EW2: 145 | EX2: 146 | EY2: 147 | EZ2: 148 | FA2: 149 | FB2: 150 | FC2: 151 | FD2: 152 | FE2: 153 | FF2: 154 | FG2: 155 | FH2: 156 | FI2: 157 | FJ2: 158 | FK2: 159 | FL2: 160 | FM2: 161 | FN2: 162 | FO2: 163 | FP2: 164 | FQ2: 165 | FR2: 166 | FS2: 167 | FT2: 168 | FU2: 169 | FV2: 170 | FW2: 171 | FX2: 172 | FY2: 173 | FZ2: 174 | GA2: 175 | GB2: 176 | GC2: 177 | GD2: 178 | GE2: 179 | GF2: 180 | GG2: 181 | GH2: 182 | GI2: 183 | GJ2: 184 | GK2: 185 | GL2: 186 | GM2: 187 | GN2: 188 | GO2: 189 | GP2: 190 | GQ2: 191 | GR2: 192 | GS2: 193 | GT2: 194 | GU2: 195 | GV2: 196 | GW2: 197 | GX2: 198 | GY2: 199 | GZ2: 200 | HA2: 201 | HB2: 202 | HC2: 203 | HD2: 204 | HE2: 205 | HF2: 206 | HG2: 207 | HH2: 208 | HI2: 209 | HJ2: 210 | HK2: 211 | HL2: 212 | HM2: 213 | HN2: 214 | HO2: 215 | HP2: 216 | HQ2: 217 | HR2: 218 | HS2: 219 | HT2: 220 | HU2: 221 | HV2: 222 | HW2: 223 | HX2: 224 | HY2: 225 | HZ2: 226 | IA2: 227 | IB2: 228 | IC2: 229 | ID2: 230 | IE2: 231 | IF2: 232 | IG2: 233 | IH2: 234 | II2: 235 | IJ2: 236 | IK2: 237 | IL2: 238 | IM2: 239 | IN2: 240 | IO2: 241 | IP2: 242 | IQ2: 243 | IR2: 244 | IS2: 245 | IT2: 246 | IU2: 247 | IV2: 248 | IW2: 249 | IX2: 250 | IY2: 251 | IZ2: 252 | JA2: 253 | JB2: 254 | JC2: 255 | JD2: 256 | JE2: 257 | JF2: 258 | JG2: 259 | JH2: 260 | JI2: 261 | JJ2: 262 | JK2: 263 | JL2: 264 | JM2: 265 | JN2: 266 | JO2: 267 | JP2: 268 | JQ2: 269 | JR2: 270 | JS2: 271 | JT2: 272 | JU2: 273 | JV2: 274 | JW2: 275 | JX2: 276 | JY2: 277 | JZ2: 278 | KA2: 279 | KB2: 280 | KC2: 281 | KD2: 282 | KE2: 283 | KF2: 284 | KG2: 285 | KH2: 286 | KI2: 287 | KJ2: 288 | KK2: 289 | KL2: 290 | KM2: 291 | KN2: 292 | KO2: 293 | KP2: 294 | KQ2: 295 | KR2: 296 | KS2: 297 | KT2: 298 | KU2: 299 | KV2: 300
B3: Pre-COD Switch | E3: Pre-cod | G3: =F10+F12 -> 50 | I3: =I2<=$G$3 -> TRUE | J3: =J2<=$G$3 -> TRUE | K3: TRUE | L3: TRUE | M3: TRUE | N3: TRUE | O3: TRUE | P3: TRUE | Q3: TRUE | R3: TRUE | S3: TRUE | T3: TRUE | U3: TRUE | V3: TRUE | W3: TRUE | X3: TRUE | Y3: TRUE | Z3: TRUE | AA3: TRUE | AB3: TRUE | AC3: TRUE | AD3: TRUE | AE3: TRUE | AF3: TRUE | AG3: TRUE | AH3: TRUE | AI3: TRUE | AJ3: TRUE | AK3: TRUE | AL3: TRUE | AM3: TRUE | AN3: TRUE | AO3: TRUE | AP3: TRUE | AQ3: TRUE | AR3: TRUE | AS3: TRUE | AT3: TRUE | AU3: TRUE | AV3: TRUE | AW3: TRUE | AX3: TRUE | AY3: TRUE | AZ3: TRUE | BA3: TRUE | BB3: TRUE | BC3: TRUE | BD3: TRUE | BE3: TRUE | BF3: TRUE | BG3: FALSE | BH3: FALSE | BI3: FALSE | BJ3: FALSE | BK3: FALSE | BL3: FALSE | BM3: FALSE | BN3: FALSE | BO3: FALSE | BP3: FALSE | BQ3: FALSE | BR3: FALSE | BS3: FALSE | BT3: FALSE | BU3: FALSE | BV3: =BV2<=$G$3 -> FALSE | BW3: FALSE | BX3: FALSE | BY3: FALSE | BZ3: FALSE | CA3: FALSE | CB3: FALSE | CC3: FALSE | CD3: FALSE | CE3: FALSE | CF3: FALSE | CG3: FALSE | CH3: FALSE | CI3: FALSE | CJ3: FALSE | CK3: FALSE | CL3: FALSE | CM3: FALSE | CN3: FALSE | CO3: FALSE | CP3: FALSE | CQ3: FALSE | CR3: FALSE | CS3: FALSE | CT3: FALSE | CU3: FALSE | CV3: FALSE | CW3: FALSE | CX3: FALSE | CY3: FALSE | CZ3: FALSE | DA3: FALSE | DB3: FALSE | DC3: FALSE | DD3: FALSE | DE3: FALSE | DF3: FALSE | DG3: FALSE | DH3: FALSE | DI3: FALSE | DJ3: FALSE | DK3: FALSE | DL3: FALSE | DM3: FALSE | DN3: FALSE | DO3: FALSE | DP3: FALSE | DQ3: FALSE | DR3: FALSE | DS3: FALSE | DT3: FALSE | DU3: FALSE | DV3: FALSE | DW3: FALSE | DX3: FALSE | DY3: FALSE | DZ3: FALSE | EA3: FALSE | EB3: FALSE | EC3: FALSE | ED3: FALSE | EE3: FALSE | EF3: FALSE | EG3: FALSE | EH3: =EH2<=$G$3 -> FALSE | EI3: FALSE | EJ3: FALSE | EK3: FALSE | EL3: FALSE | EM3: FALSE | EN3: FALSE | EO3: FALSE | EP3: FALSE | EQ3: FALSE | ER3: FALSE | ES3: FALSE | ET3: FALSE | EU3: FALSE | EV3: FALSE | EW3: FALSE | EX3: FALSE | EY3: FALSE | EZ3: FALSE | FA3: FALSE | FB3: FALSE | FC3: FALSE | FD3: FALSE | FE3: FALSE | FF3: FALSE | FG3: FALSE | FH3: FALSE | FI3: FALSE | FJ3: FALSE | FK3: FALSE | FL3: FALSE | FM3: FALSE | FN3: FALSE | FO3: FALSE | FP3: FALSE | FQ3: FALSE | FR3: FALSE | FS3: FALSE | FT3: FALSE | FU3: FALSE | FV3: FALSE | FW3: FALSE | FX3: FALSE | FY3: FALSE | FZ3: FALSE | GA3: FALSE | GB3: FALSE | GC3: FALSE | GD3: FALSE | GE3: FALSE | GF3: FALSE | GG3: FALSE | GH3: FALSE | GI3: FALSE | GJ3: FALSE | GK3: FALSE | GL3: FALSE | GM3: FALSE | GN3: FALSE | GO3: FALSE | GP3: FALSE | GQ3: FALSE | GR3: FALSE | GS3: FALSE | GT3: =GT2<=$G$3 -> FALSE | GU3: FALSE | GV3: FALSE | GW3: FALSE | GX3: FALSE | GY3: FALSE | GZ3: FALSE | HA3: FALSE | HB3: FALSE | HC3: FALSE | HD3: FALSE | HE3: FALSE | HF3: FALSE | HG3: FALSE | HH3: FALSE | HI3: FALSE | HJ3: FALSE | HK3: FALSE | HL3: FALSE | HM3: FALSE | HN3: FALSE | HO3: FALSE | HP3: FALSE | HQ3: FALSE | HR3: FALSE | HS3: FALSE | HT3: FALSE | HU3: FALSE | HV3: FALSE | HW3: FALSE | HX3: FALSE | HY3: FALSE | HZ3: FALSE | IA3: FALSE | IB3: FALSE | IC3: FALSE | ID3: FALSE | IE3: FALSE | IF3: FALSE | IG3: FALSE | IH3: FALSE | II3: FALSE | IJ3: FALSE | IK3: FALSE | IL3: FALSE | IM3: FALSE | IN3: FALSE | IO3: FALSE | IP3: FALSE | IQ3: FALSE | IR3: FALSE | IS3: FALSE | IT3: FALSE | IU3: FALSE | IV3: FALSE | IW3: FALSE | IX3: FALSE | IY3: FALSE | IZ3: FALSE | JA3: FALSE | JB3: FALSE | JC3: FALSE | JD3: FALSE | JE3: FALSE | JF3: =JF2<=$G$3 -> FALSE | JG3: FALSE | JH3: FALSE | JI3: FALSE | JJ3: FALSE | JK3: FALSE | JL3: FALSE | JM3: FALSE | JN3: FALSE | JO3: FALSE | JP3: FALSE | JQ3: FALSE | JR3: FALSE | JS3: FALSE | JT3: FALSE | JU3: FALSE | JV3: FALSE | JW3: FALSE | JX3: FALSE | JY3: FALSE | JZ3: FALSE | KA3: FALSE | KB3: FALSE | KC3: FALSE | KD3: FALSE | KE3: FALSE | KF3: FALSE | KG3: FALSE | KH3: FALSE | KI3: FALSE | KJ3: FALSE | KK3: FALSE | KL3: FALSE | KM3: FALSE | KN3: FALSE | KO3: FALSE | KP3: FALSE | KQ3: FALSE | KR3: FALSE | KS3: FALSE | KT3: FALSE | KU3: FALSE | KV3: FALSE
B4: Months in Period | E4: Pre post | F4: =F16 -> 1 | G4: =F17 -> 3 | I4: =IF(I3,$F$4,$G$4) -> 1 | J4: =IF(J3,$F$4,$G$4) -> 1 | K4: 1 | L4: 1 | M4: 1 | N4: 1 | O4: 1 | P4: 1 | Q4: 1 | R4: 1 | S4: 1 | T4: 1 | U4: 1 | V4: 1 | W4: 1 | X4: 1 | Y4: 1 | Z4: 1 | AA4: 1 | AB4: 1 | AC4: 1 | AD4: 1 | AE4: 1 | AF4: 1 | AG4: 1 | AH4: 1 | AI4: 1 | AJ4: 1 | AK4: 1 | AL4: 1 | AM4: 1 | AN4: 1 | AO4: 1 | AP4: 1 | AQ4: 1 | AR4: 1 | AS4: 1 | AT4: 1 | AU4: 1 | AV4: 1 | AW4: 1 | AX4: 1 | AY4: 1 | AZ4: 1 | BA4: 1 | BB4: 1 | BC4: 1 | BD4: 1 | BE4: 1 | BF4: 1 | BG4: 3 | BH4: 3 | BI4: 3 | BJ4: 3 | BK4: 3 | BL4: 3 | BM4: 3 | BN4: 3 | BO4: 3 | BP4: 3 | BQ4: 3 | BR4: 3 | BS4: 3 | BT4: 3 | BU4: 3 | BV4: =IF(BV3,$F$4,$G$4) -> 3 | BW4: 3 | BX4: 3 | BY4: 3 | BZ4: 3 | CA4: 3 | CB4: 3 | CC4: 3 | CD4: 3 | CE4: 3 | CF4: 3 | CG4: 3 | CH4: 3 | CI4: 3 | CJ4: 3 | CK4: 3 | CL4: 3 | CM4: 3 | CN4: 3 | CO4: 3 | CP4: 3 | CQ4: 3 | CR4: 3 | CS4: 3 | CT4: 3 | CU4: 3 | CV4: 3 | CW4: 3 | CX4: 3 | CY4: 3 | CZ4: 3 | DA4: 3 | DB4: 3 | DC4: 3 | DD4: 3 | DE4: 3 | DF4: 3 | DG4: 3 | DH4: 3 | DI4: 3 | DJ4: 3 | DK4: 3 | DL4: 3 | DM4: 3 | DN4: 3 | DO4: 3 | DP4: 3 | DQ4: 3 | DR4: 3 | DS4: 3 | DT4: 3 | DU4: 3 | DV4: 3 | DW4: 3 | DX4: 3 | DY4: 3 | DZ4: 3 | EA4: 3 | EB4: 3 | EC4: 3 | ED4: 3 | EE4: 3 | EF4: 3 | EG4: 3 | EH4: =IF(EH3,$F$4,$G$4) -> 3 | EI4: 3 | EJ4: 3 | EK4: 3 | EL4: 3 | EM4: 3 | EN4: 3 | EO4: 3 | EP4: 3 | EQ4: 3 | ER4: 3 | ES4: 3 | ET4: 3 | EU4: 3 | EV4: 3 | EW4: 3 | EX4: 3 | EY4: 3 | EZ4: 3 | FA4: 3 | FB4: 3 | FC4: 3 | FD4: 3 | FE4: 3 | FF4: 3 | FG4: 3 | FH4: 3 | FI4: 3 | FJ4: 3 | FK4: 3 | FL4: 3 | FM4: 3 | FN4: 3 | FO4: 3 | FP4: 3 | FQ4: 3 | FR4: 3 | FS4: 3 | FT4: 3 | FU4: 3 | FV4: 3 | FW4: 3 | FX4: 3 | FY4: 3 | FZ4: 3 | GA4: 3 | GB4: 3 | GC4: 3 | GD4: 3 | GE4: 3 | GF4: 3 | GG4: 3 | GH4: 3 | GI4: 3 | GJ4: 3 | GK4: 3 | GL4: 3 | GM4: 3 | GN4: 3 | GO4: 3 | GP4: 3 | GQ4: 3 | GR4: 3 | GS4: 3 | GT4: =IF(GT3,$F$4,$G$4) -> 3 | GU4: 3 | GV4: 3 | GW4: 3 | GX4: 3 | GY4: 3 | GZ4: 3 | HA4: 3 | HB4: 3 | HC4: 3 | HD4: 3 | HE4: 3 | HF4: 3 | HG4: 3 | HH4: 3 | HI4: 3 | HJ4: 3 | HK4: 3 | HL4: 3 | HM4: 3 | HN4: 3 | HO4: 3 | HP4: 3 | HQ4: 3 | HR4: 3 | HS4: 3 | HT4: 3 | HU4: 3 | HV4: 3 | HW4: 3 | HX4: 3 | HY4: 3 | HZ4: 3 | IA4: 3 | IB4: 3 | IC4: 3 | ID4: 3 | IE4: 3 | IF4: 3 | IG4: 3 | IH4: 3 | II4: 3 | IJ4: 3 | IK4: 3 | IL4: 3 | IM4: 3 | IN4: 3 | IO4: 3 | IP4: 3 | IQ4: 3 | IR4: 3 | IS4: 3 | IT4: 3 | IU4: 3 | IV4: 3 | IW4: 3 | IX4: 3 | IY4: 3 | IZ4: 3 | JA4: 3 | JB4: 3 | JC4: 3 | JD4: 3 | JE4: 3 | JF4: =IF(JF3,$F$4,$G$4) -> 3 | JG4: 3 | JH4: 3 | JI4: 3 | JJ4: 3 | JK4: 3 | JL4: 3 | JM4: 3 | JN4: 3 | JO4: 3 | JP4: 3 | JQ4: 3 | JR4: 3 | JS4: 3 | JT4: 3 | JU4: 3 | JV4: 3 | JW4: 3 | JX4: 3 | JY4: 3 | JZ4: 3 | KA4: 3 | KB4: 3 | KC4: 3 | KD4: 3 | KE4: 3 | KF4: 3 | KG4: 3 | KH4: 3 | KI4: 3 | KJ4: 3 | KK4: 3 | KL4: 3 | KM4: 3 | KN4: 3 | KO4: 3 | KP4: 3 | KQ4: 3 | KR4: 3 | KS4: 3 | KT4: 3 | KU4: 3 | KV4: 3
B5: Start of Period | I5: =H6+1 -> 2018-01-01 | J5: =I6+1 -> 2018-02-01 | K5: 2018-03-01 | L5: 2018-04-01 | M5: 2018-05-01 | N5: 2018-06-01 | O5: 2018-07-01 | P5: 2018-08-01 | Q5: 2018-09-01 | R5: 2018-10-01 | S5: 2018-11-01 | T5: 2018-12-01 | U5: 2019-01-01 | V5: 2019-02-01 | W5: 2019-03-01 | X5: 2019-04-01 | Y5: 2019-05-01 | Z5: 2019-06-01 | AA5: 2019-07-01 | AB5: 2019-08-01 | AC5: 2019-09-01 | AD5: 2019-10-01 | AE5: 2019-11-01 | AF5: 2019-12-01 | AG5: 2020-01-01 | AH5: 2020-02-01 | AI5: 2020-03-01 | AJ5: 2020-04-01 | AK5: 2020-05-01 | AL5: 2020-06-01 | AM5: 2020-07-01 | AN5: 2020-08-01 | AO5: 2020-09-01 | AP5: 2020-10-01 | AQ5: 2020-11-01 | AR5: 2020-12-01 | AS5: 2021-01-01 | AT5: 2021-02-01 | AU5: 2021-03-01 | AV5: 2021-04-01 | AW5: 2021-05-01 | AX5: 2021-06-01 | AY5: 2021-07-01 | AZ5: 2021-08-01 | BA5: 2021-09-01 | BB5: 2021-10-01 | BC5: 2021-11-01 | BD5: 2021-12-01 | BE5: 2022-01-01 | BF5: 2022-02-01 | BG5: 2022-03-01 | BH5: 2022-06-01 | BI5: 2022-09-01 | BJ5: 2022-12-01 | BK5: 2023-03-01 | BL5: 2023-06-01 | BM5: 2023-09-01 | BN5: 2023-12-01 | BO5: 2024-03-01 | BP5: 2024-06-01 | BQ5: 2024-09-01 | BR5: 2024-12-01 | BS5: 2025-03-01 | BT5: 2025-06-01 | BU5: 2025-09-01 | BV5: =BU6+1 -> 2025-12-01 | BW5: 2026-03-01 | BX5: 2026-06-01 | BY5: 2026-09-01 | BZ5: 2026-12-01 | CA5: 2027-03-01 | CB5: 2027-06-01 | CC5: 2027-09-01 | CD5: 2027-12-01 | CE5: 2028-03-01 | CF5: 2028-06-01 | CG5: 2028-09-01 | CH5: 2028-12-01 | CI5: 2029-03-01 | CJ5: 2029-06-01 | CK5: 2029-09-01 | CL5: 2029-12-01 | CM5: 2030-03-01 | CN5: 2030-06-01 | CO5: 2030-09-01 | CP5: 2030-12-01 | CQ5: 2031-03-01 | CR5: 2031-06-01 | CS5: 2031-09-01 | CT5: 2031-12-01 | CU5: 2032-03-01 | CV5: 2032-06-01 | CW5: 2032-09-01 | CX5: 2032-12-01 | CY5: 2033-03-01 | CZ5: 2033-06-01 | DA5: 2033-09-01 | DB5: 2033-12-01 | DC5: 2034-03-01 | DD5: 2034-06-01 | DE5: 2034-09-01 | DF5: 2034-12-01 | DG5: 2035-03-01 | DH5: 2035-06-01 | DI5: 2035-09-01 | DJ5: 2035-12-01 | DK5: 2036-03-01 | DL5: 2036-06-01 | DM5: 2036-09-01 | DN5: 2036-12-01 | DO5: 2037-03-01 | DP5: 2037-06-01 | DQ5: 2037-09-01 | DR5: 2037-12-01 | DS5: 2038-03-01 | DT5: 2038-06-01 | DU5: 2038-09-01 | DV5: 2038-12-01 | DW5: 2039-03-01 | DX5: 2039-06-01 | DY5: 2039-09-01 | DZ5: 2039-12-01 | EA5: 2040-03-01 | EB5: 2040-06-01 | EC5: 2040-09-01 | ED5: 2040-12-01 | EE5: 2041-03-01 | EF5: 2041-06-01 | EG5: 2041-09-01 | EH5: =EG6+1 -> 2041-12-01 | EI5: 2042-03-01 | EJ5: 2042-06-01 | EK5: 2042-09-01 | EL5: 2042-12-01 | EM5: 2043-03-01 | EN5: 2043-06-01 | EO5: 2043-09-01 | EP5: 2043-12-01 | EQ5: 2044-03-01 | ER5: 2044-06-01 | ES5: 2044-09-01 | ET5: 2044-12-01 | EU5: 2045-03-01 | EV5: 2045-06-01 | EW5: 2045-09-01 | EX5: 2045-12-01 | EY5: 2046-03-01 | EZ5: 2046-06-01 | FA5: 2046-09-01 | FB5: 2046-12-01 | FC5: 2047-03-01 | FD5: 2047-06-01 | FE5: 2047-09-01 | FF5: 2047-12-01 | FG5: 2048-03-01 | FH5: 2048-06-01 | FI5: 2048-09-01 | FJ5: 2048-12-01 | FK5: 2049-03-01 | FL5: 2049-06-01 | FM5: 2049-09-01 | FN5: 2049-12-01 | FO5: 2050-03-01 | FP5: 2050-06-01 | FQ5: 2050-09-01 | FR5: 2050-12-01 | FS5: 2051-03-01 | FT5: 2051-06-01 | FU5: 2051-09-01 | FV5: 2051-12-01 | FW5: 2052-03-01 | FX5: 2052-06-01 | FY5: 2052-09-01 | FZ5: 2052-12-01 | GA5: 2053-03-01 | GB5: 2053-06-01 | GC5: 2053-09-01 | GD5: 2053-12-01 | GE5: 2054-03-01 | GF5: 2054-06-01 | GG5: 2054-09-01 | GH5: 2054-12-01 | GI5: 2055-03-01 | GJ5: 2055-06-01 | GK5: 2055-09-01 | GL5: 2055-12-01 | GM5: 2056-03-01 | GN5: 2056-06-01 | GO5: 2056-09-01 | GP5: 2056-12-01 | GQ5: 2057-03-01 | GR5: 2057-06-01 | GS5: 2057-09-01 | GT5: =GS6+1 -> 2057-12-01 | GU5: 2058-03-01 | GV5: 2058-06-01 | GW5: 2058-09-01 | GX5: 2058-12-01 | GY5: 2059-03-01 | GZ5: 2059-06-01 | HA5: 2059-09-01 | HB5: 2059-12-01 | HC5: 2060-03-01 | HD5: 2060-06-01 | HE5: 2060-09-01 | HF5: 2060-12-01 | HG5: 2061-03-01 | HH5: 2061-06-01 | HI5: 2061-09-01 | HJ5: 2061-12-01 | HK5: 2062-03-01 | HL5: 2062-06-01 | HM5: 2062-09-01 | HN5: 2062-12-01 | HO5: 2063-03-01 | HP5: 2063-06-01 | HQ5: 2063-09-01 | HR5: 2063-12-01 | HS5: 2064-03-01 | HT5: 2064-06-01 | HU5: 2064-09-01 | HV5: 2064-12-01 | HW5: 2065-03-01 | HX5: 2065-06-01 | HY5: 2065-09-01 | HZ5: 2065-12-01 | IA5: 2066-03-01 | IB5: 2066-06-01 | IC5: 2066-09-01 | ID5: 2066-12-01 | IE5: 2067-03-01 | IF5: 2067-06-01 | IG5: 2067-09-01 | IH5: 2067-12-01 | II5: 2068-03-01 | IJ5: 2068-06-01 | IK5: 2068-09-01 | IL5: 2068-12-01 | IM5: 2069-03-01 | IN5: 2069-06-01 | IO5: 2069-09-01 | IP5: 2069-12-01 | IQ5: 2070-03-01 | IR5: 2070-06-01 | IS5: 2070-09-01 | IT5: 2070-12-01 | IU5: 2071-03-01 | IV5: 2071-06-01 | IW5: 2071-09-01 | IX5: 2071-12-01 | IY5: 2072-03-01 | IZ5: 2072-06-01 | JA5: 2072-09-01 | JB5: 2072-12-01 | JC5: 2073-03-01 | JD5: 2073-06-01 | JE5: 2073-09-01 | JF5: =JE6+1 -> 2073-12-01 | JG5: 2074-03-01 | JH5: 2074-06-01 | JI5: 2074-09-01 | JJ5: 2074-12-01 | JK5: 2075-03-01 | JL5: 2075-06-01 | JM5: 2075-09-01 | JN5: 2075-12-01 | JO5: 2076-03-01 | JP5: 2076-06-01 | JQ5: 2076-09-01 | JR5: 2076-12-01 | JS5: 2077-03-01 | JT5: 2077-06-01 | JU5: 2077-09-01 | JV5: 2077-12-01 | JW5: 2078-03-01 | JX5: 2078-06-01 | JY5: 2078-09-01 | JZ5: 2078-12-01 | KA5: 2079-03-01 | KB5: 2079-06-01 | KC5: 2079-09-01 | KD5: 2079-12-01 | KE5: 2080-03-01 | KF5: 2080-06-01 | KG5: 2080-09-01 | KH5: 2080-12-01 | KI5: 2081-03-01 | KJ5: 2081-06-01 | KK5: 2081-09-01 | KL5: 2081-12-01 | KM5: 2082-03-01 | KN5: 2082-06-01 | KO5: 2082-09-01 | KP5: 2082-12-01 | KQ5: 2083-03-01 | KR5: 2083-06-01 | KS5: 2083-09-01 | KT5: 2083-12-01 | KU5: 2084-03-01 | KV5: 2084-06-01
B6: End of Period | H6: =F9-1 -> 2017-12-31 | I6: =EDATE(I5,I4)-1 -> 2018-01-31 | J6: =EDATE(J5,J4)-1 -> 2018-02-28 | K6: 2018-03-31 | L6: 2018-04-30 | M6: 2018-05-31 | N6: 2018-06-30 | O6: 2018-07-31 | P6: 2018-08-31 | Q6: 2018-09-30 | R6: 2018-10-31 | S6: 2018-11-30 | T6: 2018-12-31 | U6: 2019-01-31 | V6: 2019-02-28 | W6: 2019-03-31 | X6: 2019-04-30 | Y6: 2019-05-31 | Z6: 2019-06-30 | AA6: 2019-07-31 | AB6: 2019-08-31 | AC6: 2019-09-30 | AD6: 2019-10-31 | AE6: 2019-11-30 | AF6: 2019-12-31 | AG6: 2020-01-31 | AH6: 2020-02-29 | AI6: 2020-03-31 | AJ6: 2020-04-30 | AK6: 2020-05-31 | AL6: 2020-06-30 | AM6: 2020-07-31 | AN6: 2020-08-31 | AO6: 2020-09-30 | AP6: 2020-10-31 | AQ6: 2020-11-30 | AR6: 2020-12-31 | AS6: 2021-01-31 | AT6: 2021-02-28 | AU6: 2021-03-31 | AV6: 2021-04-30 | AW6: 2021-05-31 | AX6: 2021-06-30 | AY6: 2021-07-31 | AZ6: 2021-08-31 | BA6: 2021-09-30 | BB6: 2021-10-31 | BC6: 2021-11-30 | BD6: 2021-12-31 | BE6: 2022-01-31 | BF6: 2022-02-28 | BG6: 2022-05-31 | BH6: 2022-08-31 | BI6: 2022-11-30 | BJ6: 2023-02-28 | BK6: 2023-05-31 | BL6: 2023-08-31 | BM6: 2023-11-30 | BN6: 2024-02-29 | BO6: 2024-05-31 | BP6: 2024-08-31 | BQ6: 2024-11-30 | BR6: 2025-02-28 | BS6: 2025-05-31 | BT6: 2025-08-31 | BU6: 2025-11-30 | BV6: =EDATE(BV5,BV4)-1 -> 2026-02-28 | BW6: 2026-05-31 | BX6: 2026-08-31 | BY6: 2026-11-30 | BZ6: 2027-02-28 | CA6: 2027-05-31 | CB6: 2027-08-31 | CC6: 2027-11-30 | CD6: 2028-02-29 | CE6: 2028-05-31 | CF6: 2028-08-31 | CG6: 2028-11-30 | CH6: 2029-02-28 | CI6: 2029-05-31 | CJ6: 2029-08-31 | CK6: 2029-11-30 | CL6: 2030-02-28 | CM6: 2030-05-31 | CN6: 2030-08-31 | CO6: 2030-11-30 | CP6: 2031-02-28 | CQ6: 2031-05-31 | CR6: 2031-08-31 | CS6: 2031-11-30 | CT6: 2032-02-29 | CU6: 2032-05-31 | CV6: 2032-08-31 | CW6: 2032-11-30 | CX6: 2033-02-28 | CY6: 2033-05-31 | CZ6: 2033-08-31 | DA6: 2033-11-30 | DB6: 2034-02-28 | DC6: 2034-05-31 | DD6: 2034-08-31 | DE6: 2034-11-30 | DF6: 2035-02-28 | DG6: 2035-05-31 | DH6: 2035-08-31 | DI6: 2035-11-30 | DJ6: 2036-02-29 | DK6: 2036-05-31 | DL6: 2036-08-31 | DM6: 2036-11-30 | DN6: 2037-02-28 | DO6: 2037-05-31 | DP6: 2037-08-31 | DQ6: 2037-11-30 | DR6: 2038-02-28 | DS6: 2038-05-31 | DT6: 2038-08-31 | DU6: 2038-11-30 | DV6: 2039-02-28 | DW6: 2039-05-31 | DX6: 2039-08-31 | DY6: 2039-11-30 | DZ6: 2040-02-29 | EA6: 2040-05-31 | EB6: 2040-08-31 | EC6: 2040-11-30 | ED6: 2041-02-28 | EE6: 2041-05-31 | EF6: 2041-08-31 | EG6: 2041-11-30 | EH6: =EDATE(EH5,EH4)-1 -> 2042-02-28 | EI6: 2042-05-31 | EJ6: 2042-08-31 | EK6: 2042-11-30 | EL6: 2043-02-28 | EM6: 2043-05-31 | EN6: 2043-08-31 | EO6: 2043-11-30 | EP6: 2044-02-29 | EQ6: 2044-05-31 | ER6: 2044-08-31 | ES6: 2044-11-30 | ET6: 2045-02-28 | EU6: 2045-05-31 | EV6: 2045-08-31 | EW6: 2045-11-30 | EX6: 2046-02-28 | EY6: 2046-05-31 | EZ6: 2046-08-31 | FA6: 2046-11-30 | FB6: 2047-02-28 | FC6: 2047-05-31 | FD6: 2047-08-31 | FE6: 2047-11-30 | FF6: 2048-02-29 | FG6: 2048-05-31 | FH6: 2048-08-31 | FI6: 2048-11-30 | FJ6: 2049-02-28 | FK6: 2049-05-31 | FL6: 2049-08-31 | FM6: 2049-11-30 | FN6: 2050-02-28 | FO6: 2050-05-31 | FP6: 2050-08-31 | FQ6: 2050-11-30 | FR6: 2051-02-28 | FS6: 2051-05-31 | FT6: 2051-08-31 | FU6: 2051-11-30 | FV6: 2052-02-29 | FW6: 2052-05-31 | FX6: 2052-08-31 | FY6: 2052-11-30 | FZ6: 2053-02-28 | GA6: 2053-05-31 | GB6: 2053-08-31 | GC6: 2053-11-30 | GD6: 2054-02-28 | GE6: 2054-05-31 | GF6: 2054-08-31 | GG6: 2054-11-30 | GH6: 2055-02-28 | GI6: 2055-05-31 | GJ6: 2055-08-31 | GK6: 2055-11-30 | GL6: 2056-02-29 | GM6: 2056-05-31 | GN6: 2056-08-31 | GO6: 2056-11-30 | GP6: 2057-02-28 | GQ6: 2057-05-31 | GR6: 2057-08-31 | GS6: 2057-11-30 | GT6: =EDATE(GT5,GT4)-1 -> 2058-02-28 | GU6: 2058-05-31 | GV6: 2058-08-31 | GW6: 2058-11-30 | GX6: 2059-02-28 | GY6: 2059-05-31 | GZ6: 2059-08-31 | HA6: 2059-11-30 | HB6: 2060-02-29 | HC6: 2060-05-31 | HD6: 2060-08-31 | HE6: 2060-11-30 | HF6: 2061-02-28 | HG6: 2061-05-31 | HH6: 2061-08-31 | HI6: 2061-11-30 | HJ6: 2062-02-28 | HK6: 2062-05-31 | HL6: 2062-08-31 | HM6: 2062-11-30 | HN6: 2063-02-28 | HO6: 2063-05-31 | HP6: 2063-08-31 | HQ6: 2063-11-30 | HR6: 2064-02-29 | HS6: 2064-05-31 | HT6: 2064-08-31 | HU6: 2064-11-30 | HV6: 2065-02-28 | HW6: 2065-05-31 | HX6: 2065-08-31 | HY6: 2065-11-30 | HZ6: 2066-02-28 | IA6: 2066-05-31 | IB6: 2066-08-31 | IC6: 2066-11-30 | ID6: 2067-02-28 | IE6: 2067-05-31 | IF6: 2067-08-31 | IG6: 2067-11-30 | IH6: 2068-02-29 | II6: 2068-05-31 | IJ6: 2068-08-31 | IK6: 2068-11-30 | IL6: 2069-02-28 | IM6: 2069-05-31 | IN6: 2069-08-31 | IO6: 2069-11-30 | IP6: 2070-02-28 | IQ6: 2070-05-31 | IR6: 2070-08-31 | IS6: 2070-11-30 | IT6: 2071-02-28 | IU6: 2071-05-31 | IV6: 2071-08-31 | IW6: 2071-11-30 | IX6: 2072-02-29 | IY6: 2072-05-31 | IZ6: 2072-08-31 | JA6: 2072-11-30 | JB6: 2073-02-28 | JC6: 2073-05-31 | JD6: 2073-08-31 | JE6: 2073-11-30 | JF6: =EDATE(JF5,JF4)-1 -> 2074-02-28 | JG6: 2074-05-31 | JH6: 2074-08-31 | JI6: 2074-11-30 | JJ6: 2075-02-28 | JK6: 2075-05-31 | JL6: 2075-08-31 | JM6: 2075-11-30 | JN6: 2076-02-29 | JO6: 2076-05-31 | JP6: 2076-08-31 | JQ6: 2076-11-30 | JR6: 2077-02-28 | JS6: 2077-05-31 | JT6: 2077-08-31 | JU6: 2077-11-30 | JV6: 2078-02-28 | JW6: 2078-05-31 | JX6: 2078-08-31 | JY6: 2078-11-30 | JZ6: 2079-02-28 | KA6: 2079-05-31 | KB6: 2079-08-31 | KC6: 2079-11-30 | KD6: 2080-02-29 | KE6: 2080-05-31 | KF6: 2080-08-31 | KG6: 2080-11-30 | KH6: 2081-02-28 | KI6: 2081-05-31 | KJ6: 2081-08-31 | KK6: 2081-11-30 | KL6: 2082-02-28 | KM6: 2082-05-31 | KN6: 2082-08-31 | KO6: 2082-11-30 | KP6: 2083-02-28 | KQ6: 2083-05-31 | KR6: 2083-08-31 | KS6: 2083-11-30 | KT6: 2084-02-29 | KU6: 2084-05-31 | KV6: 2084-08-31
B7: Operating Period | F7: =F13 -> 2022-03-01 | G7: =F15 -> 2052-03-01 | I7: =AND(I$5>=$F7,I$5<$G7) -> FALSE | J7: FALSE | K7: FALSE | L7: FALSE | M7: FALSE | N7: FALSE | O7: FALSE | P7: FALSE | Q7: FALSE | R7: FALSE | S7: FALSE | T7: FALSE | U7: FALSE | V7: FALSE | W7: FALSE | X7: FALSE | Y7: FALSE | Z7: FALSE | AA7: FALSE | AB7: FALSE | AC7: FALSE | AD7: FALSE | AE7: FALSE | AF7: FALSE | AG7: FALSE | AH7: FALSE | AI7: FALSE | AJ7: FALSE | AK7: FALSE | AL7: FALSE | AM7: FALSE | AN7: FALSE | AO7: FALSE | AP7: FALSE | AQ7: FALSE | AR7: FALSE | AS7: FALSE | AT7: FALSE | AU7: FALSE | AV7: FALSE | AW7: FALSE | AX7: FALSE | AY7: FALSE | AZ7: FALSE | BA7: FALSE | BB7: FALSE | BC7: FALSE | BD7: FALSE | BE7: FALSE | BF7: FALSE | BG7: TRUE | BH7: TRUE | BI7: TRUE | BJ7: TRUE | BK7: TRUE | BL7: TRUE | BM7: TRUE | BN7: TRUE | BO7: TRUE | BP7: TRUE | BQ7: TRUE | BR7: TRUE | BS7: TRUE | BT7: TRUE | BU7: =AND(BU$5>=$F7,BU$5<$G7) -> TRUE | BV7: TRUE | BW7: TRUE | BX7: TRUE | BY7: TRUE | BZ7: TRUE | CA7: TRUE | CB7: TRUE | CC7: TRUE | CD7: TRUE | CE7: TRUE | CF7: TRUE | CG7: TRUE | CH7: TRUE | CI7: TRUE | CJ7: TRUE | CK7: TRUE | CL7: TRUE | CM7: TRUE | CN7: TRUE | CO7: TRUE | CP7: TRUE | CQ7: TRUE | CR7: TRUE | CS7: TRUE | CT7: TRUE | CU7: TRUE | CV7: TRUE | CW7: TRUE | CX7: TRUE | CY7: TRUE | CZ7: TRUE | DA7: TRUE | DB7: TRUE | DC7: TRUE | DD7: TRUE | DE7: TRUE | DF7: TRUE | DG7: TRUE | DH7: TRUE | DI7: TRUE | DJ7: TRUE | DK7: TRUE | DL7: TRUE | DM7: TRUE | DN7: TRUE | DO7: TRUE | DP7: TRUE | DQ7: TRUE | DR7: TRUE | DS7: TRUE | DT7: TRUE | DU7: TRUE | DV7: TRUE | DW7: TRUE | DX7: TRUE | DY7: TRUE | DZ7: TRUE | EA7: TRUE | EB7: TRUE | EC7: TRUE | ED7: TRUE | EE7: TRUE | EF7: TRUE | EG7: =AND(EG$5>=$F7,EG$5<$G7) -> TRUE | EH7: TRUE | EI7: TRUE | EJ7: TRUE | EK7: TRUE | EL7: TRUE | EM7: TRUE | EN7: TRUE | EO7: TRUE | EP7: TRUE | EQ7: TRUE | ER7: TRUE | ES7: TRUE | ET7: TRUE | EU7: TRUE | EV7: TRUE | EW7: TRUE | EX7: TRUE | EY7: TRUE | EZ7: TRUE | FA7: TRUE | FB7: TRUE | FC7: TRUE | FD7: TRUE | FE7: TRUE | FF7: TRUE | FG7: TRUE | FH7: TRUE | FI7: TRUE | FJ7: TRUE | FK7: TRUE | FL7: TRUE | FM7: TRUE | FN7: TRUE | FO7: TRUE | FP7: TRUE | FQ7: TRUE | FR7: TRUE | FS7: TRUE | FT7: TRUE | FU7: TRUE | FV7: TRUE | FW7: FALSE | FX7: FALSE | FY7: FALSE | FZ7: FALSE | GA7: FALSE | GB7: FALSE | GC7: FALSE | GD7: FALSE | GE7: FALSE | GF7: FALSE | GG7: FALSE | GH7: FALSE | GI7: FALSE | GJ7: FALSE | GK7: FALSE | GL7: FALSE | GM7: FALSE | GN7: FALSE | GO7: FALSE | GP7: FALSE | GQ7: FALSE | GR7: FALSE | GS7: =AND(GS$5>=$F7,GS$5<$G7) -> FALSE | GT7: FALSE | GU7: FALSE | GV7: FALSE | GW7: FALSE | GX7: FALSE | GY7: FALSE | GZ7: FALSE | HA7: FALSE | HB7: FALSE | HC7: FALSE | HD7: FALSE | HE7: FALSE | HF7: FALSE | HG7: FALSE | HH7: FALSE | HI7: FALSE | HJ7: FALSE | HK7: FALSE | HL7: FALSE | HM7: FALSE | HN7: FALSE | HO7: FALSE | HP7: FALSE | HQ7: FALSE | HR7: FALSE | HS7: FALSE | HT7: FALSE | HU7: FALSE | HV7: FALSE | HW7: FALSE | HX7: FALSE | HY7: FALSE | HZ7: FALSE | IA7: FALSE | IB7: FALSE | IC7: FALSE | ID7: FALSE | IE7: FALSE | IF7: FALSE | IG7: FALSE | IH7: FALSE | II7: FALSE | IJ7: FALSE | IK7: FALSE | IL7: FALSE | IM7: FALSE | IN7: FALSE | IO7: FALSE | IP7: FALSE | IQ7: FALSE | IR7: FALSE | IS7: FALSE | IT7: FALSE | IU7: FALSE | IV7: FALSE | IW7: FALSE | IX7: FALSE | IY7: FALSE | IZ7: FALSE | JA7: FALSE | JB7: FALSE | JC7: FALSE | JD7: FALSE | JE7: =AND(JE$5>=$F7,JE$5<$G7) -> FALSE | JF7: FALSE | JG7: FALSE | JH7: FALSE | JI7: FALSE | JJ7: FALSE | JK7: FALSE | JL7: FALSE | JM7: FALSE | JN7: FALSE | JO7: FALSE | JP7: FALSE | JQ7: FALSE | JR7: FALSE | JS7: FALSE | JT7: FALSE | JU7: FALSE | JV7: FALSE | JW7: FALSE | JX7: FALSE | JY7: FALSE | JZ7: FALSE | KA7: FALSE | KB7: FALSE | KC7: FALSE | KD7: FALSE | KE7: FALSE | KF7: FALSE | KG7: FALSE | KH7: FALSE | KI7: FALSE | KJ7: FALSE | KK7: FALSE | KL7: FALSE | KM7: FALSE | KN7: FALSE | KO7: FALSE | KP7: FALSE | KQ7: FALSE | KR7: FALSE | KS7: FALSE | KT7: FALSE | KU7: FALSE | KV7: FALSE
A8: Dates
C9: Development Start | F9: 2018-01-01
C10: Development Period | E10: Months | F10: 20
C11: Financial Close | E11: Date | F11: =EDATE(F9,F10) -> 2019-09-01
C12: Construction | E12: Months | F12: 30
C13: Commercial Operation | E13: Date | F13: =EDATE(F11,F12) -> 2022-03-01
C14: Operation | E14: Years | F14: 30
C15: Decommissioning | E15: Date | F15: =EDATE(F13,F14*12) -> 2052-03-01
C16: Months Pre-COD | E16: Months | F16: 1
C17: Months Post-COD | E17: Months | F17: 3
A19: Capacity and Volumes
B20: Months after FC | I20: 10 | J20: 8 | K20: COD | L20: Decom
B21: Date | G21: =F9 -> 2018-01-01 | H21: =F11 -> 2019-09-01 | I21: =EDATE(H21,I20) -> 2020-07-01 | J21: =EDATE(I21,J20) -> 2021-03-01 | K21: =F13 -> 2022-03-01 | L21: =F15 -> 2052-03-01
B22: Capacity of Project | E22: Units/Day | G22: 0 | H22: 0 | I22: 100 | J22: 150 | K22: 1000 | L22: 0
L24: 2 | M24: 4 | N24: 6
B25: Date | G25: =G21 -> 2018-01-01 | H25: =H21 -> 2019-09-01 | I25: 2020-07-01 | J25: 2021-03-01 | K25: 2022-03-01 | L25: =EDATE(K25,L24*12) -> 2024-03-01 | M25: =EDATE(L25,M24*12) -> 2028-03-01 | N25: =EDATE(M25,N24*12) -> 2034-03-01 | O25: =L21 -> 2052-03-01
B26: Capacity Utilisation | E26: % | G26: 0 | H26: 0 | I26: 0.4 | J26: 0.6 | K26: 0.6 | L26: 0.64 | M26: 0.72 | N26: 0.8 | O26: 0.8
A28: Operating Contracts and Working Capital
B30: Capital Expenditures/Month | F30: Amount | G30: Months | H30: Start
C31: Development Cost | E31: € 000's | F31: 1000000 | G31: =F10 -> 20 | H31: =F9 -> 2018-01-01
C32: Development Fees | E32: € 000's | F32: 2000000 | G32: 1 | H32: =F11 -> 2019-09-01
C33: Capital Expenditures - EPC | E33: € 000's | F33: 10000000 | G33: 20 | H33: =F13 -> 2022-03-01
C34: Capital Expenditures - Owner | E34: € 000's | F34: 500000 | G34: =F14 -> 30 | H34: =F13 -> 2022-03-01
C36: Wiebull Alpha | E36: Factor | F36: 3
C37: Wiebull Middle of Period | E37: Months | F37: 15
C38: Wiebull Gamma | E38: Factor | F38: 1
C39: Wiebull Beta | E39: Factor | F39: =F37*F38 -> 15
B41: PPA Contract
C42: Base Price | E42: €/Unit | F42: 7
C43: Month to Apply Inflation (After COD) | E43: Month | F43: =MONTH(F13) -> 3
G44: =YEAR(F9) -> 2018 | H44: =G44+1 -> 2019 | I44: =H44+1 -> 2020 | J44: 2021 | K44: 2022 | L44: 2023 | M44: 2024 | N44: 2025 | O44: 2026
C45: Inflation Rate | E45: % p.a. | G45: 0.015 | H45: 0.018 | I45: 0.02 | J45: 0.022 | K45: 0.025 | L45: 0.025 | M45: 0.025 | N45: 0.025 | O45: 0.025
B47: O&M Contract
C48: Base Variable O&M per Unit | E48: €/Unit | F48: 2
C49: Age in Years | F49: 0 | G49: 1 | H49: 15 | I49: 20 | J49: =F14+1 -> 31
C50: Base Fixed O&M per Capacity-yr | E50: €/Cap-yr | G50: 150000 | H50: 250000 | I50: 300000 | J50: 0
C51: First Date of Inflation | E51: Date | F51: =F13 -> 2022-03-01
B53: Working Capital
C54: Days Receivables | E54: Days | F54: 28
C55: Days Payables | E55: Days | F55: 15
A56: Operations Analysis
B57: Capapcity and Volumes
C58: Capacity | E58: Units/Day | F58: LOOKUP | I58: =LOOKUP(I5,21:21,22:22) -> 0 | J58: 0 | K58: 0 | L58: 0 | M58: 0 | N58: 0 | O58: 0 | P58: 0 | Q58: 0 | R58: 0 | S58: 0 | T58: 0 | U58: 0 | V58: 0 | W58: 0 | X58: 0 | Y58: 0 | Z58: 0 | AA58: 0 | AB58: 0 | AC58: 0 | AD58: 0 | AE58: 0 | AF58: 0 | AG58: 0 | AH58: 0 | AI58: 0 | AJ58: 0 | AK58: 0 | AL58: 0 | AM58: 100 | AN58: 100 | AO58: 100 | AP58: 100 | AQ58: 100 | AR58: 100 | AS58: 100 | AT58: 100 | AU58: 150 | AV58: 150 | AW58: 150 | AX58: 150 | AY58: 150 | AZ58: 150 | BA58: 150 | BB58: 150 | BC58: 150 | BD58: 150 | BE58: 150 | BF58: 150 | BG58: 1000 | BH58: 1000 | BI58: 1000 | BJ58: 1000 | BK58: 1000 | BL58: 1000 | BM58: 1000 | BN58: 1000 | BO58: 1000 | BP58: 1000 | BQ58: 1000 | BR58: 1000 | BS58: 1000 | BT58: 1000 | BU58: =LOOKUP(BU5,21:21,22:22) -> 1000 | BV58: 1000 | BW58: 1000 | BX58: 1000 | BY58: 1000 | BZ58: 1000 | CA58: 1000 | CB58: 1000 | CC58: 1000 | CD58: 1000 | CE58: 1000 | CF58: 1000 | CG58: 1000 | CH58: 1000 | CI58: 1000 | CJ58: 1000 | CK58: 1000 | CL58: 1000 | CM58: 1000 | CN58: 1000 | CO58: 1000 | CP58: 1000 | CQ58: 1000 | CR58: 1000 | CS58: 1000 | CT58: 1000 | CU58: 1000 | CV58: 1000 | CW58: 1000 | CX58: 1000 | CY58: 1000 | CZ58: 1000 | DA58: 1000 | DB58: 1000 | DC58: 1000 | DD58: 1000 | DE58: 1000 | DF58: 1000 | DG58: 1000 | DH58: 1000 | DI58: 1000 | DJ58: 1000 | DK58: 1000 | DL58: 1000 | DM58: 1000 | DN58: 1000 | DO58: 1000 | DP58: 1000 | DQ58: 1000 | DR58: 1000 | DS58: 1000 | DT58: 1000 | DU58: 1000 | DV58: 1000 | DW58: 1000 | DX58: 1000 | DY58: 1000 | DZ58: 1000 | EA58: 1000 | EB58: 1000 | EC58: 1000 | ED58: 1000 | EE58: 1000 | EF58: 1000 | EG58: =LOOKUP(EG5,21:21,22:22) -> 1000 | EH58: 1000 | EI58: 1000 | EJ58: 1000 | EK58: 1000 | EL58: 1000 | EM58: 1000 | EN58: 1000 | EO58: 1000 | EP58: 1000 | EQ58: 1000 | ER58: 1000 | ES58: 1000 | ET58: 1000 | EU58: 1000 | EV58: 1000 | EW58: 1000 | EX58: 1000 | EY58: 1000 | EZ58: 1000 | FA58: 1000 | FB58: 1000 | FC58: 1000 | FD58: 1000 | FE58: 1000 | FF58: 1000 | FG58: 1000 | FH58: 1000 | FI58: 1000 | FJ58: 1000 | FK58: 1000 | FL58: 1000 | FM58: 1000 | FN58: 1000 | FO58: 1000 | FP58: 1000 | FQ58: 1000 | FR58: 1000 | FS58: 1000 | FT58: 1000 | FU58: 1000 | FV58: 1000 | FW58: 0 | FX58: 0 | FY58: 0 | FZ58: 0 | GA58: 0 | GB58: 0 | GC58: 0 | GD58: 0 | GE58: 0 | GF58: 0 | GG58: 0 | GH58: 0 | GI58: 0 | GJ58: 0 | GK58: 0 | GL58: 0 | GM58: 0 | GN58: 0 | GO58: 0 | GP58: 0 | GQ58: 0 | GR58: 0 | GS58: =LOOKUP(GS5,21:21,22:22) -> 0 | GT58: 0 | GU58: 0 | GV58: 0 | GW58: 0 | GX58: 0 | GY58: 0 | GZ58: 0 | HA58: 0 | HB58: 0 | HC58: 0 | HD58: 0 | HE58: 0 | HF58: 0 | HG58: 0 | HH58: 0 | HI58: 0 | HJ58: 0 | HK58: 0 | HL58: 0 | HM58: 0 | HN58: 0 | HO58: 0 | HP58: 0 | HQ58: 0 | HR58: 0 | HS58: 0 | HT58: 0 | HU58: 0 | HV58: 0 | HW58: 0 | HX58: 0 | HY58: 0 | HZ58: 0 | IA58: 0 | IB58: 0 | IC58: 0 | ID58: 0 | IE58: 0 | IF58: 0 | IG58: 0 | IH58: 0 | II58: 0 | IJ58: 0 | IK58: 0 | IL58: 0 | IM58: 0 | IN58: 0 | IO58: 0 | IP58: 0 | IQ58: 0 | IR58: 0 | IS58: 0 | IT58: 0 | IU58: 0 | IV58: 0 | IW58: 0 | IX58: 0 | IY58: 0 | IZ58: 0 | JA58: 0 | JB58: 0 | JC58: 0 | JD58: 0 | JE58: =LOOKUP(JE5,21:21,22:22) -> 0 | JF58: 0 | JG58: 0 | JH58: 0 | JI58: 0 | JJ58: 0 | JK58: 0 | JL58: 0 | JM58: 0 | JN58: 0 | JO58: 0 | JP58: 0 | JQ58: 0 | JR58: 0 | JS58: 0 | JT58: 0 | JU58: 0 | JV58: 0 | JW58: 0 | JX58: 0 | JY58: 0 | JZ58: 0 | KA58: 0 | KB58: 0 | KC58: 0 | KD58: 0 | KE58: 0 | KF58: 0 | KG58: 0 | KH58: 0 | KI58: 0 | KJ58: 0 | KK58: 0 | KL58: 0 | KM58: 0 | KN58: 0 | KO58: 0 | KP58: 0 | KQ58: 0 | KR58: 0 | KS58: 0 | KT58: 0 | KU58: 0 | KV58: 0
C59: Days in Period | E59: Days | I59: =I6-I5+1 -> 31 | J59: 28 | K59: 31 | L59: 30 | M59: 31 | N59: 30 | O59: 31 | P59: 31 | Q59: 30 | R59: 31 | S59: 30 | T59: 31 | U59: 31 | V59: 28 | W59: 31 | X59: 30 | Y59: 31 | Z59: 30 | AA59: 31 | AB59: 31 | AC59: 30 | AD59: 31 | AE59: 30 | AF59: 31 | AG59: 31 | AH59: 29 | AI59: 31 | AJ59: 30 | AK59: 31 | AL59: 30 | AM59: 31 | AN59: 31 | AO59: 30 | AP59: 31 | AQ59: 30 | AR59: 31 | AS59: 31 | AT59: 28 | AU59: 31 | AV59: 30 | AW59: 31 | AX59: 30 | AY59: 31 | AZ59: 31 | BA59: 30 | BB59: 31 | BC59: 30 | BD59: 31 | BE59: 31 | BF59: 28 | BG59: 92 | BH59: 92 | BI59: 91 | BJ59: 90 | BK59: 92 | BL59: 92 | BM59: 91 | BN59: 91 | BO59: 92 | BP59: 92 | BQ59: 91 | BR59: 90 | BS59: 92 | BT59: 92 | BU59: =BU6-BU5+1 -> 91 | BV59: 90 | BW59: 92 | BX59: 92 | BY59: 91 | BZ59: 90 | CA59: 92 | CB59: 92 | CC59: 91 | CD59: 91 | CE59: 92 | CF59: 92 | CG59: 91 | CH59: 90 | CI59: 92 | CJ59: 92 | CK59: 91 | CL59: 90 | CM59: 92 | CN59: 92 | CO59: 91 | CP59: 90 | CQ59: 92 | CR59: 92 | CS59: 91 | CT59: 91 | CU59: 92 | CV59: 92 | CW59: 91 | CX59: 90 | CY59: 92 | CZ59: 92 | DA59: 91 | DB59: 90 | DC59: 92 | DD59: 92 | DE59: 91 | DF59: 90 | DG59: 92 | DH59: 92 | DI59: 91 | DJ59: 91 | DK59: 92 | DL59: 92 | DM59: 91 | DN59: 90 | DO59: 92 | DP59: 92 | DQ59: 91 | DR59: 90 | DS59: 92 | DT59: 92 | DU59: 91 | DV59: 90 | DW59: 92 | DX59: 92 | DY59: 91 | DZ59: 91 | EA59: 92 | EB59: 92 | EC59: 91 | ED59: 90 | EE59: 92 | EF59: 92 | EG59: =EG6-EG5+1 -> 91 | EH59: 90 | EI59: 92 | EJ59: 92 | EK59: 91 | EL59: 90 | EM59: 92 | EN59: 92 | EO59: 91 | EP59: 91 | EQ59: 92 | ER59: 92 | ES59: 91 | ET59: 90 | EU59: 92 | EV59: 92 | EW59: 91 | EX59: 90 | EY59: 92 | EZ59: 92 | FA59: 91 | FB59: 90 | FC59: 92 | FD59: 92 | FE59: 91 | FF59: 91 | FG59: 92 | FH59: 92 | FI59: 91 | FJ59: 90 | FK59: 92 | FL59: 92 | FM59: 91 | FN59: 90 | FO59: 92 | FP59: 92 | FQ59: 91 | FR59: 90 | FS59: 92 | FT59: 92 | FU59: 91 | FV59: 91 | FW59: 92 | FX59: 92 | FY59: 91 | FZ59: 90 | GA59: 92 | GB59: 92 | GC59: 91 | GD59: 90 | GE59: 92 | GF59: 92 | GG59: 91 | GH59: 90 | GI59: 92 | GJ59: 92 | GK59: 91 | GL59: 91 | GM59: 92 | GN59: 92 | GO59: 91 | GP59: 90 | GQ59: 92 | GR59: 92 | GS59: =GS6-GS5+1 -> 91 | GT59: 90 | GU59: 92 | GV59: 92 | GW59: 91 | GX59: 90 | GY59: 92 | GZ59: 92 | HA59: 91 | HB59: 91 | HC59: 92 | HD59: 92 | HE59: 91 | HF59: 90 | HG59: 92 | HH59: 92 | HI59: 91 | HJ59: 90 | HK59: 92 | HL59: 92 | HM59: 91 | HN59: 90 | HO59: 92 | HP59: 92 | HQ59: 91 | HR59: 91 | HS59: 92 | HT59: 92 | HU59: 91 | HV59: 90 | HW59: 92 | HX59: 92 | HY59: 91 | HZ59: 90 | IA59: 92 | IB59: 92 | IC59: 91 | ID59: 90 | IE59: 92 | IF59: 92 | IG59: 91 | IH59: 91 | II59: 92 | IJ59: 92 | IK59: 91 | IL59: 90 | IM59: 92 | IN59: 92 | IO59: 91 | IP59: 90 | IQ59: 92 | IR59: 92 | IS59: 91 | IT59: 90 | IU59: 92 | IV59: 92 | IW59: 91 | IX59: 91 | IY59: 92 | IZ59: 92 | JA59: 91 | JB59: 90 | JC59: 92 | JD59: 92 | JE59: =JE6-JE5+1 -> 91 | JF59: 90 | JG59: 92 | JH59: 92 | JI59: 91 | JJ59: 90 | JK59: 92 | JL59: 92 | JM59: 91 | JN59: 91 | JO59: 92 | JP59: 92 | JQ59: 91 | JR59: 90 | JS59: 92 | JT59: 92 | JU59: 91 | JV59: 90 | JW59: 92 | JX59: 92 | JY59: 91 | JZ59: 90 | KA59: 92 | KB59: 92 | KC59: 91 | KD59: 91 | KE59: 92 | KF59: 92 | KG59: 91 | KH59: 90 | KI59: 92 | KJ59: 92 | KK59: 91 | KL59: 90 | KM59: 92 | KN59: 92 | KO59: 91 | KP59: 90 | KQ59: 92 | KR59: 92 | KS59: 91 | KT59: 91 | KU59: 92 | KV59: 92
C60: Total Capacity | E60: Units | I60: =I58*I59 -> 0 | J60: =J58*J59 -> 0 | K60: 0 | L60: 0 | M60: 0 | N60: 0 | O60: 0 | P60: 0 | Q60: 0 | R60: 0 | S60: 0 | T60: 0 | U60: 0 | V60: 0 | W60: 0 | X60: 0 | Y60: 0 | Z60: 0 | AA60: 0 | AB60: 0 | AC60: 0 | AD60: 0 | AE60: 0 | AF60: 0 | AG60: 0 | AH60: 0 | AI60: 0 | AJ60: 0 | AK60: 0 | AL60: 0 | AM60: 3100 | AN60: 3100 | AO60: 3000 | AP60: 3100 | AQ60: 3000 | AR60: 3100 | AS60: 3100 | AT60: 2800 | AU60: 4650 | AV60: 4500 | AW60: 4650 | AX60: 4500 | AY60: 4650 | AZ60: 4650 | BA60: 4500 | BB60: 4650 | BC60: 4500 | BD60: 4650 | BE60: 4650 | BF60: 4200 | BG60: 92000 | BH60: 92000 | BI60: 91000 | BJ60: 90000 | BK60: 92000 | BL60: 92000 | BM60: 91000 | BN60: 91000 | BO60: 92000 | BP60: 92000 | BQ60: 91000 | BR60: 90000 | BS60: 92000 | BT60: 92000 | BU60: 91000 | BV60: =BV58*BV59 -> 90000 | BW60: 92000 | BX60: 92000 | BY60: 91000 | BZ60: 90000 | CA60: 92000 | CB60: 92000 | CC60: 91000 | CD60: 91000 | CE60: 92000 | CF60: 92000 | CG60: 91000 | CH60: 90000 | CI60: 92000 | CJ60: 92000 | CK60: 91000 | CL60: 90000 | CM60: 92000 | CN60: 92000 | CO60: 91000 | CP60: 90000 | CQ60: 92000 | CR60: 92000 | CS60: 91000 | CT60: 91000 | CU60: 92000 | CV60: 92000 | CW60: 91000 | CX60: 90000 | CY60: 92000 | CZ60: 92000 | DA60: 91000 | DB60: 90000 | DC60: 92000 | DD60: 92000 | DE60: 91000 | DF60: 90000 | DG60: 92000 | DH60: 92000 | DI60: 91000 | DJ60: 91000 | DK60: 92000 | DL60: 92000 | DM60: 91000 | DN60: 90000 | DO60: 92000 | DP60: 92000 | DQ60: 91000 | DR60: 90000 | DS60: 92000 | DT60: 92000 | DU60: 91000 | DV60: 90000 | DW60: 92000 | DX60: 92000 | DY60: 91000 | DZ60: 91000 | EA60: 92000 | EB60: 92000 | EC60: 91000 | ED60: 90000 | EE60: 92000 | EF60: 92000 | EG60: 91000 | EH60: =EH58*EH59 -> 90000 | EI60: 92000 | EJ60: 92000 | EK60: 91000 | EL60: 90000 | EM60: 92000 | EN60: 92000 | EO60: 91000 | EP60: 91000 | EQ60: 92000 | ER60: 92000 | ES60: 91000 | ET60: 90000 | EU60: 92000 | EV60: 92000 | EW60: 91000 | EX60: 90000 | EY60: 92000 | EZ60: 92000 | FA60: 91000 | FB60: 90000 | FC60: 92000 | FD60: 92000 | FE60: 91000 | FF60: 91000 | FG60: 92000 | FH60: 92000 | FI60: 91000 | FJ60: 90000 | FK60: 92000 | FL60: 92000 | FM60: 91000 | FN60: 90000 | FO60: 92000 | FP60: 92000 | FQ60: 91000 | FR60: 90000 | FS60: 92000 | FT60: 92000 | FU60: 91000 | FV60: 91000 | FW60: 0 | FX60: 0 | FY60: 0 | FZ60: 0 | GA60: 0 | GB60: 0 | GC60: 0 | GD60: 0 | GE60: 0 | GF60: 0 | GG60: 0 | GH60: 0 | GI60: 0 | GJ60: 0 | GK60: 0 | GL60: 0 | GM60: 0 | GN60: 0 | GO60: 0 | GP60: 0 | GQ60: 0 | GR60: 0 | GS60: 0 | GT60: =GT58*GT59 -> 0 | GU60: 0 | GV60: 0 | GW60: 0 | GX60: 0 | GY60: 0 | GZ60: 0 | HA60: 0 | HB60: 0 | HC60: 0 | HD60: 0 | HE60: 0 | HF60: 0 | HG60: 0 | HH60: 0 | HI60: 0 | HJ60: 0 | HK60: 0 | HL60: 0 | HM60: 0 | HN60: 0 | HO60: 0 | HP60: 0 | HQ60: 0 | HR60: 0 | HS60: 0 | HT60: 0 | HU60: 0 | HV60: 0 | HW60: 0 | HX60: 0 | HY60: 0 | HZ60: 0 | IA60: 0 | IB60: 0 | IC60: 0 | ID60: 0 | IE60: 0 | IF60: 0 | IG60: 0 | IH60: 0 | II60: 0 | IJ60: 0 | IK60: 0 | IL60: 0 | IM60: 0 | IN60: 0 | IO60: 0 | IP60: 0 | IQ60: 0 | IR60: 0 | IS60: 0 | IT60: 0 | IU60: 0 | IV60: 0 | IW60: 0 | IX60: 0 | IY60: 0 | IZ60: 0 | JA60: 0 | JB60: 0 | JC60: 0 | JD60: 0 | JE60: 0 | JF60: =JF58*JF59 -> 0 | JG60: 0 | JH60: 0 | JI60: 0 | JJ60: 0 | JK60: 0 | JL60: 0 | JM60: 0 | JN60: 0 | JO60: 0 | JP60: 0 | JQ60: 0 | JR60: 0 | JS60: 0 | JT60: 0 | JU60: 0 | JV60: 0 | JW60: 0 | JX60: 0 | JY60: 0 | JZ60: 0 | KA60: 0 | KB60: 0 | KC60: 0 | KD60: 0 | KE60: 0 | KF60: 0 | KG60: 0 | KH60: 0 | KI60: 0 | KJ60: 0 | KK60: 0 | KL60: 0 | KM60: 0 | KN60: 0 | KO60: 0 | KP60: 0 | KQ60: 0 | KR60: 0 | KS60: 0 | KT60: 0 | KU60: 0 | KV60: 0
C62: Capacity Utilisation | E62: % | F62: LINEAR | I62: =interpolate_look_up_linear(I5,25:25,26:26) -> 0 | J62: 0 | K62: 0 | L62: 0 | M62: 0 | N62: 0 | O62: 0 | P62: 0 | Q62: 0 | R62: 0 | S62: 0 | T62: 0 | U62: 0 | V62: 0 | W62: 0 | X62: 0 | Y62: 0 | Z62: 0 | AA62: 0 | AB62: 0 | AC62: 0 | AD62: 0.03947368421 | AE62: 0.08026315789 | AF62: 0.1197368421 | AG62: 0.1605263158 | AH62: 0.2013157895 | AI62: 0.2394736842 | AJ62: 0.2802631579 | AK62: 0.3197368421 | AL62: 0.3605263158 | AM62: 0.4 | AN62: 0.4255144033 | AO62: 0.4510288066 | AP62: 0.4757201646 | AQ62: 0.5012345679 | AR62: 0.5259259259 | AS62: 0.5514403292 | AT62: 0.5769547325 | AU62: 0.6 | AV62: 0.6 | AW62: 0.6 | AX62: 0.6 | AY62: 0.6 | AZ62: 0.6 | BA62: 0.6 | BB62: 0.6 | BC62: 0.6 | BD62: 0.6 | BE62: 0.6 | BF62: 0.6 | BG62: 0.6 | BH62: 0.6050341997 | BI62: 0.6100683995 | BJ62: 0.6150478796 | BK62: 0.6199726402 | BL62: 0.6250068399 | BM62: 0.6300410397 | BN62: 0.6350205198 | BO62: 0.64 | BP62: 0.6450376454 | BQ62: 0.6500752909 | BR62: 0.6550581793 | BS62: 0.6599863107 | BT62: 0.6650239562 | BU62: =interpolate_look_up_linear(BU5,25:25,26:26) -> 0.6700616016 | BV62: 0.6750444901 | BW62: 0.6799726215 | BX62: 0.6850102669 | BY62: 0.6900479124 | BZ62: 0.6950308008 | CA62: 0.6999589322 | CB62: 0.7049965777 | CC62: 0.7100342231 | CD62: 0.7150171116 | CE62: 0.72 | CF62: 0.7233591967 | CG62: 0.7267183934 | CH62: 0.7300410771 | CI62: 0.7333272478 | CJ62: 0.7366864445 | CK62: 0.7400456413 | CL62: 0.743368325 | CM62: 0.7466544957 | CN62: 0.7500136924 | CO62: 0.7533728891 | CP62: 0.7566955728 | CQ62: 0.7599817435 | CR62: 0.7633409402 | CS62: 0.7667001369 | CT62: 0.7700228206 | CU62: 0.7733455043 | CV62: 0.776704701 | CW62: 0.7800638978 | CX62: 0.7833865815 | CY62: 0.7866727522 | CZ62: 0.7900319489 | DA62: 0.7933911456 | DB62: 0.7967138293 | DC62: 0.8 | DD62: 0.8 | DE62: 0.8 | DF62: 0.8 | DG62: 0.8 | DH62: 0.8 | DI62: 0.8 | DJ62: 0.8 | DK62: 0.8 | DL62: 0.8 | DM62: 0.8 | DN62: 0.8 | DO62: 0.8 | DP62: 0.8 | DQ62: 0.8 | DR62: 0.8 | DS62: 0.8 | DT62: 0.8 | DU62: 0.8 | DV62: 0.8 | DW62: 0.8 | DX62: 0.8 | DY62: 0.8 | DZ62: 0.8 | EA62: 0.8 | EB62: 0.8 | EC62: 0.8 | ED62: 0.8 | EE62: 0.8 | EF62: 0.8 | EG62: =interpolate_look_up_linear(EG5,25:25,26:26) -> 0.8 | EH62: 0.8 | EI62: 0.8 | EJ62: 0.8 | EK62: 0.8 | EL62: 0.8 | EM62: 0.8 | EN62: 0.8 | EO62: 0.8 | EP62: 0.8 | EQ62: 0.8 | ER62: 0.8 | ES62: 0.8 | ET62: 0.8 | EU62: 0.8 | EV62: 0.8 | EW62: 0.8 | EX62: 0.8 | EY62: 0.8 | EZ62: 0.8 | FA62: 0.8 | FB62: 0.8 | FC62: 0.8 | FD62: 0.8 | FE62: 0.8 | FF62: 0.8 | FG62: 0.8 | FH62: 0.8 | FI62: 0.8 | FJ62: 0.8 | FK62: 0.8 | FL62: 0.8 | FM62: 0.8 | FN62: 0.8 | FO62: 0.8 | FP62: 0.8 | FQ62: 0.8 | FR62: 0.8 | FS62: 0.8 | FT62: 0.8 | FU62: 0.8 | FV62: 0.8 | FW62: 0.8 | FX62: 0.8 | FY62: 0.8 | FZ62: 0.8 | GA62: 0.8 | GB62: 0.8 | GC62: 0.8 | GD62: 0.8 | GE62: 0.8 | GF62: 0.8 | GG62: 0.8 | GH62: 0.8 | GI62: 0.8 | GJ62: 0.8 | GK62: 0.8 | GL62: 0.8 | GM62: 0.8 | GN62: 0.8 | GO62: 0.8 | GP62: 0.8 | GQ62: 0.8 | GR62: 0.8 | GS62: =interpolate_look_up_linear(GS5,25:25,26:26) -> 0.8 | GT62: 0.8 | GU62: 0.8 | GV62: 0.8 | GW62: 0.8 | GX62: 0.8 | GY62: 0.8 | GZ62: 0.8 | HA62: 0.8 | HB62: 0.8 | HC62: 0.8 | HD62: 0.8 | HE62: 0.8 | HF62: 0.8 | HG62: 0.8 | HH62: 0.8 | HI62: 0.8 | HJ62: 0.8 | HK62: 0.8 | HL62: 0.8 | HM62: 0.8 | HN62: 0.8 | HO62: 0.8 | HP62: 0.8 | HQ62: 0.8 | HR62: 0.8 | HS62: 0.8 | HT62: 0.8 | HU62: 0.8 | HV62: 0.8 | HW62: 0.8 | HX62: 0.8 | HY62: 0.8 | HZ62: 0.8 | IA62: 0.8 | IB62: 0.8 | IC62: 0.8 | ID62: 0.8 | IE62: 0.8 | IF62: 0.8 | IG62: 0.8 | IH62: 0.8 | II62: 0.8 | IJ62: 0.8 | IK62: 0.8 | IL62: 0.8 | IM62: 0.8 | IN62: 0.8 | IO62: 0.8 | IP62: 0.8 | IQ62: 0.8 | IR62: 0.8 | IS62: 0.8 | IT62: 0.8 | IU62: 0.8 | IV62: 0.8 | IW62: 0.8 | IX62: 0.8 | IY62: 0.8 | IZ62: 0.8 | JA62: 0.8 | JB62: 0.8 | JC62: 0.8 | JD62: 0.8 | JE62: =interpolate_look_up_linear(JE5,25:25,26:26) -> 0.8 | JF62: 0.8 | JG62: 0.8 | JH62: 0.8 | JI62: 0.8 | JJ62: 0.8 | JK62: 0.8 | JL62: 0.8 | JM62: 0.8 | JN62: 0.8 | JO62: 0.8 | JP62: 0.8 | JQ62: 0.8 | JR62: 0.8 | JS62: 0.8 | JT62: 0.8 | JU62: 0.8 | JV62: 0.8 | JW62: 0.8 | JX62: 0.8 | JY62: 0.8 | JZ62: 0.8 | KA62: 0.8 | KB62: 0.8 | KC62: 0.8 | KD62: 0.8 | KE62: 0.8 | KF62: 0.8 | KG62: 0.8 | KH62: 0.8 | KI62: 0.8 | KJ62: 0.8 | KK62: 0.8 | KL62: 0.8 | KM62: 0.8 | KN62: 0.8 | KO62: 0.8 | KP62: 0.8 | KQ62: 0.8 | KR62: 0.8 | KS62: 0.8 | KT62: 0.8 | KU62: 0.8 | KV62: 0.8
C63: Capacity Utilisation | E63: % | F63: INTERPOLATE | I63: =interpolate_look_up(I5,25:25,26:26) -> 0 | J63: 0 | K63: 0 | L63: 0 | M63: 0 | N63: 0 | O63: 0 | P63: 0 | Q63: 0 | R63: 0 | S63: 0 | T63: 0 | U63: 0 | V63: 0 | W63: 0 | X63: 0 | Y63: 0 | Z63: 0 | AA63: 0 | AB63: 0 | AC63: 0 | AD63: 0 | AE63: 0 | AF63: 0 | AG63: 0 | AH63: 0 | AI63: 0 | AJ63: 0 | AK63: 0 | AL63: 0 | AM63: 0.4 | AN63: 0.4212348634 | AO63: 0.4435970255 | AP63: 0.4663675097 | AQ63: 0.4911256357 | AR63: 0.516335833 | AS63: 0.5437466353 | AT63: 0.5726125992 | AU63: 0.6 | AV63: 0.6 | AW63: 0.6 | AX63: 0.6 | AY63: 0.6 | AZ63: 0.6 | BA63: 0.6 | BB63: 0.6 | BC63: 0.6 | BD63: 0.6 | BE63: 0.6 | BF63: 0.6 | BG63: 0.6 | BH63: 0.6048933433 | BI63: 0.6098265945 | BJ63: 0.6147458022 | BK63: 0.619649981 | BL63: 0.6247035811 | BM63: 0.6297983962 | BN63: 0.6348787077 | BO63: 0.64 | BP63: 0.6447644402 | BQ63: 0.6495643489 | BR63: 0.6543472359 | BS63: 0.6591122018 | BT63: 0.6640189216 | BU63: =interpolate_look_up(BU5,25:25,26:26) -> 0.6689621691 | BV63: 0.6738878866 | BW63: 0.6787951478 | BX63: 0.683848396 | BY63: 0.6889392628 | BZ63: 0.6940120761 | CA63: 0.699065882 | CB63: 0.7042700344 | CC63: 0.7095129288 | CD63: 0.7147372306 | CE63: 0.72 | CF63: 0.7231923968 | CG63: 0.7263989483 | CH63: 0.7295846323 | CI63: 0.7327490501 | CJ63: 0.7359979748 | CK63: 0.7392613047 | CL63: 0.7425033976 | CM63: 0.7457238479 | CN63: 0.7490303013 | CO63: 0.7523514151 | CP63: 0.7556509158 | CQ63: 0.7589283906 | CR63: 0.7622933914 | CS63: 0.7656733122 | CT63: 0.7690312372 | CU63: 0.7724038887 | CV63: 0.7758286382 | CW63: 0.7792685728 | CX63: 0.7826861209 | CY63: 0.7860808552 | CZ63: 0.7895662469 | DA63: 0.7930670924 | DB63: 0.7965451551 | DC63: 0.8 | DD63: 0.8 | DE63: 0.8 | DF63: 0.8 | DG63: 0.8 | DH63: 0.8 | DI63: 0.8 | DJ63: 0.8 | DK63: 0.8 | DL63: 0.8 | DM63: 0.8 | DN63: 0.8 | DO63: 0.8 | DP63: 0.8 | DQ63: 0.8 | DR63: 0.8 | DS63: 0.8 | DT63: 0.8 | DU63: 0.8 | DV63: 0.8 | DW63: 0.8 | DX63: 0.8 | DY63: 0.8 | DZ63: 0.8 | EA63: 0.8 | EB63: 0.8 | EC63: 0.8 | ED63: 0.8 | EE63: 0.8 | EF63: 0.8 | EG63: =interpolate_look_up(EG5,25:25,26:26) -> 0.8 | EH63: 0.8 | EI63: 0.8 | EJ63: 0.8 | EK63: 0.8 | EL63: 0.8 | EM63: 0.8 | EN63: 0.8 | EO63: 0.8 | EP63: 0.8 | EQ63: 0.8 | ER63: 0.8 | ES63: 0.8 | ET63: 0.8 | EU63: 0.8 | EV63: 0.8 | EW63: 0.8 | EX63: 0.8 | EY63: 0.8 | EZ63: 0.8 | FA63: 0.8 | FB63: 0.8 | FC63: 0.8 | FD63: 0.8 | FE63: 0.8 | FF63: 0.8 | FG63: 0.8 | FH63: 0.8 | FI63: 0.8 | FJ63: 0.8 | FK63: 0.8 | FL63: 0.8 | FM63: 0.8 | FN63: 0.8 | FO63: 0.8 | FP63: 0.8 | FQ63: 0.8 | FR63: 0.8 | FS63: 0.8 | FT63: 0.8 | FU63: 0.8 | FV63: 0.8 | FW63: 0.8 | FX63: 0.8 | FY63: 0.8 | FZ63: 0.8 | GA63: 0.8 | GB63: 0.8 | GC63: 0.8 | GD63: 0.8 | GE63: 0.8 | GF63: 0.8 | GG63: 0.8 | GH63: 0.8 | GI63: 0.8 | GJ63: 0.8 | GK63: 0.8 | GL63: 0.8 | GM63: 0.8 | GN63: 0.8 | GO63: 0.8 | GP63: 0.8 | GQ63: 0.8 | GR63: 0.8 | GS63: =interpolate_look_up(GS5,25:25,26:26) -> 0.8 | GT63: 0.8 | GU63: 0.8 | GV63: 0.8 | GW63: 0.8 | GX63: 0.8 | GY63: 0.8 | GZ63: 0.8 | HA63: 0.8 | HB63: 0.8 | HC63: 0.8 | HD63: 0.8 | HE63: 0.8 | HF63: 0.8 | HG63: 0.8 | HH63: 0.8 | HI63: 0.8 | HJ63: 0.8 | HK63: 0.8 | HL63: 0.8 | HM63: 0.8 | HN63: 0.8 | HO63: 0.8 | HP63: 0.8 | HQ63: 0.8 | HR63: 0.8 | HS63: 0.8 | HT63: 0.8 | HU63: 0.8 | HV63: 0.8 | HW63: 0.8 | HX63: 0.8 | HY63: 0.8 | HZ63: 0.8 | IA63: 0.8 | IB63: 0.8 | IC63: 0.8 | ID63: 0.8 | IE63: 0.8 | IF63: 0.8 | IG63: 0.8 | IH63: 0.8 | II63: 0.8 | IJ63: 0.8 | IK63: 0.8 | IL63: 0.8 | IM63: 0.8 | IN63: 0.8 | IO63: 0.8 | IP63: 0.8 | IQ63: 0.8 | IR63: 0.8 | IS63: 0.8 | IT63: 0.8 | IU63: 0.8 | IV63: 0.8 | IW63: 0.8 | IX63: 0.8 | IY63: 0.8 | IZ63: 0.8 | JA63: 0.8 | JB63: 0.8 | JC63: 0.8 | JD63: 0.8 | JE63: =interpolate_look_up(JE5,25:25,26:26) -> 0.8 | JF63: 0.8 | JG63: 0.8 | JH63: 0.8 | JI63: 0.8 | JJ63: 0.8 | JK63: 0.8 | JL63: 0.8 | JM63: 0.8 | JN63: 0.8 | JO63: 0.8 | JP63: 0.8 | JQ63: 0.8 | JR63: 0.8 | JS63: 0.8 | JT63: 0.8 | JU63: 0.8 | JV63: 0.8 | JW63: 0.8 | JX63: 0.8 | JY63: 0.8 | JZ63: 0.8 | KA63: 0.8 | KB63: 0.8 | KC63: 0.8 | KD63: 0.8 | KE63: 0.8 | KF63: 0.8 | KG63: 0.8 | KH63: 0.8 | KI63: 0.8 | KJ63: 0.8 | KK63: 0.8 | KL63: 0.8 | KM63: 0.8 | KN63: 0.8 | KO63: 0.8 | KP63: 0.8 | KQ63: 0.8 | KR63: 0.8 | KS63: 0.8 | KT63: 0.8 | KU63: 0.8 | KV63: 0.8
C64: Total Volumes | E64: Units | I64: =I62*I60 -> 0 | J64: =J62*J60 -> 0 | K64: 0 | L64: 0 | M64: 0 | N64: 0 | O64: 0 | P64: 0 | Q64: 0 | R64: 0 | S64: 0 | T64: 0 | U64: 0 | V64: 0 | W64: 0 | X64: 0 | Y64: 0 | Z64: 0 | AA64: 0 | AB64: 0 | AC64: 0 | AD64: 0 | AE64: 0 | AF64: 0 | AG64: 0 | AH64: 0 | AI64: 0 | AJ64: 0 | AK64: 0 | AL64: 0 | AM64: 1240 | AN64: 1319.09465 | AO64: 1353.08642 | AP64: 1474.73251 | AQ64: 1503.703704 | AR64: 1630.37037 | AS64: 1709.465021 | AT64: 1615.473251 | AU64: 2790 | AV64: 2700 | AW64: 2790 | AX64: 2700 | AY64: 2790 | AZ64: 2790 | BA64: 2700 | BB64: 2790 | BC64: 2700 | BD64: 2790 | BE64: 2790 | BF64: 2520 | BG64: 55200 | BH64: 55663.14637 | BI64: 55516.22435 | BJ64: 55354.30917 | BK64: 57037.4829 | BL64: 57500.62927 | BM64: 57333.73461 | BN64: 57786.86731 | BO64: 58880 | BP64: 59343.46338 | BQ64: 59156.85147 | BR64: 58955.23614 | BS64: 60718.74059 | BT64: 61182.20397 | BU64: 60975.60575 | BV64: =BV62*BV60 -> 60754.00411 | BW64: 62557.48118 | BX64: 63020.94456 | BY64: 62794.36003 | BZ64: 62552.77207 | CA64: 64396.22177 | CB64: 64859.68515 | CC64: 64613.11431 | CD64: 65066.55715 | CE64: 66240 | CF64: 66549.0461 | CG64: 66131.3738 | CH64: 65703.69694 | CI64: 67466.1068 | CJ64: 67775.1529 | CK64: 67344.15335 | CL64: 66903.14925 | CM64: 68692.2136 | CN64: 69001.2597 | CO64: 68556.93291 | CP64: 68102.60155 | CQ64: 69918.3204 | CR64: 70227.3665 | CS64: 69769.71246 | CT64: 70072.07668 | CU64: 71147.7864 | CV64: 71456.8325 | CW64: 70985.8147 | CX64: 70504.79233 | CY64: 72373.8932 | CZ64: 72682.9393 | DA64: 72198.59425 | DB64: 71704.24464 | DC64: 73600 | DD64: 73600 | DE64: 72800 | DF64: 72000 | DG64: 73600 | DH64: 73600 | DI64: 72800 | DJ64: 72800 | DK64: 73600 | DL64: 73600 | DM64: 72800 | DN64: 72000 | DO64: 73600 | DP64: 73600 | DQ64: 72800 | DR64: 72000 | DS64: 73600 | DT64: 73600 | DU64: 72800 | DV64: 72000 | DW64: 73600 | DX64: 73600 | DY64: 72800 | DZ64: 72800 | EA64: 73600 | EB64: 73600 | EC64: 72800 | ED64: 72000 | EE64: 73600 | EF64: 73600 | EG64: 72800 | EH64: =EH62*EH60 -> 72000 | EI64: 73600 | EJ64: 73600 | EK64: 72800 | EL64: 72000 | EM64: 73600 | EN64: 73600 | EO64: 72800 | EP64: 72800 | EQ64: 73600 | ER64: 73600 | ES64: 72800 | ET64: 72000 | EU64: 73600 | EV64: 73600 | EW64: 72800 | EX64: 72000 | EY64: 73600 | EZ64: 73600 | FA64: 72800 | FB64: 72000 | FC64: 73600 | FD64: 73600 | FE64: 72800 | FF64: 72800 | FG64: 73600 | FH64: 73600 | FI64: 72800 | FJ64: 72000 | FK64: 73600 | FL64: 73600 | FM64: 72800 | FN64: 72000 | FO64: 73600 | FP64: 73600 | FQ64: 72800 | FR64: 72000 | FS64: 73600 | FT64: 73600 | FU64: 72800 | FV64: 72800 | FW64: 0 | FX64: 0 | FY64: 0 | FZ64: 0 | GA64: 0 | GB64: 0 | GC64: 0 | GD64: 0 | GE64: 0 | GF64: 0 | GG64: 0 | GH64: 0 | GI64: 0 | GJ64: 0 | GK64: 0 | GL64: 0 | GM64: 0 | GN64: 0 | GO64: 0 | GP64: 0 | GQ64: 0 | GR64: 0 | GS64: 0 | GT64: =GT62*GT60 -> 0 | GU64: 0 | GV64: 0 | GW64: 0 | GX64: 0 | GY64: 0 | GZ64: 0 | HA64: 0 | HB64: 0 | HC64: 0 | HD64: 0 | HE64: 0 | HF64: 0 | HG64: 0 | HH64: 0 | HI64: 0 | HJ64: 0 | HK64: 0 | HL64: 0 | HM64: 0 | HN64: 0 | HO64: 0 | HP64: 0 | HQ64: 0 | HR64: 0 | HS64: 0 | HT64: 0 | HU64: 0 | HV64: 0 | HW64: 0 | HX64: 0 | HY64: 0 | HZ64: 0 | IA64: 0 | IB64: 0 | IC64: 0 | ID64: 0 | IE64: 0 | IF64: 0 | IG64: 0 | IH64: 0 | II64: 0 | IJ64: 0 | IK64: 0 | IL64: 0 | IM64: 0 | IN64: 0 | IO64: 0 | IP64: 0 | IQ64: 0 | IR64: 0 | IS64: 0 | IT64: 0 | IU64: 0 | IV64: 0 | IW64: 0 | IX64: 0 | IY64: 0 | IZ64: 0 | JA64: 0 | JB64: 0 | JC64: 0 | JD64: 0 | JE64: 0 | JF64: =JF62*JF60 -> 0 | JG64: 0 | JH64: 0 | JI64: 0 | JJ64: 0 | JK64: 0 | JL64: 0 | JM64: 0 | JN64: 0 | JO64: 0 | JP64: 0 | JQ64: 0 | JR64: 0 | JS64: 0 | JT64: 0 | JU64: 0 | JV64: 0 | JW64: 0 | JX64: 0 | JY64: 0 | JZ64: 0 | KA64: 0 | KB64: 0 | KC64: 0 | KD64: 0 | KE64: 0 | KF64: 0 | KG64: 0 | KH64: 0 | KI64: 0 | KJ64: 0 | KK64: 0 | KL64: 0 | KM64: 0 | KN64: 0 | KO64: 0 | KP64: 0 | KQ64: 0 | KR64: 0 | KS64: 0 | KT64: 0 | KU64: 0 | KV64: 0
A66: Pre-tax Free Cash Flow

Sheet Free Cash - Titles
A1: Time Line
B2: Period Number | I2: 1 | J2: 2 | K2: 3 | L2: 4 | M2: 5 | N2: 6 | O2: 7 | P2: 8 | Q2: 9 | R2: 10 | S2: 11 | T2: 12 | U2: 13 | V2: 14 | W2: 15 | X2: 16 | Y2: 17 | Z2: 18 | AA2: 19 | AB2: 20 | AC2: 21 | AD2: 22 | AE2: 23 | AF2: 24 | AG2: 25 | AH2: 26 | AI2: 27 | AJ2: 28 | AK2: 29 | AL2: 30 | AM2: 31 | AN2: 32 | AO2: 33 | AP2: 34 | AQ2: 35 | AR2: 36 | AS2: 37 | AT2: 38 | AU2: 39 | AV2: 40 | AW2: 41 | AX2: 42 | AY2: 43 | AZ2: 44 | BA2: 45 | BB2: 46 | BC2: 47 | BD2: 48 | BE2: 49 | BF2: 50 | BG2: 51 | BH2: 52 | BI2: 53 | BJ2: 54 | BK2: 55 | BL2: 56 | BM2: 57 | BN2: 58 | BO2: 59 | BP2: 60 | BQ2: 61 | BR2: 62 | BS2: 63 | BT2: 64 | BU2: 65 | BV2: 66 | BW2: 67 | BX2: 68 | BY2: 69 | BZ2: 70 | CA2: 71 | CB2: 72 | CC2: 73 | CD2: 74 | CE2: 75 | CF2: 76 | CG2: 77 | CH2: 78 | CI2: 79 | CJ2: 80 | CK2: 81 | CL2: 82 | CM2: 83 | CN2: 84 | CO2: 85 | CP2: 86 | CQ2: 87 | CR2: 88 | CS2: 89 | CT2: 90 | CU2: 91 | CV2: 92 | CW2: 93 | CX2: 94 | CY2: 95 | CZ2: 96 | DA2: 97 | DB2: 98 | DC2: 99 | DD2: 100 | DE2: 101 | DF2: 102 | DG2: 103 | DH2: 104 | DI2: 105 | DJ2: 106 | DK2: 107 | DL2: 108 | DM2: 109 | DN2: 110 | DO2: 111 | DP2: 112 | DQ2: 113 | DR2: 114 | DS2: 115 | DT2: 116 | DU2: 117 | DV2: 118 | DW2: 119 | DX2: 120 | DY2: 121 | DZ2: 122 | EA2: 123 | EB2: 124 | EC2: 125 | ED2: 126 | EE2: 127 | EF2: 128 | EG2: 129 | EH2: 130 | EI2: 131 | EJ2: 132 | EK2: 133 | EL2: 134 | EM2: 135 | EN2: 136 | EO2: 137 | EP2: 138 | EQ2: 139 | ER2: 140 | ES2: 141 | ET2: 142 | EU2: 143 | EV2: 144 | EW2: 145 | EX2: 146 | EY2: 147 | EZ2: 148 | FA2: 149 | FB2: 150 | FC2: 151 | FD2: 152 | FE2: 153 | FF2: 154 | FG2: 155 | FH2: 156 | FI2: 157 | FJ2: 158 | FK2: 159 | FL2: 160 | FM2: 161 | FN2: 162 | FO2: 163 | FP2: 164 | FQ2: 165 | FR2: 166 | FS2: 167 | FT2: 168 | FU2: 169 | FV2: 170 | FW2: 171 | FX2: 172 | FY2: 173 | FZ2: 174 | GA2: 175 | GB2: 176 | GC2: 177 | GD2: 178 | GE2: 179 | GF2: 180 | GG2: 181 | GH2: 182 | GI2: 183 | GJ2: 184 | GK2: 185 | GL2: 186 | GM2: 187 | GN2: 188 | GO2: 189 | GP2: 190 | GQ2: 191 | GR2: 192 | GS2: 193 | GT2: 194 | GU2: 195 | GV2: 196 | GW2: 197 | GX2: 198 | GY2: 199 | GZ2: 200 | HA2: 201 | HB2: 202 | HC2: 203 | HD2: 204 | HE2: 205 | HF2: 206 | HG2: 207 | HH2: 208 | HI2: 209 | HJ2: 210 | HK2: 211 | HL2: 212 | HM2: 213 | HN2: 214 | HO2: 215 | HP2: 216 | HQ2: 217 | HR2: 218 | HS2: 219 | HT2: 220 | HU2: 221 | HV2: 222 | HW2: 223 | HX2: 224 | HY2: 225 | HZ2: 226 | IA2: 227 | IB2: 228 | IC2: 229 | ID2: 230 | IE2: 231 | IF2: 232 | IG2: 233 | IH2: 234 | II2: 235 | IJ2: 236 | IK2: 237 | IL2: 238 | IM2: 239 | IN2: 240 | IO2: 241 | IP2: 242 | IQ2: 243 | IR2: 244 | IS2: 245 | IT2: 246 | IU2: 247 | IV2: 248 | IW2: 249 | IX2: 250 | IY2: 251 | IZ2: 252 | JA2: 253 | JB2: 254 | JC2: 255 | JD2: 256 | JE2: 257 | JF2: 258 | JG2: 259 | JH2: 260 | JI2: 261 | JJ2: 262 | JK2: 263 | JL2: 264 | JM2: 265 | JN2: 266 | JO2: 267 | JP2: 268 | JQ2: 269 | JR2: 270 | JS2: 271 | JT2: 272 | JU2: 273 | JV2: 274 | JW2: 275 | JX2: 276 | JY2: 277 | JZ2: 278 | KA2: 279 | KB2: 280 | KC2: 281 | KD2: 282 | KE2: 283 | KF2: 284 | KG2: 285 | KH2: 286 | KI2: 287 | KJ2: 288 | KK2: 289 | KL2: 290 | KM2: 291 | KN2: 292 | KO2: 293 | KP2: 294 | KQ2: 295 | KR2: 296 | KS2: 297 | KT2: 298 | KU2: 299 | KV2: 300
B3: Pre-COD Switch | E3: Pre-cod | G3: =F10+F12 -> 59 | I3: =I2<=$G$3 -> TRUE | J3: =J2<=$G$3 -> TRUE | K3: TRUE | L3: TRUE | M3: TRUE | N3: TRUE | O3: TRUE | P3: TRUE | Q3: TRUE | R3: TRUE | S3: TRUE | T3: TRUE | U3: TRUE | V3: TRUE | W3: TRUE | X3: TRUE | Y3: TRUE | Z3: TRUE | AA3: TRUE | AB3: TRUE | AC3: TRUE | AD3: TRUE | AE3: TRUE | AF3: TRUE | AG3: TRUE | AH3: TRUE | AI3: TRUE | AJ3: TRUE | AK3: TRUE | AL3: TRUE | AM3: TRUE | AN3: TRUE | AO3: TRUE | AP3: TRUE | AQ3: TRUE | AR3: TRUE | AS3: TRUE | AT3: TRUE | AU3: TRUE | AV3: TRUE | AW3: TRUE | AX3: TRUE | AY3: TRUE | AZ3: TRUE | BA3: TRUE | BB3: TRUE | BC3: TRUE | BD3: TRUE | BE3: TRUE | BF3: TRUE | BG3: TRUE | BH3: TRUE | BI3: TRUE | BJ3: TRUE | BK3: TRUE | BL3: TRUE | BM3: TRUE | BN3: TRUE | BO3: TRUE | BP3: FALSE | BQ3: FALSE | BR3: FALSE | BS3: FALSE | BT3: FALSE | BU3: FALSE | BV3: =BV2<=$G$3 -> FALSE | BW3: FALSE | BX3: FALSE | BY3: FALSE | BZ3: FALSE | CA3: FALSE | CB3: FALSE | CC3: FALSE | CD3: FALSE | CE3: FALSE | CF3: FALSE | CG3: FALSE | CH3: FALSE | CI3: FALSE | CJ3: FALSE | CK3: FALSE | CL3: FALSE | CM3: FALSE | CN3: FALSE | CO3: FALSE | CP3: FALSE | CQ3: FALSE | CR3: FALSE | CS3: FALSE | CT3: FALSE | CU3: FALSE | CV3: FALSE | CW3: FALSE | CX3: FALSE | CY3: FALSE | CZ3: FALSE | DA3: FALSE | DB3: FALSE | DC3: FALSE | DD3: FALSE | DE3: FALSE | DF3: FALSE | DG3: FALSE | DH3: FALSE | DI3: FALSE | DJ3: FALSE | DK3: FALSE | DL3: FALSE | DM3: FALSE | DN3: FALSE | DO3: FALSE | DP3: FALSE | DQ3: FALSE | DR3: FALSE | DS3: FALSE | DT3: FALSE | DU3: FALSE | DV3: FALSE | DW3: FALSE | DX3: FALSE | DY3: FALSE | DZ3: FALSE | EA3: FALSE | EB3: FALSE | EC3: FALSE | ED3: FALSE | EE3: FALSE | EF3: FALSE | EG3: FALSE | EH3: =EH2<=$G$3 -> FALSE | EI3: FALSE | EJ3: FALSE | EK3: FALSE | EL3: FALSE | EM3: FALSE | EN3: FALSE | EO3: FALSE | EP3: FALSE | EQ3: FALSE | ER3: FALSE | ES3: FALSE | ET3: FALSE | EU3: FALSE | EV3: FALSE | EW3: FALSE | EX3: FALSE | EY3: FALSE | EZ3: FALSE | FA3: FALSE | FB3: FALSE | FC3: FALSE | FD3: FALSE | FE3: FALSE | FF3: FALSE | FG3: FALSE | FH3: FALSE | FI3: FALSE | FJ3: FALSE | FK3: FALSE | FL3: FALSE | FM3: FALSE | FN3: FALSE | FO3: FALSE | FP3: FALSE | FQ3: FALSE | FR3: FALSE | FS3: FALSE | FT3: FALSE | FU3: FALSE | FV3: FALSE | FW3: FALSE | FX3: FALSE | FY3: FALSE | FZ3: FALSE | GA3: FALSE | GB3: FALSE | GC3: FALSE | GD3: FALSE | GE3: FALSE | GF3: FALSE | GG3: FALSE | GH3: FALSE | GI3: FALSE | GJ3: FALSE | GK3: FALSE | GL3: FALSE | GM3: FALSE | GN3: FALSE | GO3: FALSE | GP3: FALSE | GQ3: FALSE | GR3: FALSE | GS3: FALSE | GT3: =GT2<=$G$3 -> FALSE | GU3: FALSE | GV3: FALSE | GW3: FALSE | GX3: FALSE | GY3: FALSE | GZ3: FALSE | HA3: FALSE | HB3: FALSE | HC3: FALSE | HD3: FALSE | HE3: FALSE | HF3: FALSE | HG3: FALSE | HH3: FALSE | HI3: FALSE | HJ3: FALSE | HK3: FALSE | HL3: FALSE | HM3: FALSE | HN3: FALSE | HO3: FALSE | HP3: FALSE | HQ3: FALSE | HR3: FALSE | HS3: FALSE | HT3: FALSE | HU3: FALSE | HV3: FALSE | HW3: FALSE | HX3: FALSE | HY3: FALSE | HZ3: FALSE | IA3: FALSE | IB3: FALSE | IC3: FALSE | ID3: FALSE | IE3: FALSE | IF3: FALSE | IG3: FALSE | IH3: FALSE | II3: FALSE | IJ3: FALSE | IK3: FALSE | IL3: FALSE | IM3: FALSE | IN3: FALSE | IO3: FALSE | IP3: FALSE | IQ3: FALSE | IR3: FALSE | IS3: FALSE | IT3: FALSE | IU3: FALSE | IV3: FALSE | IW3: FALSE | IX3: FALSE | IY3: FALSE | IZ3: FALSE | JA3: FALSE | JB3: FALSE | JC3: FALSE | JD3: FALSE | JE3: FALSE | JF3: =JF2<=$G$3 -> FALSE | JG3: FALSE | JH3: FALSE | JI3: FALSE | JJ3: FALSE | JK3: FALSE | JL3: FALSE | JM3: FALSE | JN3: FALSE | JO3: FALSE | JP3: FALSE | JQ3: FALSE | JR3: FALSE | JS3: FALSE | JT3: FALSE | JU3: FALSE | JV3: FALSE | JW3: FALSE | JX3: FALSE | JY3: FALSE | JZ3: FALSE | KA3: FALSE | KB3: FALSE | KC3: FALSE | KD3: FALSE | KE3: FALSE | KF3: FALSE | KG3: FALSE | KH3: FALSE | KI3: FALSE | KJ3: FALSE | KK3: FALSE | KL3: FALSE | KM3: FALSE | KN3: FALSE | KO3: FALSE | KP3: FALSE | KQ3: FALSE | KR3: FALSE | KS3: FALSE | KT3: FALSE | KU3: FALSE | KV3: FALSE
B4: Months in Period | E4: Pre post | F4: =F16 -> 1 | G4: =F17 -> 3 | I4: =IF(I3,$F$4,$G$4) -> 1 | J4: =IF(J3,$F$4,$G$4) -> 1 | K4: 1 | L4: 1 | M4: 1 | N4: 1 | O4: 1 | P4: 1 | Q4: 1 | R4: 1 | S4: 1 | T4: 1 | U4: 1 | V4: 1 | W4: 1 | X4: 1 | Y4: 1 | Z4: 1 | AA4: 1 | AB4: 1 | AC4: 1 | AD4: 1 | AE4: 1 | AF4: 1 | AG4: 1 | AH4: 1 | AI4: 1 | AJ4: 1 | AK4: 1 | AL4: 1 | AM4: 1 | AN4: 1 | AO4: 1 | AP4: 1 | AQ4: 1 | AR4: 1 | AS4: 1 | AT4: 1 | AU4: 1 | AV4: 1 | AW4: 1 | AX4: 1 | AY4: 1 | AZ4: 1 | BA4: 1 | BB4: 1 | BC4: 1 | BD4: 1 | BE4: 1 | BF4: 1 | BG4: 1 | BH4: 1 | BI4: 1 | BJ4: 1 | BK4: 1 | BL4: 1 | BM4: 1 | BN4: 1 | BO4: 1 | BP4: 3 | BQ4: 3 | BR4: 3 | BS4: 3 | BT4: 3 | BU4: 3 | BV4: =IF(BV3,$F$4,$G$4) -> 3 | BW4: 3 | BX4: 3 | BY4: 3 | BZ4: 3 | CA4: 3 | CB4: 3 | CC4: 3 | CD4: 3 | CE4: 3 | CF4: 3 | CG4: 3 | CH4: 3 | CI4: 3 | CJ4: 3 | CK4: 3 | CL4: 3 | CM4: 3 | CN4: 3 | CO4: 3 | CP4: 3 | CQ4: 3 | CR4: 3 | CS4: 3 | CT4: 3 | CU4: 3 | CV4: 3 | CW4: 3 | CX4: 3 | CY4: 3 | CZ4: 3 | DA4: 3 | DB4: 3 | DC4: 3 | DD4: 3 | DE4: 3 | DF4: 3 | DG4: 3 | DH4: 3 | DI4: 3 | DJ4: 3 | DK4: 3 | DL4: 3 | DM4: 3 | DN4: 3 | DO4: 3 | DP4: 3 | DQ4: 3 | DR4: 3 | DS4: 3 | DT4: 3 | DU4: 3 | DV4: 3 | DW4: 3 | DX4: 3 | DY4: 3 | DZ4: 3 | EA4: 3 | EB4: 3 | EC4: 3 | ED4: 3 | EE4: 3 | EF4: 3 | EG4: 3 | EH4: =IF(EH3,$F$4,$G$4) -> 3 | EI4: 3 | EJ4: 3 | EK4: 3 | EL4: 3 | EM4: 3 | EN4: 3 | EO4: 3 | EP4: 3 | EQ4: 3 | ER4: 3 | ES4: 3 | ET4: 3 | EU4: 3 | EV4: 3 | EW4: 3 | EX4: 3 | EY4: 3 | EZ4: 3 | FA4: 3 | FB4: 3 | FC4: 3 | FD4: 3 | FE4: 3 | FF4: 3 | FG4: 3 | FH4: 3 | FI4: 3 | FJ4: 3 | FK4: 3 | FL4: 3 | FM4: 3 | FN4: 3 | FO4: 3 | FP4: 3 | FQ4: 3 | FR4: 3 | FS4: 3 | FT4: 3 | FU4: 3 | FV4: 3 | FW4: 3 | FX4: 3 | FY4: 3 | FZ4: 3 | GA4: 3 | GB4: 3 | GC4: 3 | GD4: 3 | GE4: 3 | GF4: 3 | GG4: 3 | GH4: 3 | GI4: 3 | GJ4: 3 | GK4: 3 | GL4: 3 | GM4: 3 | GN4: 3 | GO4: 3 | GP4: 3 | GQ4: 3 | GR4: 3 | GS4: 3 | GT4: =IF(GT3,$F$4,$G$4) -> 3 | GU4: 3 | GV4: 3 | GW4: 3 | GX4: 3 | GY4: 3 | GZ4: 3 | HA4: 3 | HB4: 3 | HC4: 3 | HD4: 3 | HE4: 3 | HF4: 3 | HG4: 3 | HH4: 3 | HI4: 3 | HJ4: 3 | HK4: 3 | HL4: 3 | HM4: 3 | HN4: 3 | HO4: 3 | HP4: 3 | HQ4: 3 | HR4: 3 | HS4: 3 | HT4: 3 | HU4: 3 | HV4: 3 | HW4: 3 | HX4: 3 | HY4: 3 | HZ4: 3 | IA4: 3 | IB4: 3 | IC4: 3 | ID4: 3 | IE4: 3 | IF4: 3 | IG4: 3 | IH4: 3 | II4: 3 | IJ4: 3 | IK4: 3 | IL4: 3 | IM4: 3 | IN4: 3 | IO4: 3 | IP4: 3 | IQ4: 3 | IR4: 3 | IS4: 3 | IT4: 3 | IU4: 3 | IV4: 3 | IW4: 3 | IX4: 3 | IY4: 3 | IZ4: 3 | JA4: 3 | JB4: 3 | JC4: 3 | JD4: 3 | JE4: 3 | JF4: =IF(JF3,$F$4,$G$4) -> 3 | JG4: 3 | JH4: 3 | JI4: 3 | JJ4: 3 | JK4: 3 | JL4: 3 | JM4: 3 | JN4: 3 | JO4: 3 | JP4: 3 | JQ4: 3 | JR4: 3 | JS4: 3 | JT4: 3 | JU4: 3 | JV4: 3 | JW4: 3 | JX4: 3 | JY4: 3 | JZ4: 3 | KA4: 3 | KB4: 3 | KC4: 3 | KD4: 3 | KE4: 3 | KF4: 3 | KG4: 3 | KH4: 3 | KI4: 3 | KJ4: 3 | KK4: 3 | KL4: 3 | KM4: 3 | KN4: 3 | KO4: 3 | KP4: 3 | KQ4: 3 | KR4: 3 | KS4: 3 | KT4: 3 | KU4: 3 | KV4: 3
B5: Start of Period | I5: =H6+1 -> 2018-01-01 | J5: =I6+1 -> 2018-02-01 | K5: 2018-03-01 | L5: 2018-04-01 | M5: 2018-05-01 | N5: 2018-06-01 | O5: 2018-07-01 | P5: 2018-08-01 | Q5: 2018-09-01 | R5: 2018-10-01 | S5: 2018-11-01 | T5: 2018-12-01 | U5: 2019-01-01 | V5: 2019-02-01 | W5: 2019-03-01 | X5: 2019-04-01 | Y5: 2019-05-01 | Z5: 2019-06-01 | AA5: 2019-07-01 | AB5: 2019-08-01 | AC5: 2019-09-01 | AD5: 2019-10-01 | AE5: 2019-11-01 | AF5: 2019-12-01 | AG5: 2020-01-01 | AH5: 2020-02-01 | AI5: 2020-03-01 | AJ5: 2020-04-01 | AK5: 2020-05-01 | AL5: 2020-06-01 | AM5: 2020-07-01 | AN5: 2020-08-01 | AO5: 2020-09-01 | AP5: 2020-10-01 | AQ5: 2020-11-01 | AR5: 2020-12-01 | AS5: 2021-01-01 | AT5: 2021-02-01 | AU5: 2021-03-01 | AV5: 2021-04-01 | AW5: 2021-05-01 | AX5: 2021-06-01 | AY5: 2021-07-01 | AZ5: 2021-08-01 | BA5: 2021-09-01 | BB5: 2021-10-01 | BC5: 2021-11-01 | BD5: 2021-12-01 | BE5: 2022-01-01 | BF5: 2022-02-01 | BG5: 2022-03-01 | BH5: 2022-04-01 | BI5: 2022-05-01 | BJ5: 2022-06-01 | BK5: 2022-07-01 | BL5: 2022-08-01 | BM5: 2022-09-01 | BN5: 2022-10-01 | BO5: 2022-11-01 | BP5: 2022-12-01 | BQ5: 2023-03-01 | BR5: 2023-06-01 | BS5: 2023-09-01 | BT5: 2023-12-01 | BU5: 2024-03-01 | BV5: =BU6+1 -> 2024-06-01 | BW5: 2024-09-01 | BX5: 2024-12-01 | BY5: 2025-03-01 | BZ5: 2025-06-01 | CA5: 2025-09-01 | CB5: 2025-12-01 | CC5: 2026-03-01 | CD5: 2026-06-01 | CE5: 2026-09-01 | CF5: 2026-12-01 | CG5: 2027-03-01 | CH5: 2027-06-01 | CI5: 2027-09-01 | CJ5: 2027-12-01 | CK5: 2028-03-01 | CL5: 2028-06-01 | CM5: 2028-09-01 | CN5: 2028-12-01 | CO5: 2029-03-01 | CP5: 2029-06-01 | CQ5: 2029-09-01 | CR5: 2029-12-01 | CS5: 2030-03-01 | CT5: 2030-06-01 | CU5: 2030-09-01 | CV5: 2030-12-01 | CW5: 2031-03-01 | CX5: 2031-06-01 | CY5: 2031-09-01 | CZ5: 2031-12-01 | DA5: 2032-03-01 | DB5: 2032-06-01 | DC5: 2032-09-01 | DD5: 2032-12-01 | DE5: 2033-03-01 | DF5: 2033-06-01 | DG5: 2033-09-01 | DH5: 2033-12-01 | DI5: 2034-03-01 | DJ5: 2034-06-01 | DK5: 2034-09-01 | DL5: 2034-12-01 | DM5: 2035-03-01 | DN5: 2035-06-01 | DO5: 2035-09-01 | DP5: 2035-12-01 | DQ5: 2036-03-01 | DR5: 2036-06-01 | DS5: 2036-09-01 | DT5: 2036-12-01 | DU5: 2037-03-01 | DV5: 2037-06-01 | DW5: 2037-09-01 | DX5: 2037-12-01 | DY5: 2038-03-01 | DZ5: 2038-06-01 | EA5: 2038-09-01 | EB5: 2038-12-01 | EC5: 2039-03-01 | ED5: 2039-06-01 | EE5: 2039-09-01 | EF5: 2039-12-01 | EG5: 2040-03-01 | EH5: =EG6+1 -> 2040-06-01 | EI5: 2040-09-01 | EJ5: 2040-12-01 | EK5: 2041-03-01 | EL5: 2041-06-01 | EM5: 2041-09-01 | EN5: 2041-12-01 | EO5: 2042-03-01 | EP5: 2042-06-01 | EQ5: 2042-09-01 | ER5: 2042-12-01 | ES5: 2043-03-01 | ET5: 2043-06-01 | EU5: 2043-09-01 | EV5: 2043-12-01 | EW5: 2044-03-01 | EX5: 2044-06-01 | EY5: 2044-09-01 | EZ5: 2044-12-01 | FA5: 2045-03-01 | FB5: 2045-06-01 | FC5: 2045-09-01 | FD5: 2045-12-01 | FE5: 2046-03-01 | FF5: 2046-06-01 | FG5: 2046-09-01 | FH5: 2046-12-01 | FI5: 2047-03-01 | FJ5: 2047-06-01 | FK5: 2047-09-01 | FL5: 2047-12-01 | FM5: 2048-03-01 | FN5: 2048-06-01 | FO5: 2048-09-01 | FP5: 2048-12-01 | FQ5: 2049-03-01 | FR5: 2049-06-01 | FS5: 2049-09-01 | FT5: 2049-12-01 | FU5: 2050-03-01 | FV5: 2050-06-01 | FW5: 2050-09-01 | FX5: 2050-12-01 | FY5: 2051-03-01 | FZ5: 2051-06-01 | GA5: 2051-09-01 | GB5: 2051-12-01 | GC5: 2052-03-01 | GD5: 2052-06-01 | GE5: 2052-09-01 | GF5: 2052-12-01 | GG5: 2053-03-01 | GH5: 2053-06-01 | GI5: 2053-09-01 | GJ5: 2053-12-01 | GK5: 2054-03-01 | GL5: 2054-06-01 | GM5: 2054-09-01 | GN5: 2054-12-01 | GO5: 2055-03-01 | GP5: 2055-06-01 | GQ5: 2055-09-01 | GR5: 2055-12-01 | GS5: 2056-03-01 | GT5: =GS6+1 -> 2056-06-01 | GU5: 2056-09-01 | GV5: 2056-12-01 | GW5: 2057-03-01 | GX5: 2057-06-01 | GY5: 2057-09-01 | GZ5: 2057-12-01 | HA5: 2058-03-01 | HB5: 2058-06-01 | HC5: 2058-09-01 | HD5: 2058-12-01 | HE5: 2059-03-01 | HF5: 2059-06-01 | HG5: 2059-09-01 | HH5: 2059-12-01 | HI5: 2060-03-01 | HJ5: 2060-06-01 | HK5: 2060-09-01 | HL5: 2060-12-01 | HM5: 2061-03-01 | HN5: 2061-06-01 | HO5: 2061-09-01 | HP5: 2061-12-01 | HQ5: 2062-03-01 | HR5: 2062-06-01 | HS5: 2062-09-01 | HT5: 2062-12-01 | HU5: 2063-03-01 | HV5: 2063-06-01 | HW5: 2063-09-01 | HX5: 2063-12-01 | HY5: 2064-03-01 | HZ5: 2064-06-01 | IA5: 2064-09-01 | IB5: 2064-12-01 | IC5: 2065-03-01 | ID5: 2065-06-01 | IE5: 2065-09-01 | IF5: 2065-12-01 | IG5: 2066-03-01 | IH5: 2066-06-01 | II5: 2066-09-01 | IJ5: 2066-12-01 | IK5: 2067-03-01 | IL5: 2067-06-01 | IM5: 2067-09-01 | IN5: 2067-12-01 | IO5: 2068-03-01 | IP5: 2068-06-01 | IQ5: 2068-09-01 | IR5: 2068-12-01 | IS5: 2069-03-01 | IT5: 2069-06-01 | IU5: 2069-09-01 | IV5: 2069-12-01 | IW5: 2070-03-01 | IX5: 2070-06-01 | IY5: 2070-09-01 | IZ5: 2070-12-01 | JA5: 2071-03-01 | JB5: 2071-06-01 | JC5: 2071-09-01 | JD5: 2071-12-01 | JE5: 2072-03-01 | JF5: =JE6+1 -> 2072-06-01 | JG5: 2072-09-01 | JH5: 2072-12-01 | JI5: 2073-03-01 | JJ5: 2073-06-01 | JK5: 2073-09-01 | JL5: 2073-12-01 | JM5: 2074-03-01 | JN5: 2074-06-01 | JO5: 2074-09-01 | JP5: 2074-12-01 | JQ5: 2075-03-01 | JR5: 2075-06-01 | JS5: 2075-09-01 | JT5: 2075-12-01 | JU5: 2076-03-01 | JV5: 2076-06-01 | JW5: 2076-09-01 | JX5: 2076-12-01 | JY5: 2077-03-01 | JZ5: 2077-06-01 | KA5: 2077-09-01 | KB5: 2077-12-01 | KC5: 2078-03-01 | KD5: 2078-06-01 | KE5: 2078-09-01 | KF5: 2078-12-01 | KG5: 2079-03-01 | KH5: 2079-06-01 | KI5: 2079-09-01 | KJ5: 2079-12-01 | KK5: 2080-03-01 | KL5: 2080-06-01 | KM5: 2080-09-01 | KN5: 2080-12-01 | KO5: 2081-03-01 | KP5: 2081-06-01 | KQ5: 2081-09-01 | KR5: 2081-12-01 | KS5: 2082-03-01 | KT5: 2082-06-01 | KU5: 2082-09-01 | KV5: 2082-12-01
B6: End of Period | H6: =F9-1 -> 2017-12-31 | I6: =EDATE(I5,I4)-1 -> 2018-01-31 | J6: =EDATE(J5,J4)-1 -> 2018-02-28 | K6: 2018-03-31 | L6: 2018-04-30 | M6: 2018-05-31 | N6: 2018-06-30 | O6: 2018-07-31 | P6: 2018-08-31 | Q6: 2018-09-30 | R6: 2018-10-31 | S6: 2018-11-30 | T6: 2018-12-31 | U6: 2019-01-31 | V6: 2019-02-28 | W6: 2019-03-31 | X6: 2019-04-30 | Y6: 2019-05-31 | Z6: 2019-06-30 | AA6: 2019-07-31 | AB6: 2019-08-31 | AC6: 2019-09-30 | AD6: 2019-10-31 | AE6: 2019-11-30 | AF6: 2019-12-31 | AG6: 2020-01-31 | AH6: 2020-02-29 | AI6: 2020-03-31 | AJ6: 2020-04-30 | AK6: 2020-05-31 | AL6: 2020-06-30 | AM6: 2020-07-31 | AN6: 2020-08-31 | AO6: 2020-09-30 | AP6: 2020-10-31 | AQ6: 2020-11-30 | AR6: 2020-12-31 | AS6: 2021-01-31 | AT6: 2021-02-28 | AU6: 2021-03-31 | AV6: 2021-04-30 | AW6: 2021-05-31 | AX6: 2021-06-30 | AY6: 2021-07-31 | AZ6: 2021-08-31 | BA6: 2021-09-30 | BB6: 2021-10-31 | BC6: 2021-11-30 | BD6: 2021-12-31 | BE6: 2022-01-31 | BF6: 2022-02-28 | BG6: 2022-03-31 | BH6: 2022-04-30 | BI6: 2022-05-31 | BJ6: 2022-06-30 | BK6: 2022-07-31 | BL6: 2022-08-31 | BM6: 2022-09-30 | BN6: 2022-10-31 | BO6: 2022-11-30 | BP6: 2023-02-28 | BQ6: 2023-05-31 | BR6: 2023-08-31 | BS6: 2023-11-30 | BT6: 2024-02-29 | BU6: 2024-05-31 | BV6: =EDATE(BV5,BV4)-1 -> 2024-08-31 | BW6: 2024-11-30 | BX6: 2025-02-28 | BY6: 2025-05-31 | BZ6: 2025-08-31 | CA6: 2025-11-30 | CB6: 2026-02-28 | CC6: 2026-05-31 | CD6: 2026-08-31 | CE6: 2026-11-30 | CF6: 2027-02-28 | CG6: 2027-05-31 | CH6: 2027-08-31 | CI6: 2027-11-30 | CJ6: 2028-02-29 | CK6: 2028-05-31 | CL6: 2028-08-31 | CM6: 2028-11-30 | CN6: 2029-02-28 | CO6: 2029-05-31 | CP6: 2029-08-31 | CQ6: 2029-11-30 | CR6: 2030-02-28 | CS6: 2030-05-31 | CT6: 2030-08-31 | CU6: 2030-11-30 | CV6: 2031-02-28 | CW6: 2031-05-31 | CX6: 2031-08-31 | CY6: 2031-11-30 | CZ6: 2032-02-29 | DA6: 2032-05-31 | DB6: 2032-08-31 | DC6: 2032-11-30 | DD6: 2033-02-28 | DE6: 2033-05-31 | DF6: 2033-08-31 | DG6: 2033-11-30 | DH6: 2034-02-28 | DI6: 2034-05-31 | DJ6: 2034-08-31 | DK6: 2034-11-30 | DL6: 2035-02-28 | DM6: 2035-05-31 | DN6: 2035-08-31 | DO6: 2035-11-30 | DP6: 2036-02-29 | DQ6: 2036-05-31 | DR6: 2036-08-31 | DS6: 2036-11-30 | DT6: 2037-02-28 | DU6: 2037-05-31 | DV6: 2037-08-31 | DW6: 2037-11-30 | DX6: 2038-02-28 | DY6: 2038-05-31 | DZ6: 2038-08-31 | EA6: 2038-11-30 | EB6: 2039-02-28 | EC6: 2039-05-31 | ED6: 2039-08-31 | EE6: 2039-11-30 | EF6: 2040-02-29 | EG6: 2040-05-31 | EH6: =EDATE(EH5,EH4)-1 -> 2040-08-31 | EI6: 2040-11-30 | EJ6: 2041-02-28 | EK6: 2041-05-31 | EL6: 2041-08-31 | EM6: 2041-11-30 | EN6: 2042-02-28 | EO6: 2042-05-31 | EP6: 2042-08-31 | EQ6: 2042-11-30 | ER6: 2043-02-28 | ES6: 2043-05-31 | ET6: 2043-08-31 | EU6: 2043-11-30 | EV6: 2044-02-29 | EW6: 2044-05-31 | EX6: 2044-08-31 | EY6: 2044-11-30 | EZ6: 2045-02-28 | FA6: 2045-05-31 | FB6: 2045-08-31 | FC6: 2045-11-30 | FD6: 2046-02-28 | FE6: 2046-05-31 | FF6: 2046-08-31 | FG6: 2046-11-30 | FH6: 2047-02-28 | FI6: 2047-05-31 | FJ6: 2047-08-31 | FK6: 2047-11-30 | FL6: 2048-02-29 | FM6: 2048-05-31 | FN6: 2048-08-31 | FO6: 2048-11-30 | FP6: 2049-02-28 | FQ6: 2049-05-31 | FR6: 2049-08-31 | FS6: 2049-11-30 | FT6: 2050-02-28 | FU6: 2050-05-31 | FV6: 2050-08-31 | FW6: 2050-11-30 | FX6: 2051-02-28 | FY6: 2051-05-31 | FZ6: 2051-08-31 | GA6: 2051-11-30 | GB6: 2052-02-29 | GC6: 2052-05-31 | GD6: 2052-08-31 | GE6: 2052-11-30 | GF6: 2053-02-28 | GG6: 2053-05-31 | GH6: 2053-08-31 | GI6: 2053-11-30 | GJ6: 2054-02-28 | GK6: 2054-05-31 | GL6: 2054-08-31 | GM6: 2054-11-30 | GN6: 2055-02-28 | GO6: 2055-05-31 | GP6: 2055-08-31 | GQ6: 2055-11-30 | GR6: 2056-02-29 | GS6: 2056-05-31 | GT6: =EDATE(GT5,GT4)-1 -> 2056-08-31 | GU6: 2056-11-30 | GV6: 2057-02-28 | GW6: 2057-05-31 | GX6: 2057-08-31 | GY6: 2057-11-30 | GZ6: 2058-02-28 | HA6: 2058-05-31 | HB6: 2058-08-31 | HC6: 2058-11-30 | HD6: 2059-02-28 | HE6: 2059-05-31 | HF6: 2059-08-31 | HG6: 2059-11-30 | HH6: 2060-02-29 | HI6: 2060-05-31 | HJ6: 2060-08-31 | HK6: 2060-11-30 | HL6: 2061-02-28 | HM6: 2061-05-31 | HN6: 2061-08-31 | HO6: 2061-11-30 | HP6: 2062-02-28 | HQ6: 2062-05-31 | HR6: 2062-08-31 | HS6: 2062-11-30 | HT6: 2063-02-28 | HU6: 2063-05-31 | HV6: 2063-08-31 | HW6: 2063-11-30 | HX6: 2064-02-29 | HY6: 2064-05-31 | HZ6: 2064-08-31 | IA6: 2064-11-30 | IB6: 2065-02-28 | IC6: 2065-05-31 | ID6: 2065-08-31 | IE6: 2065-11-30 | IF6: 2066-02-28 | IG6: 2066-05-31 | IH6: 2066-08-31 | II6: 2066-11-30 | IJ6: 2067-02-28 | IK6: 2067-05-31 | IL6: 2067-08-31 | IM6: 2067-11-30 | IN6: 2068-02-29 | IO6: 2068-05-31 | IP6: 2068-08-31 | IQ6: 2068-11-30 | IR6: 2069-02-28 | IS6: 2069-05-31 | IT6: 2069-08-31 | IU6: 2069-11-30 | IV6: 2070-02-28 | IW6: 2070-05-31 | IX6: 2070-08-31 | IY6: 2070-11-30 | IZ6: 2071-02-28 | JA6: 2071-05-31 | JB6: 2071-08-31 | JC6: 2071-11-30 | JD6: 2072-02-29 | JE6: 2072-05-31 | JF6: =EDATE(JF5,JF4)-1 -> 2072-08-31 | JG6: 2072-11-30 | JH6: 2073-02-28 | JI6: 2073-05-31 | JJ6: 2073-08-31 | JK6: 2073-11-30 | JL6: 2074-02-28 | JM6: 2074-05-31 | JN6: 2074-08-31 | JO6: 2074-11-30 | JP6: 2075-02-28 | JQ6: 2075-05-31 | JR6: 2075-08-31 | JS6: 2075-11-30 | JT6: 2076-02-29 | JU6: 2076-05-31 | JV6: 2076-08-31 | JW6: 2076-11-30 | JX6: 2077-02-28 | JY6: 2077-05-31 | JZ6: 2077-08-31 | KA6: 2077-11-30 | KB6: 2078-02-28 | KC6: 2078-05-31 | KD6: 2078-08-31 | KE6: 2078-11-30 | KF6: 2079-02-28 | KG6: 2079-05-31 | KH6: 2079-08-31 | KI6: 2079-11-30 | KJ6: 2080-02-29 | KK6: 2080-05-31 | KL6: 2080-08-31 | KM6: 2080-11-30 | KN6: 2081-02-28 | KO6: 2081-05-31 | KP6: 2081-08-31 | KQ6: 2081-11-30 | KR6: 2082-02-28 | KS6: 2082-05-31 | KT6: 2082-08-31 | KU6: 2082-11-30 | KV6: 2083-02-28
B7: Operating Period | F7: =F13 -> 2022-12-01 | G7: =F15 -> 2052-12-01 | I7: =AND(I$5>=$F7,I$5<$G7) -> FALSE | J7: =AND(J$5>=$F7,J$5<$G7) -> FALSE | K7: FALSE | L7: FALSE | M7: FALSE | N7: FALSE | O7: FALSE | P7: FALSE | Q7: FALSE | R7: FALSE | S7: FALSE | T7: FALSE | U7: FALSE | V7: FALSE | W7: FALSE | X7: FALSE | Y7: FALSE | Z7: FALSE | AA7: FALSE | AB7: FALSE | AC7: FALSE | AD7: FALSE | AE7: FALSE | AF7: FALSE | AG7: FALSE | AH7: FALSE | AI7: FALSE | AJ7: FALSE | AK7: FALSE | AL7: FALSE | AM7: FALSE | AN7: FALSE | AO7: FALSE | AP7: FALSE | AQ7: FALSE | AR7: FALSE | AS7: FALSE | AT7: FALSE | AU7: FALSE | AV7: FALSE | AW7: FALSE | AX7: FALSE | AY7: FALSE | AZ7: FALSE | BA7: FALSE | BB7: FALSE | BC7: FALSE | BD7: FALSE | BE7: FALSE | BF7: FALSE | BG7: FALSE | BH7: FALSE | BI7: FALSE | BJ7: FALSE | BK7: FALSE | BL7: FALSE | BM7: FALSE | BN7: FALSE | BO7: FALSE | BP7: TRUE | BQ7: TRUE | BR7: TRUE | BS7: TRUE | BT7: TRUE | BU7: =AND(BU$5>=$F7,BU$5<$G7) -> TRUE | BV7: TRUE | BW7: TRUE | BX7: TRUE | BY7: TRUE | BZ7: TRUE | CA7: TRUE | CB7: TRUE | CC7: TRUE | CD7: TRUE | CE7: TRUE | CF7: TRUE | CG7: TRUE | CH7: TRUE | CI7: TRUE | CJ7: TRUE | CK7: TRUE | CL7: TRUE | CM7: TRUE | CN7: TRUE | CO7: TRUE | CP7: TRUE | CQ7: TRUE | CR7: TRUE | CS7: TRUE | CT7: TRUE | CU7: TRUE | CV7: TRUE | CW7: TRUE | CX7: TRUE | CY7: TRUE | CZ7: TRUE | DA7: TRUE | DB7: TRUE | DC7: TRUE | DD7: TRUE | DE7: TRUE | DF7: TRUE | DG7: TRUE | DH7: TRUE | DI7: TRUE | DJ7: TRUE | DK7: TRUE | DL7: TRUE | DM7: TRUE | DN7: TRUE | DO7: TRUE | DP7: TRUE | DQ7: TRUE | DR7: TRUE | DS7: TRUE | DT7: TRUE | DU7: TRUE | DV7: TRUE | DW7: TRUE | DX7: TRUE | DY7: TRUE | DZ7: TRUE | EA7: TRUE | EB7: TRUE | EC7: TRUE | ED7: TRUE | EE7: TRUE | EF7: TRUE | EG7: =AND(EG$5>=$F7,EG$5<$G7) -> TRUE | EH7: TRUE | EI7: TRUE | EJ7: TRUE | EK7: TRUE | EL7: TRUE | EM7: TRUE | EN7: TRUE | EO7: TRUE | EP7: TRUE | EQ7: TRUE | ER7: TRUE | ES7: TRUE | ET7: TRUE | EU7: TRUE | EV7: TRUE | EW7: TRUE | EX7: TRUE | EY7: TRUE | EZ7: TRUE | FA7: TRUE | FB7: TRUE | FC7: TRUE | FD7: TRUE | FE7: TRUE | FF7: TRUE | FG7: TRUE | FH7: TRUE | FI7: TRUE | FJ7: TRUE | FK7: TRUE | FL7: TRUE | FM7: TRUE | FN7: TRUE | FO7: TRUE | FP7: TRUE | FQ7: TRUE | FR7: TRUE | FS7: TRUE | FT7: TRUE | FU7: TRUE | FV7: TRUE | FW7: TRUE | FX7: TRUE | FY7: TRUE | FZ7: TRUE | GA7: TRUE | GB7: TRUE | GC7: TRUE | GD7: TRUE | GE7: TRUE | GF7: FALSE | GG7: FALSE | GH7: FALSE | GI7: FALSE | GJ7: FALSE | GK7: FALSE | GL7: FALSE | GM7: FALSE | GN7: FALSE | GO7: FALSE | GP7: FALSE | GQ7: FALSE | GR7: FALSE | GS7: =AND(GS$5>=$F7,GS$5<$G7) -> FALSE | GT7: FALSE | GU7: FALSE | GV7: FALSE | GW7: FALSE | GX7: FALSE | GY7: FALSE | GZ7: FALSE | HA7: FALSE | HB7: FALSE | HC7: FALSE | HD7: FALSE | HE7: FALSE | HF7: FALSE | HG7: FALSE | HH7: FALSE | HI7: FALSE | HJ7: FALSE | HK7: FALSE | HL7: FALSE | HM7: FALSE | HN7: FALSE | HO7: FALSE | HP7: FALSE | HQ7: FALSE | HR7: FALSE | HS7: FALSE | HT7: FALSE | HU7: FALSE | HV7: FALSE | HW7: FALSE | HX7: FALSE | HY7: FALSE | HZ7: FALSE | IA7: FALSE | IB7: FALSE | IC7: FALSE | ID7: FALSE | IE7: FALSE | IF7: FALSE | IG7: FALSE | IH7: FALSE | II7: FALSE | IJ7: FALSE | IK7: FALSE | IL7: FALSE | IM7: FALSE | IN7: FALSE | IO7: FALSE | IP7: FALSE | IQ7: FALSE | IR7: FALSE | IS7: FALSE | IT7: FALSE | IU7: FALSE | IV7: FALSE | IW7: FALSE | IX7: FALSE | IY7: FALSE | IZ7: FALSE | JA7: FALSE | JB7: FALSE | JC7: FALSE | JD7: FALSE | JE7: =AND(JE$5>=$F7,JE$5<$G7) -> FALSE | JF7: FALSE | JG7: FALSE | JH7: FALSE | JI7: FALSE | JJ7: FALSE | JK7: FALSE | JL7: FALSE | JM7: FALSE | JN7: FALSE | JO7: FALSE | JP7: FALSE | JQ7: FALSE | JR7: FALSE | JS7: FALSE | JT7: FALSE | JU7: FALSE | JV7: FALSE | JW7: FALSE | JX7: FALSE | JY7: FALSE | JZ7: FALSE | KA7: FALSE | KB7: FALSE | KC7: FALSE | KD7: FALSE | KE7: FALSE | KF7: FALSE | KG7: FALSE | KH7: FALSE | KI7: FALSE | KJ7: FALSE | KK7: FALSE | KL7: FALSE | KM7: FALSE | KN7: FALSE | KO7: FALSE | KP7: FALSE | KQ7: FALSE | KR7: FALSE | KS7: FALSE | KT7: FALSE | KU7: FALSE | KV7: FALSE
A8: Dates
C9: Development Start | F9: 2018-01-01
C10: Development Period | E10: Months | F10: 20
C11: Financial Close | E11: Date | F11: =EDATE(F9,F10) -> 2019-09-01
C12: Construction | E12: Months | F12: 39
C13: Commercial Operation | E13: Date | F13: =EDATE(F11,F12) -> 2022-12-01
C14: Operation | E14: Years | F14: 30
C15: Decommissioning | E15: Date | F15: =EDATE(F13,F14*12) -> 2052-12-01
C16: Months Pre-COD | E16: Months | F16: 1
C17: Months Post-COD | E17: Months | F17: 3
A19: Capacity and Volumes
B20: Months after FC | I20: 10 | J20: 8 | K20: COD | L20: Decom
B21: Date | G21: =F9 -> 2018-01-01 | H21: =F11 -> 2019-09-01 | I21: =EDATE(H21,I20) -> 2020-07-01 | J21: =EDATE(I21,J20) -> 2021-03-01 | K21: =F13 -> 2022-12-01 | L21: =F15 -> 2052-12-01
B22: Capacity of Project | E22: Units/Day | G22: 0 | H22: 0 | I22: 100 | J22: 150 | K22: 1000 | L22: 0
L24: 2 | M24: 4 | N24: 6
B25: Date | G25: =G21 -> 2018-01-01 | H25: =H21 -> 2019-09-01 | I25: 2020-07-01 | J25: 2021-03-01 | K25: 2022-12-01 | L25: =EDATE(K25,L24*12) -> 2024-12-01 | M25: =EDATE(L25,M24*12) -> 2028-12-01 | N25: =EDATE(M25,N24*12) -> 2034-12-01 | O25: =L21 -> 2052-12-01
B26: Capacity Utilisation | E26: % | G26: 0 | H26: 0 | I26: 0.4 | J26: 0.6 | K26: 0.6 | L26: 0.64 | M26: 0.72 | N26: 0.8 | O26: 0.8
A28: Operating Contracts and Working Capital
B30: Capital Expenditures/Month | F30: Amount | G30: Months | H30: Start
C31: Development Cost | E31: € 000's | F31: 1000000 | G31: =F10 -> 20 | H31: =F9 -> 2018-01-01
C32: Development Fees | E32: € 000's | F32: 2000000 | G32: 1 | H32: =F11 -> 2019-09-01
C33: Capital Expenditures - EPC | E33: € 000's | F33: 10000000 | G33: =F12 -> 39 | H33: =F13 -> 2022-12-01
C34: Capital Expenditures - Owner | E34: € 000's | F34: 500000 | G34: =F14 -> 30 | H34: =F13 -> 2022-12-01
B36: S-curve assumptions
C37: Wiebull Alpha | E37: Factor | F37: 3
C38: Wiebull Middle of Period | E38: Months | F38: 20
C39: Wiebull Gamma | E39: Factor | F39: 0.9
C40: Wiebull Beta | E40: Factor | F40: =F38*F39 -> 18
B42: PPA Contract
C43: Base Price | E43: €/Unit | F43: 8
C44: Month to Apply Inflation (After COD) | E44: Month | F44: =MONTH(F13) -> 12
G45: =YEAR(F9) -> 2018 | H45: =G45+1 -> 2019 | I45: =H45+1 -> 2020 | J45: 2021 | K45: 2022 | L45: 2023 | M45: 2024 | N45: 2025 | O45: 2026
C46: Inflation Rate | E46: % p.a. | G46: 0.015 | H46: 0.018 | I46: 0.02 | J46: 0.022 | K46: 0.025 | L46: 0.025 | M46: 0.025 | N46: 0.025 | O46: 0.025
B48: O&M Contract
C49: Base Variable O&M per Unit | E49: €/Unit | F49: 2
C50: Age in Years | F50: 0 | G50: 1 | H50: 15 | I50: 20 | J50: =F14+1 -> 31
C51: Base Fixed O&M per Capacity-yr | E51: €/Cap-yr | G51: 150000 | H51: 250000 | I51: 300000 | J51: 0
C52: First Date of Inflation | E52: Date | F52: =F13 -> 2022-12-01
B54: Working Capital
C55: Days Receivables | E55: Days | F55: 28
C56: Days Payables | E56: Days | F56: 15
A57: Operations Analysis
B58: Capapcity and Volumes
C59: Capacity | E59: Units/Day | F59: LOOKUP | I59: =LOOKUP(I5,21:21,22:22) -> 0 | J59: 0 | K59: 0 | L59: 0 | M59: 0 | N59: 0 | O59: 0 | P59: 0 | Q59: 0 | R59: 0 | S59: 0 | T59: 0 | U59: 0 | V59: 0 | W59: 0 | X59: 0 | Y59: 0 | Z59: 0 | AA59: 0 | AB59: 0 | AC59: 0 | AD59: 0 | AE59: 0 | AF59: 0 | AG59: 0 | AH59: 0 | AI59: 0 | AJ59: 0 | AK59: 0 | AL59: 0 | AM59: 100 | AN59: 100 | AO59: 100 | AP59: 100 | AQ59: 100 | AR59: 100 | AS59: 100 | AT59: 100 | AU59: 150 | AV59: 150 | AW59: 150 | AX59: 150 | AY59: 150 | AZ59: 150 | BA59: 150 | BB59: 150 | BC59: 150 | BD59: 150 | BE59: 150 | BF59: 150 | BG59: 150 | BH59: 150 | BI59: 150 | BJ59: 150 | BK59: 150 | BL59: 150 | BM59: 150 | BN59: 150 | BO59: 150 | BP59: 1000 | BQ59: 1000 | BR59: 1000 | BS59: 1000 | BT59: 1000 | BU59: =LOOKUP(BU5,21:21,22:22) -> 1000 | BV59: 1000 | BW59: 1000 | BX59: 1000 | BY59: 1000 | BZ59: 1000 | CA59: 1000 | CB59: 1000 | CC59: 1000 | CD59: 1000 | CE59: 1000 | CF59: 1000 | CG59: 1000 | CH59: 1000 | CI59: 1000 | CJ59: 1000 | CK59: 1000 | CL59: 1000 | CM59: 1000 | CN59: 1000 | CO59: 1000 | CP59: 1000 | CQ59: 1000 | CR59: 1000 | CS59: 1000 | CT59: 1000 | CU59: 1000 | CV59: 1000 | CW59: 1000 | CX59: 1000 | CY59: 1000 | CZ59: 1000 | DA59: 1000 | DB59: 1000 | DC59: 1000 | DD59: 1000 | DE59: 1000 | DF59: 1000 | DG59: 1000 | DH59: 1000 | DI59: 1000 | DJ59: 1000 | DK59: 1000 | DL59: 1000 | DM59: 1000 | DN59: 1000 | DO59: 1000 | DP59: 1000 | DQ59: 1000 | DR59: 1000 | DS59: 1000 | DT59: 1000 | DU59: 1000 | DV59: 1000 | DW59: 1000 | DX59: 1000 | DY59: 1000 | DZ59: 1000 | EA59: 1000 | EB59: 1000 | EC59: 1000 | ED59: 1000 | EE59: 1000 | EF59: 1000 | EG59: =LOOKUP(EG5,21:21,22:22) -> 1000 | EH59: 1000 | EI59: 1000 | EJ59: 1000 | EK59: 1000 | EL59: 1000 | EM59: 1000 | EN59: 1000 | EO59: 1000 | EP59: 1000 | EQ59: 1000 | ER59: 1000 | ES59: 1000 | ET59: 1000 | EU59: 1000 | EV59: 1000 | EW59: 1000 | EX59: 1000 | EY59: 1000 | EZ59: 1000 | FA59: 1000 | FB59: 1000 | FC59: 1000 | FD59: 1000 | FE59: 1000 | FF59: 1000 | FG59: 1000 | FH59: 1000 | FI59: 1000 | FJ59: 1000 | FK59: 1000 | FL59: 1000 | FM59: 1000 | FN59: 1000 | FO59: 1000 | FP59: 1000 | FQ59: 1000 | FR59: 1000 | FS59: 1000 | FT59: 1000 | FU59: 1000 | FV59: 1000 | FW59: 1000 | FX59: 1000 | FY59: 1000 | FZ59: 1000 | GA59: 1000 | GB59: 1000 | GC59: 1000 | GD59: 1000 | GE59: 1000 | GF59: 0 | GG59: 0 | GH59: 0 | GI59: 0 | GJ59: 0 | GK59: 0 | GL59: 0 | GM59: 0 | GN59: 0 | GO59: 0 | GP59: 0 | GQ59: 0 | GR59: 0 | GS59: =LOOKUP(GS5,21:21,22:22) -> 0 | GT59: 0 | GU59: 0 | GV59: 0 | GW59: 0 | GX59: 0 | GY59: 0 | GZ59: 0 | HA59: 0 | HB59: 0 | HC59: 0 | HD59: 0 | HE59: 0 | HF59: 0 | HG59: 0 | HH59: 0 | HI59: 0 | HJ59: 0 | HK59: 0 | HL59: 0 | HM59: 0 | HN59: 0 | HO59: 0 | HP59: 0 | HQ59: 0 | HR59: 0 | HS59: 0 | HT59: 0 | HU59: 0 | HV59: 0 | HW59: 0 | HX59: 0 | HY59: 0 | HZ59: 0 | IA59: 0 | IB59: 0 | IC59: 0 | ID59: 0 | IE59: 0 | IF59: 0 | IG59: 0 | IH59: 0 | II59: 0 | IJ59: 0 | IK59: 0 | IL59: 0 | IM59: 0 | IN59: 0 | IO59: 0 | IP59: 0 | IQ59: 0 | IR59: 0 | IS59: 0 | IT59: 0 | IU59: 0 | IV59: 0 | IW59: 0 | IX59: 0 | IY59: 0 | IZ59: 0 | JA59: 0 | JB59: 0 | JC59: 0 | JD59: 0 | JE59: =LOOKUP(JE5,21:21,22:22) -> 0 | JF59: 0 | JG59: 0 | JH59: 0 | JI59: 0 | JJ59: 0 | JK59: 0 | JL59: 0 | JM59: 0 | JN59: 0 | JO59: 0 | JP59: 0 | JQ59: 0 | JR59: 0 | JS59: 0 | JT59: 0 | JU59: 0 | JV59: 0 | JW59: 0 | JX59: 0 | JY59: 0 | JZ59: 0 | KA59: 0 | KB59: 0 | KC59: 0 | KD59: 0 | KE59: 0 | KF59: 0 | KG59: 0 | KH59: 0 | KI59: 0 | KJ59: 0 | KK59: 0 | KL59: 0 | KM59: 0 | KN59: 0 | KO59: 0 | KP59: 0 | KQ59: 0 | KR59: 0 | KS59: 0 | KT59: 0 | KU59: 0 | KV59: 0
C60: Days in Period | E60: Days | I60: =I6-I5+1 -> 31 | J60: 28 | K60: 31 | L60: 30 | M60: 31 | N60: 30 | O60: 31 | P60: 31 | Q60: 30 | R60: 31 | S60: 30 | T60: 31 | U60: 31 | V60: 28 | W60: 31 | X60: 30 | Y60: 31 | Z60: 30 | AA60: 31 | AB60: 31 | AC60: 30 | AD60: 31 | AE60: 30 | AF60: 31 | AG60: 31 | AH60: 29 | AI60: 31 | AJ60: 30 | AK60: 31 | AL60: 30 | AM60: 31 | AN60: 31 | AO60: 30 | AP60: 31 | AQ60: 30 | AR60: 31 | AS60: 31 | AT60: 28 | AU60: 31 | AV60: 30 | AW60: 31 | AX60: 30 | AY60: 31 | AZ60: 31 | BA60: 30 | BB60: 31 | BC60: 30 | BD60: 31 | BE60: 31 | BF60: 28 | BG60: 31 | BH60: 30 | BI60: 31 | BJ60: 30 | BK60: 31 | BL60: 31 | BM60: 30 | BN60: 31 | BO60: 30 | BP60: 90 | BQ60: 92 | BR60: 92 | BS60: 91 | BT60: 91 | BU60: =BU6-BU5+1 -> 92 | BV60: 92 | BW60: 91 | BX60: 90 | BY60: 92 | BZ60: 92 | CA60: 91 | CB60: 90 | CC60: 92 | CD60: 92 | CE60: 91 | CF60: 90 | CG60: 92 | CH60: 92 | CI60: 91 | CJ60: 91 | CK60: 92 | CL60: 92 | CM60: 91 | CN60: 90 | CO60: 92 | CP60: 92 | CQ60: 91 | CR60: 90 | CS60: 92 | CT60: 92 | CU60: 91 | CV60: 90 | CW60: 92 | CX60: 92 | CY60: 91 | CZ60: 91 | DA60: 92 | DB60: 92 | DC60: 91 | DD60: 90 | DE60: 92 | DF60: 92 | DG60: 91 | DH60: 90 | DI60: 92 | DJ60: 92 | DK60: 91 | DL60: 90 | DM60: 92 | DN60: 92 | DO60: 91 | DP60: 91 | DQ60: 92 | DR60: 92 | DS60: 91 | DT60: 90 | DU60: 92 | DV60: 92 | DW60: 91 | DX60: 90 | DY60: 92 | DZ60: 92 | EA60: 91 | EB60: 90 | EC60: 92 | ED60: 92 | EE60: 91 | EF60: 91 | EG60: =EG6-EG5+1 -> 92 | EH60: 92 | EI60: 91 | EJ60: 90 | EK60: 92 | EL60: 92 | EM60: 91 | EN60: 90 | EO60: 92 | EP60: 92 | EQ60: 91 | ER60: 90 | ES60: 92 | ET60: 92 | EU60: 91 | EV60: 91 | EW60: 92 | EX60: 92 | EY60: 91 | EZ60: 90 | FA60: 92 | FB60: 92 | FC60: 91 | FD60: 90 | FE60: 92 | FF60: 92 | FG60: 91 | FH60: 90 | FI60: 92 | FJ60: 92 | FK60: 91 | FL60: 91 | FM60: 92 | FN60: 92 | FO60: 91 | FP60: 90 | FQ60: 92 | FR60: 92 | FS60: 91 | FT60: 90 | FU60: 92 | FV60: 92 | FW60: 91 | FX60: 90 | FY60: 92 | FZ60: 92 | GA60: 91 | GB60: 91 | GC60: 92 | GD60: 92 | GE60: 91 | GF60: 90 | GG60: 92 | GH60: 92 | GI60: 91 | GJ60: 90 | GK60: 92 | GL60: 92 | GM60: 91 | GN60: 90 | GO60: 92 | GP60: 92 | GQ60: 91 | GR60: 91 | GS60: =GS6-GS5+1 -> 92 | GT60: 92 | GU60: 91 | GV60: 90 | GW60: 92 | GX60: 92 | GY60: 91 | GZ60: 90 | HA60: 92 | HB60: 92 | HC60: 91 | HD60: 90 | HE60: 92 | HF60: 92 | HG60: 91 | HH60: 91 | HI60: 92 | HJ60: 92 | HK60: 91 | HL60: 90 | HM60: 92 | HN60: 92 | HO60: 91 | HP60: 90 | HQ60: 92 | HR60: 92 | HS60: 91 | HT60: 90 | HU60: 92 | HV60: 92 | HW60: 91 | HX60: 91 | HY60: 92 | HZ60: 92 | IA60: 91 | IB60: 90 | IC60: 92 | ID60: 92 | IE60: 91 | IF60: 90 | IG60: 92 | IH60: 92 | II60: 91 | IJ60: 90 | IK60: 92 | IL60: 92 | IM60: 91 | IN60: 91 | IO60: 92 | IP60: 92 | IQ60: 91 | IR60: 90 | IS60: 92 | IT60: 92 | IU60: 91 | IV60: 90 | IW60: 92 | IX60: 92 | IY60: 91 | IZ60: 90 | JA60: 92 | JB60: 92 | JC60: 91 | JD60: 91 | JE60: =JE6-JE5+1 -> 92 | JF60: 92 | JG60: 91 | JH60: 90 | JI60: 92 | JJ60: 92 | JK60: 91 | JL60: 90 | JM60: 92 | JN60: 92 | JO60: 91 | JP60: 90 | JQ60: 92 | JR60: 92 | JS60: 91 | JT60: 91 | JU60: 92 | JV60: 92 | JW60: 91 | JX60: 90 | JY60: 92 | JZ60: 92 | KA60: 91 | KB60: 90 | KC60: 92 | KD60: 92 | KE60: 91 | KF60: 90 | KG60: 92 | KH60: 92 | KI60: 91 | KJ60: 91 | KK60: 92 | KL60: 92 | KM60: 91 | KN60: 90 | KO60: 92 | KP60: 92 | KQ60: 91 | KR60: 90 | KS60: 92 | KT60: 92 | KU60: 91 | KV60: 90
C61: Total Capacity | E61: Units | I61: =I59*I60 -> 0 | J61: =J59*J60 -> 0 | K61: 0 | L61: 0 | M61: 0 | N61: 0 | O61: 0 | P61: 0 | Q61: 0 | R61: 0 | S61: 0 | T61: 0 | U61: 0 | V61: 0 | W61: 0 | X61: 0 | Y61: 0 | Z61: 0 | AA61: 0 | AB61: 0 | AC61: 0 | AD61: 0 | AE61: 0 | AF61: 0 | AG61: 0 | AH61: 0 | AI61: 0 | AJ61: 0 | AK61: 0 | AL61: 0 | AM61: 3100 | AN61: 3100 | AO61: 3000 | AP61: 3100 | AQ61: 3000 | AR61: 3100 | AS61: 3100 | AT61: 2800 | AU61: 4650 | AV61: 4500 | AW61: 4650 | AX61: 4500 | AY61: 4650 | AZ61: 4650 | BA61: 4500 | BB61: 4650 | BC61: 4500 | BD61: 4650 | BE61: 4650 | BF61: 4200 | BG61: 4650 | BH61: 4500 | BI61: 4650 | BJ61: 4500 | BK61: 4650 | BL61: 4650 | BM61: 4500 | BN61: 4650 | BO61: 4500 | BP61: 90000 | BQ61: 92000 | BR61: 92000 | BS61: 91000 | BT61: 91000 | BU61: 92000 | BV61: =BV59*BV60 -> 92000 | BW61: 91000 | BX61: 90000 | BY61: 92000 | BZ61: 92000 | CA61: 91000 | CB61: 90000 | CC61: 92000 | CD61: 92000 | CE61: 91000 | CF61: 90000 | CG61: 92000 | CH61: 92000 | CI61: 91000 | CJ61: 91000 | CK61: 92000 | CL61: 92000 | CM61: 91000 | CN61: 90000 | CO61: 92000 | CP61: 92000 | CQ61: 91000 | CR61: 90000 | CS61: 92000 | CT61: 92000 | CU61: 91000 | CV61: 90000 | CW61: 92000 | CX61: 92000 | CY61: 91000 | CZ61: 91000 | DA61: 92000 | DB61: 92000 | DC61: 91000 | DD61: 90000 | DE61: 92000 | DF61: 92000 | DG61: 91000 | DH61: 90000 | DI61: 92000 | DJ61: 92000 | DK61: 91000 | DL61: 90000 | DM61: 92000 | DN61: 92000 | DO61: 91000 | DP61: 91000 | DQ61: 92000 | DR61: 92000 | DS61: 91000 | DT61: 90000 | DU61: 92000 | DV61: 92000 | DW61: 91000 | DX61: 90000 | DY61: 92000 | DZ61: 92000 | EA61: 91000 | EB61: 90000 | EC61: 92000 | ED61: 92000 | EE61: 91000 | EF61: 91000 | EG61: 92000 | EH61: =EH59*EH60 -> 92000 | EI61: 91000 | EJ61: 90000 | EK61: 92000 | EL61: 92000 | EM61: 91000 | EN61: 90000 | EO61: 92000 | EP61: 92000 | EQ61: 91000 | ER61: 90000 | ES61: 92000 | ET61: 92000 | EU61: 91000 | EV61: 91000 | EW61: 92000 | EX61: 92000 | EY61: 91000 | EZ61: 90000 | FA61: 92000 | FB61: 92000 | FC61: 91000 | FD61: 90000 | FE61: 92000 | FF61: 92000 | FG61: 91000 | FH61: 90000 | FI61: 92000 | FJ61: 92000 | FK61: 91000 | FL61: 91000 | FM61: 92000 | FN61: 92000 | FO61: 91000 | FP61: 90000 | FQ61: 92000 | FR61: 92000 | FS61: 91000 | FT61: 90000 | FU61: 92000 | FV61: 92000 | FW61: 91000 | FX61: 90000 | FY61: 92000 | FZ61: 92000 | GA61: 91000 | GB61: 91000 | GC61: 92000 | GD61: 92000 | GE61: 91000 | GF61: 0 | GG61: 0 | GH61: 0 | GI61: 0 | GJ61: 0 | GK61: 0 | GL61: 0 | GM61: 0 | GN61: 0 | GO61: 0 | GP61: 0 | GQ61: 0 | GR61: 0 | GS61: 0 | GT61: =GT59*GT60 -> 0 | GU61: 0 | GV61: 0 | GW61: 0 | GX61: 0 | GY61: 0 | GZ61: 0 | HA61: 0 | HB61: 0 | HC61: 0 | HD61: 0 | HE61: 0 | HF61: 0 | HG61: 0 | HH61: 0 | HI61: 0 | HJ61: 0 | HK61: 0 | HL61: 0 | HM61: 0 | HN61: 0 | HO61: 0 | HP61: 0 | HQ61: 0 | HR61: 0 | HS61: 0 | HT61: 0 | HU61: 0 | HV61: 0 | HW61: 0 | HX61: 0 | HY61: 0 | HZ61: 0 | IA61: 0 | IB61: 0 | IC61: 0 | ID61: 0 | IE61: 0 | IF61: 0 | IG61: 0 | IH61: 0 | II61: 0 | IJ61: 0 | IK61: 0 | IL61: 0 | IM61: 0 | IN61: 0 | IO61: 0 | IP61: 0 | IQ61: 0 | IR61: 0 | IS61: 0 | IT61: 0 | IU61: 0 | IV61: 0 | IW61: 0 | IX61: 0 | IY61: 0 | IZ61: 0 | JA61: 0 | JB61: 0 | JC61: 0 | JD61: 0 | JE61: 0 | JF61: =JF59*JF60 -> 0 | JG61: 0 | JH61: 0 | JI61: 0 | JJ61: 0 | JK61: 0 | JL61: 0 | JM61: 0 | JN61: 0 | JO61: 0 | JP61: 0 | JQ61: 0 | JR61: 0 | JS61: 0 | JT61: 0 | JU61: 0 | JV61: 0 | JW61: 0 | JX61: 0 | JY61: 0 | JZ61: 0 | KA61: 0 | KB61: 0 | KC61: 0 | KD61: 0 | KE61: 0 | KF61: 0 | KG61: 0 | KH61: 0 | KI61: 0 | KJ61: 0 | KK61: 0 | KL61: 0 | KM61: 0 | KN61: 0 | KO61: 0 | KP61: 0 | KQ61: 0 | KR61: 0 | KS61: 0 | KT61: 0 | KU61: 0 | KV61: 0
C63: Capacity Utilisation | E63: % | F63: LINEAR | I63: =interpolate_look_up_linear(I5,25:25,26:26) -> 0 | J63: 0 | K63: 0 | L63: 0 | M63: 0 | N63: 0 | O63: 0 | P63: 0 | Q63: 0 | R63: 0 | S63: 0 | T63: 0 | U63: 0 | V63: 0 | W63: 0 | X63: 0 | Y63: 0 | Z63: 0 | AA63: 0 | AB63: 0 | AC63: 0 | AD63: 0.03947368421 | AE63: 0.08026315789 | AF63: 0.1197368421 | AG63: 0.1605263158 | AH63: 0.2013157895 | AI63: 0.2394736842 | AJ63: 0.2802631579 | AK63: 0.3197368421 | AL63: 0.3605263158 | AM63: 0.4 | AN63: 0.4255144033 | AO63: 0.4510288066 | AP63: 0.4757201646 | AQ63: 0.5012345679 | AR63: 0.5259259259 | AS63: 0.5514403292 | AT63: 0.5769547325 | AU63: 0.6 | AV63: 0.6 | AW63: 0.6 | AX63: 0.6 | AY63: 0.6 | AZ63: 0.6 | BA63: 0.6 | BB63: 0.6 | BC63: 0.6 | BD63: 0.6 | BE63: 0.6 | BF63: 0.6 | BG63: 0.6 | BH63: 0.6 | BI63: 0.6 | BJ63: 0.6 | BK63: 0.6 | BL63: 0.6 | BM63: 0.6 | BN63: 0.6 | BO63: 0.6 | BP63: 0.6 | BQ63: 0.6049247606 | BR63: 0.6099589603 | BS63: 0.6149931601 | BT63: 0.6199726402 | BU63: =interpolate_look_up_linear(BU5,25:25,26:26) -> 0.6249521204 | BV63: 0.6299863201 | BW63: 0.6350205198 | BX63: 0.64 | BY63: 0.6449281314 | BZ63: 0.6499657769 | CA63: 0.6550034223 | CB63: 0.6599863107 | CC63: 0.6649144422 | CD63: 0.6699520876 | CE63: 0.6749897331 | CF63: 0.6799726215 | CG63: 0.6849007529 | CH63: 0.6899383984 | CI63: 0.6949760438 | CJ63: 0.6999589322 | CK63: 0.7049418207 | CL63: 0.7099794661 | CM63: 0.7150171116 | CN63: 0.72 | CO63: 0.7232861707 | CP63: 0.7266453674 | CQ63: 0.7300045641 | CR63: 0.7333272478 | CS63: 0.7366134185 | CT63: 0.7399726152 | CU63: 0.743331812 | CV63: 0.7466544957 | CW63: 0.7499406664 | CX63: 0.7532998631 | CY63: 0.7566590598 | CZ63: 0.7599817435 | DA63: 0.7633044272 | DB63: 0.7666636239 | DC63: 0.7700228206 | DD63: 0.7733455043 | DE63: 0.776631675 | DF63: 0.7799908717 | DG63: 0.7833500685 | DH63: 0.7866727522 | DI63: 0.7899589229 | DJ63: 0.7933181196 | DK63: 0.7966773163 | DL63: 0.8 | DM63: 0.8 | DN63: 0.8 | DO63: 0.8 | DP63: 0.8 | DQ63: 0.8 | DR63: 0.8 | DS63: 0.8 | DT63: 0.8 | DU63: 0.8 | DV63: 0.8 | DW63: 0.8 | DX63: 0.8 | DY63: 0.8 | DZ63: 0.8 | EA63: 0.8 | EB63: 0.8 | EC63: 0.8 | ED63: 0.8 | EE63: 0.8 | EF63: 0.8 | EG63: =interpolate_look_up_linear(EG5,25:25,26:26) -> 0.8 | EH63: 0.8 | EI63: 0.8 | EJ63: 0.8 | EK63: 0.8 | EL63: 0.8 | EM63: 0.8 | EN63: 0.8 | EO63: 0.8 | EP63: 0.8 | EQ63: 0.8 | ER63: 0.8 | ES63: 0.8 | ET63: 0.8 | EU63: 0.8 | EV63: 0.8 | EW63: 0.8 | EX63: 0.8 | EY63: 0.8 | EZ63: 0.8 | FA63: 0.8 | FB63: 0.8 | FC63: 0.8 | FD63: 0.8 | FE63: 0.8 | FF63: 0.8 | FG63: 0.8 | FH63: 0.8 | FI63: 0.8 | FJ63: 0.8 | FK63: 0.8 | FL63: 0.8 | FM63: 0.8 | FN63: 0.8 | FO63: 0.8 | FP63: 0.8 | FQ63: 0.8 | FR63: 0.8 | FS63: 0.8 | FT63: 0.8 | FU63: 0.8 | FV63: 0.8 | FW63: 0.8 | FX63: 0.8 | FY63: 0.8 | FZ63: 0.8 | GA63: 0.8 | GB63: 0.8 | GC63: 0.8 | GD63: 0.8 | GE63: 0.8 | GF63: 0.8 | GG63: 0.8 | GH63: 0.8 | GI63: 0.8 | GJ63: 0.8 | GK63: 0.8 | GL63: 0.8 | GM63: 0.8 | GN63: 0.8 | GO63: 0.8 | GP63: 0.8 | GQ63: 0.8 | GR63: 0.8 | GS63: =interpolate_look_up_linear(GS5,25:25,26:26) -> 0.8 | GT63: 0.8 | GU63: 0.8 | GV63: 0.8 | GW63: 0.8 | GX63: 0.8 | GY63: 0.8 | GZ63: 0.8 | HA63: 0.8 | HB63: 0.8 | HC63: 0.8 | HD63: 0.8 | HE63: 0.8 | HF63: 0.8 | HG63: 0.8 | HH63: 0.8 | HI63: 0.8 | HJ63: 0.8 | HK63: 0.8 | HL63: 0.8 | HM63: 0.8 | HN63: 0.8 | HO63: 0.8 | HP63: 0.8 | HQ63: 0.8 | HR63: 0.8 | HS63: 0.8 | HT63: 0.8 | HU63: 0.8 | HV63: 0.8 | HW63: 0.8 | HX63: 0.8 | HY63: 0.8 | HZ63: 0.8 | IA63: 0.8 | IB63: 0.8 | IC63: 0.8 | ID63: 0.8 | IE63: 0.8 | IF63: 0.8 | IG63: 0.8 | IH63: 0.8 | II63: 0.8 | IJ63: 0.8 | IK63: 0.8 | IL63: 0.8 | IM63: 0.8 | IN63: 0.8 | IO63: 0.8 | IP63: 0.8 | IQ63: 0.8 | IR63: 0.8 | IS63: 0.8 | IT63: 0.8 | IU63: 0.8 | IV63: 0.8 | IW63: 0.8 | IX63: 0.8 | IY63: 0.8 | IZ63: 0.8 | JA63: 0.8 | JB63: 0.8 | JC63: 0.8 | JD63: 0.8 | JE63: =interpolate_look_up_linear(JE5,25:25,26:26) -> 0.8 | JF63: 0.8 | JG63: 0.8 | JH63: 0.8 | JI63: 0.8 | JJ63: 0.8 | JK63: 0.8 | JL63: 0.8 | JM63: 0.8 | JN63: 0.8 | JO63: 0.8 | JP63: 0.8 | JQ63: 0.8 | JR63: 0.8 | JS63: 0.8 | JT63: 0.8 | JU63: 0.8 | JV63: 0.8 | JW63: 0.8 | JX63: 0.8 | JY63: 0.8 | JZ63: 0.8 | KA63: 0.8 | KB63: 0.8 | KC63: 0.8 | KD63: 0.8 | KE63: 0.8 | KF63: 0.8 | KG63: 0.8 | KH63: 0.8 | KI63: 0.8 | KJ63: 0.8 | KK63: 0.8 | KL63: 0.8 | KM63: 0.8 | KN63: 0.8 | KO63: 0.8 | KP63: 0.8 | KQ63: 0.8 | KR63: 0.8 | KS63: 0.8 | KT63: 0.8 | KU63: 0.8 | KV63: 0.8
C64: Capacity Utilisation | E64: % | F64: INTERPOLATE | I64: =interpolate_look_up(I5,25:25,26:26) -> 0 | J64: 0 | K64: 0 | L64: 0 | M64: 0 | N64: 0 | O64: 0 | P64: 0 | Q64: 0 | R64: 0 | S64: 0 | T64: 0 | U64: 0 | V64: 0 | W64: 0 | X64: 0 | Y64: 0 | Z64: 0 | AA64: 0 | AB64: 0 | AC64: 0 | AD64: 0 | AE64: 0 | AF64: 0 | AG64: 0 | AH64: 0 | AI64: 0 | AJ64: 0 | AK64: 0 | AL64: 0 | AM64: 0.4 | AN64: 0.4212348634 | AO64: 0.4435970255 | AP64: 0.4663675097 | AQ64: 0.4911256357 | AR64: 0.516335833 | AS64: 0.5437466353 | AT64: 0.5726125992 | AU64: 0.6 | AV64: 0.6 | AW64: 0.6 | AX64: 0.6 | AY64: 0.6 | AZ64: 0.6 | BA64: 0.6 | BB64: 0.6 | BC64: 0.6 | BD64: 0.6 | BE64: 0.6 | BF64: 0.6 | BG64: 0.6 | BH64: 0.6 | BI64: 0.6 | BJ64: 0.6 | BK64: 0.6 | BL64: 0.6 | BM64: 0.6 | BN64: 0.6 | BO64: 0.6 | BP64: 0.6 | BQ64: 0.6047865431 | BR64: 0.6097189233 | BS64: 0.6146915299 | BT64: 0.619649981 | BU64: =interpolate_look_up(BU5,25:25,26:26) -> 0.6246484297 | BV64: 0.629742795 | BW64: 0.6348787077 | BX64: 0.64 | BY64: 0.6446604892 | BZ64: 0.649459624 | CA64: 0.6542944858 | CB64: 0.6591122018 | CC64: 0.6639118663 | CD64: 0.6688543169 | CE64: 0.6738335612 | CF64: 0.6787951478 | CG64: 0.6837381438 | CH64: 0.6888281898 | CI64: 0.6939561284 | CJ64: 0.699065882 | CK64: 0.7042132598 | CL64: 0.7094557315 | CM64: 0.7147372306 | CN64: 0.72 | CO64: 0.7231228466 | CP64: 0.7263290897 | CQ64: 0.7295495489 | CR64: 0.7327490501 | CS64: 0.735927193 | CT64: 0.7391902091 | CU64: 0.7424676931 | CV64: 0.7457238479 | CW64: 0.7489582662 | CX64: 0.7522790606 | CY64: 0.755614579 | CZ64: 0.7589283906 | DA64: 0.7622567352 | DB64: 0.7656364935 | DC64: 0.7690312372 | DD64: 0.7724038887 | DE64: 0.7757540259 | DF64: 0.7791936296 | DG64: 0.7826484841 | DH64: 0.7860808552 | DI64: 0.7894903134 | DJ64: 0.7929908222 | DK64: 0.7965068519 | DL64: 0.8 | DM64: 0.8 | DN64: 0.8 | DO64: 0.8 | DP64: 0.8 | DQ64: 0.8 | DR64: 0.8 | DS64: 0.8 | DT64: 0.8 | DU64: 0.8 | DV64: 0.8 | DW64: 0.8 | DX64: 0.8 | DY64: 0.8 | DZ64: 0.8 | EA64: 0.8 | EB64: 0.8 | EC64: 0.8 | ED64: 0.8 | EE64: 0.8 | EF64: 0.8 | EG64: =interpolate_look_up(EG5,25:25,26:26) -> 0.8 | EH64: 0.8 | EI64: 0.8 | EJ64: 0.8 | EK64: 0.8 | EL64: 0.8 | EM64: 0.8 | EN64: 0.8 | EO64: 0.8 | EP64: 0.8 | EQ64: 0.8 | ER64: 0.8 | ES64: 0.8 | ET64: 0.8 | EU64: 0.8 | EV64: 0.8 | EW64: 0.8 | EX64: 0.8 | EY64: 0.8 | EZ64: 0.8 | FA64: 0.8 | FB64: 0.8 | FC64: 0.8 | FD64: 0.8 | FE64: 0.8 | FF64: 0.8 | FG64: 0.8 | FH64: 0.8 | FI64: 0.8 | FJ64: 0.8 | FK64: 0.8 | FL64: 0.8 | FM64: 0.8 | FN64: 0.8 | FO64: 0.8 | FP64: 0.8 | FQ64: 0.8 | FR64: 0.8 | FS64: 0.8 | FT64: 0.8 | FU64: 0.8 | FV64: 0.8 | FW64: 0.8 | FX64: 0.8 | FY64: 0.8 | FZ64: 0.8 | GA64: 0.8 | GB64: 0.8 | GC64: 0.8 | GD64: 0.8 | GE64: 0.8 | GF64: 0.8 | GG64: 0.8 | GH64: 0.8 | GI64: 0.8 | GJ64: 0.8 | GK64: 0.8 | GL64: 0.8 | GM64: 0.8 | GN64: 0.8 | GO64: 0.8 | GP64: 0.8 | GQ64: 0.8 | GR64: 0.8 | GS64: =interpolate_look_up(GS5,25:25,26:26) -> 0.8 | GT64: 0.8 | GU64: 0.8 | GV64: 0.8 | GW64: 0.8 | GX64: 0.8 | GY64: 0.8 | GZ64: 0.8 | HA64: 0.8 | HB64: 0.8 | HC64: 0.8 | HD64: 0.8 | HE64: 0.8 | HF64: 0.8 | HG64: 0.8 | HH64: 0.8 | HI64: 0.8 | HJ64: 0.8 | HK64: 0.8 | HL64: 0.8 | HM64: 0.8 | HN64: 0.8 | HO64: 0.8 | HP64: 0.8 | HQ64: 0.8 | HR64: 0.8 | HS64: 0.8 | HT64: 0.8 | HU64: 0.8 | HV64: 0.8 | HW64: 0.8 | HX64: 0.8 | HY64: 0.8 | HZ64: 0.8 | IA64: 0.8 | IB64: 0.8 | IC64: 0.8 | ID64: 0.8 | IE64: 0.8 | IF64: 0.8 | IG64: 0.8 | IH64: 0.8 | II64: 0.8 | IJ64: 0.8 | IK64: 0.8 | IL64: 0.8 | IM64: 0.8 | IN64: 0.8 | IO64: 0.8 | IP64: 0.8 | IQ64: 0.8 | IR64: 0.8 | IS64: 0.8 | IT64: 0.8 | IU64: 0.8 | IV64: 0.8 | IW64: 0.8 | IX64: 0.8 | IY64: 0.8 | IZ64: 0.8 | JA64: 0.8 | JB64: 0.8 | JC64: 0.8 | JD64: 0.8 | JE64: =interpolate_look_up(JE5,25:25,26:26) -> 0.8 | JF64: 0.8 | JG64: 0.8 | JH64: 0.8 | JI64: 0.8 | JJ64: 0.8 | JK64: 0.8 | JL64: 0.8 | JM64: 0.8 | JN64: 0.8 | JO64: 0.8 | JP64: 0.8 | JQ64: 0.8 | JR64: 0.8 | JS64: 0.8 | JT64: 0.8 | JU64: 0.8 | JV64: 0.8 | JW64: 0.8 | JX64: 0.8 | JY64: 0.8 | JZ64: 0.8 | KA64: 0.8 | KB64: 0.8 | KC64: 0.8 | KD64: 0.8 | KE64: 0.8 | KF64: 0.8 | KG64: 0.8 | KH64: 0.8 | KI64: 0.8 | KJ64: 0.8 | KK64: 0.8 | KL64: 0.8 | KM64: 0.8 | KN64: 0.8 | KO64: 0.8 | KP64: 0.8 | KQ64: 0.8 | KR64: 0.8 | KS64: 0.8 | KT64: 0.8 | KU64: 0.8 | KV64: 0.8
